Workbook

Sheet Overview
B2: This spreadsheet contains data used in:
B3: Andrew Leigh, Disconnected, UNSW Press, Sydney, 2010
B4: Please refer to the book (including footnotes) for definitions and sources.
B5: Feel free to quote these data, but please cite the book if you do so.
B7: Best of luck with your own social capital explorations.
B9: Andrew.
B13: Corrections to Disconnected
B14: p.16: "By the late 2000s, only 2 per cent of boys were Scouts, and just 1 per cent of girls were members of the Guides (with another 1 per cent of girls being members of the Scouts)."
B16: p.155, Table 10.1. Last column should read as follows:
C17: Share who play organised sport (%)
B18: ACT | C18: 35.7
B19: NSW | C19: 24.7
B20: NT | C20: 30.6
B21: Qld | C21: 27.7
B22: SA | C22: 30.0
B23: Tas | C23: 26.7
B24: Vic | C24: 28.0
B25: WA | C25: 30.6

Sheet Unions Data
A1: Yr for calendar year statistics | B1: Overall union % (adjusted union surveys till 1975, then member surveys for remaining years) | C1: Union % from member surveys (ABS 6310.0 & 6325.0) | D1: Union % from Union Reports (cited in Peetz,p26)
A2: 1910
A3: 1911 | B3: =D3*(C$68/D$68) -> 0.259 | D3: 0.279
A4: 1912 | B4: 0.357 | D4: 0.385
A5: 1913 | B5: 0.387 | D5: 0.417
A6: 1914 | B6: 0.417 | D6: 0.450
A7: 1915 | B7: 0.408 | D7: 0.440
A8: 1916 | B8: 0.440 | D8: 0.475
A9: 1917 | B9: 0.452 | D9: 0.487
A10: 1918 | B10: 0.454 | D10: 0.490
A11: 1919 | B11: 0.464 | D11: 0.500
A12: 1920 | B12: 0.494 | D12: 0.533
A13: 1921 | B13: 0.478 | D13: 0.516
A14: 1922 | B14: 0.467 | D14: 0.504
A15: 1923 | B15: 0.455 | D15: 0.491
A16: 1924 | B16: 0.463 | D16: 0.499
A17: 1925 | B17: 0.496 | D17: 0.535
A18: 1926 | B18: 0.512 | D18: 0.552
A19: 1927 | B19: 0.538 | D19: 0.580
A20: 1928 | B20: 0.530 | D20: 0.572
A21: 1929 | B21: 0.519 | D21: 0.560
A22: 1930 | B22: 0.489 | D22: 0.527
A23: 1931 | B23: 0.417 | D23: 0.450
A24: 1932 | B24: 0.413 | D24: 0.445
A25: 1933 | B25: 0.412 | D25: 0.444
A26: 1934 | B26: 0.395 | D26: 0.426
A27: 1935 | B27: 0.403 | D27: 0.435
A28: 1936 | B28: 0.409 | D28: 0.441
A29: 1937 | B29: 0.423 | D29: 0.456
A30: 1938 | B30: 0.430 | D30: 0.464
A31: 1939 | B31: 0.441 | D31: 0.476
A32: 1940 | B32: 0.444 | D32: 0.479
A33: 1941 | B33: 0.463 | D33: 0.499
A34: 1942 | B34: 0.488 | D34: 0.526
A35: 1943 | B35: 0.487 | D35: 0.525
A36: 1944 | B36: 0.503 | D36: 0.542
A37: 1945 | B37: 0.503 | D37: 0.542
A38: 1946 | B38: 0.471 | D38: 0.508
A39: 1947 | B39: 0.495 | D39: 0.534
A40: 1948 | B40: 0.519 | D40: 0.560
A41: 1949 | B41: 0.529 | D41: 0.570
A42: 1950 | B42: 0.538 | D42: 0.580
A43: 1951 | B43: 0.556 | D43: 0.600
A44: 1952 | B44: 0.556 | D44: 0.600
A45: 1953 | B45: 0.584 | D45: 0.630
A46: 1954 | B46: 0.575 | D46: 0.620
A47: 1955 | B47: 0.547 | D47: 0.590
A48: 1956 | B48: 0.547 | D48: 0.590
A49: 1957 | B49: 0.547 | D49: 0.590
A50: 1958 | B50: 0.538 | D50: 0.580
A51: 1959 | B51: 0.538 | D51: 0.580
A52: 1960 | B52: 0.538 | D52: 0.580
A53: 1961 | B53: 0.529 | D53: 0.570
A54: 1962 | B54: 0.529 | D54: 0.570
A55: 1963 | B55: 0.529 | D55: 0.570
A56: 1964 | B56: 0.519 | D56: 0.560
A57: 1965 | B57: 0.510 | D57: 0.550
A58: 1966 | B58: 0.491 | D58: 0.530
A59: 1967 | B59: 0.482 | D59: 0.520
A60: 1968 | B60: 0.464 | D60: 0.500
A61: 1969 | B61: 0.454 | D61: 0.490
A62: 1970 | B62: 0.454 | D62: 0.490
A63: 1971 | B63: 0.473 | D63: 0.510
A64: 1972 | B64: 0.482 | D64: 0.520
A65: 1973 | B65: 0.491 | D65: 0.530
A66: 1974 | B66: 0.510 | D66: 0.550
A67: 1975 | B67: =D67*(C$68/D$68) -> 0.519 | D67: 0.560
A68: 1976 | B68: =C68 -> 0.510 | C68: 0.51 | D68: 0.550
A69: 1977 | D69: 0.550
A70: 1978 | D70: 0.550
A71: 1979 | D71: 0.550
A72: 1980 | D72: 0.550
A73: 1981 | D73: 0.540
A74: 1982 | B74: =C74 -> 0.495 | C74: 0.495 | D74: 0.560
A75: 1983 | D75: 0.560
A76: 1984 | D76: 0.550
A77: 1985
A78: 1986 | B78: =C78 -> 0.456 | C78: 0.456
A79: 1987
A80: 1988 | B80: =C80 -> 0.416 | C80: 0.416
A81: 1989
A82: 1990 | B82: =C82 -> 0.405 | C82: 0.405
A83: 1991
A84: 1992 | B84: =C84 -> 0.396 | C84: 0.396
A85: 1993
A86: 1994 | B86: =C86 -> 0.350 | C86: 0.35
A87: 1995 | B87: =C87 -> 0.327 | C87: 0.327
A88: 1996 | B88: 0.311 | C88: 0.311
A89: 1997 | B89: 0.303 | C89: 0.303
A90: 1998 | B90: 0.281 | C90: 0.281
A91: 1999
A92: 2000 | B92: 0.247 | C92: 0.2471226391
A93: 2001 | B93: 0.245 | C93: 0.244805898
A94: 2002 | B94: 0.231 | C94: 0.2313189942
A95: 2003 | B95: 0.230 | C95: 0.2303266233
A96: 2004 | B96: 0.227 | C96: 0.2269573
A97: 2005 | B97: 0.224 | C97: 0.2242316478
A98: 2006 | B98: 0.203 | C98: 0.2034853851
A99: 2007 | B99: 0.189 | C99: 0.1887153473
A100: 2008 | B100: 0.189 | C100: 0.1891306568
A101: 2009
A102: 2010

Sheet Industrial Disputes
A1: 4.21 Industrial Disputes (a)
O5: Working days lost per thousand employees | AH5: Total | AK5: Total
E6: Mining | K6: Manufacturing | T6: Transport, storage | AH6: workers | AK6: working
I7: Metal | T7: and communication | AB7: All | AE7: Number | AH7: invol- | AK7: days
I8: products | O8: Constr- | R8: Steve- | Y8: Other | AB8: indust- | AE8: of | AH8: ved | AK8: lost | AN8: Wage & Salary Earners. Source: RBA 4.7 Employment by Occupational Status (a) | AO8: Wage & Salary Earners (Calendar Year Basis)
C9: Coal | F9: Other | I9: etc (b) | L9: Other | O9: uction | R9: doring | U9: Other | X9: industries (c) | AB9: ries | AE9: disputes | AH9: '000 (d) | AK9: '000 | AM9: 1949/50 | AN9: 2 731 | AQ9: Days lost per 1000 employees
A10: 1950 | C10: n.a. | F10: n.a. | I10: n.a. | L10: n.a. | O10: n.a. | R10: n.a. | U10: n.a. | Y10: n.a. | AB10: n.a. | AE10: 1 276 | AH10: 432 | AK10: 2 063 | AM10: 1950/51 | AN10: 2 851 | AO10: =AVERAGE(AN10:AN11) -> 2 882 | AP10: 1950 | AQ10: =1000*(AK10/AO10) -> 716
A11: 1951 | C11: n.a. | F11: n.a. | I11: n.a. | L11: n.a. | O11: n.a. | R11: n.a. | U11: n.a. | Y11: n.a. | AB11: n.a. | AE11: 1 344 | AH11: 409 | AK11: 873 | AM11: 1951/52 | AN11: 2 912 | AO11: =AVERAGE(AN11:AN12) -> 2 881 | AP11: 1951 | AQ11: =1000*(AK11/AO11) -> 303
A12: 1952 | C12: n.a. | F12: n.a. | I12: n.a. | L12: n.a. | O12: n.a. | R12: n.a. | U12: n.a. | Y12: n.a. | AB12: n.a. | AE12: 1 627 | AH12: 506 | AK12: 1 164 | AM12: 1952/53 | AN12: 2 849 | AO12: 2 881 | AP12: 1952 | AQ12: 404
A13: 1953 | C13: n.a. | F13: n.a. | I13: n.a. | L13: n.a. | O13: n.a. | R13: n.a. | U13: n.a. | Y13: n.a. | AB13: n.a. | AE13: 1 459 | AH13: 496 | AK13: 1 051 | AM13: 1953/54 | AN13: 2 912 | AO13: 2 956 | AP13: 1953 | AQ13: 355
A14: 1954 | C14: n.a. | F14: n.a. | I14: n.a. | L14: n.a. | O14: n.a. | R14: n.a. | U14: n.a. | Y14: n.a. | AB14: n.a. | AE14: 1 490 | AH14: 370 | AK14: 902 | AM14: 1954/55 | AN14: 3 000 | AO14: 3 043 | AP14: 1954 | AQ14: 296
A15: 1955 | C15: n.a. | F15: n.a. | I15: n.a. | L15: n.a. | O15: n.a. | R15: n.a. | U15: n.a. | Y15: n.a. | AB15: n.a. | AE15: 1 532 | AH15: 445 | AK15: 1 011 | AM15: 1955/56 | AN15: 3 086 | AO15: 3 101 | AP15: 1955 | AQ15: 326
A16: 1956 | C16: n.a. | F16: n.a. | I16: n.a. | L16: n.a. | O16: n.a. | R16: n.a. | U16: n.a. | Y16: n.a. | AB16: n.a. | AE16: 1 306 | AH16: 428 | AK16: 1 121 | AM16: 1956/57 | AN16: 3 116 | AO16: 3 138 | AP16: 1956 | AQ16: 357
A17: 1957 | C17: n.a. | F17: n.a. | I17: n.a. | L17: n.a. | O17: n.a. | R17: n.a. | U17: n.a. | Y17: n.a. | AB17: n.a. | AE17: 1 103 | AH17: 337 | AK17: 630 | AM17: 1957/58 | AN17: 3 159 | AO17: 3 186 | AP17: 1957 | AQ17: 198
A18: 1958 | C18: n.a. | F18: n.a. | I18: n.a. | L18: n.a. | O18: n.a. | R18: n.a. | U18: n.a. | Y18: n.a. | AB18: n.a. | AE18: 987 | AH18: 283 | AK18: 440 | AM18: 1958/59 | AN18: 3 212 | AO18: 3 260 | AP18: 1958 | AQ18: 135
A19: 1959 | C19: n.a. | F19: n.a. | I19: n.a. | L19: n.a. | O19: n.a. | R19: n.a. | U19: n.a. | Y19: n.a. | AB19: n.a. | AE19: 869 | AH19: 238 | AK19: 365 | AM19: 1959/60 | AN19: 3 308 | AO19: 3 403 | AP19: 1959 | AQ19: 107
A20: 1960 | C20: n.a. | F20: n.a. | I20: n.a. | L20: n.a. | O20: n.a. | R20: n.a. | U20: n.a. | Y20: n.a. | AB20: n.a. | AE20: 1 145 | AH20: 603 | AK20: 725 | AM20: 1960/61 (b) | AN20: 3 498 | AO20: 3 498 | AP20: 1960 | AQ20: 207
A21: 1961 | C21: n.a. | F21: n.a. | I21: n.a. | L21: n.a. | O21: n.a. | R21: n.a. | U21: n.a. | Y21: n.a. | AB21: n.a. | AE21: 815 | AH21: 300 | AK21: 607 | AM21: 1961/62 | AN21: 3 497 | AO21: 3 544 | AP21: 1961 | AQ21: 171
A22: 1962 | C22: n.a. | F22: n.a. | I22: n.a. | L22: n.a. | O22: n.a. | R22: n.a. | U22: n.a. | Y22: n.a. | AB22: n.a. | AE22: 1 183 | AH22: 354 | AK22: 509 | AM22: 1962/63 | AN22: 3 590 | AO22: 3 649 | AP22: 1962 | AQ22: 139
A23: 1963 | C23: n.a. | F23: n.a. | I23: n.a. | L23: n.a. | O23: n.a. | R23: n.a. | U23: n.a. | Y23: n.a. | AB23: n.a. | AE23: 1 250 | AH23: 413 | AK23: 582 | AM23: 1963/64 | AN23: 3 707 | AO23: 3 729 | AP23: 1963 | AQ23: 156
A24: 1964 | C24: n.a. | F24: n.a. | I24: n.a. | L24: n.a. | O24: n.a. | R24: n.a. | U24: n.a. | Y24: n.a. | AB24: n.a. | AE24: 1 334 | AH24: 546 | AK24: 911 | AM24: 1964 | AN24: 3 752 | AO24: =AN24 -> 3 752 | AP24: 1964 | AQ24: 243
A25: 1965 | C25: n.a. | F25: n.a. | I25: n.a. | L25: n.a. | O25: n.a. | R25: n.a. | U25: n.a. | Y25: n.a. | AB25: n.a. | AE25: 1 346 | AH25: 475 | AK25: 816 | AM25: 1965 | AN25: 3 889 | AO25: =AN25 -> 3 889 | AP25: 1965 | AQ25: 210
A26: 1966 | C26: n.a. | F26: n.a. | I26: n.a. | L26: n.a. | O26: n.a. | R26: n.a. | U26: n.a. | Y26: n.a. | AB26: n.a. | AE26: 1 273 | AH26: 395 | AK26: 732 | AM26: 1966 (c) | AN26: 4 077 | AO26: =AN26 -> 4 077 | AP26: 1966 | AQ26: 180
A27: 1967 | C27: n.a. | F27: n.a. | I27: n.a. | L27: n.a. | O27: n.a. | R27: n.a. | U27: n.a. | Y27: n.a. | AB27: 176 | AE27: 1 340 | AH27: 483 | AK27: 705 | AM27: 1967 (d) | AN27: 4 205 | AO27: =AN27 -> 4 205 | AP27: 1967 | AQ27: =AB27 -> 176
A28: 1968 | C28: 3 376 | F28: 1 684 | I28: 726 | L28: 162 | O28: 312 | R28: 1 881 | U28: 395 | Y28: 62 | AB28: 261 | AE28: 1 713 | AH28: 720 | AK28: 1 080 | AP28: 1968 | AQ28: =AB28 -> 261
A29: 1969 | C29: 4 114 | F29: 1 732 | I29: 1 071 | L29: 390 | O29: 701 | R29: 3 509 | U29: 1 388 | Y29: 70 | AB29: 458 | AE29: 2 014 | AH29: 1 285 | AK29: 1 958 | AP29: 1969 | AQ29: 458
A30: 1970 | C30: 9 292 | F30: 1 518 | I30: 1 014 | L30: 555 | O30: 1 581 | R30: 3 753 | U30: 531 | Y30: 63 | AB30: 537 | AE30: 2 738 | AH30: 1 367 | AK30: 2 394 | AP30: 1970 | AQ30: 537
A31: 1971 | C31: 12 580 | F31: 1 532 | I31: 1 015 | L31: 410 | O31: 2 900 | R31: 2 109 | U31: 1 207 | Y31: 89 | AB31: 669 | AE31: 2 404 | AH31: 1 327 | AK31: 3 069 | AP31: 1971 | AQ31: 669
A32: 1972 (e) | C32: 2 909 | F32: 1 152 | I32: 1 113 | L32: 533 | O32: 1 037 | R32: 1 990 | U32: 578 | Y32: 89 | AB32: 435 | AE32: 2 298 | AH32: 1 114 | AK32: 2 010 | AP32: 1972 | AQ32: 435
A33: 1973 | C33: 4 268 | F33: 2 860 | I33: 1 405 | L33: 889 | O33: 1 119 | R33: 2 705 | U33: 256 | Y33: 133 | AB33: 552 | AE33: 2 538 | AH33: 803 | AK33: 2 635 | AP33: 1973 | AQ33: 552
A34: 1974 | C34: 7 725 | F34: 2 625 | I34: 4 876 | L34: 1 026 | O34: 3 009 | R34: 6 172 | U34: 1 352 | Y34: 194 | AB34: 1 273 | AE34: 2 809 | AH34: 2 005 | AK34: 6 293 | AP34: 1974 | AQ34: 1 273
A35: 1975 | C35: 14 991 | F35: 1 576 | I35: 2 376 | L35: 674 | O35: 1 255 | R35: 2 581 | U35: 379 | Y35: 230 | AB35: 717 | AE35: 2 432 | AH35: 1 398 | AK35: 3 510 | AP35: 1975 | AQ35: 717
A36: 1976 | C36: 6 602 | F36: 3 952 | I36: 1 467 | L36: 1 245 | O36: 1 433 | R36: 2 276 | U36: 1 010 | Y36: 292 | AB36: 773 | AE36: 2 055 | AH36: 2 190 | AK36: 3 799 | AP36: 1976 | AQ36: 773
A37: 1977 | C37: 4 145 | F37: 3 182 | I37: 398 | L37: 679 | O37: 591 | R37: 2 625 | U37: 450 | Y37: 101 | AB37: 336 | AE37: 2 090 | AH37: 596 | AK37: 1 655 | AP37: 1977 | AQ37: 336
A38: 1978 | C38: 5 669 | F38: 2 415 | I38: 1 460 | L38: 747 | O38: 378 | R38: 8 418 | U38: 435 | Y38: 74 | AB38: 434 | AE38: 2 277 | AH38: 1 076 | AK38: 2 131 | AP38: 1978 | AQ38: 434
A39: 1979 | C39: 8 220 | F39: 5 752 | I39: 1 886 | L39: 1 112 | O39: 1 100 | R39: 3 724 | U39: 1 138 | Y39: 269 | AB39: 787 | AE39: 2 042 | AH39: 1 863 | AK39: 3 964 | AP39: 1979 | AQ39: 787
A40: 1980 | C40: 23 362 | F40: 4 036 | I40: 1 194 | L40: 1 080 | O40: 674 | R40: 2 548 | U40: 353 | Y40: 202 | AB40: 649 | AE40: 2 429 | AH40: 1 173 | AK40: 3 320 | AP40: 1980 | AQ40: 649
A41: 1981 | C41: 10 209 | F41: 5 238 | I41: 2 287 | L41: 986 | O41: 1 405 | R41: 2 952 | U41: 970 | Y41: 238 | AB41: 797 | AE41: 2 915 | AH41: 1 247 | AK41: 4 189 | AP41: 1981 | AQ41: 797
A42: 1982 | C42: 9 698 | F42: 2 686 | I42: 471 | L42: 505 | O42: 768 | T42: 672 | Y42: 84 | AB42: 348 | AE42: 2 060 | AH42: 706 | AK42: 1 980 | AP42: 1982 | AQ42: 348
A43: 1983 | C43: 3 223 | F43: 3 375 | I43: 353 | L43: 186 | O43: 1 269 | T43: 485 | Y43: 42 | AB43: 249 | AE43: 1 787 | AH43: 470 | AK43: 1 641 | AP43: 1983 | AQ43: 249
A44: 1984 (f) | C44: 3 913 | F44: 3 745 | I44: 343 | L44: 416 | O44: 503 | T44: 372 | Y44: 91 | AB44: 248 | AE44: 1 965 | AH44: 560 | AK44: 1 307 | AP44: 1984 | AQ44: 248 | AT44: OLD
A45: 1985 | C45: 6 892 | F45: 1 928 | I45: 256 | L45: 312 | O45: 666 | T45: 430 | X45: 152 | Z45: 36 | AB45: 228 | AE45: 1 895 | AH45: 571 | AK45: 1 256 | AP45: 1985 | AQ45: 222.6 | AT45: =AB45 -> 228
A46: 1986 | C46: 10 741 | F46: 3 328 | I46: 445 | L46: 328 | O46: 458 | T46: 135 | X46: 137 | Z46: 44 | AB46: 242 | AE46: 1 754 | AH46: 692 | AK46: 1 391 | AP46: 1986 | AQ46: 237.7 | AT46: 242
A47: 1987 | C47: 8 920 | F47: 1 072 | I47: 479 | L47: 305 | O47: 743 | T47: 217 | X47: 75 | Z47: 67 | AB47: 223 | AE47: 1 517 | AH47: 609 | AK47: 1 312 | AP47: 1987 | AQ47: 219.3 | AT47: 223
A48: 1988 | C48: 15 548 | F48: 1 777 | I48: 750 | L48: 183 | O48: 725 | T48: 177 | X48: 90 | Z48: 83 | AB48: 269 | AE48: 1 508 | AH48: 894 | AK48: 1 641 | AP48: 1988 | AQ48: 264.9 | AT48: 269
A49: 1989 | C49: 5 505 | F49: 642 | I49: 473 | L49: 283 | O49: 374 | T49: 160 | X49: 176 | Z49: 65 | AB49: 190 | AE49: 1 402 | AH49: 710 | AK49: 1 202 | AP49: 1989 | AQ49: 183.6 | AT49: 190
A50: 1990 | C50: 4 879 | F50: 1 631 | I50: 1 293 | L50: 212 | O50: 204 | T50: 299 | X50: 151 | Z50: 25 | AB50: 217 | AE50: 1 193 | AH50: 730 | AK50: 1 377 | AP50: 1990 | AQ50: 207.2 | AT50: 217
A51: 1991 | C51: 4 465 | F51: 597 | I51: 1 555 | L51: 268 | O51: 349 | T51: 214 | X51: 147 | Z51: 60 | AB51: 248 | AE51: 1 036 | AH51: 1182 | AK51: 1 611 | AP51: 1991 | AQ51: 249.6 | AT51: 248
A52: 1992 | C52: 3 078 | F52: 840 | I52: 309 | L52: 243 | O52: 126 | T52: 192 | X52: 172 | Z52: 57 | AB52: 147 | AE52: 728 | AH52: 872 | AK52: 941 | AP52: 1992 | AQ52: 147.1 | AT52: 147
A53: 1993 | C53: 2 915 | F53: 254 | I53: 426 | L53: 121 | O53: 41 | T53: 37 | X53: 106 | Z53: 41 | AB53: 100 | AE53: 610 | AH53: 490 | AK53: 636 | AP53: 1993 | AQ53: 99.9 | AT53: 100
A54: 1994 | C54: 5 964 | F54: 323 | I54: 117 | L54: 123 | O54: 59 | T54: 137 | X54: 63 | Z54: 16 | AB54: 76 | AE54: 560 | AH54: 265 | AK54: 502 | AP54: 1994 | AQ54: 75.3 | AT54: 76
A55: 1995 | C55: 4 660 | F55: 1 359 | I55: 142 | L55: 160 | O55: 115 | T55: 84 | X55: 57 | Z55: 12 | AB55: 79 | AE55: 643 | AH55: 344 | AK55: 548 | AP55: 1995 | AQ55: 78.7 | AT55: 79
A56: 1996 | C56: 7 171 | F56: 73 | I56: 146 | L56: 70 | O56: 892 | T56: 43 | X56: 187 | Z56: 17 | AB56: 131 | AE56: 543 | AH56: 578 | AK56: 929 | AP56: 1996 | AQ56: 131.5 | AT56: 131
AP57: 1997 | AQ57: 75 | AT57: 75
AP58: 1998 | AQ58: 71.9 | AT58: 72
AP59: 1999 | AQ59: 87.3 | AT59: 87
A60: (a) | B60: Statistics relate to disputes that involve ten working days lost or more, for the twelve months to December of each year. | AP60: 2000 | AQ60: 61 | AT60: 61
A61: (b) | B61: Metal products, machinery and equipment. | AP61: 2001 | AQ61: 50.4 | AT61: 50
A62: (c) | B62: Community services are shown separately (in the left column) from 1985. Prior to 1985 they are included in "other" together with | AP62: 2002 | AQ62: 32.5 | AT62: 32
B63: agriculture (from 1984 only), forestry, fishing and hunting, electricity gas and water, wholesale and retail trade, finance, property and business | AP63: 2003 | AQ63: 53.7 | AT63: 53
B64: services, public administration and defence, and recreation and personal services. | AP64: 2004 | AQ64: 45.5
A65: (d) | B65: Includes employees both directly involved, that is those who actually participated in the dispute, and employees indirectly involved, that is those | AP65: 2005 | AQ65: 26.4
B66: who ceased work at the establishment where the stoppages occurred, but who were not themselves party to the dispute. The figures may involve | AP66: 2006 | AQ66: 14.9
B67: double-counting of the same employees involved in more than one dispute. | AP67: 2007 | AQ67: 5.4
A68: (e) | B68: From 1972 to 1993, industries are classified according to ASIC, and are not directly comparable with the classification used in previous periods. | AP68: 2008 | AQ68: 20.7
B69: Also, the employment data used to calculate the working days lost per thousand employees by industry was revised from 1972. The all industry | AP69: 2009
B70: estimate was revised back to 1967, so that the total and its industry components are not comparable prior to 1972. From 1994, industries are | AP70: 2010
B71: classified according to ANZSIC.
A72: (f) | B72: From 1980 to 1983 estimates from the Labour Force Survey were used to calculate working days lost per employee. From 1984 inclusive, data from
B73: the Survey of Employment and Earnings is combined with estimates of the number of private employees in agriculture and private households from
B74: the Labour Force Survey. These changes have little effect on the all industries estimate, but affect some individual industry estimates.
A76: Source: | C76: " Industrial Disputes, Australia" (6321.0), Australian Bureau of Statistics, Canberra, monthly.
A77: Updated October 1997

Sheet Org survey data
A1: Organisational membership (survey evidence)
A2: 1995 organisational membership from Ronald Inglehart et al. World Values Surveys and European Values Surveys, 1981–1984, 1990–1993, and 1995–1997, ICPSR 2790 (v29+v30+v33+v34+v35+v36) [weighted by original weight, v236]
B4: All | F4: Men | J4: Women
B5: Fraction who are members of an organisation | C5: Fraction who are members of two or more organisations | D5: Fraction who are active members of an organisation | E5: Fraction who are active members of two or more organisations | F5: Fraction of men who are members of an organisation | G5: Fraction of men who are members of two or more organisations | H5: Fraction of men who are active members of an organisation | I5: Fraction of men who are active members of two or more organisations | J5: Fraction of women who are members of an organisation | K5: Fraction of women who are members of two or more organisations | L5: Fraction of women who are active members of an organisation | M5: Fraction of women who are active members of two or more organisations | N5: Question
A6: 1965
A7: 1966
A8: 1967 | B8: 46.84% | C8: 23.52% | D8: 33.15% | E8: 13.58% | F8: 53.66% | G8: 28.86% | H8: 36.66% | I8: 15.12% | J8: 40.21% | K8: 18.33% | L8: 29.75% | M8: 12.09% | N8: Are you a member of any organisations, such as school P. & C. Associations, business or professional organisations, farmers associations, sporting clubs, and so on - not counting membership of a church or of a political party? (v115) Would you say you are active in any of them? (v118) [NB. Missing and zero are indistinguishable in the dataset]
A9: 1968
A10: 1969 | B10: 47.74% | C10: 25.17% | D10: 32.54% | E10: 13.54% | F10: 54.72% | G10: 30.31% | H10: 37.01% | I10: 15.75% | J10: 37.13% | K10: 17.37% | L10: 25.75% | M10: 10.18% | N10: Are you a member of any organisations, such as school P. & C. Associations, business or professional organisations, farmers associations, sporting clubs, and so on - not counting membership of a church or of a political party? (v804) Would you say you are active in any of them? (v808) [Note that the first 1353 cases are blank for org membership variables, so are recoded as missing]
A11: 1970
A12: 1971
A13: 1972
A14: 1973
A15: 1974
A16: 1975
A17: 1976
A18: 1977
A19: 1978
A20: 1979 | B20: 46.83% | C20: 21.04% | D20: 30.11% | E20: 10.17% | F20: 54.32% | G20: 27.26% | H20: 33.30% | I20: 12.07% | J20: 40.00% | K20: 15.36% | L20: 27.20% | M20: 8.43% | N20: Are you a member of any organisations, such as school P&C associations, business or professional associations, farmers' associations, sporting clubs and civil rights groups, and so on - not counting membership of a church, a political party or a trade union? (v84 orgnum79) would you say you are active in any of them ? (v87 orgacn79)
A21: 1980
A22: 1981
A23: 1982
A24: 1983
A25: 1984
A26: 1985
A27: 1986
A28: 1987
A29: 1988
A30: 1989
A31: 1990
A32: 1991
A33: 1992
A34: 1993
A35: 1994
A36: 1995 | N36: Now I am going to read off a list of voluntary organizations; for each one, could you tell me whether you are an active member, an inactive member or not a member of that type of organization? V29 Sport or recreation organization V30 Art, music or educational organization V33 Environmental organization V34 Professional association V35 Charitable organization V36 Any other voluntary organization. Note that 1995 data is not used, due to differences in the question, and doubts that others have expressed over the quality of this survey. Figures are, respectively: 0.7792, 0.5347, 0.6257, 0.3248.
A37: 1996
A38: 1997
A39: 1998
A40: 1999
A41: 2000
A42: 2001 | B42: 54.60% | C42: 20.38% | D42: 21.73% | E42: 5.53% | F42: 57.14% | G42: 21.31% | H42: 21.99% | I42: 6.25% | J42: 52.34% | K42: 19.60% | L42: 21.49% | M42: 4.97% | N42: Are you an active member of any of the following voluntary organisations, an inactive member or not a member? Sport or recreation organization; Art, music or educational organization; Professional association; Charitable organization (i14p1-i14p4)
A43: 2002
A44: 2003
A45: 2004 | B45: =1-0.6414 -> 35.86% | C45: =1-0.9049 -> 9.51% | D45: =1-0.8226 -> 17.74% | E45: =1-0.9614 -> 3.86% | F45: =1-0.6361 -> 36.39% | G45: =1-0.8976 -> 10.24% | H45: =1-0.8046 -> 19.54% | I45: =1-0.9488 -> 5.12% | J45: =1-0.6443 -> 35.57% | K45: =1-0.9138 -> 8.62% | L45: =1-0.8363 -> 16.37% | M45: =1-0.9725 -> 2.75% | N45: Are you an active member of any of the following organisations, an inactive member or not a member? Business or employers’ association, Farmers' Association, Professional Organisation, Charitable Organisation, Sport/Recreation Organisation. (i15p1-i15p5)
A46: 2005
A47: 2006
A48: 2007

Sheet Particular organisations
C1: Persons 15+ | E1: Men 5-19 | G1: Persons 25-49 | I1: Women 5-19 | K1: Persons 25-49 | M1: Persons 15+ | O1: Women 20-44 | Q1: Persons 5+ | S1: Persons 15+ | U1: Persons 15+ | W1: Persons 5-19 | Y1: Women 15+ | AA1: Persons 15+ | AC1: Persons 15+
A2: Year | B2: RSL | C2: RSL | D2: Scouts (members) | E2: Scouts (members) | F2: Scouts (leaders) | G2: Scouts (leaders) | H2: Guides (members) | I2: Guides (members) | J2: Guides (leaders) | K2: Guides (leaders) | L2: Rotary | M2: Rotary | N2: Mothers Union | O2: Mothers Union | P2: Athletics Australia | Q2: Athletics Australia | R2: Lions | S2: Lions | T2: Apex | U2: Apex | V2: Aust Little Athletics | W2: Aust Little Athletics | X2: Catholic Women's League | Y2: Catholic Women's League | Z2: ACF | AA2: ACF | AB2: Greenpeace | AC2: Greenpeace | AE2: Persons 15+ | AG2: Index (1950=100)
A3: 1900 | N3: 3040
A4: 1901 | AE4: ='Pop-Aust'!BQ8-(SUM('Pop-Aust'!AW8:AY8)) -> 2448198
A5: 1902 | AE5: ='Pop-Aust'!BQ9-(SUM('Pop-Aust'!AW9:AY9)) -> 2508174.7
A6: 1903 | AE6: ='Pop-Aust'!BQ10-(SUM('Pop-Aust'!AW10:AY10)) -> 2568151.4
A7: 1904 | AE7: ='Pop-Aust'!BQ11-(SUM('Pop-Aust'!AW11:AY11)) -> 2628128.1
A8: 1905 | N8: 5140 | O8: =N8/(SUM('Pop-Aust'!AD12:AH12)) -> 0.006913026859 | AE8: ='Pop-Aust'!BQ12-(SUM('Pop-Aust'!AW12:AY12)) -> 2688104.8 | AG8: 53.35564
A9: 1906 | AE9: ='Pop-Aust'!BQ13-(SUM('Pop-Aust'!AW13:AY13)) -> 2748081.5 | AG9: 56.17603
A10: 1907 | AE10: ='Pop-Aust'!BQ14-(SUM('Pop-Aust'!AW14:AY14)) -> 2808058.2 | AG10: 58.99643
A11: 1908 | AE11: ='Pop-Aust'!BQ15-(SUM('Pop-Aust'!AW15:AY15)) -> 2868034.9 | AG11: 61.81677
A12: 1909 | AE12: ='Pop-Aust'!BQ16-(SUM('Pop-Aust'!AW16:AY16)) -> 2928011.6 | AG12: 64.63708
A13: 1910 | N13: 7094 | O13: =N13/(SUM('Pop-Aust'!AD17:AH17)) -> 0.008692724089 | AE13: ='Pop-Aust'!BQ17-(SUM('Pop-Aust'!AW17:AY17)) -> 2987988.3 | AG13: 67.45741
A14: 1911 | AE14: ='Pop-Aust'!BQ18-(SUM('Pop-Aust'!AW18:AY18)) -> 3047965 | AG14: 67.83531
A15: 1912 | AE15: ='Pop-Aust'!BQ19-(SUM('Pop-Aust'!AW19:AY19)) -> 3115508.5 | AG15: 68.21324
A16: 1913 | AE16: ='Pop-Aust'!BQ20-(SUM('Pop-Aust'!AW20:AY20)) -> 3183052 | AG16: 68.59113
A17: 1914 | AE17: ='Pop-Aust'!BQ21-(SUM('Pop-Aust'!AW21:AY21)) -> 3250595.5 | AG17: 68.96904
A18: 1915 | N18: 8176 | O18: =N18/(SUM('Pop-Aust'!AD22:AH22)) -> 0.008935536704 | AE18: ='Pop-Aust'!BQ22-(SUM('Pop-Aust'!AW22:AY22)) -> 3318139 | AG18: 69.34696
A19: 1916 | B19: =[5]RSL!B19 -> 10,600 | AE19: ='Pop-Aust'!BQ23-(SUM('Pop-Aust'!AW23:AY23)) -> 3385682.5 | AG19: 68.08736
A20: 1917 | B20: =[5]RSL!B20 -> 13,388 | AE20: ='Pop-Aust'!BQ24-(SUM('Pop-Aust'!AW24:AY24)) -> 3453226 | AG20: 66.82776
A21: 1918 | B21: =[5]RSL!B21 -> 28,679 | AE21: ='Pop-Aust'!BQ25-(SUM('Pop-Aust'!AW25:AY25)) -> 3520769.5 | AG21: 65.56817
A22: 1919 | B22: =[5]RSL!B22 -> 150,000 | AE22: ='Pop-Aust'!BQ26-(SUM('Pop-Aust'!AW26:AY26)) -> 3588313 | AG22: 64.30859
A23: 1920 | B23: =[5]RSL!B23 -> 49,721 | N23: 8283 | O23: =N23/(SUM('Pop-Aust'!AD27:AH27)) -> 0.008116611891 | AE23: ='Pop-Aust'!BQ27-(SUM('Pop-Aust'!AW27:AY27)) -> 3655856.5 | AG23: 63.04899
A24: 1921 | B24: =[5]RSL!B24 -> 44,643 | C24: =B24/(SUM('Pop-Aust'!AZ28:BN28)) -> 0.01198984799 | AE24: ='Pop-Aust'!BQ28-(SUM('Pop-Aust'!AW28:AY28)) -> 3723400 | AG24: 63.82937
A25: 1922 | B25: =[5]RSL!B25 -> 29,864 | C25: =B25/(SUM('Pop-Aust'!AZ29:BN29)) -> 0.007839554786 | AE25: ='Pop-Aust'!BQ29-(SUM('Pop-Aust'!AW29:AY29)) -> 3809400 | AG25: 52.90898
A26: 1923 | B26: =[5]RSL!B26 -> 24,482 | C26: =B26/(SUM('Pop-Aust'!AZ30:BN30)) -> 0.006264906085 | AE26: ='Pop-Aust'!BQ30-(SUM('Pop-Aust'!AW30:AY30)) -> 3907800 | AG26: 47.832
A27: 1924 | B27: =[5]RSL!B27 -> 25,670 | C27: =B27/(SUM('Pop-Aust'!AZ31:BN31)) -> 0.00640948814 | AE27: ='Pop-Aust'!BQ31-(SUM('Pop-Aust'!AW31:AY31)) -> 4005000 | AG27: 48.67429
A28: 1925 | B28: =[5]RSL!B28 -> 24,631 | C28: =B28/(SUM('Pop-Aust'!AZ32:BN32)) -> 0.005992798229 | N28: 9561 | O28: =N28/(SUM('Pop-Aust'!AD32:AH32)) -> 0.008615842119 | AE28: ='Pop-Aust'!BQ32-(SUM('Pop-Aust'!AW32:AY32)) -> 4110100 | AG28: 47.35856
A29: 1926 | B29: =[5]RSL!B29 -> 30,346 | C29: =B29/(SUM('Pop-Aust'!AZ33:BN33)) -> 0.00721287317 | AE29: ='Pop-Aust'!BQ33-(SUM('Pop-Aust'!AW33:AY33)) -> 4207200 | AG29: 52.18841
A30: 1927 | B30: =[5]RSL!B30 -> 29,925 | C30: =B30/(SUM('Pop-Aust'!AZ34:BN34)) -> 0.006928205959 | AE30: ='Pop-Aust'!BQ34-(SUM('Pop-Aust'!AW34:AY34)) -> 4319300 | AG30: 51.153
A31: 1928 | B31: =[5]RSL!B31 -> 34,233 | C31: =B31/(SUM('Pop-Aust'!AZ35:BN35)) -> 0.00773172825 | AE31: ='Pop-Aust'!BQ35-(SUM('Pop-Aust'!AW35:AY35)) -> 4427600 | AG31: 54.11628
A32: 1929 | B32: =[5]RSL!B32 -> 41,417 | C32: =B32/(SUM('Pop-Aust'!AZ36:BN36)) -> 0.009163661305 | AE32: ='Pop-Aust'!BQ36-(SUM('Pop-Aust'!AW36:AY36)) -> 4519700 | AG32: 59.13367
A33: 1930 | B33: =[5]RSL!B33 -> 42,276 | C33: =B33/(SUM('Pop-Aust'!AZ37:BN37)) -> 0.009194432362 | N33: 10370 | O33: =N33/(SUM('Pop-Aust'!AD37:AH37)) -> 0.008606523363 | AE33: ='Pop-Aust'!BQ37-(SUM('Pop-Aust'!AW37:AY37)) -> 4598000 | AG33: 59.22655
A34: 1931 | B34: =[5]RSL!B34 -> 40,067 | C34: =B34/(SUM('Pop-Aust'!AZ38:BN38)) -> 0.008582230219 | AE34: ='Pop-Aust'!BQ38-(SUM('Pop-Aust'!AW38:AY38)) -> 4668600 | AG34: 57.9493
A35: 1932 | B35: =[5]RSL!B35 -> 43,629 | C35: =B35/(SUM('Pop-Aust'!AZ39:BN39)) -> 0.009209481994 | H35: =[5]Guides!B35 -> 31,425 | I35: =H35/(SUM('Pop-Aust'!AA39:AC39)) -> 0.03420594318 | J35: =[5]Guides!D35 -> 2,688 | K35: =J35/(SUM('Pop-Aust'!BB39:BF39)) -> 0.001156626506 | AE35: ='Pop-Aust'!BQ39-(SUM('Pop-Aust'!AW39:AY39)) -> 4737400 | AG35: 60.83155
A36: 1933 | B36: =[5]RSL!B36 -> 50,067 | C36: =B36/(SUM('Pop-Aust'!AZ40:BN40)) -> 0.01041933738 | AE36: ='Pop-Aust'!BQ40-(SUM('Pop-Aust'!AW40:AY40)) -> 4805200 | AG36: 65.18272
A37: 1934 | B37: =[5]RSL!B37 -> 57,282 | C37: =B37/(SUM('Pop-Aust'!AZ41:BN41)) -> 0.01176970967 | H37: =[5]Guides!B37 -> 33,484 | I37: =H37/(SUM('Pop-Aust'!AA41:AC41)) -> 0.0365665611 | J37: =[5]Guides!D37 -> 3,247 | K37: =J37/(SUM('Pop-Aust'!BB41:BF41)) -> 0.00136440037 | AE37: ='Pop-Aust'!BQ41-(SUM('Pop-Aust'!AW41:AY41)) -> 4866900 | AG37: 69.65778
A38: 1935 | B38: =[5]RSL!B38 -> 70,850 | C38: =B38/(SUM('Pop-Aust'!AZ42:BN42)) -> 0.01435925498 | N38: 12331 | O38: =N38/(SUM('Pop-Aust'!AD42:AH42)) -> 0.009688089252 | AE38: ='Pop-Aust'!BQ42-(SUM('Pop-Aust'!AW42:AY42)) -> 4934100 | AG38: 69.35871
A39: 1936 | B39: =[5]RSL!B39 -> 76,909 | C39: =B39/(SUM('Pop-Aust'!AZ43:BN43)) -> 0.01534895324 | H39: =[5]Guides!B39 -> 26,389 | I39: =H39/(SUM('Pop-Aust'!AA43:AC43)) -> 0.02905637525 | J39: =[5]Guides!D39 -> 2,506 | K39: =J39/(SUM('Pop-Aust'!BB43:BF43)) -> 0.001030936317 | AE39: ='Pop-Aust'!BQ43-(SUM('Pop-Aust'!AW43:AY43)) -> 5010700 | AG39: 66.35259
A40: 1937 | B40: =[5]RSL!B40 -> 78,518 | C40: =B40/(SUM('Pop-Aust'!AZ44:BN44)) -> 0.01544019035 | AE40: ='Pop-Aust'!BQ44-(SUM('Pop-Aust'!AW44:AY44)) -> 5085300 | AG40: 66.88423
A41: 1938 | B41: =[5]RSL!B41 -> 82,147 | C41: =B41/(SUM('Pop-Aust'!AZ45:BN45)) -> 0.01591040267 | AE41: ='Pop-Aust'!BQ45-(SUM('Pop-Aust'!AW45:AY45)) -> 5163100 | AG41: 67.81884
A42: 1939 | B42: =[5]RSL!B42 -> 82,080 | C42: =B42/(SUM('Pop-Aust'!AZ46:BN46)) -> 0.0156674111 | AE42: ='Pop-Aust'!BQ46-(SUM('Pop-Aust'!AW46:AY46)) -> 5238900 | AG42: 67.97203
A43: 1940 | B43: =[5]RSL!B43 -> 86,783 | C43: =B43/(SUM('Pop-Aust'!AZ47:BN47)) -> 0.01631320726 | N43: 14382 | O43: =N43/(SUM('Pop-Aust'!AD47:AH47)) -> 0.01084370052 | AE43: ='Pop-Aust'!BQ47-(SUM('Pop-Aust'!AW47:AY47)) -> 5319800 | AG43: 69.07904
A44: 1941 | B44: =[5]RSL!B44 -> 82,232 | C44: =B44/(SUM('Pop-Aust'!AZ48:BN48)) -> 0.01525640074 | AE44: ='Pop-Aust'!BQ48-(SUM('Pop-Aust'!AW48:AY48)) -> 5390000 | AG44: 67.95853
A45: 1942 | B45: =[5]RSL!B45 -> 91,725 | C45: =B45/(SUM('Pop-Aust'!AZ49:BN49)) -> 0.01684047221 | AE45: ='Pop-Aust'!BQ49-(SUM('Pop-Aust'!AW49:AY49)) -> 5446700 | AG45: 69.69373
A46: 1943 | B46: =[5]RSL!B46 -> 125,167 | C46: =B46/(SUM('Pop-Aust'!AZ50:BN50)) -> 0.02277171342 | AE46: ='Pop-Aust'!BQ50-(SUM('Pop-Aust'!AW50:AY50)) -> 5496600 | AG46: 75.3918
A47: 1944 | B47: =[5]RSL!B47 -> 183,492 | C47: =B47/(SUM('Pop-Aust'!AZ51:BN51)) -> 0.03309322416 | N47: 15027 | O47: =N47/(SUM('Pop-Aust'!AD51:AH51)) -> 0.0108037961 | AE47: ='Pop-Aust'!BQ51-(SUM('Pop-Aust'!AW51:AY51)) -> 5544700 | AG47: 83.17205
A48: 1945 | B48: =[5]RSL!B48 -> 270,719 | C48: =B48/(SUM('Pop-Aust'!AZ52:BN52)) -> 0.04839366475 | AE48: ='Pop-Aust'!BQ52-(SUM('Pop-Aust'!AW52:AY52)) -> 5594100 | AG48: 91.48046
A49: 1946 | B49: =[5]RSL!B49 -> 373,947 | C49: =B49/(SUM('Pop-Aust'!AZ53:BN53)) -> 0.06631912177 | H49: =[5]Guides!B49 -> 22,252 | I49: =H49/(SUM('Pop-Aust'!AA53:AC53)) -> 0.0264181408 | J49: =[5]Guides!D49 -> 3,095 | K49: =J49/(SUM('Pop-Aust'!BB53:BF53)) -> 0.001154936936 | N49: 14719 | O49: =N49/(SUM('Pop-Aust'!AD53:AH53)) -> 0.01042200666 | AE49: ='Pop-Aust'!BQ53-(SUM('Pop-Aust'!AW53:AY53)) -> 5638600 | AG49: 98.83945
A50: 1947 | B50: =[5]RSL!B50 -> 323,036 | C50: =B50/(SUM('Pop-Aust'!AZ54:BN54)) -> 0.05692063716 | P50: ='[5]Ath Aus'!D50 -> 5,381 | Q50: =P50/(SUM('Pop-Aust'!AX54:BN54)) -> 0.0007900107175 | AE50: ='Pop-Aust'!BQ54-(SUM('Pop-Aust'!AW54:AY54)) -> 5675200 | AG50: 97.71395
A51: 1948 | B51: =[5]RSL!B51 -> 298,114 | C51: =B51/(SUM('Pop-Aust'!AZ55:BN55)) -> 0.0519896758 | P51: ='[5]Ath Aus'!D51 -> 6,108 | Q51: =P51/(SUM('Pop-Aust'!AX55:BN55)) -> 0.0008854785861 | AE51: ='Pop-Aust'!BQ55-(SUM('Pop-Aust'!AW55:AY55)) -> 5734100 | AG51: 98.0098
A52: 1949 | B52: =[5]RSL!B52 -> 287,507 | C52: =B52/(SUM('Pop-Aust'!AZ56:BN56)) -> 0.04917171199 | P52: ='[5]Ath Aus'!D52 -> 6,900 | Q52: =P52/(SUM('Pop-Aust'!AX56:BN56)) -> 0.0009764243059 | AE52: ='Pop-Aust'!BQ56-(SUM('Pop-Aust'!AW56:AY56)) -> 5847000 | AG52: 99.08015
A53: 1950 | B53: =[5]RSL!B53 -> 278,347 | C53: =B53/(SUM('Pop-Aust'!AZ57:BN57)) -> 0.04636952755 | N53: 16974 | O53: =N53/(SUM('Pop-Aust'!AD57:AH57)) -> 0.01120543966 | P53: ='[5]Ath Aus'!D53 -> 6,768 | Q53: =P53/(SUM('Pop-Aust'!AX57:BN57)) -> 0.0009283774144 | AE53: ='Pop-Aust'!BQ57-(SUM('Pop-Aust'!AW57:AY57)) -> 6002800 | AG53: 100
A54: 1951 | B54: =[5]RSL!B54 -> 265,226 | C54: =B54/(SUM('Pop-Aust'!AZ58:BN58)) -> 0.04322739422 | P54: ='[5]Ath Aus'!D54 -> 6,420 | Q54: =P54/(SUM('Pop-Aust'!AX58:BN58)) -> 0.0008574634042 | AE54: ='Pop-Aust'!BQ58-(SUM('Pop-Aust'!AW58:AY58)) -> 6135600 | AG54: 100.422
A55: 1952 | B55: =[5]RSL!B55 -> 259,158 | C55: =B55/(SUM('Pop-Aust'!AZ59:BN59)) -> 0.04144737473 | P55: ='[5]Ath Aus'!D55 -> 5,906 | Q55: =P55/(SUM('Pop-Aust'!AX59:BN59)) -> 0.0007669281317 | AE55: ='Pop-Aust'!BQ59-(SUM('Pop-Aust'!AW59:AY59)) -> 6252700 | AG55: 101.48
A56: 1953 | B56: =[5]RSL!B56 -> 254,565 | C56: =B56/(SUM('Pop-Aust'!AZ60:BN60)) -> 0.04017628863 | P56: ='[5]Ath Aus'!D56 -> 5,407 | Q56: =P56/(SUM('Pop-Aust'!AX60:BN60)) -> 0.0006878936319 | AE56: ='Pop-Aust'!BQ60-(SUM('Pop-Aust'!AW60:AY60)) -> 6336200 | AG56: 102.7584
A57: 1954 | B57: =[5]RSL!B57 -> 252,501 | C57: =B57/(SUM('Pop-Aust'!AZ61:BN61)) -> 0.03934753475 | P57: ='[5]Ath Aus'!D57 -> 5,257 | Q57: =P57/(SUM('Pop-Aust'!AX61:BN61)) -> 0.0006562226938 | AE57: ='Pop-Aust'!BQ61-(SUM('Pop-Aust'!AW61:AY61)) -> 6417200 | AG57: 104.2537
A58: 1955 | B58: =[5]RSL!B58 -> 241,829 | C58: =B58/(SUM('Pop-Aust'!AZ62:BN62)) -> 0.03704374866 | H58: =[5]Guides!B58 -> 41,420 | I58: =H58/(SUM('Pop-Aust'!AA62:AC62)) -> 0.03699205144 | J58: =[5]Guides!D58 -> 5,342 | K58: =J58/(SUM('Pop-Aust'!BB62:BF62)) -> 0.001629204916 | N58: 19058 | O58: =N58/(SUM('Pop-Aust'!AD62:AH62)) -> 0.0118889582 | P58: ='[5]Ath Aus'!D58 -> 5,531 | Q58: =P58/(SUM('Pop-Aust'!AX62:BN62)) -> 0.0006738923819 | AE58: ='Pop-Aust'!BQ62-(SUM('Pop-Aust'!AW62:AY62)) -> 6528200 | AG58: 104.6808
A59: 1956 | B59: =[5]RSL!B59 -> 237,408 | C59: =B59/(SUM('Pop-Aust'!AZ63:BN63)) -> 0.03567041289 | P59: ='[5]Ath Aus'!D59 -> 6,210 | Q59: =P59/(SUM('Pop-Aust'!AX63:BN63)) -> 0.0007379435743 | AE59: ='Pop-Aust'!BQ63-(SUM('Pop-Aust'!AW63:AY63)) -> 6655600 | AG59: 101.393
A60: 1957 | B60: =[5]RSL!B60 -> 239,862 | C60: =B60/(SUM('Pop-Aust'!AZ64:BN64)) -> 0.03536327181 | H60: =[5]Guides!B60 -> 44,044 | I60: =H60/(SUM('Pop-Aust'!AA64:AC64)) -> 0.03617874158 | J60: =[5]Guides!D60 -> 4,449 | K60: =J60/(SUM('Pop-Aust'!BB64:BF64)) -> 0.001316311133 | P60: ='[5]Ath Aus'!D60 -> 6,550 | Q60: =P60/(SUM('Pop-Aust'!AX64:BN64)) -> 0.0007605262547 | AE60: ='Pop-Aust'!BQ64-(SUM('Pop-Aust'!AW64:AY64)) -> 6782800 | AG60: 98.64156
A61: 1958 | B61: =[5]RSL!B61 -> 242,397 | C61: =B61/(SUM('Pop-Aust'!AZ65:BN65)) -> 0.03517588158 | H61: =[5]Guides!B61 -> 47,893 | I61: =H61/(SUM('Pop-Aust'!AA65:AC65)) -> 0.03782718585 | J61: =[5]Guides!D61 -> 3,447 | K61: =J61/(SUM('Pop-Aust'!BB65:BF65)) -> 0.001011918741 | P61: ='[5]Ath Aus'!D61 -> 7,513 | Q61: =P61/(SUM('Pop-Aust'!AX65:BN65)) -> 0.0008540411504 | AE61: ='Pop-Aust'!BQ65-(SUM('Pop-Aust'!AW65:AY65)) -> 6891000 | AG61: 93.69224
A62: 1959 | B62: =[5]RSL!B62 -> 242,895 | C62: =B62/(SUM('Pop-Aust'!AZ66:BN66)) -> 0.03456497609 | H62: =[5]Guides!B62 -> 52,893 | I62: =H62/(SUM('Pop-Aust'!AA66:AC66)) -> 0.04033323166 | J62: =[5]Guides!D62 -> 5,818 | K62: =J62/(SUM('Pop-Aust'!BB66:BF66)) -> 0.001693494397 | N62: 21825 | O62: =N62/(SUM('Pop-Aust'!AD66:AH66)) -> 0.01305166846 | P62: ='[5]Ath Aus'!D62 -> 8,521 | Q62: =P62/(SUM('Pop-Aust'!AX66:BN66)) -> 0.0009480705893 | AE62: ='Pop-Aust'!BQ66-(SUM('Pop-Aust'!AW66:AY66)) -> 7027200 | AG62: 107.3736
A63: 1960 | B63: =[5]RSL!B63 -> 241,771 | C63: =B63/(SUM('Pop-Aust'!AZ67:BN67)) -> 0.03371322197 | H63: =[5]Guides!B63 -> 50,590 | I63: =H63/(SUM('Pop-Aust'!AA67:AC67)) -> 0.03726428992 | J63: =[5]Guides!D63 -> 5,942 | K63: =J63/(SUM('Pop-Aust'!BB67:BF67)) -> 0.001715754216 | P63: ='[5]Ath Aus'!D63 -> 7,488 | Q63: =P63/(SUM('Pop-Aust'!AX67:BN67)) -> 0.0008154275073 | AE63: ='Pop-Aust'!BQ67-(SUM('Pop-Aust'!AW67:AY67)) -> 7171400 | AG63: 106.1105
A64: 1961 | B64: =[5]RSL!B64 -> 245,775 | C64: =B64/(SUM('Pop-Aust'!AZ68:BN68)) -> 0.03356114813 | H64: =[5]Guides!B64 -> 52,728 | I64: =H64/(SUM('Pop-Aust'!AA68:AC68)) -> 0.03759304149 | J64: =[5]Guides!D64 -> 5,813 | K64: =J64/(SUM('Pop-Aust'!BB68:BF68)) -> 0.001662947706 | P64: ='[5]Ath Aus'!D64 -> 7,427 | Q64: =P64/(SUM('Pop-Aust'!AX68:BN68)) -> 0.000791054633 | AE64: ='Pop-Aust'!BQ68-(SUM('Pop-Aust'!AW68:AY68)) -> 7323200 | AG64: 106.5119
A65: 1962 | B65: =[5]RSL!B65 -> 252,485 | C65: =B65/(SUM('Pop-Aust'!AZ69:BN69)) -> 0.03373168027 | H65: =[5]Guides!B65 -> 56,173 | I65: =H65/(SUM('Pop-Aust'!AA69:AC69)) -> 0.03896032737 | J65: =[5]Guides!D65 -> 7,085 | K65: =J65/(SUM('Pop-Aust'!BB69:BF69)) -> 0.002017598815 | N65: 25588 | O65: =N65/(SUM('Pop-Aust'!AD69:AH69)) -> 0.0148121563 | P65: ='[5]Ath Aus'!D65 -> 8,778 | Q65: =P65/(SUM('Pop-Aust'!AX69:BN69)) -> 0.0009182296516 | AE65: ='Pop-Aust'!BQ69-(SUM('Pop-Aust'!AW69:AY69)) -> 7485100 | AG65: 113.8222
A66: 1963 | B66: =[5]RSL!B66 -> 257,209 | C66: =B66/(SUM('Pop-Aust'!AZ70:BN70)) -> 0.03364892267 | H66: =[5]Guides!B66 -> 59,490 | I66: =H66/(SUM('Pop-Aust'!AA70:AC70)) -> 0.04001210654 | J66: =[5]Guides!D66 -> 6,789 | K66: =J66/(SUM('Pop-Aust'!BB70:BF70)) -> 0.00192023759 | N66: 27640 | O66: =N66/(SUM('Pop-Aust'!AD70:AH70)) -> 0.01578887239 | P66: ='[5]Ath Aus'!D66 -> 9,492 | Q66: =P66/(SUM('Pop-Aust'!AX70:BN70)) -> 0.0009732775505 | AE66: ='Pop-Aust'!BQ70-(SUM('Pop-Aust'!AW70:AY70)) -> 7643900 | AG66: 114.92
A67: 1964 | B67: =[5]RSL!B67 -> 258,932 | C67: =B67/(SUM('Pop-Aust'!AZ71:BN71)) -> 0.03317344403 | H67: =[5]Guides!B67 -> 62,370 | I67: =H67/(SUM('Pop-Aust'!AA71:AC71)) -> 0.04088227583 | J67: =[5]Guides!D67 -> 8,147 | K67: =J67/(SUM('Pop-Aust'!BB71:BF71)) -> 0.002285337597 | N67: 28206 | O67: =N67/(SUM('Pop-Aust'!AD71:AH71)) -> 0.01577693254 | P67: ='[5]Ath Aus'!D67 -> 10,333 | Q67: =P67/(SUM('Pop-Aust'!AX71:BN71)) -> 0.001037668585 | AE67: ='Pop-Aust'!BQ71-(SUM('Pop-Aust'!AW71:AY71)) -> 7805400 | AG67: 120.1084
A68: 1965 | B68: =[5]RSL!B68 -> 263,154 | C68: =B68/(SUM('Pop-Aust'!AZ72:BN72)) -> 0.03297297297 | H68: =[5]Guides!B68 -> 65,586 | I68: =H68/(SUM('Pop-Aust'!AA72:AC72)) -> 0.04190263225 | J68: =[5]Guides!D68 -> 8,510 | K68: =J68/(SUM('Pop-Aust'!BB72:BF72)) -> 0.002364611409 | N68: 27500 | O68: =N68/(SUM('Pop-Aust'!AD72:AH72)) -> 0.01507758101 | P68: ='[5]Ath Aus'!D68 -> 10,832 | Q68: =P68/(SUM('Pop-Aust'!AX72:BN72)) -> 0.001064343058 | AE68: ='Pop-Aust'!BQ72-(SUM('Pop-Aust'!AW72:AY72)) -> 7980900 | AG68: 120.3291
A69: 1966 | B69: =[5]RSL!B69 -> 251,979 | C69: =B69/(SUM('Pop-Aust'!AZ73:BN73)) -> 0.0308050771 | H69: =[5]Guides!B69 -> 67,355 | I69: =H69/(SUM('Pop-Aust'!AA73:AC73)) -> 0.04164165365 | J69: =[5]Guides!D69 -> 8,948 | K69: =J69/(SUM('Pop-Aust'!BB73:BF73)) -> 0.00244739054 | N69: 21412 | O69: =N69/(SUM('Pop-Aust'!AD73:AH73)) -> 0.01151124002 | P69: ='[5]Ath Aus'!D69 -> 10,951 | Q69: =P69/(SUM('Pop-Aust'!AX73:BN73)) -> 0.001049022223 | AE69: ='Pop-Aust'!BQ73-(SUM('Pop-Aust'!AW73:AY73)) -> 8179788 | AG69: 111.0116
A70: 1967 | B70: =[5]RSL!B70 -> 253,393 | C70: =B70/(SUM('Pop-Aust'!AZ74:BN74)) -> 0.03036889641 | H70: =[5]Guides!B70 -> 69,957 | I70: =H70/(SUM('Pop-Aust'!AA74:AC74)) -> 0.04269171973 | J70: =[5]Guides!D70 -> 9,393 | K70: =J70/(SUM('Pop-Aust'!BB74:BF74)) -> 0.00252890757 | N70: 26561 | O70: =N70/(SUM('Pop-Aust'!AD74:AH74)) -> 0.01389327687 | P70: ='[5]Ath Aus'!D70 -> 11,872 | Q70: =P70/(SUM('Pop-Aust'!AX74:BN74)) -> 0.001114731365 | AE70: ='Pop-Aust'!BQ74-(SUM('Pop-Aust'!AW74:AY74)) -> 8343833 | AG70: 117.4361
A71: 1968 | B71: =[5]RSL!B71 -> 253,939 | C71: =B71/(SUM('Pop-Aust'!AZ75:BN75)) -> 0.02979729336 | H71: =[5]Guides!B71 -> 71,585 | I71: =H71/(SUM('Pop-Aust'!AA75:AC75)) -> 0.04300189705 | J71: =[5]Guides!D71 -> 9,483 | K71: =J71/(SUM('Pop-Aust'!BB75:BF75)) -> 0.002510742073 | N71: 24626 | O71: =N71/(SUM('Pop-Aust'!AD75:AH75)) -> 0.0125771709 | P71: ='[5]Ath Aus'!D71 -> 13,458 | Q71: =P71/(SUM('Pop-Aust'!AX75:BN75)) -> 0.001238735287 | AE71: ='Pop-Aust'!BQ75-(SUM('Pop-Aust'!AW75:AY75)) -> 8522217 | AG71: 113.9573
A72: 1969 | B72: =[5]RSL!B72 -> 271,278 | C72: =B72/(SUM('Pop-Aust'!AZ76:BN76)) -> 0.0311225184 | H72: =[5]Guides!B72 -> 73,171 | I72: =H72/(SUM('Pop-Aust'!AA76:AC76)) -> 0.04315508488 | J72: =[5]Guides!D72 -> 9,557 | K72: =J72/(SUM('Pop-Aust'!BB76:BF76)) -> 0.00246814678 | P72: ='[5]Ath Aus'!D72 -> 14,363 | Q72: =P72/(SUM('Pop-Aust'!AX76:BN76)) -> 0.001293800199 | AE72: ='Pop-Aust'!BQ76-(SUM('Pop-Aust'!AW76:AY76)) -> 8716454 | AG72: 113.3583
A73: 1970 | B73: =[5]RSL!B73 -> 264,152 | C73: =B73/(SUM('Pop-Aust'!AZ77:BN77)) -> 0.0296742552 | D73: =[5]Scouts!B73 -> 132,493 | E73: =D73/(SUM('Pop-Aust'!D77:F77)) -> 0.07354609724 | F73: =[5]Scouts!C73 -> 19,726 | G73: =F73/(SUM('Pop-Aust'!BB77:BF77)) -> 0.004985025465 | H73: =[5]Guides!B73 -> 74,742 | I73: =H73/(SUM('Pop-Aust'!AA77:AC77)) -> 0.0434812961 | J73: =[5]Guides!D73 -> 9,755 | K73: =J73/(SUM('Pop-Aust'!BB77:BF77)) -> 0.00246521968 | P73: ='[5]Ath Aus'!D73 -> 14,298 | Q73: =P73/(SUM('Pop-Aust'!AX77:BN77)) -> 0.001263095405 | X73: 30000 | Y73: =X73/(SUM('Pop-Aust'!AC77:AQ77)) -> 0.006730213341 | AE73: ='Pop-Aust'!BQ77-(SUM('Pop-Aust'!AW77:AY77)) -> 8901723 | AG73: 110.6652
A74: 1971 | B74: =[5]RSL!B74 -> 269,777 | C74: =B74/(SUM('Pop-Aust'!AZ78:BN78)) -> 0.02894606731 | D74: =[5]Scouts!B74 -> 131,036 | E74: =D74/(SUM('Pop-Aust'!D78:F78)) -> 0.07054640678 | F74: =[5]Scouts!C74 -> 19,823 | G74: =F74/(SUM('Pop-Aust'!BB78:BF78)) -> 0.004785282679 | H74: =[5]Guides!B74 -> 88,158 | I74: =H74/(SUM('Pop-Aust'!AA78:AC78)) -> 0.04962834194 | J74: =[5]Guides!D74 -> 8,467 | K74: =J74/(SUM('Pop-Aust'!BB78:BF78)) -> 0.002043938276 | P74: ='[5]Ath Aus'!D74 -> 14,192 | Q74: =P74/(SUM('Pop-Aust'!AX78:BN78)) -> 0.001200888513 | R74: =[5]Lions!E74 -> 24,279 | S74: =R74/(SUM('Pop-Aust'!AZ78:BN78)) -> 0.002605096086 | AE74: ='Pop-Aust'!BQ78-(SUM('Pop-Aust'!AW78:AY78)) -> 9319988 | AG74: 106.6503
A75: 1972 | B75: =[5]RSL!B75 -> 276,148 | C75: =B75/(SUM('Pop-Aust'!AZ79:BN79)) -> 0.02903479301 | D75: =[5]Scouts!B75 -> 126,299 | E75: =D75/(SUM('Pop-Aust'!D79:F79)) -> 0.06721639433 | F75: =[5]Scouts!C75 -> 19,755 | G75: =F75/(SUM('Pop-Aust'!BB79:BF79)) -> 0.004655174242 | H75: =[5]Guides!B75 -> 87,680 | I75: =H75/(SUM('Pop-Aust'!AA79:AC79)) -> 0.04884663338 | J75: =[5]Guides!D75 -> 10,098 | K75: =J75/(SUM('Pop-Aust'!BB79:BF79)) -> 0.002379546925 | P75: ='[5]Ath Aus'!D75 -> 14,568 | Q75: =P75/(SUM('Pop-Aust'!AX79:BN79)) -> 0.001211823706 | R75: =[5]Lions!E75 -> 21,455 | S75: =R75/(SUM('Pop-Aust'!AZ79:BN79)) -> 0.002255803465 | AE75: ='Pop-Aust'!BQ79-(SUM('Pop-Aust'!AW79:AY79)) -> 9510934 | AG75: 104.2942
A76: 1973 | B76: =[5]RSL!B76 -> 267,523 | C76: =B76/(SUM('Pop-Aust'!AZ80:BN80)) -> 0.0276030879 | D76: =[5]Scouts!B76 -> 119,575 | E76: =D76/(SUM('Pop-Aust'!D80:F80)) -> 0.06315258552 | F76: =[5]Scouts!C76 -> 17,285 | G76: =F76/(SUM('Pop-Aust'!BB80:BF80)) -> 0.003999497431 | H76: =[5]Guides!B76 -> 86,916 | I76: =H76/(SUM('Pop-Aust'!AA80:AC80)) -> 0.04810331287 | J76: =[5]Guides!D76 -> 10,851 | K76: =J76/(SUM('Pop-Aust'!BB80:BF80)) -> 0.002510763472 | N76: 21396 | O76: =N76/(SUM('Pop-Aust'!AD80:AH80)) -> 0.009451431762 | P76: ='[5]Ath Aus'!D76 -> 14,261 | Q76: =P76/(SUM('Pop-Aust'!AX80:BN80)) -> 0.00116816736 | R76: =[5]Lions!E76 -> 24,571 | S76: =R76/(SUM('Pop-Aust'!AZ80:BN80)) -> 0.00253522084 | AE76: ='Pop-Aust'!BQ80-(SUM('Pop-Aust'!AW80:AY80)) -> 9691778 | AG76: 101.5449
A77: 1974 | B77: =[5]RSL!B77 -> 266,400 | C77: =B77/(SUM('Pop-Aust'!AZ81:BN81)) -> 0.02691368255 | H77: =[5]Guides!B77 -> 82,422 | I77: =H77/(SUM('Pop-Aust'!AA81:AC81)) -> 0.04512752789 | J77: =[5]Guides!D77 -> 10,282 | K77: =J77/(SUM('Pop-Aust'!BB81:BF81)) -> 0.002333055599 | P77: ='[5]Ath Aus'!D77 -> 13,679 | Q77: =P77/(SUM('Pop-Aust'!AX81:BN81)) -> 0.001100588839 | R77: =[5]Lions!E77 -> 24,868 | S77: =R77/(SUM('Pop-Aust'!AZ81:BN81)) -> 0.00251239471 | AE77: ='Pop-Aust'!BQ81-(SUM('Pop-Aust'!AW81:AY81)) -> 9898311 | AG77: 96.08904
A78: 1975 | B78: =[5]RSL!B78 -> 264,582 | C78: =B78/(SUM('Pop-Aust'!AZ82:BN82)) -> 0.02626548749 | D78: =[5]Scouts!B78 -> 116,180 | E78: =D78/(SUM('Pop-Aust'!D82:F82)) -> 0.06009413955 | F78: =[5]Scouts!C78 -> 18,457 | G78: =F78/(SUM('Pop-Aust'!BB82:BF82)) -> 0.004112177768 | H78: =[5]Guides!B78 -> 82,937 | I78: =H78/(SUM('Pop-Aust'!AA82:AC82)) -> 0.04508822803 | J78: =[5]Guides!D78 -> 9,956 | K78: =J78/(SUM('Pop-Aust'!BB82:BF82)) -> 0.002218174235 | N78: ='[5]Moth Un'!B78 -> 13,940 | O78: =N78/(SUM('Pop-Aust'!AD82:AH82)) -> 0.005885574137 | P78: ='[5]Ath Aus'!D78 -> 13,439 | Q78: =P78/(SUM('Pop-Aust'!AX82:BN82)) -> 0.001065499117 | R78: =[5]Lions!E78 -> 27,065 | S78: =R78/(SUM('Pop-Aust'!AZ82:BN82)) -> 0.002686836146 | Z78: =[5]ACF!B78 -> 8,984 | AA78: =Z78/(SUM('Pop-Aust'!AZ82:BN82)) -> 0.0008918563607 | AE78: ='Pop-Aust'!BQ82-(SUM('Pop-Aust'!AW82:AY82)) -> 10073371 | AG78: 92.18813
A79: 1976 | B79: =[5]RSL!B79 -> 263,021 | C79: =B79/(SUM('Pop-Aust'!AZ83:BN83)) -> 0.02567063323 | D79: =[5]Scouts!B79 -> 110,662 | E79: =D79/(SUM('Pop-Aust'!D83:F83)) -> 0.05669209209 | F79: =[5]Scouts!C79 -> 18,188 | G79: =F79/(SUM('Pop-Aust'!BB83:BF83)) -> 0.004000235774 | H79: =[5]Guides!B79 -> 81,775 | I79: =H79/(SUM('Pop-Aust'!AA83:AC83)) -> 0.04401242628 | J79: =[5]Guides!D79 -> 9,940 | K79: =J79/(SUM('Pop-Aust'!BB83:BF83)) -> 0.002186185594 | N79: ='[5]Moth Un'!B79 -> 13,733 | O79: =N79/(SUM('Pop-Aust'!AD83:AH83)) -> 0.005698108542 | P79: ='[5]Ath Aus'!D79 -> 13,796 | Q79: =P79/(SUM('Pop-Aust'!AX83:BN83)) -> 0.001078178428 | R79: =[5]Lions!E79 -> 28,684 | S79: =R79/(SUM('Pop-Aust'!AZ83:BN83)) -> 0.002799563805 | AE79: ='Pop-Aust'!BQ83-(SUM('Pop-Aust'!AW83:AY83)) -> 10245988 | AG79: 90.0193
A80: 1977 | B80: =[5]RSL!B80 -> 262,021 | C80: =B80/(SUM('Pop-Aust'!AZ84:BN84)) -> 0.02512525904 | D80: =[5]Scouts!B80 -> 109,551 | E80: =D80/(SUM('Pop-Aust'!D84:F84)) -> 0.05546622085 | F80: =[5]Scouts!C80 -> 18,641 | G80: =F80/(SUM('Pop-Aust'!BB84:BF84)) -> 0.004031683352 | H80: =[5]Guides!B80 -> 80,040 | I80: =H80/(SUM('Pop-Aust'!AA84:AC84)) -> 0.04247384123 | J80: =[5]Guides!D80 -> 9,884 | K80: =J80/(SUM('Pop-Aust'!BB84:BF84)) -> 0.002137715694 | N80: ='[5]Moth Un'!B80 -> 12,966 | O80: =N80/(SUM('Pop-Aust'!AD84:AH84)) -> 0.005255171273 | P80: ='[5]Ath Aus'!D80 -> 14,383 | Q80: =P80/(SUM('Pop-Aust'!AX84:BN84)) -> 0.00110646395 | R80: =[5]Lions!E80 -> 30,282 | S80: =R80/(SUM('Pop-Aust'!AZ84:BN84)) -> 0.002903767422 | AE80: ='Pop-Aust'!BQ84-(SUM('Pop-Aust'!AW84:AY84)) -> 10428589 | AG80: 87.88165
A81: 1978 | B81: =[5]RSL!B81 -> 266,269 | C81: =B81/(SUM('Pop-Aust'!AZ85:BN85)) -> 0.0250814134 | D81: =[5]Scouts!B81 -> 113,895 | E81: =D81/(SUM('Pop-Aust'!D85:F85)) -> 0.05736763185 | F81: =[5]Scouts!C81 -> 18,955 | G81: =F81/(SUM('Pop-Aust'!BB85:BF85)) -> 0.004026841645 | H81: =[5]Guides!B81 -> 82,120 | I81: =H81/(SUM('Pop-Aust'!AA85:AC85)) -> 0.04324558881 | J81: =[5]Guides!D81 -> 10,238 | K81: =J81/(SUM('Pop-Aust'!BB85:BF85)) -> 0.002174983106 | N81: ='[5]Moth Un'!B81 -> 14,056 | O81: =N81/(SUM('Pop-Aust'!AD85:AH85)) -> 0.005556431819 | P81: ='[5]Ath Aus'!D81 -> 14,336 | Q81: =P81/(SUM('Pop-Aust'!AX85:BN85)) -> 0.001086498251 | R81: =[5]Lions!E81 -> 31,698 | S81: =R81/(SUM('Pop-Aust'!AZ85:BN85)) -> 0.00298584861 | AE81: ='Pop-Aust'!BQ85-(SUM('Pop-Aust'!AW85:AY85)) -> 10616188 | AG81: 88.57265
A82: 1979 | B82: =[5]RSL!B82 -> 263,031 | C82: =B82/(SUM('Pop-Aust'!AZ86:BN86)) -> 0.02436082596 | D82: =[5]Scouts!B82 -> 115,457 | E82: =D82/(SUM('Pop-Aust'!D86:F86)) -> 0.05809230305 | F82: =[5]Scouts!C82 -> 19,043 | G82: =F82/(SUM('Pop-Aust'!BB86:BF86)) -> 0.003975556683 | H82: =[5]Guides!B82 -> 84,659 | I82: =H82/(SUM('Pop-Aust'!AA86:AC86)) -> 0.04450005703 | J82: =[5]Guides!D82 -> 10,334 | K82: =J82/(SUM('Pop-Aust'!BB86:BF86)) -> 0.002157401815 | N82: ='[5]Moth Un'!B82 -> 12,634 | O82: =N82/(SUM('Pop-Aust'!AD86:AH86)) -> 0.004870290074 | P82: ='[5]Ath Aus'!D82 -> 24,037 | Q82: =P82/(SUM('Pop-Aust'!AX86:BN86)) -> 0.001797339352 | R82: =[5]Lions!E82 -> 32,109 | S82: =R82/(SUM('Pop-Aust'!AZ86:BN86)) -> 0.002973834322 | AE82: ='Pop-Aust'!BQ86-(SUM('Pop-Aust'!AW86:AY86)) -> 10797294 | AG82: 86.33865
A83: 1980 | B83: =[5]RSL!B83 -> 262,098 | C83: =B83/(SUM('Pop-Aust'!AZ87:BN87)) -> 0.02386101259 | D83: =[5]Scouts!B83 -> 118,682 | E83: =D83/(SUM('Pop-Aust'!D87:F87)) -> 0.05981262253 | F83: =[5]Scouts!C83 -> 19,521 | G83: =F83/(SUM('Pop-Aust'!BB87:BF87)) -> 0.003990156755 | H83: =[5]Guides!B83 -> 86,507 | I83: =H83/(SUM('Pop-Aust'!AA87:AC87)) -> 0.04547896781 | J83: =[5]Guides!D83 -> 10,590 | K83: =J83/(SUM('Pop-Aust'!BB87:BF87)) -> 0.002164630912 | N83: ='[5]Moth Un'!B83 -> 12,833 | O83: =N83/(SUM('Pop-Aust'!AD87:AH87)) -> 0.004814499398 | P83: ='[5]Ath Aus'!D83 -> 24,387 | Q83: =P83/(SUM('Pop-Aust'!AX87:BN87)) -> 0.001798031389 | R83: =[5]Lions!E83 -> 32,213 | S83: =R83/(SUM('Pop-Aust'!AZ87:BN87)) -> 0.002932644621 | Z83: =[5]ACF!B83 -> 8,296 | AA83: =Z83/(SUM('Pop-Aust'!AZ87:BN87)) -> 0.0007552555169 | AE83: ='Pop-Aust'!BQ87-(SUM('Pop-Aust'!AW87:AY87)) -> 10984362 | AG83: 85.62774
A84: 1981 | B84: =[5]RSL!B84 -> 264,620 | C84: =B84/(SUM('Pop-Aust'!AZ88:BN88)) -> 0.02363159643 | D84: =[5]Scouts!B84 -> 117,952 | E84: =D84/(SUM('Pop-Aust'!D88:F88)) -> 0.05950803156 | F84: =[5]Scouts!C84 -> 19,791 | G84: =F84/(SUM('Pop-Aust'!BB88:BF88)) -> 0.003945995037 | H84: =[5]Guides!B84 -> 87,169 | I84: =H84/(SUM('Pop-Aust'!AA88:AC88)) -> 0.04585795392 | J84: =[5]Guides!D84 -> 10,465 | K84: =J84/(SUM('Pop-Aust'!BB88:BF88)) -> 0.002086546312 | N84: ='[5]Moth Un'!B84 -> 14,737 | O84: =N84/(SUM('Pop-Aust'!AD88:AH88)) -> 0.005367096352 | P84: ='[5]Ath Aus'!D84 -> 23,556 | Q84: =P84/(SUM('Pop-Aust'!AX88:BN88)) -> 0.001708982285 | R84: =[5]Lions!E84 -> 32,422 | S84: =R84/(SUM('Pop-Aust'!AZ88:BN88)) -> 0.002895374843 | AE84: ='Pop-Aust'!BQ88-(SUM('Pop-Aust'!AW88:AY88)) -> 11197720 | AG84: 86.3718
A85: 1982 | B85: =[5]RSL!B85 -> 268,708 | C85: =B85/(SUM('Pop-Aust'!AZ89:BN89)) -> 0.02348997894 | D85: =[5]Scouts!B85 -> 120,191 | E85: =D85/(SUM('Pop-Aust'!D89:F89)) -> 0.06064038417 | F85: =[5]Scouts!C85 -> 20,390 | G85: =F85/(SUM('Pop-Aust'!BB89:BF89)) -> 0.003944229866 | H85: =[5]Guides!B85 -> 90,293 | I85: =H85/(SUM('Pop-Aust'!AA89:AC89)) -> 0.04760589178 | J85: =[5]Guides!D85 -> 10,757 | K85: =J85/(SUM('Pop-Aust'!BB89:BF89)) -> 0.00208082789 | N85: ='[5]Moth Un'!B85 -> 13,626 | O85: =N85/(SUM('Pop-Aust'!AD89:AH89)) -> 0.00481138971 | P85: ='[5]Ath Aus'!D85 -> 22,080 | Q85: =P85/(SUM('Pop-Aust'!AX89:BN89)) -> 0.001573885701 | R85: =[5]Lions!E85 -> 33,087 | S85: =R85/(SUM('Pop-Aust'!AZ89:BN89)) -> 0.002892371869 | AE85: ='Pop-Aust'!BQ89-(SUM('Pop-Aust'!AW89:AY89)) -> 11439261 | AG85: 86.01714
A86: 1983 | B86: =[5]RSL!B86 -> 270,009 | C86: =B86/(SUM('Pop-Aust'!AZ90:BN90)) -> 0.02319176407 | D86: =[5]Scouts!B86 -> 117,918 | E86: =D86/(SUM('Pop-Aust'!D90:F90)) -> 0.0597191955 | F86: =[5]Scouts!C86 -> 21,363 | G86: =F86/(SUM('Pop-Aust'!BB90:BF90)) -> 0.004024617555 | N86: ='[5]Moth Un'!B86 -> 13,796 | O86: =N86/(SUM('Pop-Aust'!AD90:AH90)) -> 0.00475755144 | P86: ='[5]Ath Aus'!D86 -> 21,785 | Q86: =P86/(SUM('Pop-Aust'!AX90:BN90)) -> 0.001531648527 | R86: =[5]Lions!E86 -> 33,305 | S86: =R86/(SUM('Pop-Aust'!AZ90:BN90)) -> 0.002860659996 | AE86: ='Pop-Aust'!BQ90-(SUM('Pop-Aust'!AW90:AY90)) -> 11642452 | AG86: 85.53789
A87: 1984 | B87: =[5]RSL!B87 -> 269,767 | C87: =B87/(SUM('Pop-Aust'!AZ91:BN91)) -> 0.02277747635 | D87: =[5]Scouts!B87 -> 111,887 | E87: =D87/(SUM('Pop-Aust'!D91:F91)) -> 0.05697291512 | F87: =[5]Scouts!C87 -> 21,040 | G87: =F87/(SUM('Pop-Aust'!BB91:BF91)) -> 0.003867945687 | N87: ='[5]Moth Un'!B87 -> 0 | R87: =[5]Lions!E87 -> 33,344 | S87: =R87/(SUM('Pop-Aust'!AZ91:BN91)) -> 0.002815394202 | AE87: ='Pop-Aust'!BQ91-(SUM('Pop-Aust'!AW91:AY91)) -> 11843586 | AG87: 83.85911
A88: 1985 | B88: =[5]RSL!B88 -> 266,154 | C88: =B88/(SUM('Pop-Aust'!AZ92:BN92)) -> 0.02206408461 | D88: =[5]Scouts!B88 -> 109,376 | E88: =D88/(SUM('Pop-Aust'!D92:F92)) -> 0.05578407337 | F88: =[5]Scouts!C88 -> 21,257 | G88: =F88/(SUM('Pop-Aust'!BB92:BF92)) -> 0.003804743642 | H88: =[5]Guides!B88 -> 87,016 | I88: =H88/(SUM('Pop-Aust'!AA92:AC92)) -> 0.04653291893 | J88: =[5]Guides!D88 -> 10,623 | K88: =J88/(SUM('Pop-Aust'!BB92:BF92)) -> 0.001901387388 | N88: ='[5]Moth Un'!B88 -> 13,616 | O88: =N88/(SUM('Pop-Aust'!AD92:AH92)) -> 0.004514506533 | P88: ='[5]Ath Aus'!D88 -> 19,100 | Q88: =P88/(SUM('Pop-Aust'!AX92:BN92)) -> 0.001309227463 | R88: =[5]Lions!E88 -> 32,932 | S88: =R88/(SUM('Pop-Aust'!AZ92:BN92)) -> 0.002730057911 | Z88: =[5]ACF!B88 -> 13,384 | AA88: =Z88/(SUM('Pop-Aust'!AZ92:BN92)) -> 0.001109529477 | AB88: =[5]Greenpeace!B88 -> 3,000 | AC88: =AB88/(SUM('Pop-Aust'!AZ92:BN92)) -> 0.0002486990759 | AE88: ='Pop-Aust'!BQ92-(SUM('Pop-Aust'!AW92:AY92)) -> 12062771 | AG88: 82.3066
A89: 1986 | B89: =[5]RSL!B89 -> 261,396 | C89: =B89/(SUM('Pop-Aust'!AZ93:BN93)) -> 0.02121921948 | D89: =[5]Scouts!B89 -> 104,455 | E89: =D89/(SUM('Pop-Aust'!D93:F93)) -> 0.0531406963 | F89: =[5]Scouts!C89 -> 20,949 | G89: =F89/(SUM('Pop-Aust'!BB93:BF93)) -> 0.003649034919 | H89: =[5]Guides!B89 -> 79,287 | I89: =H89/(SUM('Pop-Aust'!AA93:AC93)) -> 0.04234005332 | J89: =[5]Guides!D89 -> 11,034 | K89: =J89/(SUM('Pop-Aust'!BB93:BF93)) -> 0.001921974858 | N89: ='[5]Moth Un'!B89 -> 13,483 | O89: =N89/(SUM('Pop-Aust'!AD93:AH93)) -> 0.004383760286 | P89: ='[5]Ath Aus'!D89 -> 18,946 | Q89: =P89/(SUM('Pop-Aust'!AX93:BN93)) -> 0.001279282424 | R89: =[5]Lions!E89 -> 32,517 | S89: =R89/(SUM('Pop-Aust'!AZ93:BN93)) -> 0.002639635812 | AE89: ='Pop-Aust'!BQ93-(SUM('Pop-Aust'!AW93:AY93)) -> 12318832 | AG89: 79.21614
A90: 1987 | B90: =[5]RSL!B90 -> 257,726 | C90: =B90/(SUM('Pop-Aust'!AZ94:BN94)) -> 0.02049261601 | D90: =[5]Scouts!B90 -> 97,403 | E90: =D90/(SUM('Pop-Aust'!D94:F94)) -> 0.04934050893 | F90: =[5]Scouts!C90 -> 20,551 | G90: =F90/(SUM('Pop-Aust'!BB94:BF94)) -> 0.003483352588 | H90: =[5]Guides!B90 -> 81,573 | I90: =H90/(SUM('Pop-Aust'!AA94:AC94)) -> 0.04337076895 | J90: =[5]Guides!D90 -> 10,097 | K90: =J90/(SUM('Pop-Aust'!BB94:BF94)) -> 0.001711420908 | N90: ='[5]Moth Un'!B90 -> 12,728 | O90: =N90/(SUM('Pop-Aust'!AD94:AH94)) -> 0.004051235009 | P90: ='[5]Ath Aus'!D90 -> 18,792 | Q90: =P90/(SUM('Pop-Aust'!AX94:BN94)) -> 0.001249037068 | R90: =[5]Lions!E90 -> 31,818 | S90: =R90/(SUM('Pop-Aust'!AZ94:BN94)) -> 0.00252995303 | X90: 18000 | Y90: =X90/(SUM('Pop-Aust'!AC94:AQ94)) -> 0.002835195295 | AE90: ='Pop-Aust'!BQ94-(SUM('Pop-Aust'!AW94:AY94)) -> 12576530 | AG90: 75.37548
A91: 1988 | B91: =[5]RSL!B91 -> 253,297 | C91: =B91/(SUM('Pop-Aust'!AZ95:BN95)) -> 0.01973773669 | D91: =[5]Scouts!B91 -> 101,359 | E91: =D91/(SUM('Pop-Aust'!D95:F95)) -> 0.05103757966 | F91: =[5]Scouts!C91 -> 23,200 | G91: =F91/(SUM('Pop-Aust'!BB95:BF95)) -> 0.003823993449 | H91: =[5]Guides!B91 -> 75,605 | I91: =H91/(SUM('Pop-Aust'!AA95:AC95)) -> 0.03997755906 | J91: =[5]Guides!D91 -> 9,691 | K91: =J91/(SUM('Pop-Aust'!BB95:BF95)) -> 0.001597341402 | N91: ='[5]Moth Un'!B91 -> 12,738 | O91: =N91/(SUM('Pop-Aust'!AD95:AH95)) -> 0.003963173414 | P91: ='[5]Ath Aus'!D91 -> 22,142 | Q91: =P91/(SUM('Pop-Aust'!AX95:BN95)) -> 0.001446942427 | R91: =[5]Lions!E91 -> 31,348 | S91: =R91/(SUM('Pop-Aust'!AZ95:BN95)) -> 0.002442746981 | V91: =[5]ALA!D91 -> 80,139 | W91: =V91/(SUM('Pop-Aust'!AX95:AZ95)) -> 0.02066954266 | Z91: =[5]ACF!B91 -> 14,680 | AA91: =Z91/(SUM('Pop-Aust'!AZ95:BN95)) -> 0.001143913961 | AB91: =[5]Greenpeace!B91 -> 9,000 | AC91: =AB91/(SUM('Pop-Aust'!AZ95:BN95)) -> 0.000701309649 | AE91: ='Pop-Aust'!BQ95-(SUM('Pop-Aust'!AW95:AY95)) -> 12833133 | AG91: 74.08028
A92: 1989 | B92: =[5]RSL!B92 -> 248,666 | C92: =B92/(SUM('Pop-Aust'!AZ96:BN96)) -> 0.0189973672 | D92: =[5]Scouts!B92 -> 96,253 | E92: =D92/(SUM('Pop-Aust'!D96:F96)) -> 0.04823563312 | F92: =[5]Scouts!C92 -> 22,298 | G92: =F92/(SUM('Pop-Aust'!BB96:BF96)) -> 0.00357835782 | H92: =[5]Guides!B92 -> 71,628 | I92: =H92/(SUM('Pop-Aust'!AA96:AC96)) -> 0.03772346762 | J92: =[5]Guides!D92 -> 9,259 | K92: =J92/(SUM('Pop-Aust'!BB96:BF96)) -> 0.001485873848 | N92: ='[5]Moth Un'!B92 -> 12,662 | O92: =N92/(SUM('Pop-Aust'!AD96:AH96)) -> 0.003855580467 | P92: ='[5]Ath Aus'!D92 -> 22,142 | Q92: =P92/(SUM('Pop-Aust'!AX96:BN96)) -> 0.001422042076 | R92: =[5]Lions!E92 -> 31,036 | S92: =R92/(SUM('Pop-Aust'!AZ96:BN96)) -> 0.002371050715 | V92: =[5]ALA!D92 -> 78,820 | W92: =V92/(SUM('Pop-Aust'!AX96:AZ96)) -> 0.02024002116 | AE92: ='Pop-Aust'!BQ96-(SUM('Pop-Aust'!AW96:AY96)) -> 13089498 | AG92: 72.16455
A93: 1990 | B93: =[5]RSL!B93 -> 245,114 | C93: =B93/(SUM('Pop-Aust'!AZ97:BN97)) -> 0.01841559221 | D93: =[5]Scouts!B93 -> 93,483 | E93: =D93/(SUM('Pop-Aust'!D97:F97)) -> 0.04677098911 | F93: =[5]Scouts!C93 -> 21,455 | G93: =F93/(SUM('Pop-Aust'!BB97:BF97)) -> 0.003367965849 | H93: =[5]Guides!B93 -> 67,955 | I93: =H93/(SUM('Pop-Aust'!AA97:AC97)) -> 0.03575626702 | J93: =[5]Guides!D93 -> 8,914 | K93: =J93/(SUM('Pop-Aust'!BB97:BF97)) -> 0.00139930308 | L93: =[5]Rotary!D92 -> 39,771 | M93: =L93/(SUM('Pop-Aust'!AZ97:BN97)) -> 0.002988024012 | N93: ='[5]Moth Un'!B93 -> 12,671 | O93: =N93/(SUM('Pop-Aust'!AD97:AH97)) -> 0.003786574768 | R93: =[5]Lions!E93 -> 30,532 | S93: =R93/(SUM('Pop-Aust'!AZ97:BN97)) -> 0.002293870994 | T93: =[5]Apex!D93 -> 10,159 | U93: =T93/(SUM('Pop-Aust'!AZ97:BN97)) -> 0.0007632530221 | V93: =[5]ALA!D93 -> 78,874 | W93: =V93/(SUM('Pop-Aust'!AX97:AZ97)) -> 0.0202280185 | Z93: =[5]ACF!B93 -> 20,693 | AA93: =Z93/(SUM('Pop-Aust'!AZ97:BN97)) -> 0.001554680066 | AB93: =[5]Greenpeace!B93 -> 39,320 | AC93: =AB93/(SUM('Pop-Aust'!AZ97:BN97)) -> 0.002954140056 | AE93: ='Pop-Aust'!BQ97-(SUM('Pop-Aust'!AW97:AY97)) -> 13310134 | AG93: 70.58321
A94: 1991 | B94: =[5]RSL!B94 -> 238,319 | C94: =B94/(SUM('Pop-Aust'!AZ98:BN98)) -> 0.0176552131 | D94: =[5]Scouts!B94 -> 94,105 | E94: =D94/(SUM('Pop-Aust'!D98:F98)) -> 0.0473007818 | F94: =[5]Scouts!C94 -> 21,861 | G94: =F94/(SUM('Pop-Aust'!BB98:BF98)) -> 0.003375068953 | H94: =[5]Guides!B94 -> 66,912 | I94: =H94/(SUM('Pop-Aust'!AA98:AC98)) -> 0.0354331897 | J94: =[5]Guides!D94 -> 9,128 | K94: =J94/(SUM('Pop-Aust'!BB98:BF98)) -> 0.001409250693 | L94: =[5]Rotary!D93 -> 40,039 | M94: =L94/(SUM('Pop-Aust'!AZ98:BN98)) -> 0.002966180109 | N94: ='[5]Moth Un'!B94 -> 12,331 | O94: =N94/(SUM('Pop-Aust'!AD98:AH98)) -> 0.00362482649 | R94: =[5]Lions!E94 -> 31,834 | S94: =R94/(SUM('Pop-Aust'!AZ98:BN98)) -> 0.002358335063 | T94: =[5]Apex!D94 -> 9,989 | U94: =T94/(SUM('Pop-Aust'!AZ98:BN98)) -> 0.000739970779 | V94: =[5]ALA!D94 -> 78,648 | W94: =V94/(SUM('Pop-Aust'!AX98:AZ98)) -> 0.0202809458 | AB94: =[5]Greenpeace!B94 -> 91,897 | AC94: =AB94/(SUM('Pop-Aust'!AZ98:BN98)) -> 0.006807938597 | AE94: ='Pop-Aust'!BQ98-(SUM('Pop-Aust'!AW98:AY98)) -> 13498506 | AG94: 69.63425
A95: 1992 | B95: =[5]RSL!B95 -> 240,157 | C95: =B95/(SUM('Pop-Aust'!AZ99:BN99)) -> 0.01755748346 | D95: =[5]Scouts!B95 -> 95,855 | E95: =D95/(SUM('Pop-Aust'!D99:F99)) -> 0.04848132643 | F95: =[5]Scouts!C95 -> 22,666 | G95: =F95/(SUM('Pop-Aust'!BB99:BF99)) -> 0.003443308761 | H95: =[5]Guides!B95 -> 66,020 | I95: =H95/(SUM('Pop-Aust'!AA99:AC99)) -> 0.03516816477 | J95: =[5]Guides!D95 -> 8,492 | K95: =J95/(SUM('Pop-Aust'!BB99:BF99)) -> 0.001290063443 | L95: =[5]Rotary!D94 -> 40,102 | M95: =L95/(SUM('Pop-Aust'!AZ99:BN99)) -> 0.002931791293 | N95: ='[5]Moth Un'!B95 -> 12,015 | O95: =N95/(SUM('Pop-Aust'!AD99:AH99)) -> 0.003493500316 | P95: ='[5]Ath Aus'!D95 -> 15,442 | Q95: =P95/(SUM('Pop-Aust'!AX99:BN99)) -> 0.0009526233076 | R95: =[5]Lions!E95 -> 31,856 | S95: =R95/(SUM('Pop-Aust'!AZ99:BN99)) -> 0.002328939789 | T95: =[5]Apex!D95 -> 9,131 | U95: =T95/(SUM('Pop-Aust'!AZ99:BN99)) -> 0.0006675158446 | V95: =[5]ALA!D95 -> 80,254 | W95: =V95/(SUM('Pop-Aust'!AX99:AZ99)) -> 0.02082129628 | AB95: =[5]Greenpeace!B95 -> 131,538 | AC95: =AB95/(SUM('Pop-Aust'!AZ99:BN99)) -> 0.009616526933 | AE95: ='Pop-Aust'!BQ99-(SUM('Pop-Aust'!AW99:AY99)) -> 13678327 | AG95: 67.81767
A96: 1993 | B96: =[5]RSL!B96 -> 233,536 | C96: =B96/(SUM('Pop-Aust'!AZ100:BN100)) -> 0.01688671815 | D96: =[5]Scouts!B96 -> 93,586 | E96: =D96/(SUM('Pop-Aust'!D100:F100)) -> 0.04754192799 | F96: =[5]Scouts!C96 -> 22,611 | G96: =F96/(SUM('Pop-Aust'!BB100:BF100)) -> 0.003389982468 | H96: =[5]Guides!B96 -> 62,951 | I96: =H96/(SUM('Pop-Aust'!AA100:AC100)) -> 0.03366084629 | J96: =[5]Guides!D96 -> 8,614 | K96: =J96/(SUM('Pop-Aust'!BB100:BF100)) -> 0.001291464729 | L96: =[5]Rotary!D95 -> 40,202 | M96: =L96/(SUM('Pop-Aust'!AZ100:BN100)) -> 0.002906960138 | N96: ='[5]Moth Un'!B96 -> 11,561 | O96: =N96/(SUM('Pop-Aust'!AD100:AH100)) -> 0.003343116985 | P96: ='[5]Ath Aus'!D96 -> 15,579 | Q96: =P96/(SUM('Pop-Aust'!AX100:BN100)) -> 0.0009513837034 | R96: =[5]Lions!E96 -> 31,455 | S96: =R96/(SUM('Pop-Aust'!AZ100:BN100)) -> 0.002274474682 | T96: =[5]Apex!D96 -> 7,935 | U96: =T96/(SUM('Pop-Aust'!AZ100:BN100)) -> 0.0005737345211 | V96: =[5]ALA!D96 -> 83,461 | W96: =V96/(SUM('Pop-Aust'!AX100:AZ100)) -> 0.02174228485 | AB96: =[5]Greenpeace!B96 -> 130,213 | AC96: =AB96/(SUM('Pop-Aust'!AZ100:BN100)) -> 0.009415551477 | AE96: ='Pop-Aust'!BQ100-(SUM('Pop-Aust'!AW100:AY100)) -> 13829567 | AG96: 65.26491
A97: 1994 | B97: =[5]RSL!B97 -> 232,534 | C97: =B97/(SUM('Pop-Aust'!AZ101:BN101)) -> 0.01661586053 | D97: =[5]Scouts!B97 -> 87,592 | E97: =D97/(SUM('Pop-Aust'!D101:F101)) -> 0.0445048284 | F97: =[5]Scouts!C97 -> 22,145 | G97: =F97/(SUM('Pop-Aust'!BB101:BF101)) -> 0.003279255602 | H97: =[5]Guides!B97 -> 58,016 | I97: =H97/(SUM('Pop-Aust'!AA101:AC101)) -> 0.03101564254 | J97: =[5]Guides!D97 -> 8,269 | K97: =J97/(SUM('Pop-Aust'!BB101:BF101)) -> 0.001224482483 | L97: =[5]Rotary!D96 -> 39,798 | M97: =L97/(SUM('Pop-Aust'!AZ101:BN101)) -> 0.00284379066 | N97: ='[5]Moth Un'!B97 -> 11,612 | O97: =N97/(SUM('Pop-Aust'!AD101:AH101)) -> 0.003338512263 | P97: ='[5]Ath Aus'!D97 -> 15,425 | Q97: =P97/(SUM('Pop-Aust'!AX101:BN101)) -> 0.0009316167514 | R97: =[5]Lions!E97 -> 39,715 | S97: =R97/(SUM('Pop-Aust'!AZ101:BN101)) -> 0.002837859844 | T97: =[5]Apex!D97 -> 7,175 | U97: =T97/(SUM('Pop-Aust'!AZ101:BN101)) -> 0.0005126583269 | AB97: =[5]Greenpeace!B97 -> 125,468 | AC97: =AB97/(SUM('Pop-Aust'!AZ101:BN101)) -> 0.008965393401 | AE97: ='Pop-Aust'!BQ101-(SUM('Pop-Aust'!AW101:AY101)) -> 13994701 | AG97: 63.84809
A98: 1995 | B98: =[5]RSL!B98 -> 236,854 | C98: =B98/(SUM('Pop-Aust'!AZ102:BN102)) -> 0.0166990984 | D98: =[5]Scouts!B98 -> 84,037 | E98: =D98/(SUM('Pop-Aust'!D102:F102)) -> 0.04249534021 | F98: =[5]Scouts!C98 -> 21,258 | G98: =F98/(SUM('Pop-Aust'!BB102:BF102)) -> 0.003103948547 | H98: =[5]Guides!B98 -> 49,964 | I98: =H98/(SUM('Pop-Aust'!AA102:AC102)) -> 0.02657269465 | J98: =[5]Guides!D98 -> 7,506 | K98: =J98/(SUM('Pop-Aust'!BB102:BF102)) -> 0.001095975059 | L98: =[5]Rotary!D97 -> 39,736 | M98: =L98/(SUM('Pop-Aust'!AZ102:BN102)) -> 0.002801537546 | N98: ='[5]Moth Un'!B98 -> 11,169 | O98: =N98/(SUM('Pop-Aust'!AD102:AH102)) -> 0.003188510059 | P98: ='[5]Ath Aus'!D98 -> 15,325 | Q98: =P98/(SUM('Pop-Aust'!AX102:BN102)) -> 0.0009137125084 | R98: =[5]Lions!E98 -> 30,402 | S98: =R98/(SUM('Pop-Aust'!AZ102:BN102)) -> 0.002143455418 | T98: =[5]Apex!D98 -> 6,468 | U98: =T98/(SUM('Pop-Aust'!AZ102:BN102)) -> 0.0004559830904 | V98: =[5]ALA!D98 -> 81,942 | W98: =V98/(SUM('Pop-Aust'!AX102:AZ102)) -> 0.02124041625 | AB98: =[5]Greenpeace!B98 -> 95,431 | AC98: =AB98/(SUM('Pop-Aust'!AZ102:BN102)) -> 0.006728244654 | AE98: ='Pop-Aust'!BQ102-(SUM('Pop-Aust'!AW102:AY102)) -> 14183640 | AG98: 58.63197
A99: 1996 | B99: =[5]RSL!B99 -> 235,905 | C99: =B99/(SUM('Pop-Aust'!AZ103:BN103)) -> 0.01638297543 | D99: =[5]Scouts!B99 -> 80,568 | E99: =D99/(SUM('Pop-Aust'!D103:F103)) -> 0.04038854575 | F99: =[5]Scouts!C99 -> 19,667 | G99: =F99/(SUM('Pop-Aust'!BB103:BF103)) -> 0.002822658888 | H99: =[5]Guides!B99 -> 55,572 | I99: =H99/(SUM('Pop-Aust'!AA103:AC103)) -> 0.02927063746 | J99: =[5]Guides!D99 -> 8,304 | K99: =J99/(SUM('Pop-Aust'!BB103:BF103)) -> 0.001191794411 | L99: =[5]Rotary!D98 -> 39,794 | M99: =L99/(SUM('Pop-Aust'!AZ103:BN103)) -> 0.002763587564 | N99: ='[5]Moth Un'!B99 -> 11,188 | O99: =N99/(SUM('Pop-Aust'!AD103:AH103)) -> 0.003171570392 | P99: ='[5]Ath Aus'!D99 -> 15,321 | Q99: =P99/(SUM('Pop-Aust'!AX103:BN103)) -> 0.0009005114418 | R99: =[5]Lions!E99 -> 29,633 | S99: =R99/(SUM('Pop-Aust'!AZ103:BN103)) -> 0.002057933112 | T99: =[5]Apex!D99 -> 6,012 | U99: =T99/(SUM('Pop-Aust'!AZ103:BN103)) -> 0.0004175174256 | V99: =[5]ALA!D99 -> 85,067 | W99: =V99/(SUM('Pop-Aust'!AX103:AZ103)) -> 0.02184911074 | AB99: =[5]Greenpeace!B99 -> 72,262 | AC99: =AB99/(SUM('Pop-Aust'!AZ103:BN103)) -> 0.005018403893 | AE99: ='Pop-Aust'!BQ103-(SUM('Pop-Aust'!AW103:AY103)) -> 14399399 | AG99: 57.48151
A100: 1997 | B100: =[5]RSL!B100 -> 229,588 | C100: =B100/(SUM('Pop-Aust'!AZ104:BN104)) -> 0.01572024176 | D100: =[5]Scouts!B100 -> 76,972 | E100: =D100/(SUM('Pop-Aust'!D104:F104)) -> 0.03829946247 | F100: =[5]Scouts!C100 -> 18,925 | G100: =F100/(SUM('Pop-Aust'!BB104:BF104)) -> 0.002693700172 | H100: =[5]Guides!B100 -> 47,814 | I100: =H100/(SUM('Pop-Aust'!AA104:AC104)) -> 0.02501483437 | J100: =[5]Guides!D100 -> 7,145 | K100: =J100/(SUM('Pop-Aust'!BB104:BF104)) -> 0.001016940492 | L100: =[5]Rotary!D99 -> 39,486 | M100: =L100/(SUM('Pop-Aust'!AZ104:BN104)) -> 0.002703666856 | N100: ='[5]Moth Un'!B100 -> 10,947 | O100: =N100/(SUM('Pop-Aust'!AD104:AH104)) -> 0.003086472836 | P100: ='[5]Ath Aus'!D100 -> 14,640 | Q100: =P100/(SUM('Pop-Aust'!AX104:BN104)) -> 0.00084958873 | R100: =[5]Lions!E100 -> 29,023 | S100: =R100/(SUM('Pop-Aust'!AZ104:BN104)) -> 0.001987249232 | T100: =[5]Apex!D100 -> 5,444 | U100: =T100/(SUM('Pop-Aust'!AZ104:BN104)) -> 0.0003727590124 | V100: =[5]ALA!D100 -> 84,409 | W100: =V100/(SUM('Pop-Aust'!AX104:AZ104)) -> 0.02152642827 | AB100: =[5]Greenpeace!B100 -> 60,201 | AC100: =AB100/(SUM('Pop-Aust'!AZ104:BN104)) -> 0.004122054612 | AE100: ='Pop-Aust'!BQ104-(SUM('Pop-Aust'!AW104:AY104)) -> 14604610 | AG100: 53.59301
A101: 1998 | B101: =[5]RSL!B101 -> 227,040 | C101: =B101/(SUM('Pop-Aust'!AZ105:BN105)) -> 0.01532957575 | D101: =[5]Scouts!B101 -> 74,309 | E101: =D101/(SUM('Pop-Aust'!D105:F105)) -> 0.03668991396 | F101: =[5]Scouts!C101 -> 18,424 | G101: =F101/(SUM('Pop-Aust'!BB105:BF105)) -> 0.002602147054 | H101: =[5]Guides!B101 -> 41,976 | I101: =H101/(SUM('Pop-Aust'!AA105:AC105)) -> 0.02180278073 | J101: =[5]Guides!D101 -> 6,272 | K101: =J101/(SUM('Pop-Aust'!BB105:BF105)) -> 0.0008858711917 | L101: =[5]Rotary!D100 -> 38,627 | M101: =L101/(SUM('Pop-Aust'!AZ105:BN105)) -> 0.00260806696 | N101: ='[5]Moth Un'!B101 -> 0 | P101: ='[5]Ath Aus'!D101 -> 14,298 | Q101: =P101/(SUM('Pop-Aust'!AX105:BN105)) -> 0.0008194551814 | R101: =[5]Lions!E101 -> 28,785 | S101: =R101/(SUM('Pop-Aust'!AZ105:BN105)) -> 0.001943542274 | T101: =[5]Apex!D101 -> 5,053 | U101: =T101/(SUM('Pop-Aust'!AZ105:BN105)) -> 0.000341141127 | V101: =[5]ALA!D101 -> 81,890 | W101: =V101/(SUM('Pop-Aust'!AX105:AZ105)) -> 0.02072863861 | AB101: =[5]Greenpeace!B101 -> 47,978 | AC101: =AB101/(SUM('Pop-Aust'!AZ105:BN105)) -> 0.003239439682 | AE101: ='Pop-Aust'!BQ105-(SUM('Pop-Aust'!AW105:AY105)) -> 14810586 | AG101: 50.39861
A102: 1999 | B102: =[5]RSL!B102 -> 226,843 | C102: =B102/(SUM('Pop-Aust'!AZ106:BN106)) -> 0.01510578002 | D102: =[5]Scouts!B102 -> 71,344 | E102: =D102/(SUM('Pop-Aust'!D106:F106)) -> 0.03498985528 | F102: =[5]Scouts!C102 -> 18,251 | G102: =F102/(SUM('Pop-Aust'!BB106:BF106)) -> 0.002559039413 | H102: =[5]Guides!B102 -> 40,695 | I102: =H102/(SUM('Pop-Aust'!AA106:AC106)) -> 0.02099211231 | J102: =[5]Guides!D102 -> 6,081 | K102: =J102/(SUM('Pop-Aust'!BB106:BF106)) -> 0.000852622409 | L102: =[5]Rotary!D101 -> 38,123 | M102: =L102/(SUM('Pop-Aust'!AZ106:BN106)) -> 0.002538661768 | N102: ='[5]Moth Un'!B102 -> 10,278 | O102: =N102/(SUM('Pop-Aust'!AD106:AH106)) -> 0.00288149535 | P102: ='[5]Ath Aus'!D102 -> 14,187 | Q102: =P102/(SUM('Pop-Aust'!AX106:BN106)) -> 0.0008031498943 | R102: =[5]Lions!E102 -> 26,733 | S102: =R102/(SUM('Pop-Aust'!AZ106:BN106)) -> 0.001780186372 | T102: =[5]Apex!D102 -> 4,623 | U102: =T102/(SUM('Pop-Aust'!AZ106:BN106)) -> 0.0003078517786 | V102: =[5]ALA!D102 -> 83,992 | W102: =V102/(SUM('Pop-Aust'!AX106:AZ106)) -> 0.02111634656 | AB102: =[5]Greenpeace!B102 -> 65,090 | AC102: =AB102/(SUM('Pop-Aust'!AZ106:BN106)) -> 0.004334430514 | AE102: ='Pop-Aust'!BQ106-(SUM('Pop-Aust'!AW106:AY106)) -> 15016967 | AG102: 48.04871
A103: 2000 | B103: =[5]RSL!B103 -> 220,600 | C103: =B103/(SUM('Pop-Aust'!AZ107:BN107)) -> 0.01452528173 | D103: =[5]Scouts!B103 -> 69,383 | E103: =D103/(SUM('Pop-Aust'!D107:F107)) -> 0.03376211342 | F103: =[5]Scouts!C103 -> 17,757 | G103: =F103/(SUM('Pop-Aust'!BB107:BF107)) -> 0.002476296196 | H103: =[5]Guides!B103 -> 37,410 | I103: =H103/(SUM('Pop-Aust'!AA107:AC107)) -> 0.01909454787 | J103: =[5]Guides!D103 -> 5,590 | K103: =J103/(SUM('Pop-Aust'!BB107:BF107)) -> 0.000779551486 | L103: =[5]Rotary!D102 -> 37,664 | M103: =L103/(SUM('Pop-Aust'!AZ107:BN107)) -> 0.002479964692 | N103: ='[5]Moth Un'!B103 -> 10,270 | O103: =N103/(SUM('Pop-Aust'!AD107:AH107)) -> 0.002879546361 | P103: ='[5]Ath Aus'!D103 -> 13,615 | Q103: =P103/(SUM('Pop-Aust'!AX107:BN107)) -> 0.0007616754903 | R103: =[5]Lions!E103 -> 28,551 | S103: =R103/(SUM('Pop-Aust'!AZ107:BN107)) -> 0.001879924382 | T103: =[5]Apex!D103 -> 4,514 | U103: =T103/(SUM('Pop-Aust'!AZ107:BN107)) -> 0.0002972217666 | V103: =[5]ALA!D103 -> 92,309 | W103: =V103/(SUM('Pop-Aust'!AX107:AZ107)) -> 0.02299531195 | Z103: =[5]ACF!B103 -> 21,636 | AA103: =Z103/(SUM('Pop-Aust'!AZ107:BN107)) -> 0.001424610133 | AB103: =[5]Greenpeace!B103 -> 94,146 | AC103: =AB103/(SUM('Pop-Aust'!AZ107:BN107)) -> 0.006198989907 | AE103: ='Pop-Aust'!BQ107-(SUM('Pop-Aust'!AW107:AY107)) -> 15187313 | AG103: 46.24601
A104: 2001 | B104: =[5]RSL!B104 -> 214,647 | C104: =B104/(SUM('Pop-Aust'!AZ108:BN108)) -> 0.01391458677 | D104: =[5]Scouts!B104 -> 67,764 | E104: =D104/(SUM('Pop-Aust'!D108:F108)) -> 0.03261740683 | F104: =[5]Scouts!C104 -> 17,299 | G104: =F104/(SUM('Pop-Aust'!BB108:BF108)) -> 0.002401387833 | H104: =[5]Guides!B104 -> 33,556 | I104: =H104/(SUM('Pop-Aust'!AA108:AC108)) -> 0.01694703908 | J104: =[5]Guides!D104 -> 5,014 | K104: =J104/(SUM('Pop-Aust'!BB108:BF108)) -> 0.0006960401602 | L104: =[5]Rotary!D103 -> 36,915 | M104: =L104/(SUM('Pop-Aust'!AZ108:BN108)) -> 0.002393031213 | N104: ='[5]Moth Un'!B104 -> 9,885 | O104: =N104/(SUM('Pop-Aust'!AD108:AH108)) -> 0.002758788913 | P104: 13,297 | Q104: =P104/(SUM('Pop-Aust'!AX108:BN108)) -> 0.0007333895431 | R104: =[5]Lions!E104 -> 27,850 | S104: =R104/(SUM('Pop-Aust'!AZ108:BN108)) -> 0.001805388576 | T104: =[5]Apex!D104 -> 4,329 | U104: =T104/(SUM('Pop-Aust'!AZ108:BN108)) -> 0.0002805969282 | V104: =[5]ALA!D104 -> 96,894 | W104: =V104/(SUM('Pop-Aust'!AX108:AZ108)) -> 0.02387971567 | X104: 8000 | Y104: =X104/(SUM('Pop-Aust'!AC108:AQ108)) -> 0.001020439141 | Z104: =[5]ACF!B104 -> 20,198 | AA104: =Z104/(SUM('Pop-Aust'!AZ108:BN108)) -> 0.001309344289 | AB104: =[5]Greenpeace!B104 -> 119,873 | AC104: =AB104/(SUM('Pop-Aust'!AZ108:BN108)) -> 0.007770820279 | AE104: ='Pop-Aust'!BQ108-(SUM('Pop-Aust'!AW108:AY108)) -> 15426042 | AG104: 43.21362
A105: 2002 | B105: =[5]RSL!B105 -> 212,074 | C105: =B105/(SUM('Pop-Aust'!AZ109:BN109)) -> 0.01354442317 | D105: =[5]Scouts!B105 -> 63,739 | E105: =D105/(SUM('Pop-Aust'!D109:F109)) -> 0.03047907507 | F105: =[5]Scouts!C105 -> 16,233 | G105: =F105/(SUM('Pop-Aust'!BB109:BF109)) -> 0.002239785815 | H105: =[5]Guides!B105 -> 33,556 | I105: =H105/(SUM('Pop-Aust'!AA109:AC109)) -> 0.01683968428 | J105: =[5]Guides!D105 -> 5,014 | K105: =J105/(SUM('Pop-Aust'!BB109:BF109)) -> 0.0006918320739 | L105: =[5]Rotary!D104 -> 36,849 | M105: =L105/(SUM('Pop-Aust'!AZ109:BN109)) -> 0.002353416493 | N105: ='[5]Moth Un'!B105 -> 9,557 | O105: =N105/(SUM('Pop-Aust'!AD109:AH109)) -> 0.00265190163 | P105: 14,819 | Q105: =P105/(SUM('Pop-Aust'!AX109:BN109)) -> 0.0008064592493 | R105: =[5]Lions!E105 -> 27,896 | S105: =R105/(SUM('Pop-Aust'!AZ109:BN109)) -> 0.001781619759 | T105: =[5]Apex!D105 -> 4,214 | V105: =[5]ALA!D105 -> 94,000 | Z105: =[5]ACF!B105 -> 19,005 | AB105: =[5]Greenpeace!B105 -> 130,231 | AC105: =AB105/(SUM('Pop-Aust'!AZ109:BN109)) -> 0.008317397578 | AG105: 41.8831
A106: 2003 | B106: =[5]RSL!B106 -> 208,772 | C106: =B106/(SUM('Pop-Aust'!AZ110:BN110)) -> 0.01313489268 | D106: =[5]Scouts!B106 -> 55,519 | E106: =D106/(SUM('Pop-Aust'!D110:F110)) -> 0.02642814267 | F106: =[5]Scouts!C106 -> 14,527 | G106: =F106/(SUM('Pop-Aust'!BB110:BF110)) -> 0.001992862624 | H106: =[5]Guides!B106 -> 28,778 | I106: =H106/(SUM('Pop-Aust'!AA110:AC110)) -> 0.01437730595 | J106: =[5]Guides!D106 -> 4,300 | K106: =J106/(SUM('Pop-Aust'!BB110:BF110)) -> 0.0005899076399 | L106: =[5]Rotary!D105 -> 36,309 | M106: =L106/(SUM('Pop-Aust'!AZ110:BN110)) -> 0.002284381135 | N106: ='[5]Moth Un'!B106 -> 9,408 | O106: =N106/(SUM('Pop-Aust'!AD110:AH110)) -> 0.002592934859 | P106: 16,411 | Q106: =P106/(SUM('Pop-Aust'!AX110:BN110)) -> 0.0008813404108 | R106: =[5]Lions!E106 -> 28,602 | S106: =R106/(SUM('Pop-Aust'!AZ110:BN110)) -> 0.001799495145 | AB106: =[5]Greenpeace!B106 -> 102,286 | AC106: =AB106/(SUM('Pop-Aust'!AZ110:BN110)) -> 0.006435324816 | AG106: 38.48083
A107: 2004 | B107: =[5]RSL!B107 -> 201,593 | C107: =B107/(SUM('Pop-Aust'!AZ111:BN111)) -> 0.01250637283 | D107: =[5]Scouts!B107 -> 51,108 | E107: =D107/(SUM('Pop-Aust'!D111:F111)) -> 0.02422820822 | F107: =[5]Scouts!C107 -> 13,835 | G107: =F107/(SUM('Pop-Aust'!BB111:BF111)) -> 0.001887723887 | H107: =[5]Guides!B107 -> 27,131 | I107: =H107/(SUM('Pop-Aust'!AA111:AC111)) -> 0.01350627699 | J107: =[5]Guides!D107 -> 4,054 | K107: =J107/(SUM('Pop-Aust'!BB111:BF111)) -> 0.0005531569948 | L107: =[5]Rotary!D106 -> 35,736 | M107: =L107/(SUM('Pop-Aust'!AZ111:BN111)) -> 0.002216980447 | N107: ='[5]Moth Un'!B107 -> 9,144 | O107: =N107/(SUM('Pop-Aust'!AD111:AH111)) -> 0.002507956674 | P107: 14,818 | Q107: =P107/(SUM('Pop-Aust'!AX111:BN111)) -> 0.0007860318251 | R107: =[5]Lions!E107 -> 28,880 | S107: =R107/(SUM('Pop-Aust'!AZ111:BN111)) -> 0.001791649746 | AB107: =[5]Greenpeace!B107 -> 89,975 | AC107: =AB107/(SUM('Pop-Aust'!AZ111:BN111)) -> 0.005581845079 | AG107: 36.63082
A108: 2005 | B108: =[5]RSL!B108 -> 202,957 | C108: =B108/(SUM('Pop-Aust'!AZ112:BN112)) -> 0.01239607688 | D108: =[5]Scouts!B108 -> 48,921 | E108: =D108/(SUM('Pop-Aust'!D112:F112)) -> 0.0230717426 | F108: =[5]Scouts!C108 -> 13,428 | G108: =F108/(SUM('Pop-Aust'!BB112:BF112)) -> 0.001819990868 | H108: =[5]Guides!B108 -> 25,936 | I108: =H108/(SUM('Pop-Aust'!AA112:AC112)) -> 0.01286637864 | J108: =[5]Guides!D108 -> 3,875 | K108: =J108/(SUM('Pop-Aust'!BB112:BF112)) -> 0.000525264165 | L108: =[5]Rotary!D107 -> 35,354 | M108: =L108/(SUM('Pop-Aust'!AZ112:BN112)) -> 0.002159328833 | N108: ='[5]Moth Un'!B108 -> 8,977 | O108: =N108/(SUM('Pop-Aust'!AD112:AH112)) -> 0.002444427199 | P108: 14,676 | Q108: =P108/(SUM('Pop-Aust'!AX112:BN112)) -> 0.0007680051845 | R108: =[5]Lions!E108 -> 28,554 | S108: =R108/(SUM('Pop-Aust'!AZ112:BN112)) -> 0.001744002814 | AB108: =[5]Greenpeace!B108 -> 91,173 | AC108: =AB108/(SUM('Pop-Aust'!AZ112:BN112)) -> 0.005568605751 | AG108: 35.3783
A109: 2006 | B109: =[5]RSL!B109 -> 194,425 | C109: =B109/(SUM('Pop-Aust'!AZ113:BN113)) -> 0.01167897637 | D109: =[5]Scouts!B109 -> 45,734 | E109: =D109/(SUM('Pop-Aust'!D113:F113)) -> 0.02144982105 | F109: =[5]Scouts!C109 -> 12,145 | G109: =F109/(SUM('Pop-Aust'!BB113:BF113)) -> 0.001631389519 | H109: =[5]Guides!B109 -> 26,107 | I109: =H109/(SUM('Pop-Aust'!AA113:AC113)) -> 0.01290233559 | J109: =[5]Guides!D109 -> 3,901 | K109: =J109/(SUM('Pop-Aust'!BB113:BF113)) -> 0.0005240111791 | L109: =[5]Rotary!D108 -> 34,422 | M109: =L109/(SUM('Pop-Aust'!AZ113:BN113)) -> 0.002067705926 | N109: ='[5]Moth Un'!B109 -> 8,503 | O109: =N109/(SUM('Pop-Aust'!AD113:AH113)) -> 0.002294011128 | P109: 14,333 | Q109: =P109/(SUM('Pop-Aust'!AX113:BN113)) -> 0.0007392794169 | R109: =[5]Lions!E109 -> 27,897 | S109: =R109/(SUM('Pop-Aust'!AZ113:BN113)) -> 0.001675753652 | AB109: =[5]Greenpeace!B109 -> 98,806 | AC109: =AB109/(SUM('Pop-Aust'!AZ113:BN113)) -> 0.005935208637 | AG109: 33.66127
A110: 2007 | B110: =[5]RSL!B110 -> 193,418 | C110: =B110/(SUM('Pop-Aust'!AZ114:BN114)) -> 0.01141800894 | D110: =[5]Scouts!B110 -> 47,902 | E110: =D110/(SUM('Pop-Aust'!D114:F114)) -> 0.02232235017 | F110: =[5]Scouts!C110 -> 11,846 | G110: =F110/(SUM('Pop-Aust'!BB114:BF114)) -> 0.0015753508 | H110: =[5]Guides!B110 -> 24,951 | I110: =H110/(SUM('Pop-Aust'!AA114:AC114)) -> 0.012252787 | J110: =[5]Guides!D110 -> 3,728 | K110: =J110/(SUM('Pop-Aust'!BB114:BF114)) -> 0.0004958072875 | L110: =[5]Rotary!D109 -> 33,950 | M110: =L110/(SUM('Pop-Aust'!AZ114:BN114)) -> 0.002004164057 | N110: ='[5]Moth Un'!B110 -> 8,386 | O110: =N110/(SUM('Pop-Aust'!AD114:AH114)) -> 0.002244101874 | P110: ='[5]Ath Aus'!D110 -> 14,493 | Q110: =P110/(SUM('Pop-Aust'!AX114:BN114)) -> 0.0007363692429 | R110: =[5]Lions!E110 -> 27,306 | S110: =R110/(SUM('Pop-Aust'!AZ114:BN114)) -> 0.001611950036 | AB110: =[5]Greenpeace!B110 -> 102,176 | AC110: =AB110/(SUM('Pop-Aust'!AZ114:BN114)) -> 0.006031736868 | AG110: 32.74952
A111: 2008 | B111: =[5]RSL!B111 -> 189,350 | C111: =B111/(SUM('Pop-Aust'!AZ115:BN115)) -> 0.01117786345 | D111: =[5]Scouts!B111 -> 48,837 | E111: =D111/(SUM('Pop-Aust'!D115:F115)) -> 0.02275806053 | F111: =[5]Scouts!C111 -> 12,051 | G111: =F111/(SUM('Pop-Aust'!BB115:BF115)) -> 0.001602612907 | H111: =[5]Guides!B111 -> 24,675 | I111: =H111/(SUM('Pop-Aust'!AA115:AC115)) -> 0.01211735224 | J111: =[5]Guides!D111 -> 3,687 | K111: =J111/(SUM('Pop-Aust'!BB115:BF115)) -> 0.0004903269392 | L111: =[5]Rotary!D110 -> 33,811 | M111: =L111/(SUM('Pop-Aust'!AZ115:BN115)) -> 0.001995958495 | N111: ='[5]Moth Un'!B111 -> 8,010 | O111: =N111/(SUM('Pop-Aust'!AD115:AH115)) -> 0.002143483903 | P111: ='[5]Ath Aus'!D111 -> 14,628 | Q111: =P111/(SUM('Pop-Aust'!AX115:BN115)) -> 0.0007432284058 | R111: =[5]Lions!E111 -> 26,934 | S111: =R111/(SUM('Pop-Aust'!AZ115:BN115)) -> 0.001589989829 | AB111: =[5]Greenpeace!B111 -> 100,972 | AC111: =AB111/(SUM('Pop-Aust'!AZ115:BN115)) -> 0.005960661359 | AG111: 32.46013
A112: 2009 | D112: =[5]Scouts!B112 -> 52,345 | E112: =D112/(SUM('Pop-Aust'!D116:F116)) -> 0.02439278986 | L112: =[5]Rotary!D111 -> 33,680 | M112: =L112/(SUM('Pop-Aust'!AZ116:BN116)) -> 0.001988225197 | N112: ='[5]Moth Un'!B112 -> 7,849 | P112: ='[5]Ath Aus'!D112 -> 15,566 | Q112: =P112/(SUM('Pop-Aust'!AX116:BN116)) -> 0.0007908868857 | R112: =[5]Lions!E112 -> 27,143 | S112: =R112/(SUM('Pop-Aust'!AZ116:BN116)) -> 0.001602327687 | AB112: =[5]Greenpeace!B112 -> 82,191 | AC112: =AB112/(SUM('Pop-Aust'!AZ116:BN116)) -> 0.004851966067 | AG112: 33.25234
A113: 2010

Sheet Numbers of orgs-Directory
A1: Year | B1: Estimated number of bodies listed in the Directory of Australian Associations | C1: Method | D1: Edition | E1: Population 15+ | F1: Associations per 100,000 people | G1: People per association
A2: 1978 | B2: 7075 | C2: 25/page * 283pp | D2: 1st | E2: 9824614 | F2: =B2/(E2/100000) -> 72.01300733 | G2: =E2/B2 -> 1388.638021
A3: 1979 | E3: 10010719 | G3: =E3/B3 -> 
A4: 1980 | E4: 10210180
A5: 1981 | B5: 10075 | C5: 25/page*403pp | D5: 2nd | E5: 10435446 | F5: =B5/(E5/100000) -> 96.54594542 | G5: 1035.776278
A6: 1982 | E6: 10682612
A7: 1983 | E7: 10882815
A8: 1984 | B8: 8820 | C8: Estimate | D8: 3rd | E8: 11066283 | F8: 79.70155833 | G8: 1254.680612
A9: 1985 | B9: 9560 | C9: 20/page*478pp | D9: 4th | E9: 11265963 | F9: 84.85737083 | G9: 1178.448013
A10: 1986 | E10: 11486396
A11: 1987 | B11: 5760 | C11: Estimate | D11: 5th | E11: 11722511 | F11: 49.13623028 | G11: 2035.15816
A12: 1988 | E12: 11974741
A13: 1989 | E13: 12253914
A14: 1990 | E14: 12502001
A15: 1991 | B15: 4749 | C15: Exact | D15: 11th | E15: 12711312 | F15: 37.36042353 | G15: 2676.629185
A16: 1992 | E16: 12908917
A17: 1993 | B17: 4631 | C17: Exact | D17: 16th | E17: 13073024 | F17: 35.42409163 | G17: 2822.937594
A18: 1994 | B18: 4725 | C18: Exact | D18: 19th | E18: 13241876 | F18: 35.68225529 | G18: 2802.513439
A19: 1995 | B19: 4818 | C19: Exact | D19: 22nd | E19: 13428949 | F19: 35.87771463 | G19: 2787.245538
A20: 1996 | B20: 4801 | C20: Exact | D20: 25th | E20: 13633892 | F20: 35.21371594 | G20: 2839.802541
A21: 1997 | B21: 4821 | C21: Exact | D21: 28th | E21: 13820418 | F21: 34.88317068 | G21: 2866.711886
A22: 1998 | B22: 5098 | C22: Exact | D22: 31st | E22: 13994021 | F22: 36.42984386 | G22: 2745.002158
A23: 1999 | E23: 14184920
A24: 2000 | E24: 14386460
A25: 2001 | B25: 5361 | C25: Exact | D25: 40th | E25: 14615047 | F25: 36.68137366 | G25: 2726.179258
A26: 2002 | B26: 5389 | C26: Exact | D26: 43rd | E26: 14839688 | F26: 36.31477966 | G26: 2753.699759
A27: 2003 | B27: 5348 | C27: Exact | D27: 46th | E27: 15074366 | G27: 2818.692221
A28: 2004 | E28: 15296231
A29: 2005 | E29: 15536081
A30: 2006 | B30: 4200 | C30: Exact | D30: 56th | E30: 15795674 | G30: 3760.874762
A31: 2007 | B31: 4277 | C31: Exact | D31: 58th | E31: 16120696 | G31: 3769.159691
A32: 2008 | B32: 4272 | C32: Exact | D32: 61st | E32: 16433324 | G32: 3846.751873
A33: 2009 | B33: 4386 | C33: Exact | D33: 63rd | E33: 16812886 | G33: 3833.307342
A34: 2010 | B34: 4301 | C34: Exact | D34: Online | E34: 17192448 | F34: =B34/(E34/100000) -> 25.01679807 | G34: 3997.314113

Sheet Ages of Orgs-Directory
A1: Founding dates - 1979 ed | B1: Age | C1: Before 1900 | D1: 1901-10 | E1: 1911-20 | F1: 1921-30 | G1: 1931-40 | H1: 1941-50 | I1: 1951-60 | J1: 1961-70 | K1: 1971-80 | L1: Median | M1: Median age | N1: Founding dates - 2002 ed | O1: Age | P1: Median | Q1: Median age | R1: Before 1900 | S1: 1901-10 | T1: 1911-20 | U1: 1921-30 | V1: 1931-40 | W1: 1941-50 | X1: 1951-60 | Y1: 1961-70 | Z1: 1971-80 | AA1: 1981-90 | AB1: 1991-2000
A2: 1843 | B2: =1979-A2 -> 136 | C2: =COUNTIF(A2:A144,">1890") -> 135 | D2: =COUNTIF(A2:A144,">1900") -> 128 | E2: =COUNTIF(A2:A144,">1910") -> 122 | F2: =COUNTIF(A2:A144,">1920") -> 113 | G2: =COUNTIF(A2:A144,">1930") -> 104 | H2: =COUNTIF(A2:A144,">1940") -> 93 | I2: =COUNTIF(A2:A144,">1950") -> 83 | J2: =COUNTIF(A2:A144,">1960") -> 64 | K2: =COUNTIF(A2:A144,">1970") -> 26 | L2: =MEDIAN(A2:A144) -> 1956.5 | M2: =1979-L2 -> 22.5 | N2: 1987 | O2: =2002-N2 -> 15 | P2: =MEDIAN(N2:N158) -> 1967 | Q2: =2002-P2 -> 35 | R2: =COUNTIF(N2:N158,">1890") -> 154 | S2: =COUNTIF(N2:N158,">1900") -> 149 | T2: =COUNTIF(N2:N158,">1910") -> 148 | U2: =COUNTIF(N2:N158,">1920") -> 141 | V2: =COUNTIF(N2:N158,">1930") -> 133 | W2: =COUNTIF(N2:N158,">1940") -> 119 | X2: =COUNTIF(N2:N158,">1950") -> 106 | Y2: =COUNTIF(N2:N158,">1960") -> 92 | Z2: =COUNTIF(N2:N158,">1970") -> 71 | AA2: =COUNTIF(N2:N158,">1980") -> 37 | AB2: =COUNTIF(N2:N158,">1990") -> 13
A3: 1854 | B3: =1979-A3 -> 125 | C3: =C2-D2 -> 7 | D3: =D2-E2 -> 6 | E3: =E2-F2 -> 9 | F3: 9 | G3: 11 | H3: 10 | I3: 19 | J3: 38 | K3: =K2 -> 26 | N3: 1965 | O3: =2002-N3 -> 37 | R3: =R2-S2 -> 5 | S3: 1 | T3: 7 | U3: 8 | V3: 14 | W3: 13 | X3: 14 | Y3: 21 | Z3: 34 | AA3: 24 | AB3: =AB2 -> 13
A4: 1860 | B4: 119 | C4: =C3/136 -> 0.05147058824 | D4: =D3/136 -> 0.04411764706 | E4: 0.06617647059 | F4: 0.06617647059 | G4: 0.08088235294 | H4: 0.07352941176 | I4: 0.1397058824 | J4: 0.2794117647 | K4: 0.1911764706 | N4: 1933 | O4: 69 | R4: =R3/154 -> 0.03246753247 | S4: =S3/154 -> 0.006493506494 | T4: 0.04545454545 | U4: 0.05194805195 | V4: 0.09090909091 | W4: 0.08441558442 | X4: 0.09090909091 | Y4: 0.1363636364 | Z4: 0.2207792208 | AA4: 0.1558441558 | AB4: 0.08441558442
A5: 1862 | B5: 117 | N5: 1961 | O5: 41
A6: 1881 | B6: 98 | C6: Age distribution of orgs | N6: 1935 | O6: 67 | P6: Age distribution of orgs
A7: 1885 | B7: 94 | C7: 1-10 | D7: 11-20 | E7: 21-30 | F7: 31-40 | G7: 41-50 | H7: 51-60 | I7: 61-70 | J7: 71-80 | K7: 81-90 | L7: 91-100 | M7: 100+ | N7: 1943 | O7: 59 | P7: 1-10 | Q7: 11-20 | R7: 21-30 | S7: 31-40 | T7: 41-50 | U7: 51-60 | V7: 61-70 | W7: 71-80 | X7: 81-90 | Y7: 91-100 | Z7: 100+
A8: 1886 | B8: 93 | C8: =COUNTIF(B2:B144,"<11")/COUNT(B2:B144) -> 0.2394366197 | D8: =(COUNTIF(B2:B144,"<21")-COUNTIF(B2:B144,"<11"))/COUNT(B2:B144) -> 0.2323943662 | E8: =(COUNTIF(B2:B144,"<31")-COUNTIF(B2:B144,"<21"))/COUNT(B2:B144) -> 0.1338028169 | F8: =(COUNTIF(B2:B144,"<41")-COUNTIF(B2:B144,"<31"))/COUNT(B2:B144) -> 0.07746478873 | G8: =(COUNTIF(B2:B144,"<51")-COUNTIF(B2:B144,"<41"))/COUNT(B2:B144) -> 0.07042253521 | H8: =(COUNTIF(B2:B144,"<61")-COUNTIF(B2:B144,"<51"))/COUNT(B2:B144) -> 0.05633802817 | I8: =(COUNTIF(B2:B144,"<71")-COUNTIF(B2:B144,"<61"))/COUNT(B2:B144) -> 0.05633802817 | J8: =(COUNTIF(B2:B144,"<81")-COUNTIF(B2:B144,"<71"))/COUNT(B2:B144) -> 0.03521126761 | K8: =(COUNTIF(B2:B144,"<91")-COUNTIF(B2:B144,"<81"))/COUNT(B2:B144) -> 0.04929577465 | L8: =(COUNTIF(B2:B144,"<101")-COUNTIF(B2:B144,"<91"))/COUNT(B2:B144) -> 0.02112676056 | M8: =COUNTIF(B2:B144,">100")/COUNT(B2:B144) -> 0.02816901408 | N8: 1973 | O8: 29 | P8: =COUNTIF(O2:O144,"<11")/COUNT(O2:O144) -> 0.06293706294 | Q8: =(COUNTIF(O2:O144,"<21")-COUNTIF(O2:O144,"<11"))/COUNT(O2:O144) -> 0.1538461538 | R8: =(COUNTIF(O2:O144,"<31")-COUNTIF(O2:O144,"<21"))/COUNT(O2:O144) -> 0.2167832168 | S8: =(COUNTIF(O2:O144,"<41")-COUNTIF(O2:O144,"<31"))/COUNT(O2:O144) -> 0.1398601399 | T8: =(COUNTIF(O2:O144,"<51")-COUNTIF(O2:O144,"<41"))/COUNT(O2:O144) -> 0.0979020979 | U8: =(COUNTIF(O2:O144,"<61")-COUNTIF(O2:O144,"<51"))/COUNT(O2:O144) -> 0.07692307692 | V8: =(COUNTIF(O2:O144,"<71")-COUNTIF(O2:O144,"<61"))/COUNT(O2:O144) -> 0.1118881119 | W8: =(COUNTIF(O2:O144,"<81")-COUNTIF(O2:O144,"<71"))/COUNT(O2:O144) -> 0.03496503497 | X8: =(COUNTIF(O2:O144,"<91")-COUNTIF(O2:O144,"<81"))/COUNT(O2:O144) -> 0.04895104895 | Y8: =(COUNTIF(O2:O144,"<101")-COUNTIF(O2:O144,"<91"))/COUNT(O2:O144) -> 0.01398601399 | Z8: =COUNTIF(O2:O144,">100")/COUNT(O2:O144) -> 0.04195804196
A9: 1891 | B9: 88 | N9: 1980 | O9: 22
A10: 1891 | B10: 88 | N10: 1986 | O10: 16
A11: 1894 | B11: 85 | N11: 1980 | O11: 22
A12: 1894 | B12: 85 | N12: 1930 | O12: 72
A13: 1895 | B13: 84 | N13: 1955 | O13: 47
A14: 1895 | B14: 84 | N14: 1899 | O14: 103
A15: 1897 | B15: 82 | N15: 1932 | O15: 70
A16: 1901 | B16: 78 | N16: 1976 | O16: 26
A17: 1901 | B17: 78 | N17: 1974 | O17: 28
A18: 1902 | B18: 77 | N18: 1987 | O18: 15
A19: 1902 | B19: 77 | N19: 1976 | O19: 26
A20: 1908 | B20: 71 | N20: 1959 | O20: 43
A21: 1910 | B21: 69 | N21: 1987 | O21: 15
A22: 1911 | B22: 68 | N22: 2000 | O22: 2
A23: 1912 | B23: 67 | N23: 1959 | O23: 43
A24: 1912 | B24: 67 | N24: 1954 | O24: 48
A25: 1912 | B25: 67 | N25: 1976 | O25: 26
A26: 1913 | B26: 66 | N26: 1933 | O26: 69
A27: 1913 | B27: 66 | N27: 1986 | O27: 16
A28: 1915 | B28: 64 | N28: 1965 | O28: 37
A29: 1920 | B29: 59 | N29: 1975 | O29: 27
A30: 1920 | B30: 59 | N30: 1991 | O30: 11
A31: 1922 | B31: 57 | N31: 1991 | O31: 11
A32: 1923 | B32: 56 | N32: 1982 | O32: 20
A33: 1924 | B33: 55 | N33: 1939 | O33: 63
A34: 1924 | B34: 55 | N34: 1942 | O34: 60
A35: 1925 | B35: 54 | N35: 1919 | O35: 83
A36: 1927 | B36: 52 | N36: 1933 | O36: 69
A37: 1929 | B37: 50 | N37: 1989 | O37: 13
A38: 1930 | B38: 49 | N38: 1913 | O38: 89
A39: 1930 | B39: 49 | N39: 1984 | O39: 18
A40: 1931 | B40: 48 | N40: 1983 | O40: 19
A41: 1932 | B41: 47 | N41: 1992 | O41: 10
A42: 1935 | B42: 44 | N42: 1921 | O42: 81
A43: 1936 | B43: 43 | N43: 1958 | O43: 44
A44: 1936 | B44: 43 | N44: 1968 | O44: 34
A45: 1937 | B45: 42 | N45: 1947 | O45: 55
A46: 1938 | B46: 41 | N46: 1992 | O46: 10
A47: 1939 | B47: 40 | N47: 1976 | O47: 26
A48: 1939 | B48: 40 | N48: 1975 | O48: 27
A49: 1940 | B49: 39 | N49: 1948 | O49: 54
A50: 1940 | B50: 39 | N50: 1969 | O50: 33
A51: 1945 | B51: 34 | N51: 1974 | O51: 28
A52: 1945 | B52: 34 | N52: 1971 | O52: 31
A53: 1946 | B53: 33 | N53: 1978 | O53: 24
A54: 1947 | B54: 32 | N54: 1968 | O54: 34
A55: 1948 | B55: 31 | N55: 1953 | O55: 49
A56: 1948 | B56: 31 | N56: 1974 | O56: 28
A57: 1948 | B57: 31 | N57: 1896 | O57: 106
A58: 1949 | B58: 30 | N58: 1989 | O58: 13
A59: 1949 | B59: 30 | N59: 1934 | O59: 68
A60: 1949 | B60: 30 | N60: 1967 | O60: 35
A61: 1951 | B61: 28 | N61: 1965 | O61: 37
A62: 1952 | B62: 27 | N62: 1968 | O62: 34
A63: 1952 | B63: 27 | N63: 1957 | O63: 45
A64: 1952 | B64: 27 | N64: 1950 | O64: 52
A65: 1953 | B65: 26 | N65: 1951 | O65: 51
A66: 1954 | B66: 25 | N66: 1983 | O66: 19
A67: 1955 | B67: =1979-A67 -> 24 | N67: 1979 | O67: =2002-N67 -> 23
A68: 1955 | B68: 24 | N68: 1953 | O68: 49
A69: 1955 | B69: 24 | N69: 1983 | O69: 19
A70: 1955 | B70: 24 | N70: 1954 | O70: 48
A71: 1956 | B71: 23 | N71: 1973 | O71: 29
A72: 1956 | B72: 23 | N72: 1941 | O72: 61
A73: 1957 | B73: 22 | N73: 1919 | O73: 83
A74: 1957 | B74: 22 | N74: 1949 | O74: 53
A75: 1958 | B75: 21 | N75: 1939 | O75: 63
A76: 1958 | B76: 21 | N76: 1874 | O76: 128
A77: 1960 | B77: 19 | N77: 1935 | O77: 67
A78: 1960 | B78: 19 | N78: 1891 | O78: 111
A79: 1960 | B79: 19 | N79: 1995 | O79: 7
A80: 1961 | B80: 18 | N80: 1874 | O80: 128
A81: 1961 | B81: 18 | N81: 1997 | O81: 5
A82: 1961 | B82: 18 | N82: 1960 | O82: 42
A83: 1961 | B83: 18 | N83: 1972 | O83: 30
A84: 1961 | B84: 18 | N84: 1981 | O84: 21
A85: 1962 | B85: 17 | N85: 1988 | O85: 14
A86: 1962 | B86: 17 | N86: 1967 | O86: 35
A87: 1962 | B87: 17 | N87: 1987 | O87: 15
A88: 1963 | B88: 16 | N88: 1980 | O88: 22
A89: 1964 | B89: 15 | N89: 1975 | O89: 27
A90: 1964 | B90: 15 | N90: 1978 | O90: 24
A91: 1964 | B91: 15 | N91: 1913 | O91: 89
A92: 1964 | B92: 15 | N92: 1949 | O92: 53
A93: 1964 | B93: 15 | N93: 1996 | O93: 6
A94: 1965 | B94: 14 | N94: 1961 | O94: 41
A95: 1966 | B95: 13 | N95: 1937 | O95: 65
A96: 1966 | B96: 13 | N96: 1986 | O96: 16
A97: 1966 | B97: 13 | N97: 1962 | O97: 40
A98: 1966 | B98: 13 | N98: 1972 | O98: 30
A99: 1966 | B99: 13 | N99: 1978 | O99: 24
A100: 1967 | B100: 12 | N100: 1954 | O100: 48
A101: 1967 | B101: 12 | N101: 1911 | O101: 91
A102: 1967 | B102: 12 | N102: 1950 | O102: 52
A103: 1967 | B103: 12 | N103: 1987 | O103: 15
A104: 1968 | B104: 11 | N104: 1962 | O104: 40
A105: 1968 | B105: 11 | N105: 1932 | O105: 70
A106: 1968 | B106: 11 | N106: 1923 | O106: 79
A107: 1968 | B107: 11 | N107: 1920 | O107: 82
A108: 1968 | B108: 11 | N108: 1975 | O108: 27
A109: 1968 | B109: 11 | N109: 1974 | O109: 28
A110: 1969 | B110: 10 | N110: 1954 | O110: 48
A111: 1969 | B111: 10 | N111: 1897 | O111: 105
A112: 1969 | B112: 10 | N112: 1970 | O112: 32
A113: 1970 | B113: 9 | N113: 1975 | O113: 27
A114: 1970 | B114: 9 | N114: 1983 | O114: 19
A115: 1970 | B115: 9 | N115: 1962 | O115: 40
A116: 1970 | B116: 9 | N116: 1990 | O116: 12
A117: 1970 | B117: 9 | N117: 1972 | O117: 30
A118: 1971 | B118: 8 | N118: 1980 | O118: 22
A119: 1971 | B119: 8 | N119: 1964 | O119: 38
A120: 1971 | B120: 8 | N120: 1993 | O120: 9
A121: 1971 | B121: 8 | N121: 1965 | O121: 37
A122: 1971 | B122: 8 | N122: 1964 | O122: 38
A123: 1971 | B123: 8 | N123: 1908 | O123: 94
A124: 1971 | B124: 8 | N124: 1912 | O124: 90
A125: 1971 | B125: 8 | N125: 1972 | O125: 30
A126: 1971 | B126: 8 | N126: 1922 | O126: 80
A127: 1972 | B127: 7 | N127: 1943 | O127: 59
A128: 1972 | B128: 7 | N128: 1982 | O128: 20
A129: 1972 | B129: 7 | N129: 1980 | O129: 22
A130: 1972 | B130: 7 | N130: 1923 | O130: 79
A131: 1973 | B131: =1979-A131 -> 6 | N131: 1965 | O131: =2002-N131 -> 37
A132: 1973 | B132: 6 | N132: 1933 | O132: 69
A133: 1973 | B133: 6 | N133: 2000 | O133: 2
A134: 1973 | B134: 6 | N134: 1974 | O134: 28
A135: 1973 | B135: 6 | N135: 1973 | O135: 29
A136: 1973 | B136: 6 | N136: 1941 | O136: 61
A137: 1974 | B137: 5 | N137: 1932 | O137: 70
A138: 1974 | B138: 5 | N138: 1982 | O138: 20
A139: 1975 | B139: 4 | N139: 1935 | O139: 67
A140: 1977 | B140: 2 | N140: 1949 | O140: 53
A141: 1977 | B141: 2 | N141: 1930 | O141: 72
A142: 1977 | B142: 2 | N142: 1993 | O142: 9
A143: 1978 | B143: 1 | N143: 1966 | O143: 36
N144: 1969 | O144: 33
N145: 1995 | O145: 7
N146: 1974 | O146: 28
N147: 1980 | O147: 22
N148: 1891 | O148: 111
N149: 1990 | O149: 12
N150: 1999 | O150: 3
N151: 1983 | O151: 19
N152: 1955 | O152: 47
N153: 1989 | O153: 13
N154: 1840 | O154: 162
N155: 1945 | O155: 57
N156: 1923 | O156: 79
N157: 1978 | O157: 24
N158: 1929 | O158: 73

Sheet Volunteering data
A1: Volunteering
A2: Sources:
A3: Australian 1995, 2000 & 2006 figures from Australian Bureau of Statistics, 2006, "Voluntary Work: Australia, Cat No 4441.0, 2000", Appendix Tables
A4: Australian 1992 and 1997 figures from Australian Bureau of Statistics, 1998, "How Australians Use Their Time 1997", Cat No 4153.0, Table 3, p.22.
A5: Victorian 1982 figure from Australian Bureau of Statistics, 1983, "Provision of Welfare Services by Volunteers - Victoria, 1982", Cat No 4401.2, Table 1
A6: Queensland 1982 figure from Australian Bureau of Statistics, 1984, "Provision of Welfare Services by Volunteers - Queensland 1982", Cat No 4401.3, Table 1
A7: Australian 2002 figure from Australian Bureau of Statistics, General Social Survey Summary Results Australia 2002, 4159.0, Table 24, p.42 | P7: HILDA data are from author's tabulations. Note that I don't use 2001, since respondents could only answer a number of hours (not minutes). This makes it tricky to compare with subsequent years.
B9: Any volunteering in previous 12 months (Queensland) | C9: Any volunteering in previous 12 months (Victoria) | D9: Any volunteering in previous 12 months (Australia) | E9: Any volunteering in time diary period (Australia) | F9: Combined volunteering rates | H9: Total volunteer hours | I9: Total adults | J9: Avg vol hrs | P9: HILDA - average hours per week in a typical week | Q9: HILDA - share who do >1 hour per week
A10: 1982 | B10: 0.286 | C10: 0.282 | F10: =AVERAGE(B10,C10)/1.08 -> 26% | G10: Note: Scaled down by the ratio of Qld & Vic to Aust volunteering rates in 1995.
A11: 1983
A12: 1984
A13: 1985
A14: 1986
A15: 1987
A16: 1988
A17: 1989
A18: 1990
A19: 1991
A20: 1992 | E20: 0.224 | F20: =E20 -> 22%
A21: 1993
A22: 1994
A23: 1995 | D23: 0.236 | F23: =D23 -> 24% | H23: 511.7 | I23: 13,428,949 | J23: =H23*1000000/I23 -> 38
A24: 1996 | I24: 13,633,892
A25: 1997 | E25: 0.198 | F25: =E25 -> 20% | I25: 13,820,418
A26: 1998 | I26: 13,994,021
A27: 1999 | I27: 14,184,920
A28: 2000 | D28: 0.318 | F28: =D28 -> 32% | H28: 704.1 | I28: 14,386,460 | J28: =H28*1000000/I28 -> 49
A29: 2001 | I29: 14,615,047
A30: 2002 | D30: 0.344 | F30: =D30 -> 34% | I30: 14,839,688 | P30: 0.93 | Q30: 19.2%
A31: 2003 | I31: 15,074,366 | P31: 0.97 | Q31: 20.7%
A32: 2004 | I32: 15,296,231 | P32: 1.02 | Q32: 20.3%
A33: 2005 | I33: 15,536,081 | P33: 0.89 | Q33: 18.1%
A34: 2006 | D34: 0.351 | F34: =D34 -> 35% | H34: 729.9 | I34: 15,795,674 | J34: 46 | P34: 0.94 | Q34: 18.9%
A35: 2007 | P35: 0.96 | Q35: 17.8%
A36: 2008
A37: 2009
A38: 2010

Sheet Donations data
A1: Charitable Donations
A2: Sources:
A3: Adapted and extended from data in "An Examination of Tax-Deductible Donations Made by Individual Taxpayers in Australia for 1999/2000", Working Paper No. CPNS14, Dr Myles McGregor-Lowndes, Stephen Marsden and Ted Flack, Queensland University of Technology, Table 1
A4: For the most recent data, see Australian Taxation Office, Taxation Statistics 2000-01, Personal Tax Tables 5B (total income) and 5C (gifts and donations).
A5: Reporting gap is based on Australian Bureau of Statistics, 2001, "Voluntary Work: Australia, Cat No 4441.0, 2000", Table 23, which found that 74.2% of Australians aged 18 and over reported that they donated money to charity in the previous 12 months.
A7: CalendarYear | B7: Financial year | C7: Number of taxpayers | D7: Number of taxpayers claiming a deduction for gifts or donations | E7: Total Tax-Deductible Donations (in $ millions) | F7: Total "Other Deduction" from 1988-89 to 1991-92 ($M) | G7: Total taxable income before deductions ($M) | H7: Fraction of taxpayers who donate to charity (left scale) | I7: Total donations as a fraction of total income (right scale) | J7: Note
A8: 1978 | B8: 1978-79 | C8: 7,011,138 | D8: 1,922,079 | E8: $58.69 | G8: $55,464.69 | H8: =D8/C8 -> 27.41% | I8: =E8/G8 -> 0.11%
A9: 1979 | B9: 1979-80 | C9: 7,145,689 | D9: 2,147,833 | E9: $94.55 | G9: $66,515.22 | H9: 30.06% | I9: 0.14%
A10: 1980 | B10: 1980-81 | C10: 7,331,740 | D10: 2,378,045 | E10: $132.14 | G10: $77,549.12 | H10: 32.43% | I10: 0.17%
A11: 1981 | B11: 1981-82 | C11: 7,368,239 | D11: 2,703,436 | E11: $152.24 | G11: $89,845.02 | H11: 36.69% | I11: 0.17%
A12: 1982 | B12: 1982-83 | C12: 7,539,797 | D12: 3,069,278 | E12: $199.69 | G12: $97,874.56 | H12: 40.71% | I12: 0.20%
A13: 1983 | B13: 1983-84 | C13: 7,605,829 | D13: 2,952,990 | E13: $190.88 | G13: $106,039.81 | H13: 38.83% | I13: 0.18%
A14: 1984 | B14: 1984-85 | C14: 7,814,925 | D14: 3,080,365 | E14: $215.73 | G14: $116,718.99 | H14: 39.42% | I14: 0.18%
A15: 1985 | B15: 1985-86 | C15: 8,200,614 | D15: 3,288,742 | E15: $244.25 | G15: $132,401.81 | H15: 40.10% | I15: 0.18%
A16: 1986 | B16: 1986-87 | C16: 8,343,794 | D16: 2,997,566 | E16: $263.49 | G16: $146,023.69 | H16: 35.93% | I16: 0.18%
A17: 1987 | B17: 1987-88 | C17: 8,874,212 | D17: 3,053,149 | E17: $277.65 | G17: $168,689.90 | H17: 34.40% | I17: 0.16%
A18: 1988 | B18: 1988-89 | G18: $192,708.00 | J18: Not available
A19: 1989 | B19: 1989-90 | E19: =F19*((E22+E23)/(E22+E23+F22+F23)) -> $298.47 | F19: $1,003.00 | G19: $204,051.00 | I19: =E19/G19 -> 0.15% | J19: Imputed
A20: 1990 | B20: 1990-91 | E20: =F20*((E22+E23)/(E22+E23+F22+F23)) -> $335.97 | F20: $1,129.00 | G20: $205,281.00 | I20: 0.16% | J20: Imputed
A21: 1991 | B21: 1991-92 | E21: =F21*((E22+E23)/(E22+E23+F22+F23)) -> $416.02 | F21: $1,398.00 | G21: $207,694.00 | I21: 0.20% | J21: Imputed
A22: 1992 | B22: 1992-93 | C22: 9,272,971 | D22: 3,134,553 | E22: $439.00 | F22: $1,009.00 | G22: $213,286.00 | H22: =D22/C22 -> 33.80% | I22: 0.21%
A23: 1993 | B23: 1993-94 | C23: 9,391,090 | D23: 3,156,223 | E23: $471.00 | F23: $1,139.00 | G23: $234,246.00 | H23: 33.61% | I23: 0.20%
A24: 1994 | B24: 1994-95 | C24: 9,619,010 | D24: 3,170,370 | E24: $495.00 | G24: $249,308.00 | H24: 32.96% | I24: 0.20%
A25: 1995 | B25: 1995-96 | C25: 9,851,521 | D25: 3,201,891 | E25: $528.00 | G25: $274,678.84 | H25: 32.50% | I25: 0.19%
A26: 1996 | B26: 1996-97 | C26: 9,861,063 | D26: 3,150,500 | E26: $541.00 | G26: $290,027.34 | H26: 31.95% | I26: 0.19%
A27: 1997 | B27: 1997-98 | C27: 9,805,575 | D27: 3,200,513 | E27: $580.51 | G27: $306,426.38 | H27: 32.64% | I27: 0.19%
A28: 1998 | B28: 1998-99 | C28: 9,755,392 | D28: 3,260,758 | E28: $631.87 | G28: $304,101.97 | H28: 33.43% | I28: 0.21%
A29: 1999 | B29: 1999-2000 | C29: 10,135,834 | D29: 3,350,557 | E29: $702.54 | G29: $328,698.70 | H29: 33.06% | I29: 0.21%
A30: 2000 | B30: 2000-01 | C30: 10,273,479 | D30: 3,446,563 | E30: $838.15 | G30: $349,768.85 | H30: 33.55% | I30: 0.24%

Sheet Blood donations
A1: tax year | B1: calendar year | C1: donor | D1: donations | E1: adults 15+ | F1: Donations/adults | G1: Donors/adults | H1: source
A2: 1988/89 | B2: 1989 | D2: 984357 | E2: 13089498 | F2: =D2/E2 -> 0.075
A3: 1989/90 | B3: 1990 | D3: 973126 | E3: 13310134 | F3: =D3/E3 -> 0.073 | H3: Australian Red Cross Society Annual Report of the National Blood Transfusion Committee 1989/90; East Melb; p20
B4: 1991 | E4: 13498506
A5: 1991/92 | B5: 1992 | D5: 965980 | E5: 13678327 | F5: =D5/E5 -> 0.071
A6: 1992/93 | B6: 1993 | D6: 944307 | E6: 13829567 | F6: =D6/E6 -> 0.068 | H6: Annual Report of the National Blood Transfusion Committee 1992/93; Australian Red Cross East Melb; p20
B7: 1994 | E7: 13994701
A8: 1994/95 | B8: 1995 | D8: 905164 | E8: 14183640 | F8: =D8/E8 -> 0.064 | H8: Australian Red Cross Annual Report 2004/05; p9 table 1.5
A9: 1995/96 | B9: 1996 | D9: 904770 | E9: 14399399 | F9: 0.063
A10: 1996/97 | B10: 1997 | C10: 443554 | D10: 992911 | E10: 14604610 | F10: 0.068 | G10: =C10/E10 -> 0.030
A11: 1997/98 | B11: 1998 | C11: 473491 | D11: 940125 | E11: 14810586 | F11: 0.063 | G11: 0.032 | H11: Australian Red Cross Annual Report 1997/98; p6-8
A12: 1998/99 | B12: 1999 | C12: 464686 | D12: 964574 | E12: 15016967 | F12: 0.064 | G12: 0.031 | H12: Australian Red Cross Annual Report 1998/99; p12
A13: 1999/2000 | B13: 2000 | C13: 463648 | D13: 965821 | E13: 15187313 | F13: 0.064 | G13: 0.031 | H13: Australian Red Cross Annual Report 1999/2000; p14
A14: 2000/01 | B14: 2001 | D14: 972702 | E14: 15426042 | F14: 0.063 | G14: 0.000
A15: 2001/02 | B15: 2002 | C15: 453718 | D15: 976527 | E15: 15657662 | F15: 0.062 | G15: 0.029 | H15: Australian Red Cross Annual Report 2001/02
A16: 2002/03 | B16: 2003 | C16: 469409 | D16: 1037489 | E16: 15894458 | F16: 0.065 | G16: 0.030 | H16: Australian Red Cross Annual Report 2002/03; p18
A17: 2003/04 | B17: 2004 | C17: 455064 | D17: 1074711 | E17: 16119222 | F17: 0.067 | G17: 0.028 | H17: Australian Red Cross Annual Report 2003/04; p14
A18: 2004/05 | B18: 2005 | C18: 501000 | D18: 1116636 | E18: 16372680 | F18: 0.068 | G18: 0.031 | H18: Australian Red Cross Annual Report 2004/05; p14
A19: 2005/06 | B19: 2006 | C19: 512458 | D19: 1112590 | E19: 16647435 | F19: 0.067 | G19: 0.031 | H19: Australian Red Cross Annual Report 2007/08 ARCBS Annual Report; p39
A20: 2006/07 | B20: 2007 | C20: 452972 | D20: 1186104 | E20: 16939731 | F20: 0.070 | G20: 0.027
A21: 2007/08 | B21: 2008 | C21: 539982 | D21: 1200026 | E21: 16939731 | F21: 0.071 | G21: 0.032
B22: 2009 | E22: 16939731
B23: 2010 | E23: 16939731

Sheet Churchgoing
A1: Year | B1: No Religion | C1: Religion Not Stated | D1: No Religion or Religion Not Stated | E1: Share stating a religion | F1: Share stating a religion (interpolated) | G1: Share of adults attending weekly or more | H1: Share of adults attending monthly or more | I1: Attend weekly (interpolated) | J1: Attend monthly (interpolated) | K1: Nominals as a share of the population | L1: Nominals as a share of believers | M1: Share of believers attending weekly or more | N1: Share of believers attending monthly or more | O1: Catholic Sisters, Brothers and Priests | P1: Total population | Q1: Persons per Catholic Sisters, Brothers and Priests
A2: 1931 | P2: 6526500
A3: 1932 | P3: 6576800
A4: 1933 | B4: 0.20% | C4: 12.80% | D4: =B4+C4 -> 13.00% | E4: =1-D4 -> 87.00% | F4: 0.87 | P4: 6629800
A5: 1934 | F5: 0.87 | P5: 6677400
A6: 1935 | F6: 0.87 | P6: 6726200
A7: 1936 | F7: 0.87 | P7: 6778400
A8: 1937 | F8: 0.87 | P8: 6835600
A9: 1938 | F9: 0.88 | P9: 6898600
A10: 1939 | F10: 0.88 | P10: 6967800
A11: 1940 | F11: 0.88 | P11: 7039500
A12: 1941 | F12: 0.88 | P12: 7109900
A13: 1942 | F13: 0.88 | P13: 7180700
A14: 1943 | F14: 0.88 | P14: 7234900
A15: 1944 | F15: 0.88 | P15: 7309700
A16: 1945 | F16: 0.88 | P16: 7391700
A17: 1946 | F17: 0.89 | P17: 7465100
A18: 1947 | B18: 0.40% | C18: 10.88% | D18: =B18+C18 -> 11.28% | E18: =1-D18 -> 88.72% | F18: 0.89 | G18: 35.00% | I18: 35.00% | J18: 47.60% | M18: =I18/F18 -> 39.45% | N18: =J18/F18 -> 53.65% | P18: 7579400
A19: 1948 | F19: 0.89 | I19: 34.67% | J19: 47.40% | M19: =I19/F19 -> 38.98% | N19: =J19/F19 -> 53.29% | P19: 7708700
A20: 1949 | F20: 0.89 | I20: 34.33% | J20: 47.20% | M20: 38.51% | N20: =J20/F20 -> 52.94% | P20: 7908100
A21: 1950 | F21: 0.89 | H21: 47.00% | I21: 34.00% | J21: 47.00% | M21: 38.04% | N21: =J21/F21 -> 52.58% | P21: 8178700
A22: 1951 | F22: 0.90 | I22: 33.67% | J22: 46.80% | M22: 37.57% | N22: =J22/F22 -> 52.23% | O22: 13864 | P22: 8421700 | Q22: =P22/O22 -> 607.4509521
A23: 1952 | F23: 0.90 | I23: 33.33% | J23: 46.60% | M23: 37.11% | N23: 51.87% | P23: 8636500
A24: 1953 | F24: 0.90 | I24: 33.00% | J24: 46.40% | M24: 36.64% | N24: 51.52% | P24: 8815300
A25: 1954 | B25: 0.20% | C25: 9.52% | D25: =B25+C25 -> 9.72% | E25: =1-D25 -> 90.28% | F25: 0.90 | I25: 32.67% | J25: 46.20% | M25: 36.18% | N25: 51.17% | P25: 8986500
A26: 1955 | F26: 0.90 | I26: 32.33% | J26: 46.00% | M26: 35.88% | N26: 51.05% | P26: 9199700
A27: 1956 | F27: 0.90 | G27: 32.00% | I27: 32.00% | J27: 45.80% | M27: 35.58% | N27: 50.92% | P27: 9425500
A28: 1957 | F28: 0.90 | I28: 31.50% | J28: 45.60% | M28: 35.09% | N28: 50.79% | P28: 9640200
A29: 1958 | F29: 0.90 | I29: 31.00% | J29: 45.40% | M29: 34.60% | N29: 50.67% | P29: 9842400
A30: 1959 | F30: 0.89 | I30: 30.50% | J30: 45.20% | M30: 34.10% | N30: 50.54% | P30: 10056400
A31: 1960 | F31: 0.89 | G31: 30.00% | H31: 45.00% | I31: 30.00% | J31: 45.00% | M31: 33.61% | N31: 50.41% | P31: 10275000
A32: 1961 | B32: 0.40% | C32: 10.50% | D32: =B32+C32 -> 10.90% | E32: =1-D32 -> 89.10% | F32: 0.89 | G32: 29.00% | H32: 44.00% | I32: 29.00% | J32: 44.00% | M32: 32.55% | N32: 49.38% | P32: 10508200
A33: 1962 | F33: 0.89 | I33: 27.95% | J33: 42.26% | M33: 31.36% | N33: 47.42% | P33: 10700500
A34: 1963 | F34: 0.89 | I34: 26.89% | J34: 40.52% | M34: 30.17% | N34: 45.46% | P34: 10906900
A35: 1964 | F35: 0.89 | I35: 25.84% | J35: 38.79% | M35: 28.98% | N35: 43.50% | P35: 11121600
A36: 1965 | F36: 0.89 | I36: 24.79% | J36: 37.05% | M36: 27.80% | N36: 41.54% | P36: 11340900
A37: 1966 | B37: 0.80% | C37: 10.00% | D37: =B37+C37 -> 10.80% | E37: =1-D37 -> 89.20% | F37: 0.89 | G37: 23.74% | H37: 35.31% | I37: 23.74% | J37: 35.31% | M37: 26.61% | N37: 39.59% | O37: 19413 | P37: 11599498 | Q37: =P37/O37 -> 597.5118735
A38: 1967 | F38: 0.89 | I38: 24.05% | J38: 35.48% | M38: 27.09% | N38: 39.96% | P38: 11799078
A39: 1968 | F39: 0.88 | I39: 24.37% | J39: 35.66% | M39: 27.57% | N39: 40.33% | P39: 12008635
A40: 1969 | F40: 0.88 | I40: 24.68% | J40: 35.83% | M40: 28.05% | N40: 40.71% | P40: 12263014
A41: 1970 | F41: 0.88 | G41: 25.00% | H41: 36.00% | I41: 25.00% | J41: 36.00% | M41: 28.54% | N41: 41.10% | P41: 12507349
A42: 1971 | B42: 6.70% | C42: 6.10% | D42: =B42+C42 -> 12.80% | E42: =1-D42 -> 87.20% | F42: 0.87 | G42: 21.00% | H42: 33.00% | I42: 21.00% | J42: 33.00% | M42: 24.08% | N42: 37.84% | O42: 18637 | P42: 13067265 | Q42: =P42/O42 -> 701.1463755
A43: 1972 | F43: 0.86 | G43: 21.00% | H43: 31.00% | I43: 21.00% | J43: 31.00% | M43: 24.49% | N43: 36.16% | P43: 13303664
A44: 1973 | F44: 0.84 | G44: 23.00% | H44: 35.00% | I44: 23.00% | J44: 35.00% | M44: 27.29% | N44: 41.53% | P44: 13504538
A45: 1974 | F45: 0.83 | I45: 22.00% | J45: 33.00% | M45: 26.56% | N45: 39.85% | P45: 13722571
A46: 1975 | F46: 0.81 | I46: 21.00% | J46: 31.00% | M46: 25.81% | N46: 38.10% | P46: 13892995
A47: 1976 | B47: 8.30% | C47: 11.80% | D47: =B47+C47 -> 20.10% | E47: =1-D47 -> 79.90% | F47: 0.80 | G47: 20.00% | H47: 29.00% | I47: 20.00% | J47: 29.00% | M47: 25.03% | N47: 36.30% | O47: 17029 | P47: 14033083 | Q47: =P47/O47 -> 824.0697046
A48: 1977 | F48: 0.80 | I48: 19.50% | J48: 28.75% | M48: 24.50% | N48: 36.13% | P48: 14192234
A49: 1978 | F49: 0.79 | G49: 19.00% | I49: 19.00% | J49: 28.50% | M49: 23.97% | N49: 35.96% | P49: 14359255
A50: 1979 | F50: 0.79 | I50: 19.00% | J50: 28.25% | M50: 24.07% | N50: 35.79% | P50: 14515729
A51: 1980 | F51: 0.79 | G51: 19.00% | H51: 28.00% | I51: 19.00% | J51: 28.00% | M51: 24.17% | N51: 35.61% | P51: 14695356
A52: 1981 | B52: 10.80% | C52: 10.90% | D52: =B52+C52 -> 21.70% | E52: =1-D52 -> 78.30% | F52: 0.78 | G52: 22.00% | H52: 31.00% | I52: 22.00% | J52: 31.00% | M52: 28.10% | N52: 39.59% | P52: 14923260
A53: 1982 | F53: 0.78 | I53: 21.27% | J53: 29.50% | M53: 27.36% | N53: 37.96% | P53: 15184247
A54: 1983 | F54: 0.77 | H54: 28.00% | I54: 20.53% | J54: 28.00% | M54: 26.62% | N54: 36.30% | O54: 14603 | P54: 15393472 | Q54: =P54/O54 -> 1054.130795
A55: 1984 | F55: 0.77 | I55: 19.80% | J55: 27.01% | M55: 25.86% | N55: 35.28% | P55: 15579391
A56: 1985 | F56: 0.76 | I56: 19.06% | J56: 26.02% | M56: 25.09% | N56: 34.25% | P56: 15788312
A57: 1986 | B57: 12.70% | C57: 11.90% | D57: =B57+C57 -> 24.60% | E57: =1-D57 -> 75.40% | F57: 0.75 | I57: 18.33% | J57: 25.03% | M57: 24.31% | N57: 33.20% | P57: 16018350
A58: 1987 | F58: 0.76 | G58: 17.60% | H58: 24.04% | I58: 17.60% | J58: 24.04% | M58: 23.26% | N58: 31.79% | P58: 16263874
A59: 1988 | F59: 0.76 | I59: 17.05% | J59: 23.13% | M59: 22.47% | N59: 30.48% | P59: 16532164
A60: 1989 | F60: 0.76 | I60: 16.50% | J60: 22.22% | M60: 21.68% | N60: 29.19% | P60: 16814416
A61: 1990 | F61: 0.76 | G61: 15.95% | H61: 21.31% | I61: 15.95% | J61: 21.31% | M61: 20.89% | N61: 27.90% | O61: 13047 | P61: 17065128 | Q61: =P61/O61 -> 1307.973327
A62: 1991 | B62: 12.90% | C62: 10.50% | D62: =B62+C62 -> 23.40% | E62: =1-D62 -> 76.60% | F62: 0.77 | I62: 15.58% | J62: 20.96% | M62: 20.33% | N62: 27.37% | P62: 17284036
A63: 1992 | F63: 0.76 | I63: 15.20% | J63: 20.62% | M63: 19.96% | N63: 27.08% | P63: 17494664
A64: 1993 | F64: 0.76 | G64: 14.82% | H64: 20.28% | I64: 14.82% | J64: 20.28% | M64: 19.57% | N64: 26.78% | P64: 17667093
A65: 1994 | F65: 0.75 | I65: 14.70% | J65: 20.27% | M65: 19.53% | N65: 26.92% | P65: 17854738
A66: 1995 | F66: 0.75 | I66: 14.58% | J66: 20.26% | M66: 19.48% | N66: 27.07% | P66: 18071758
A67: 1996 | B67: 16.60% | C67: 9.00% | D67: =B67+C67 -> 25.60% | E67: =1-D67 -> 74.40% | F67: 0.74 | G67: 14.46% | H67: 20.24% | I67: 14.46% | J67: 20.24% | M67: 19.44% | N67: 27.21% | P67: 18310714
A68: 1997 | F68: 0.74 | I68: 14.21% | J68: 19.80% | M68: 19.19% | N68: 26.72% | P68: 18524155
A69: 1998 | F69: 0.74 | G69: 13.97% | H69: 19.35% | I69: 13.97% | J69: 19.35% | M69: 18.94% | N69: 26.23% | P69: 18730359
A70: 1999 | F70: 0.73 | I70: 13.96% | J70: 19.15% | M70: 19.00% | N70: 26.08% | P70: 18937166
A71: 2000 | F71: 0.73 | I71: 13.94% | J71: 18.95% | M71: 19.07% | N71: 25.92% | P71: 19157140
A72: 2001 | B72: 15.50% | C72: 11.70% | D72: =B72+C72 -> 27.20% | E72: =1-D72 -> 72.80% | F72: 0.73 | G72: 13.93% | H72: 18.76% | I72: 13.93% | J72: 18.76% | M72: 19.14% | N72: 25.76% | P72: 19386663
A73: 2002 | F73: 0.72 | I73: 14.13% | J73: 19.14% | M73: 19.55% | N73: 26.48%
A74: 2003 | F74: 0.72 | I74: 14.33% | J74: 19.52% | M74: 19.98% | N74: 27.21%
A75: 2004 | F75: 0.71 | G75: 14.53% | H75: 19.90% | I75: 14.53% | J75: 19.90% | M75: 20.41% | N75: 27.95%
A76: 2005 | F76: 0.71 | I76: 14.06% | J76: 19.08% | M76: =I76/F76 -> 19.90% | N76: =J76/F76 -> 27.00%
A77: 2006 | B77: 18.70% | C77: 11.20% | D77: =B77+C77 -> 29.90% | E77: =1-D77 -> 70.10% | F77: 0.70 | I77: 13.58% | J77: 18.25% | M77: 19.38% | N77: 26.04%
A78: 2007 | F78: 0.70 | G78: 13.11% | H78: 17.43% | I78: 13.11% | J78: 17.43% | M78: 18.85% | N78: 25.06%
A79: 2008 | F79: 0.69 | I79: 12.64% | J79: 16.61% | M79: 18.31% | N79: 24.06%
A80: 2009 | F80: 0.68 | I80: 12.16% | J80: 15.78% | M80: 17.76% | N80: 23.05%
A81: 2010 | F81: 0.68 | I81: 11.69% | J81: 14.96% | M81: 17.21% | N81: 22.02%
D82: Change 1947-2007
D83: Weekly
D84: Total change | F84: =I78-I18 -> -21.9%
D85: Change due to disbelief | F85: =(F78-F18)*M18 -> -7.6%
D86: Remainder | F86: =F84-F85 -> -14.3%
D88: Monthly
D89: Total change | F89: =J78-J18 -> -30.2%
D90: Change due to disbelief | F90: =(F78-F18)*N18 -> -10.3%
D91: Remainder | F91: =F89-F90 -> -19.9%

Sheet Churchgoing-by denomination
A1: Fraction of adults belonging to a particular denomination who attend church at least monthly
A2: Source: P.Kaldor, J.Bellamy, R.Powell, K.Castle and B.Hughes, 1999, Build My Church: Trends and Possibilities for Australian Churches, Adelaide: Openbook, p.22 (precise annual data supplied by authors)
A3: This publication updated Kaldor, P. 1987, Who Goes Where?, Sydney, Lancer Books
A4: See also Wray Vamplew, 1987, Australians: Historical Statistics, Fairfax, Syme and Weldon: Sydney, pp.438-439, which differs for some years.
A5: 2001 and 2004 figures from Australian Election Studies.
B7: Anglican | C7: Catholic | D7: Uniting/Methodist/Presbyterian | E7: Other | F7: Average | I7: Anglican | J7: Catholic | K7: Uniting/Methodist/Presbyterian | L7: Other | M7: Average
A8: 1950 | B8: 34 | C8: 76 | D8: 43 | F8: 44 | H8: 1950 | I8: 0.34 | J8: 0.76 | K8: 0.43 | M8: 0.44
A9: 1951 | H9: 1951
A10: 1952 | H10: 1952
A11: 1953 | H11: 1953
A12: 1954 | H12: 1954
A13: 1955 | H13: 1955
A14: 1956 | H14: 1956
A15: 1957 | H15: 1957
A16: 1958 | H16: 1958
A17: 1959 | H17: 1959
A18: 1960 | B18: 31 | C18: 69 | D18: 44 | E18: 56 | H18: 1960 | I18: 0.31 | J18: 0.69 | K18: 0.44 | L18: 0.56
A19: 1961 | B19: 31 | C19: 66 | F19: 41 | H19: 1961 | I19: 0.31 | J19: 0.66 | M19: 0.41
A20: 1962 | H20: 1962
A21: 1963 | H21: 1963
A22: 1964 | H22: 1964
A23: 1965 | H23: 1965
A24: 1966 | H24: 1966
A25: 1967 | B25: 19 | C25: 61 | D25: 30 | E25: 58 | F25: 34 | H25: 1967 | I25: 0.19 | J25: 0.61 | K25: 0.3 | L25: 0.58 | M25: 0.34
A26: 1968 | H26: 1968
A27: 1969 | H27: 1969
A28: 1970 | B28: 22 | C28: 61 | D28: 32 | E28: 52 | F28: 36 | H28: 1970 | I28: 0.22 | J28: 0.61 | K28: 0.32 | L28: 0.52 | M28: 0.36
A29: 1971 | H29: 1971
A30: 1972 | H30: 1972
A31: 1973 | B31: 18 | C31: 54 | D31: 28 | E31: 47 | F31: 30 | H31: 1973 | I31: 0.18 | J31: 0.54 | K31: 0.28 | L31: 0.47 | M31: 0.3
A32: 1974 | H32: 1974
A33: 1975 | H33: 1975
A34: 1976 | B34: 17 | C34: 53 | D34: 25 | E34: 46 | F34: 29 | H34: 1976 | I34: 0.17 | J34: 0.53 | K34: 0.25 | L34: 0.46 | M34: 0.29
A35: 1977 | H35: 1977
A36: 1978 | H36: 1978
A37: 1979 | B37: 18 | C37: 57 | E37: 39 | F37: 28 | H37: 1979 | I37: 0.18 | J37: 0.57 | L37: 0.39 | M37: 0.28
A38: 1980 | B38: 16 | C38: 45 | D38: 25 | E38: 44 | F38: 25 | H38: 1980 | I38: 0.16 | J38: 0.45 | K38: 0.25 | L38: 0.44 | M38: 0.25
A39: 1981 | H39: 1981
A40: 1982 | H40: 1982
A41: 1983 | B41: 14 | C41: 44 | D41: 22 | E41: 42 | F41: 24 | H41: 1983 | I41: 0.14 | J41: 0.44 | K41: 0.22 | L41: 0.42 | M41: 0.24
A42: 1984 | H42: 1984
A43: 1985 | H43: 1985
A44: 1986 | H44: 1986
A45: 1987 | H45: 1987
A46: 1988 | H46: 1988
A47: 1989 | H47: 1989
A48: 1990 | B48: 15 | C48: 39 | D48: 25 | F48: 23 | H48: 1990 | I48: 0.15 | J48: 0.39 | K48: 0.25 | M48: 0.23
A49: 1991 | H49: 1991
A50: 1992 | H50: 1992
A51: 1993 | H51: 1993
A52: 1994 | H52: 1994
A53: 1995 | B53: 16 | C53: 38 | D53: 20 | E53: 52 | F53: 25 | H53: 1995 | I53: 0.16 | J53: 0.38 | K53: 0.2 | L53: 0.52 | M53: 0.25
A54: 1996 | H54: 1996
A55: 1997 | H55: 1997
A56: 1998 | B56: 11 | C56: 32 | D56: 21 | E56: 48 | F56: 20 | H56: 1998 | I56: 0.11 | J56: 0.32 | K56: 0.21 | L56: 0.48 | M56: 0.2
A57: 1999 | H57: 1999
A58: 2000 | H58: 2000
A59: 2001 | H59: 2001
A60: 2002 | H60: 2002
A61: 2003 | H61: 2003
A62: 2004 | B62: 12 | C62: 30.8 | D62: 23.5 | E62: 40.7 | F62: 20.6 | H62: 2004 | I62: 0.12 | J62: 0.308 | K62: 0.235 | L62: 0.407 | M62: 0.206
A63: 2005 | H63: 2005
A64: 2006 | H64: 2006
A65: 2007 | H65: 2007
A66: 2008 | H66: 2008
A67: 2009 | H67: 2009
A68: 2010 | H68: 2010

Sheet Churchgoing-by cohort
A1: The following data are tabulated from various Australian Election Studies | F1: Calculated from election studies
A2: Birth dates | B2: Survey year | C2: Attend weekly | D2: Attend monthly | E2: Sample size | F2: Birth cohort | G2: Survey | H2: Weekly | I2: Monthly | J2: Sample size | K2: Birth cohort | L2: Survey | M2: Weekly | N2: Monthly | O2: Sample size | P2: Birth cohort | Q2: Survey | R2: Weekly | S2: Monthly | T2: Sample size | U2: Birth cohort | V2: Survey | W2: Weekly | X2: Monthly | Y2: Sample size | Z2: Birth cohort | AA2: Survey | AB2: Weekly | AC2: Monthly | AD2: Sample size
A3: 1880-1899 | B3: 1967 | C3: 32% | D3: 42% | E3: 201 | F3: 1900-1919 | G3: 1967 | H3: 22% | I3: 33% | J3: 635 | K3: 1920-1939 | L3: 1967 | M3: 24% | N3: 36% | O3: 876 | P3: 1940-1959 | Q3: 1967 | R3: 21% | S3: 35% | T3: 307
F4: 1900-1919 | G4: 1987 | H4: 22% | I4: 29% | J4: 177 | K4: 1920-1939 | L4: 1987 | M4: 20% | N4: 26% | O4: 524 | P4: 1940-1959 | Q4: 1987 | R4: 17% | S4: 24% | T4: 757 | U4: 1960-1979 | V4: 1987 | W4: 12% | X4: 18% | Y4: 343
F5: 1900-1919 | G5: 1990 | H5: 22% | I5: 25% | J5: 165 | K5: 1920-1939 | L5: 1990 | M5: 19% | N5: 26% | O5: 570 | P5: 1940-1959 | Q5: 1990 | R5: 15% | S5: 20% | T5: 867 | U5: 1960-1979 | V5: 1990 | W5: 10% | X5: 15% | Y5: 393
F6: 1900-1919 | G6: 1993 | H6: 24% | I6: 31% | J6: 237 | K6: 1920-1939 | L6: 1993 | M6: 18% | N6: 22% | O6: 986 | P6: 1940-1959 | Q6: 1993 | R6: 13% | S6: 20% | T6: 1175 | U6: 1960-1979 | V6: 1993 | W6: 8% | X6: 13% | Y6: 511
F7: 1900-1919 | G7: 1996 | H7: 26% | I7: 29% | J7: 85 | K7: 1920-1939 | L7: 1996 | M7: 21% | N7: 26% | O7: 385 | P7: 1940-1959 | Q7: 1996 | R7: 13% | S7: 20% | T7: 689 | U7: 1960-1979 | V7: 1996 | W7: 9% | X7: 15% | Y7: 549
F8: 1900-1919 | G8: 1998 | H8: 22% | I8: 29% | J8: 55 | K8: 1920-1939 | L8: 1998 | M8: 22% | N8: 27% | O8: 403 | P8: 1940-1959 | Q8: 1998 | R8: 14% | S8: 19% | T8: 741 | U8: 1960-1979 | V8: 1998 | W8: 8% | X8: 14% | Y8: 543
K9: 1920-1939 | L9: 2001 | M9: 21% | N9: 25% | O9: 393 | P9: 1940-1959 | Q9: 2001 | R9: 16% | S9: 21% | T9: 752 | U9: 1960-1979 | V9: 2001 | W9: 8% | X9: 12% | Y9: 608 | Z9: 1980-1999 | AA9: 2001 | AB9: 10% | AC9: 13% | AD9: 97
K10: 1920-1939 | L10: 2004 | M10: 24% | N10: 28% | O10: 330 | P10: 1940-1959 | Q10: 2004 | R10: 14% | S10: 20% | T10: 665 | U10: 1960-1979 | V10: 2004 | W10: 10% | X10: 14% | Y10: 478 | Z10: 1980-1999 | AA10: 2004 | AB10: 7% | AC10: 14% | AD10: 138
K11: 1920-1939 | L11: 2007 | M11: 22% | N11: 28% | O11: 313 | P11: 1940-1959 | Q11: 2007 | R11: 13% | S11: 17% | T11: 747 | U11: 1960-1979 | V11: 2007 | W11: 9% | X11: 14% | Y11: 510 | Z11: 1980-1999 | AA11: 2007 | AB11: 8% | AC11: 10% | AD11: 165

Sheet Catholic clergy (by diocese)
A1: Year | B1: Catholics | C1: Total Population | D1: Percent Catholic | E1: Diocesan Priests | F1: Religious Priests | G1: Total Priests | H1: Catholics Per Priest | I1: Permanent Deacons | J1: Male Religious | K1: Female Religious | L1: Parishes | M1: Source | N1: Diocese
A2: 1950 | B2: 303571 | C2: 1130000 | D2: 0.2690 | E2: 225 | F2: 207 | G2: 432 | H2: 702 | J2: 647 | K2: 1815 | L2: 125 | M2: ap1951 | N2: Archdiocese of Melbourne
A3: 1966 | B3: 530497 | C3: 2354650 | D3: 0.2250 | E3: 387 | F3: 360 | G3: 747 | H3: 710 | J3: 851 | K3: 9312 | L3: 184 | M3: ap1967 | N3: Archdiocese of Melbourne
A4: 1968 | B4: 633652 | C4: 2295841 | D4: 0.2760 | E4: 400 | F4: 353 | G4: 753 | H4: 841 | J4: 795 | K4: 2265 | L4: 193 | M4: ap1971 | N4: Archdiocese of Melbourne
A5: 1980 | B5: 793000 | C5: 2823000 | D5: 0.2810 | E5: 418 | F5: 333 | G5: 751 | H5: 1055 | J5: 804 | K5: 2378 | L5: 220 | M5: ap1981 | N5: Archdiocese of Melbourne
A6: 1990 | B6: 876608 | C6: 3087200 | D6: 0.2840 | E6: 382 | F6: 335 | G6: 717 | H6: 1222 | I6: 1 | J6: 745 | K6: 1634 | L6: 235 | M6: ap1991 | N6: Archdiocese of Melbourne
A7: 1999 | B7: 995797 | C7: 3365173 | D7: 0.2960 | E7: 341 | F7: 294 | G7: 635 | H7: 1568 | J7: 550 | K7: 1323 | L7: 232 | M7: ap2000 | N7: Archdiocese of Melbourne
A8: 2000 | B8: 995797 | C8: 3365173 | D8: 0.2960 | E8: 336 | F8: 311 | G8: 647 | H8: 1539 | I8: 1 | J8: 594 | K8: 1461 | L8: 232 | M8: ap2001 | N8: Archdiocese of Melbourne
A9: 2001 | B9: 995797 | C9: 3365173 | D9: 0.2960 | E9: 331 | F9: 280 | G9: 611 | H9: 1629 | I9: 1 | J9: 570 | K9: 1418 | L9: 232 | M9: ap2002 | N9: Archdiocese of Melbourne
A10: 2002 | B10: 1012797 | C10: 3489000 | D10: 0.2900 | E10: 333 | F10: 278 | G10: 611 | H10: 1657 | J10: 553 | K10: 1545 | L10: 232 | M10: ap2003 | N10: Archdiocese of Melbourne
A11: 2003 | B11: 1029182 | C11: 3518627 | D11: 0.2920 | E11: 324 | F11: 258 | G11: 582 | H11: 1768 | J11: 571 | K11: 1545 | L11: 232 | M11: ap2004 | N11: Archdiocese of Melbourne
A12: 2004 | B12: 1029182 | C12: 3518627 | D12: 0.2920 | E12: 321 | F12: 262 | G12: 583 | H12: 1765 | J12: 429 | K12: 1561 | L12: 230 | M12: ap2005 | N12: Archdiocese of Melbourne
A13: 1950 | B13: 121000 | C13: 560000 | D13: 0.2160 | E13: 142 | F13: 57 | G13: 199 | H13: 608 | J13: 57 | K13: 882 | L13: 77 | M13: ap1951 | N13: Archdiocese of Brisbane
A14: 1952 | B14: 130000 | C14: 570000 | D14: 0.2280 | E14: 147 | F14: 65 | G14: 212 | H14: 613 | J14: 56 | K14: 1168 | L14: 88 | M14: ap1960
A15: 1966 | B15: 203700 | C15: 954680 | D15: 0.2130 | E15: 188 | F15: 113 | G15: 301 | H15: 676 | J15: 249 | K15: 1328 | L15: 109 | M15: ap1967
A16: 1968 | B16: 241500 | C16: 1067480 | D16: 0.2260 | E16: 179 | F16: 118 | G16: 297 | H16: 813 | J16: 267 | K16: 1346 | L16: 105 | M16: ap1971
A17: 1980 | B17: 299000 | C17: 1297000 | D17: 0.2310 | E17: 189 | F17: 125 | G17: 314 | H17: 952 | J17: 333 | K17: 1557 | L17: 115 | M17: ap1981
A18: 1990 | B18: 428000 | C18: 1560000 | D18: 0.2740 | E18: 202 | F18: 109 | G18: 311 | H18: 1376 | J18: 257 | K18: 1045 | L18: 109 | M18: ap1991
A19: 1999 | B19: 550603 | C19: 2255100 | D19: 0.2440 | E19: 188 | F19: 103 | G19: 291 | H19: 1892 | I19: 1 | J19: 236 | K19: 861 | L19: 112 | M19: ap2000
A20: 2000 | B20: 550603 | C20: 2255100 | D20: 0.2440 | E20: 168 | F20: 92 | G20: 260 | H20: 2117 | I20: 1 | J20: 209 | K20: 829 | L20: 112 | M20: ap2001
A21: 2001 | B21: 550603 | C21: 2255100 | D21: 0.2440 | E21: 163 | F21: 95 | G21: 258 | H21: 2134 | I21: 1 | J21: 219 | K21: 818 | L21: 111 | M21: ap2002
A22: 2002 | B22: 550603 | C22: 2255100 | D22: 0.2440 | E22: 175 | F22: 95 | G22: 270 | H22: 2039 | J22: 216 | K22: 793 | L22: 111 | M22: ap2003
A23: 2003 | B23: 598700 | C23: 2529154 | D23: 0.2370 | E23: 165 | F23: 90 | G23: 255 | H23: 2347 | I23: 2 | J23: 220 | K23: 780 | L23: 112 | M23: ap2004
A24: 2004 | B24: 598700 | C24: 2529154 | D24: 0.2370 | E24: 179 | F24: 97 | G24: 276 | H24: 2169 | I24: 1 | J24: 220 | K24: 768 | L24: 109 | M24: ap2005
A25: 2006 | B25: 621000 | C25: 2626000 | D25: 0.2370 | E25: 156 | F25: 96 | G25: 252 | H25: 2464 | I25: 6 | J25: 227 | K25: 739 | L25: 109 | M25: ap2007
A26: 1950 | B26: 414910 | C26: 1885818 | D26: 0.2200 | E26: 316 | F26: 256 | G26: 572 | H26: 725 | J26: 756 | K26: 2388 | L26: 165 | M26: ap1951 | N26: Archdiocese of Sydney
A27: 1966 | B27: 634320 | C27: 2996600 | D27: 0.2120 | E27: 429 | F27: 314 | G27: 743 | H27: 853 | J27: 738 | K27: 2674 | L27: 199 | M27: ap1967
A28: 1968 | B28: 634320 | C28: 2200000 | D28: 0.2880 | E28: 426 | F28: 338 | G28: 764 | H28: 830 | J28: 1158 | K28: 3011 | L28: 200 | M28: ap1971
A29: 1980 | B29: 838095 | C29: 3098600 | D29: 0.2700 | E29: 415 | F29: 389 | G29: 804 | H29: 1042 | J29: 1130 | K29: 2499 | L29: 221 | M29: ap1981
A30: 1990 | B30: 801000 | C30: 2513400 | D30: 0.3190 | E30: 221 | F30: 274 | G30: 495 | H30: 1618 | J30: 778 | K30: 2020 | L30: 141 | M30: ap1991
A31: 1999 | B31: 589244 | C31: 1824810 | D31: 0.3230 | E31: 228 | F31: 270 | G31: 498 | H31: 1183 | I31: 1 | J31: 287 | K31: 1368 | L31: 137 | M31: ap2000
A32: 2000 | B32: 589244 | C32: 1824810 | D32: 0.3230 | E32: 218 | F32: 270 | G32: 488 | H32: 1207 | I32: 1 | J32: 286 | K32: 1388 | L32: 137 | M32: ap2001
A33: 2001 | B33: 589012 | C33: 1825012 | D33: 0.3230 | E33: 194 | F33: 272 | G33: 466 | H33: 1263 | I33: 4 | J33: 304 | K33: 1376 | L33: 137 | M33: ap2002
A34: 2002 | B34: 589042 | C34: 1825012 | D34: 0.3230 | E34: 193 | F34: 254 | G34: 447 | H34: 1317 | I34: 4 | J34: 286 | K34: 1388 | L34: 138 | M34: ap2003
A35: 2003 | B35: 578567 | C35: 1993236 | D35: 0.2900 | E35: 222 | F35: 265 | G35: 487 | H35: 1188 | I35: 5 | J35: 286 | K35: 1388 | L35: 138 | M35: ap2004
A36: 2004 | B36: 578567 | C36: 1993236 | D36: 0.2900 | E36: 254 | F36: 265 | G36: 519 | H36: 1114 | I36: 5 | J36: 525 | K36: 1383 | L36: 139 | M36: ap2005
A37: 1950 | B37: 85000 | C37: 425000 | D37: 0.2000 | E37: 118 | F37: 32 | G37: 150 | H37: 566 | J37: 98 | K37: 967 | L37: 68 | M37: ap1951 | N37: Archdiocese of Perth
A38: 1966 | B38: 130100 | C38: 550250 | D38: 0.2360 | E38: 120 | F38: 87 | G38: 207 | H38: 628 | J38: 104 | K38: 1087 | L38: 97 | M38: ap1967
A39: 1970 | B39: 140250 | C39: 700000 | D39: 0.2000 | E39: 118 | F39: 90 | G39: 208 | H39: 674 | J39: 208 | K39: 1019 | L39: 99 | M39: ap1971
A40: 1980 | B40: 228446 | C40: 891446 | D40: 0.2560 | E40: 124 | F40: 83 | G40: 207 | H40: 1103 | I40: 3 | J40: 194 | K40: 1110 | L40: 101 | M40: ap1981
A41: 1990 | B41: 305000 | C41: 1110000 | D41: 0.2750 | E41: 116 | F41: 112 | G41: 228 | H41: 1337 | I41: 1 | J41: 202 | K41: 693 | L41: 107 | M41: ap1991
A42: 1999 | B42: 379902 | C42: 1369809 | D42: 0.2770 | E42: 140 | F42: 116 | G42: 256 | H42: 1483 | I42: 4 | J42: 217 | K42: 584 | L42: 103 | M42: ap2000
A43: 2000 | B43: 380282 | C43: 1383507 | D43: 0.2750 | E43: 138 | F43: 113 | G43: 251 | H43: 1515 | I43: 2 | J43: 209 | K43: 652 | L43: 103 | M43: ap2001
A44: 2001 | B44: 384085 | C44: 1395509 | D44: 0.2750 | E44: 155 | F44: 110 | G44: 265 | H44: 1449 | I44: 1 | J44: 211 | K44: 652 | L44: 103 | M44: ap2002
A45: 2002 | B45: 384185 | C45: 1403509 | D45: 0.2740 | E45: 153 | F45: 103 | G45: 256 | H45: 1500 | I45: 1 | J45: 164 | K45: 482 | L45: 103 | M45: ap2003
A46: 2003 | B46: 379989 | C46: 1427956 | D46: 0.2660 | E46: 147 | F46: 140 | G46: 287 | H46: 1324 | I46: 1 | J46: 199 | K46: 485 | L46: 103 | M46: ap2004
A47: 2004 | B47: 380010 | C47: 1427956 | D47: 0.2660 | E47: 151 | F47: 136 | G47: 287 | H47: 1324 | I47: 1 | J47: 193 | K47: 503 | L47: 103 | M47: ap2005
A48: 1990 | B48: 232096 | C48: 810349 | D48: 0.2860 | E48: 71 | F48: 38 | G48: 109 | H48: 2129 | I48: 2 | J48: 180 | K48: 294 | L48: 46 | M48: ap1991 | N48: Parramatta
A49: 1999 | B49: 298125 | C49: 852946 | D49: 0.3500 | E49: 87 | F49: 59 | G49: 146 | H49: 2041 | I49: 8 | J49: 164 | K49: 277 | L49: 46 | M49: ap2000
A50: 2000 | B50: 299912 | C50: 895004 | D50: 0.3350 | E50: 86 | F50: 56 | G50: 142 | H50: 2112 | I50: 8 | J50: 167 | K50: 264 | L50: 46 | M50: ap2001
A51: 2001 | B51: 311573 | C51: 909370 | D51: 0.3430 | E51: 84 | F51: 62 | G51: 146 | H51: 2134 | I51: 7 | J51: 152 | K51: 255 | L51: 46 | M51: ap2002
A52: 2002 | B52: 324660 | C52: 936651 | D52: 0.3470 | E52: 79 | F52: 62 | G52: 141 | H52: 2302 | I52: 6 | J52: 146 | K52: 271 | L52: 46 | M52: ap2003
A53: 2003 | B53: 309716 | C53: 926651 | D53: 0.3340 | E53: 77 | F53: 38 | G53: 115 | H53: 2693 | I53: 6 | J53: 142 | K53: 288 | L53: 47 | M53: ap2004
A54: 2004 | B54: 307392 | C54: 924621 | D54: 0.3330 | E54: 82 | F54: 59 | G54: 141 | H54: 2180 | I54: 6 | J54: 113 | K54: 231 | L54: 47 | M54: ap2005
A55: 1950 | B55: 55000 | C55: 550000 | D55: 0.1000 | E55: 67 | F55: 37 | G55: 104 | H55: 528 | J55: 90 | K55: 579 | L55: 43 | M55: ap1951 | N55: Archdiocese of Adelaide
A56: 1959 | B56: 120000 | C56: 750000 | D56: 0.1600 | E56: 95 | F56: 77 | G56: 172 | H56: 697 | J56: 146 | K56: 681 | L56: 65 | M56: ap1960
A57: 1966 | B57: 158500 | C57: 838000 | D57: 0.1890 | E57: 93 | F57: 96 | G57: 189 | H57: 838 | J57: 180 | K57: 722 | L57: 73 | M57: ap1967
A58: 1970 | B58: 193137 | C58: 942288 | D58: 0.2050 | E58: 97 | F58: 108 | G58: 205 | H58: 942 | J58: 199 | K58: 678 | L58: 74 | M58: ap1971
A59: 1980 | B59: 219000 | C59: 1079000 | D59: 0.2030 | E59: 103 | F59: 110 | G59: 213 | H59: 1028 | J59: 193 | K59: 595 | L59: 76 | M59: ap1981
A60: 1990 | B60: 248000 | C60: 1210000 | D60: 0.2050 | E60: 100 | F60: 92 | G60: 192 | H60: 1291 | I60: 1 | J60: 148 | K60: 460 | L60: 77 | M60: ap1991
A61: 1999 | B61: 266927 | C61: 1254751 | D61: 0.2130 | E61: 91 | F61: 86 | G61: 177 | H61: 1508 | I61: 3 | J61: 147 | K61: 382 | L61: 77 | M61: ap2000
A62: 2000 | B62: 266927 | C62: 1254927 | D62: 0.2130 | E62: 91 | F62: 83 | G62: 174 | H62: 1534 | I62: 3 | J62: 147 | K62: 382 | L62: 56 | M62: ap2001
A63: 2001 | B63: 266927 | C63: 1497634 | D63: 0.1780 | E63: 92 | F63: 85 | G63: 177 | H63: 1508 | I63: 3 | J63: 146 | K63: 382 | L63: 76 | M63: ap2002
A64: 2002 | B64: 267012 | C64: 1254437 | D64: 0.2130 | E64: 93 | F64: 78 | G64: 171 | H64: 1561 | I64: 4 | J64: 121 | K64: 327 | L64: 75 | M64: ap2003
A65: 2003 | B65: 275174 | C65: 1290786 | D65: 0.2130 | E65: 102 | F65: 79 | G65: 181 | H65: 1520 | I65: 4 | J65: 121 | K65: 335 | L65: 75 | M65: ap2004
A66: 2004 | B66: 275174 | C66: 1290786 | D66: 0.2130 | E66: 93 | F66: 60 | G66: 153 | H66: 1798 | I66: 5 | J66: 103 | K66: 326 | L66: 67 | M66: ap2005
A67: 2006 | B67: 275174 | C67: 1290786 | D67: 0.2130 | E67: 72 | F67: 63 | G67: 135 | H67: 2038 | I67: 4 | J67: 123 | K67: 324 | L67: 67 | M67: ap2007
A68: 1965 | B68: 62257 | C68: 242181 | D68: 0.2570 | E68: 43 | F68: 50 | G68: 93 | H68: 669 | J68: 99 | K68: 246 | L68: 28 | M68: ap1967 | N68: Wollongong
A69: 1970 | B69: 80000 | C69: 295000 | D69: 0.2710 | E69: 50 | F69: 53 | G69: 103 | H69: 776 | J69: 141 | K69: 242 | L69: 29 | M69: ap1971
A70: 1980 | B70: 107300 | C70: 390000 | D70: 0.2750 | E70: 43 | F70: 56 | G70: 99 | H70: 1083 | J70: 115 | K70: 251 | L70: 29 | M70: ap1981
A71: 1990 | B71: 140000 | C71: 550000 | D71: 0.2550 | E71: 43 | F71: 45 | G71: 88 | H71: 1590 | J71: 105 | K71: 192 | L71: 30 | M71: ap1991
A72: 1999 | B72: 170622 | C72: 599069 | D72: 0.2850 | E72: 38 | F72: 36 | G72: 74 | H72: 2305 | J72: 82 | K72: 178 | L72: 32 | M72: ap2000
A73: 2000 | B73: 173350 | C73: 608650 | D73: 0.2850 | E73: 37 | F73: 43 | G73: 80 | H73: 2166 | J73: 93 | K73: 188 | L73: 32 | M73: ap2001
A74: 2001 | B74: 178550 | C74: 626900 | D74: 0.2850 | E74: 38 | F74: 38 | G74: 76 | H74: 2349 | J74: 90 | K74: 174 | L74: 32 | M74: ap2002
A75: 2002 | B75: 189254 | C75: 664514 | D75: 0.2850 | E75: 40 | F75: 36 | G75: 76 | H75: 2490 | J75: 89 | K75: 163 | L75: 32 | M75: ap2003
A76: 2003 | B76: 186613 | C76: 618616 | D76: 0.3020 | E76: 38 | F76: 38 | G76: 76 | H76: 2455 | J76: 95 | K76: 188 | L76: 31 | M76: ap2004
A77: 2004 | B77: 195669 | C77: 647912 | D77: 0.3020 | E77: 40 | F77: 35 | G77: 75 | H77: 2608 | J77: 92 | K77: 193 | L77: 28 | M77: ap2005
A78: 1990 | B78: 153728 | C78: 658900 | D78: 0.2330 | E78: 55 | F78: 81 | G78: 136 | H78: 1130 | J78: 133 | K78: 192 | L78: 39 | M78: ap1991 | N78: Broken Bay
A79: 1999 | B79: 191728 | C79: 767241 | D79: 0.2500 | E79: 49 | F79: 54 | G79: 103 | H79: 1861 | J79: 99 | K79: 154 | L79: 39 | M79: ap2000
A80: 2000 | B80: 187837 | C80: 815647 | D80: 0.2300 | E80: 52 | F80: 54 | G80: 106 | H80: 1772 | J80: 92 | K80: 154 | L80: 39 | M80: ap2001
A81: 2001 | B81: 187854 | C81: 835043 | D81: 0.2250 | E81: 49 | F81: 56 | G81: 105 | H81: 1789 | J81: 96 | K81: 154 | L81: 39 | M81: ap2002
A82: 2002 | B82: 198820 | C82: 848631 | D82: 0.2340 | E82: 41 | F82: 60 | G82: 101 | H82: 1968 | J82: 98 | K82: 154 | L82: 39 | M82: ap2003
A83: 2004 | B83: 203969 | C83: 811406 | D83: 0.2510 | E83: 42 | F83: 66 | G83: 108 | H83: 1888 | J83: 77 | K83: 150 | L83: 40 | M83: ap2005
A84: 2006 | B84: 206000 | C84: 819000 | D84: 0.2520 | E84: 43 | F84: 74 | G84: 117 | H84: 1760 | I84: 4 | J84: 85 | K84: 32 | L84: 40 | M84: ap2007
A85: 1950 | B85: 43500 | C85: 167471 | D85: 0.2600 | E85: 85 | F85: 20 | G85: 105 | H85: 414 | J85: 51 | K85: 418 | L85: 36 | M85: ap1951 | N85: Archdiocese of Canberra (and Goulburn)
A86: 1958 | B86: 60211 | C86: 209981 | D86: 0.2870 | E86: 100 | F86: 24 | G86: 124 | H86: 485 | J86: 77 | K86: 401 | L86: 44 | M86: ap1960
A87: 1966 | B87: 78820 | C87: 286082 | D87: 0.2760 | E87: 115 | F87: 61 | G87: 176 | H87: 447 | J87: 106 | K87: 519 | L87: 51 | M87: ap1967
A88: 1968 | B88: 85000 | C88: 310000 | D88: 0.2740 | E88: 110 | F88: 64 | G88: 174 | H88: 488 | J88: 182 | K88: 527 | L88: 53 | M88: ap1971
A89: 1980 | B89: 142000 | C89: 440000 | D89: 0.3230 | E89: 94 | F89: 40 | G89: 134 | H89: 1059 | J89: 116 | K89: 395 | L89: 61 | M89: ap1981
A90: 1990 | B90: 137500 | C90: 479200 | D90: 0.2870 | E90: 81 | F90: 37 | G90: 118 | H90: 1165 | J90: 91 | K90: 294 | L90: 62 | M90: ap1991
A91: 1999 | B91: 158000 | C91: 546000 | D91: 0.2890 | E91: 89 | F91: 42 | G91: 131 | H91: 1206 | I91: 1 | J91: 62 | K91: 216 | L91: 59 | M91: ap2000
A92: 2000 | B92: 158500 | C92: 571000 | D92: 0.2780 | E92: 83 | F92: 40 | G92: 123 | H92: 1288 | I92: 1 | J92: 61 | K92: 222 | L92: 59 | M92: ap2001
A93: 2001 | B93: 159600 | C93: 596000 | D93: 0.2680 | E93: 98 | F93: 42 | G93: 140 | H93: 1140 | I93: 2 | J93: 63 | K93: 217 | L93: 59 | M93: ap2002
A94: 2002 | B94: 162000 | C94: 547040 | D94: 0.2960 | E94: 98 | F94: 30 | G94: 128 | H94: 1265 | I94: 3 | J94: 48 | K94: 180 | L94: 59 | M94: ap2003
A95: 2003 | B95: 161000 | C95: 552000 | D95: 0.2920 | E95: 97 | F95: 27 | G95: 124 | H95: 1298 | I95: 3 | J95: 45 | K95: 231 | L95: 59 | M95: ap2004
A96: 2004 | B96: 160700 | C96: 551400 | D96: 0.2910 | E96: 94 | F96: 25 | G96: 119 | H96: 1350 | I96: 4 | J96: 49 | K96: 174 | L96: 58 | M96: ap2005
A97: 2006 | B97: 159670 | C97: 569000 | D97: 0.2810 | E97: 96 | F97: 24 | G97: 120 | H97: 1330 | I97: 4 | J97: 41 | K97: 164 | L97: 55 | M97: ap2007
A98: 1980 | B98: 120000 | E98: 6 | F98: 3 | G98: 9 | H98: 13333 | J98: 3 | K98: 6 | L98: 6 | M98: ap1981 | N98: St Maron of Sydney
A99: 1990 | B99: 130000 | E99: 16 | F99: 7 | G99: 23 | H99: 5652 | J99: 7 | K99: 16 | L99: 10 | M99: ap1991
A100: 1999 | B100: 160000 | E100: 12 | F100: 10 | G100: 22 | H100: 7272 | J100: 10 | K100: 22 | L100: 9 | M100: ap2000
A101: 2000 | B101: 150000 | E101: 11 | F101: 13 | G101: 24 | H101: 6250 | I101: 1 | J101: 13 | K101: 22 | L101: 9 | M101: ap2001
A102: 2001 | B102: 150000 | E102: 11 | F102: 13 | G102: 24 | H102: 6250 | I102: 1 | J102: 13 | K102: 23 | L102: 9 | M102: ap2002
A103: 2002 | B103: 150000 | E103: 9 | F103: 15 | G103: 24 | H103: 6250 | I103: 1 | J103: 15 | K103: 23 | L103: 9 | M103: ap2003
A104: 2003 | B104: 150000 | E104: 16 | F104: 14 | G104: 30 | H104: 5000 | I104: 1 | J104: 17 | K104: 23 | L104: 9 | M104: ap2004
A105: 2004 | B105: 150000 | E105: 16 | F105: 14 | G105: 30 | H105: 5000 | I105: 1 | J105: 17 | K105: 23 | L105: 9 | M105: ap2005
A106: 1950 | B106: 45500 | C106: 227500 | D106: 0.2000 | E106: 82 | F106: 21 | G106: 103 | H106: 441 | J106: 28 | K106: 485 | L106: 36 | M106: ap1951 | N106: Diocese of Maitland
A107: 1966 | B107: 76000 | C107: 255000 | D107: 0.2980 | E107: 120 | F107: 16 | G107: 136 | H107: 558 | J107: 40 | K107: 594 | L107: 56 | M107: ap1967
A108: 1970 | B108: 87662 | C108: 402492 | D108: 0.2180 | E108: 114 | F108: 20 | G108: 134 | H108: 654 | J108: 66 | K108: 549 | L108: 57 | M108: ap1971
A109: 1980 | B109: 97959 | C109: 459750 | D109: 0.2130 | E109: 93 | F109: 17 | G109: 110 | H109: 890 | J109: 52 | K109: 458 | L109: 52 | M109: ap1981
A110: 1990 | B110: 119000 | C110: 525000 | D110: 0.2270 | E110: 79 | F110: 20 | G110: 99 | H110: 1202 | J110: 32 | K110: 323 | L110: 53 | M110: ap1991
A111: 1999 | B111: 140882 | C111: 579856 | D111: 0.2430 | E111: 67 | F111: 14 | G111: 81 | H111: 1739 | J111: 25 | K111: 277 | L111: 51 | M111: ap2000
A112: 2000 | B112: 140882 | C112: 579856 | D112: 0.2430 | E112: 68 | F112: 16 | G112: 84 | H112: 1677 | I112: 2 | J112: 26 | K112: 272 | L112: 51 | M112: ap2001
A113: 2001 | B113: 140882 | C113: 579856 | D113: 0.2430 | E113: 68 | F113: 18 | G113: 86 | H113: 1638 | I113: 2 | J113: 30 | K113: 248 | L113: 50 | M113: ap2002
A114: 2002 | B114: 140882 | C114: 579856 | D114: 0.2430 | E114: 64 | F114: 20 | G114: 84 | H114: 1677 | I114: 2 | J114: 27 | K114: 264 | L114: 50 | M114: ap2003
A115: 2003 | B115: 147602 | C115: 602693 | D115: 0.2450 | E115: 61 | F115: 13 | G115: 74 | H115: 1994 | I115: 2 | J115: 19 | K115: 250 | L115: 50 | M115: ap2004
A116: 2004 | B116: 147602 | C116: 602693 | D116: 0.2450 | E116: 58 | F116: 9 | G116: 67 | H116: 2203 | I116: 2 | J116: 15 | K116: 242 | L116: 50 | M116: ap2005
A117: 1950 | B117: 30105 | C117: 168438 | D117: 0.1790 | E117: 45 | F117: 14 | G117: 59 | H117: 510 | J117: 10 | K117: 273 | L117: 25 | M117: ap1951 | N117: Diocese of Lismore
A118: 1966 | B118: 44710 | C118: 188288 | D118: 0.2370 | E118: 52 | F118: 16 | G118: 68 | H118: 657 | J118: 28 | K118: 330 | L118: 28 | M118: ap1967
A119: 1970 | B119: 45250 | C119: 187787 | D119: 0.2410 | E119: 49 | F119: 70 | G119: 119 | H119: 380 | J119: 100 | K119: 296 | L119: 28 | M119: ap1971
A120: 1980 | B120: 56600 | C120: 200400 | D120: 0.2820 | E120: 57 | F120: 14 | G120: 71 | H120: 797 | J120: 37 | K120: 260 | L120: 30 | M120: ap1981
A121: 1990 | B121: 63920 | C121: 301000 | D121: 0.2120 | E121: 53 | F121: 8 | G121: 61 | H121: 1047 | J121: 30 | K121: 175 | L121: 30 | M121: ap1991
A122: 1999 | B122: 100067 | C122: 421216 | D122: 0.2380 | E122: 49 | F122: 11 | G122: 60 | H122: 1667 | J122: 18 | K122: 154 | L122: 28 | M122: ap2000
A123: 2000 | B123: 100067 | C123: 421216 | D123: 0.2380 | E123: 51 | F123: 12 | G123: 63 | H123: 1588 | J123: 19 | K123: 133 | L123: 28 | M123: ap2001
A124: 2001 | B124: 100067 | C124: 421216 | D124: 0.2380 | E124: 46 | F124: 10 | G124: 56 | H124: 1786 | I124: 2 | J124: 17 | K124: 139 | L124: 28 | M124: ap2002
A125: 2002 | B125: 110770 | C125: 421219 | D125: 0.2630 | E125: 45 | F125: 8 | G125: 53 | H125: 2090 | I125: 2 | J125: 15 | K125: 129 | L125: 28 | M125: ap2003
A126: 2003 | B126: 105609 | C126: 441734 | D126: 0.2390 | E126: 43 | F126: 7 | G126: 50 | H126: 2112 | I126: 2 | J126: 16 | K126: 118 | L126: 28 | M126: ap2004
A127: 2004 | B127: 105609 | C127: 441734 | D127: 0.2390 | E127: 48 | F127: 8 | G127: 56 | H127: 1885 | I127: 2 | J127: 19 | K127: 91 | L127: 28 | M127: ap2005
A128: 1959 | B128: 64110 | C128: 305000 | D128: 0.2100 | E128: 96 | F128: 32 | G128: 128 | H128: 500 | J128: 110 | K128: 445 | L128: 46 | M128: ap1960 | N128: Ballarat
A129: 1966 | B129: 74016 | C129: 300000 | D129: 0.2470 | E129: 95 | F129: 41 | G129: 136 | H129: 544 | J129: 142 | K129: 484 | L129: 50 | M129: ap1967
A130: 1968 | B130: 75399 | C130: 354400 | D130: 0.2130 | E130: 92 | F130: 37 | G130: 129 | H130: 584 | J130: 96 | K130: 488 | L130: 51 | M130: ap1971
A131: 1980 | B131: 81900 | C131: 353000 | D131: 0.2320 | E131: 85 | F131: 29 | G131: 114 | H131: 718 | J131: 76 | K131: 344 | L131: 54 | M131: ap1981
A132: 1990 | B132: 88300 | C132: 354000 | D132: 0.2490 | E132: 85 | F132: 17 | G132: 102 | H132: 865 | J132: 49 | K132: 203 | L132: 54 | M132: ap1991
A133: 1999 | B133: 96877 | C133: 379851 | D133: 0.2550 | E133: 67 | F133: 13 | G133: 80 | H133: 1210 | J133: 33 | K133: 200 | L133: 52 | M133: ap2000
A134: 2000 | B134: 96877 | C134: 379851 | D134: 0.2550 | E134: 66 | F134: 14 | G134: 80 | H134: 1210 | J134: 33 | K134: 199 | L134: 52 | M134: ap2001
A135: 2001 | B135: 96877 | C135: 379851 | D135: 0.2550 | E135: 57 | F135: 15 | G135: 72 | H135: 1345 | J135: 34 | K135: 193 | L135: 52 | M135: ap2002
A136: 2002 | B136: 96877 | C136: 379851 | D136: 0.2550 | E136: 55 | F136: 10 | G136: 65 | H136: 1490 | J136: 26 | K136: 179 | L136: 52 | M136: ap2003
A137: 2003 | B137: 96877 | C137: 379851 | D137: 0.2550 | E137: 55 | F137: 10 | G137: 65 | H137: 1490 | J137: 25 | K137: 177 | L137: 52 | M137: ap2004
A138: 2004 | B138: 96877 | C138: 379851 | D138: 0.2550 | E138: 54 | F138: 10 | G138: 64 | H138: 1513 | J138: 27 | K138: 167 | L138: 52 | M138: ap2005
A139: 2006 | B139: 97900 | C139: 384000 | D139: 0.2550 | E139: 54 | F139: 11 | G139: 65 | H139: 1506 | J139: 29 | K139: 148 | L139: 52 | M139: ap2007
A140: 1949 | B140: 25000 | C140: 141000 | D140: 0.1770 | E140: 61 | F140: 7 | G140: 68 | H140: 367 | J140: 25 | K140: 324 | L140: 34 | M140: ap1951 | N140: Rockhampton
A141: 1966 | B141: 46000 | C141: 190350 | D141: 0.2420 | E141: 77 | F141: 6 | G141: 83 | H141: 554 | J141: 42 | K141: 326 | L141: 37 | M141: ap1967
A142: 1970 | B142: 49100 | C142: 229000 | D142: 0.2140 | E142: 67 | F142: 6 | G142: 73 | H142: 672 | J142: 44 | K142: 329 | L142: 37 | M142: ap1971
A143: 1980 | B143: 57700 | C143: 261000 | D143: 0.2210 | E143: 65 | F143: 7 | G143: 72 | H143: 801 | J143: 49 | K143: 263 | L143: 40 | M143: ap1981
A144: 1990 | B144: 74000 | C144: 306000 | D144: 0.2420 | E144: 53 | F144: 6 | G144: 59 | H144: 1254 | I144: 1 | J144: 25 | K144: 219 | L144: 36 | M144: ap1991
A145: 1999 | B145: 94500 | C145: 240500 | D145: 0.3930 | E145: 51 | F145: 6 | G145: 57 | H145: 1657 | J145: 22 | K145: 141 | L145: 39 | M145: ap2000
A146: 2000 | B146: 93891 | C146: 365270 | D146: 0.2570 | E146: 40 | F146: 5 | G146: 45 | H146: 2086 | J146: 19 | K146: 127 | L146: 39 | M146: ap2001
A147: 2001 | B147: 94063 | C147: 366428 | D147: 0.2570 | E147: 37 | F147: 6 | G147: 43 | H147: 2187 | J147: 20 | K147: 122 | L147: 39 | M147: ap2002
A148: 2002 | B148: 94063 | C148: 366428 | D148: 0.2570 | E148: 36 | F148: 6 | G148: 42 | H148: 2239 | J148: 18 | K148: 113 | L148: 39 | M148: ap2003
A149: 2003 | B149: 94500 | C149: 367000 | D149: 0.2570 | E149: 36 | F149: 7 | G149: 43 | H149: 2197 | J149: 19 | K149: 113 | L149: 39 | M149: ap2004
A150: 2004 | B150: 95000 | C150: 372000 | D150: 0.2550 | E150: 36 | F150: 8 | G150: 44 | H150: 2159 | J150: 19 | K150: 122 | L150: 39 | M150: ap2005
A151: 1950 | B151: 35000 | C151: 185000 | D151: 0.1890 | E151: 56 | F151: 8 | G151: 64 | H151: 546 | J151: 10 | K151: 253 | L151: 30 | M151: ap1951 | N151: Sandhurst
A152: 1966 | B152: 60000 | C152: 250000 | D152: 0.2400 | E152: 72 | F152: 25 | G152: 97 | H152: 618 | J152: 49 | K152: 308 | L152: 40 | M152: ap1967
A153: 1970 | B153: 62450 | C153: 250000 | D153: 0.2500 | E153: 71 | F153: 25 | G153: 96 | H153: 650 | J153: 49 | K153: 316 | L153: 40 | M153: ap1971
A154: 1980 | B154: 79500 | C154: 250000 | D154: 0.3180 | E154: 64 | F154: 14 | G154: 78 | H154: 1019 | J154: 29 | K154: 230 | L154: 41 | M154: ap1981
A155: 1990 | B155: 80403 | C155: 308725 | D155: 0.2600 | E155: 57 | F155: 11 | G155: 68 | H155: 1182 | J155: 21 | K155: 139 | L155: 41 | M155: ap1991
A156: 1999 | B156: 87776 | C156: 325642 | D156: 0.2700 | E156: 57 | F156: 9 | G156: 66 | H156: 1329 | J156: 15 | K156: 106 | L156: 41 | M156: ap2000
A157: 2000 | B157: 86847 | C157: 322235 | D157: 0.2700 | E157: 53 | F157: 7 | G157: 60 | H157: 1447 | J157: 13 | K157: 105 | L157: 41 | M157: ap2001
A158: 2001 | B158: 86938 | C158: 322599 | D158: 0.2690 | E158: 48 | F158: 7 | G158: 55 | H158: 1580 | J158: 11 | K158: 96 | L158: 41 | M158: ap2002
A159: 2002 | B159: 86038 | C159: 320230 | D159: 0.2690 | E159: 45 | F159: 5 | G159: 50 | H159: 1720 | J159: 9 | K159: 95 | L159: 41 | M159: ap2003
A160: 2003 | B160: 88776 | C160: 331894 | D160: 0.2670 | E160: 44 | F160: 5 | G160: 49 | H160: 1811 | J160: 9 | K160: 73 | L160: 41 | M160: ap2004
A161: 2004 | B161: 91400 | C161: 341850 | D161: 0.2670 | E161: 46 | F161: 5 | G161: 51 | H161: 1792 | J161: 9 | K161: 76 | L161: 41 | M161: ap2005
A162: 1950 | B162: 38500 | C162: 39600 | D162: 0.9720 | E162: 52 | F162: 12 | G162: 64 | H162: 601 | J162: 12 | K162: 276 | L162: 31 | M162: ap1951 | N162: Archdiocese of Hobart
A163: 1966 | B163: 63987 | C163: 366000 | D163: 0.1750 | E163: 70 | F163: 49 | G163: 119 | H163: 537 | J163: 84 | K163: 341 | L163: 47 | M163: ap1967
A164: 1970 | B164: 71089 | C164: 388500 | D164: 0.1830 | E164: 71 | F164: 40 | G164: 111 | H164: 640 | J164: 77 | K164: 428 | L164: 46 | M164: ap1971
A165: 1980 | B165: 71290 | C165: 411800 | D165: 0.1730 | E165: 60 | F165: 34 | G165: 94 | H165: 758 | J165: 70 | K165: 268 | L165: 44 | M165: ap1981
A166: 1990 | B166: 82954 | C166: 448400 | D166: 0.1850 | E166: 43 | F166: 27 | G166: 70 | H166: 1185 | J166: 57 | K166: 205 | L166: 40 | M166: ap1991
A167: 1999 | B167: 89156 | C167: 459659 | D167: 0.1940 | E167: 41 | F167: 19 | G167: 60 | H167: 1485 | J167: 39 | K167: 158 | L167: 41 | M167: ap2000
A168: 2000 | B168: 89156 | C168: 470261 | D168: 0.1900 | E168: 39 | F168: 19 | G168: 58 | H168: 1537 | J168: 36 | K168: 154 | L168: 40 | M168: ap2001
A169: 2001 | B169: 89156 | C169: 470300 | D169: 0.1900 | E169: 37 | F169: 19 | G169: 56 | H169: 1592 | J169: 36 | K169: 151 | L169: 41 | M169: ap2002
A170: 2002 | B170: 89156 | C170: 470100 | D170: 0.1900 | E170: 35 | F170: 19 | G170: 54 | H170: 1651 | I170: 1 | J170: 31 | K170: 139 | L170: 36 | M170: ap2003
A171: 2003 | B171: 87691 | C171: 473300 | D171: 0.1850 | E171: 38 | F171: 19 | G171: 57 | H171: 1538 | J171: 25 | K171: 138 | L171: 30 | M171: ap2004
A172: 2004 | B172: 87691 | C172: 472725 | D172: 0.1860 | E172: 37 | F172: 20 | G172: 57 | H172: 1538 | J172: 30 | K172: 124 | L172: 27 | M172: ap2005
A173: 2006 | B173: 87691 | C173: 477305 | D173: 0.1840 | E173: 34 | F173: 19 | G173: 53 | H173: 1654 | J173: 31 | K173: 116 | L173: 27 | M173: ap2007
A174: 1950 | B174: 15000 | C174: 74000 | D174: 0.2030 | E174: 26 | F174: 2 | G174: 28 | H174: 535 | J174: 8 | K174: 93 | L174: 15 | M174: ap1951 | N174: Sale
A175: 1966 | B175: 42946 | C175: 147000 | D175: 0.2920 | E175: 41 | F175: 4 | G175: 45 | H175: 954 | J175: 20 | K175: 160 | L175: 28 | M175: ap1967
A176: 1968 | B176: 45468 | C176: 177842 | D176: 0.2560 | E176: 43 | F176: 4 | G176: 47 | H176: 967 | J176: 23 | K176: 155 | L176: 27 | M176: ap1971
A177: 1980 | B177: 54559 | C177: 225000 | D177: 0.2420 | E177: 40 | F177: 6 | G177: 46 | H177: 1186 | J177: 25 | K177: 105 | L177: 29 | M177: ap1981
A178: 1990 | B178: 71300 | C178: 320400 | D178: 0.2230 | E178: 38 | F178: 6 | G178: 44 | H178: 1620 | J178: 19 | K178: 75 | L178: 29 | M178: ap1991
A179: 1999 | B179: 82546 | C179: 334349 | D179: 0.2470 | E179: 32 | F179: 9 | G179: 41 | H179: 2013 | I179: 1 | J179: 16 | K179: 42 | L179: 28 | M179: ap2000
A180: 2000 | B180: 82546 | C180: 334349 | D180: 0.2470 | E180: 30 | F180: 8 | G180: 38 | H180: 2172 | I180: 1 | J180: 16 | K180: 45 | L180: 27 | M180: ap2001
A181: 2001 | B181: 82546 | C181: 334349 | D181: 0.2470 | E181: 31 | F181: 10 | G181: 41 | H181: 2013 | I181: 2 | J181: 19 | K181: 43 | L181: 27 | M181: ap2002
A182: 2002 | B182: 82546 | C182: 334349 | D182: 0.2470 | E182: 31 | F182: 8 | G182: 39 | H182: 2116 | I182: 2 | J182: 16 | K182: 37 | L182: 27 | M182: ap2003
A183: 2003 | B183: 82546 | C183: 334349 | D183: 0.2470 | E183: 31 | F183: 8 | G183: 39 | H183: 2116 | I183: 2 | J183: 16 | K183: 32 | L183: 27 | M183: ap2004
A184: 2004 | B184: 92746 | C184: 372979 | D184: 0.2490 | E184: 33 | F184: 7 | G184: 40 | H184: 2318 | I184: 3 | J184: 16 | K184: 30 | L184: 25 | M184: ap2005
A185: 1950 | B185: 28337 | C185: 115000 | D185: 0.2460 | E185: 45 | F185: 9 | G185: 54 | H185: 524 | J185: 15 | K185: 165 | L185: 24 | M185: ap1951 | N185: Townsville
A186: 1966 | B186: 44000 | C186: 190000 | D186: 0.2320 | E186: 54 | F186: 14 | G186: 68 | H186: 647 | J186: 54 | K186: 210 | L186: 36 | M186: ap1967
A187: 1970 | B187: 52000 | C187: 170000 | D187: 0.3060 | E187: 48 | F187: 11 | G187: 59 | H187: 881 | J187: 59 | K187: 210 | L187: 34 | M187: ap1971
A188: 1980 | B188: 60437 | C188: 181000 | D188: 0.3340 | E188: 40 | F188: 13 | G188: 53 | H188: 1140 | I188: 1 | J188: 53 | K188: 159 | L188: 29 | M188: ap1981
A189: 1990 | B189: 60022 | C189: 217943 | D189: 0.2750 | E189: 33 | F189: 7 | G189: 40 | H189: 1500 | I189: 2 | J189: 28 | K189: 129 | L189: 29 | M189: ap1991
A190: 1999 | B190: 60477 | C190: 234854 | D190: 0.2580 | E190: 30 | F190: 7 | G190: 37 | H190: 1634 | I190: 2 | J190: 30 | K190: 93 | L190: 30 | M190: ap2000
A191: 2000 | B191: 65924 | C191: 234854 | D191: 0.2810 | E191: 28 | F191: 6 | G191: 34 | H191: 1938 | I191: 2 | J191: 29 | K191: 92 | L191: 30 | M191: ap2001
A192: 2001 | B192: 66610 | C192: 237387 | D192: 0.2810 | E192: 25 | F192: 4 | G192: 29 | H192: 2296 | J192: 27 | K192: 86 | L192: 28 | M192: ap2002
A193: 2002 | B193: 66610 | C193: 237387 | D193: 0.2810 | E193: 23 | F193: 4 | G193: 27 | H193: 2467 | I193: 1 | J193: 20 | K193: 76 | L193: 27 | M193: ap2003
A194: 2003 | B194: 74084 | C194: 252289 | D194: 0.2940 | E194: 20 | F194: 5 | G194: 25 | H194: 2963 | I194: 1 | J194: 13 | K194: 74 | L194: 27 | M194: ap2004
A195: 2004 | B195: 74084 | C195: 252289 | D195: 0.2940 | E195: 22 | F195: 4 | G195: 26 | H195: 2849 | I195: 1 | J195: 12 | K195: 76 | L195: 27 | M195: ap2005
A196: 1949 | B196: 32260 | C196: 127374 | D196: 0.2530 | E196: 60 | F196: 12 | G196: 72 | H196: 448 | J196: 30 | K196: 345 | L196: 21 | M196: ap1951 | N196: Bathurst
A197: 1954 | B197: 36573 | C197: 130647 | D197: 0.2800 | E197: 61 | F197: 13 | G197: 74 | H197: 494 | J197: 19 | K197: 314 | L197: 22 | M197: ap1960
A198: 1965 | B198: 50145 | C198: 177329 | D198: 0.2830 | E198: 61 | F198: 12 | G198: 73 | H198: 686 | J198: 28 | K198: 414 | L198: 32 | M198: ap1967
A199: 1968 | B199: 46011 | C199: 184045 | D199: 0.2500 | E199: 59 | F199: 12 | G199: 71 | H199: 648 | J199: 31 | K199: 367 | L199: 32 | M199: ap1971
A200: 1980 | B200: 59700 | C200: 202000 | D200: 0.2960 | E200: 40 | F200: 9 | G200: 49 | H200: 1218 | J200: 17 | K200: 257 | L200: 26 | M200: ap1981
... 143 more rows

Sheet Catholic clergy (by year)
A1: Source | B1: Year | C1: Catholics | D1: Population | E1: Priests | F1: Male religious workers | G1: Female religious workers | H1: parishes | I1: priests_per_cath | J1: priests_per_pop | K1: relig_per_cath | L1: relig_per_pop | M1: Catholics per Catholic religious worker | N1: Population per Catholic religious worker | O1: Catholics per priest | P1: Parishes divided by population
B2: 1945
B3: 1946
B4: 1947
B5: 1948
A6: ap1951 | B6: 1949 | C6: 1415809 | D6: 6461599 | E6: 2361 | F6: 1991 | G6: 10504 | H6: 879 | I6: 0.0016676 | J6: 0.0003654 | K6: 0.0104929 | L6: 0.0022991 | M6: 95 | N6: 434 | O6: 599 | P6: 0.000136
B7: 1950
B8: 1951
B9: 1952
B10: 1953
B11: 1954
B12: 1955
B13: 1956
A14: ap1960 | B14: 1957 | C14: 486788 | D14: 2311509 | E14: 823 | F14: 482 | G14: 3492 | H14: 332 | I14: 0.0016907 | J14: 0.000356 | K14: 0.0098544 | L14: 0.0020753 | M14: 101 | N14: 481 | O14: 591 | P14: 0.0001436
B15: 1958
B16: 1959
B17: 1960
B18: 1961
B19: 1962
B20: 1963
B21: 1964
A22: ap1967 | B22: 1965 | C22: 2573598 | D22: 11302003 | E22: 3730 | F22: 3089 | G22: 20506 | H22: 1358 | I22: 0.0014493 | J22: 0.00033 | K22: 0.0106174 | L22: 0.0024177 | M22: 94 | N22: 413 | O22: 689 | P22: 0.0001202
B23: 1966
B24: 1967
B25: 1968
A26: ap1971 | B26: 1969 | C26: 2845304 | D26: 11317390 | E26: 3766 | F26: 3772 | G26: 13670 | H26: 1330 | I26: 0.0013236 | J26: 0.0003328 | K26: 0.0074537 | L26: 0.0018739 | M26: 134 | N26: 533 | O26: 755 | P26: 0.0001175
B27: 1970
B28: 1971
B29: 1972
B30: 1973
B31: 1974
B32: 1975
B33: 1976
B34: 1977
B35: 1978
B36: 1979
A37: ap1981 | B37: 1980 | C37: 3727653 | D37: 13906734 | E37: 3607 | F37: 3534 | G37: 12292 | H37: 1397 | I37: 0.0009676 | J37: 0.0002594 | K37: 0.0052132 | L37: 0.0013974 | M37: 191 | N37: 715 | O37: 1033 | P37: 0.0001005
B38: 1981
B39: 1982
B40: 1983
B41: 1984
B42: 1985
B43: 1986
B44: 1987
B45: 1988
B46: 1989
A47: ap1991 | B47: 1990 | C47: 4584880 | D47: 16510646 | E47: 3400 | F47: 3162 | G47: 9358 | H47: 1437 | I47: 0.0007416 | J47: 0.0002059 | K47: 0.0034723 | L47: 0.0009642 | M47: 287 | N47: 1037 | O47: 1348 | P47: 8.7e-05
B48: 1991
B49: 1992
B50: 1993
B51: 1994
B52: 1995
B53: 1996
B54: 1997
B55: 1998
A56: ap2000 | B56: 1999 | C56: 5071904 | D56: 17715068 | E56: 3222 | F56: 2251 | G56: 7289 | H56: 1412 | I56: 0.0006353 | J56: 0.0001819 | K56: 0.0025162 | L56: 0.0007204 | M56: 397 | N56: 1388 | O56: 1574 | P56: 7.97e-05
A57: ap2001 | B57: 2000 | C57: 5070687 | D57: 17987457 | E57: 3155 | F57: 2258 | G57: 7388 | H57: 1393 | I57: 0.0006222 | J57: 0.0001754 | K57: 0.0025245 | L57: 0.0007117 | M57: 396 | N57: 1405 | O57: 1607 | P57: 7.74e-05
A58: ap2002 | B58: 2001 | C58: 5098430 | D58: 18353617 | E58: 3097 | F58: 2254 | G58: 7217 | H58: 1407 | I58: 0.0006074 | J58: 0.0001687 | K58: 0.0024651 | L58: 0.0006848 | M58: 405 | N58: 1460 | O58: 1646 | P58: 7.67e-05
A59: ap2003 | B59: 2002 | C59: 5165347 | D59: 18330111 | E59: 3037 | F59: 2094 | G59: 7030 | H59: 1395 | I59: 0.000588 | J59: 0.0001657 | K59: 0.0023543 | L59: 0.0006634 | M59: 424 | N59: 1507 | O59: 1700 | P59: 7.61e-05
A60: ap2004 | B60: 2003 | C60: 5017323 | D60: 17981437 | E60: 2947 | F60: 2013 | G60: 6905 | H60: 1356 | I60: 0.0005874 | J60: 0.0001639 | K60: 0.0023648 | L60: 0.0006598 | M60: 422 | N60: 1515 | O60: 1702 | P60: 7.54e-05
A61: ap2005 | B61: 2004 | C61: 5253170 | D61: 18857169 | E61: 3092 | F61: 2137 | G61: 6876 | H61: 1378 | I61: 0.0005886 | J61: 0.000164 | K61: 0.0023043 | L61: 0.0006419 | M61: 433 | N61: 1557 | O61: 1698 | P61: 7.31e-05
B62: 2005 | Q62: Note: Less than half of the dioceses have reported 2006 figures (8M compared to 18M for 2004), so it's better not to use them here.
Q63: ap2007 | R63: 2006 | S63: 1704711 | T63: 8652512 | U63: 926 | V63: 635 | W63: 1838 | X63: 482 | Y63: 0.0005432 | Z63: 0.000107 | AA63: 0.0019939 | AB63: 0.0003928 | AC63: 501 | AD63: 2545 | AE63: 1840 | AF63: 5.57e-05
B64: 2007
B65: 2008
B66: 2009
B67: 2010

Sheet Valid Vote Data
A1: Enrolment and Voting in House of Representatives Elections 1901-98
A2: Election Year | B2: No. of Enrolled Voters | C2: Voter Turnout | D2: Informal Votes | E2: Fraction not casting a valid vote | F2: Fraction casting a valid vote
A3: 1901 | B3: 907,658 | C3: 56.71 | D3: 1.7 | E3: =((100-C3)+D3)/100 -> 0.4499 | F3: =1-E3 -> 0.5501
A4: 1903 | B4: 1,470,902 | C4: 50.27 | D4: 2.5 | E4: =((100-C4)+D4)/100 -> 0.5223 | F4: =1-E4 -> 0.4777
A5: 1906 | B5: 1,920, 397 | C5: 51.48 | D5: 3.73 | E5: 0.5225 | F5: 0.4775
A6: 1910 | B6: 2,148,969 | C6: 62.8 | D6: 2 | E6: 0.392 | F6: 0.608
A7: 1913 | B7: 2,661,377 | C7: 73.49 | D7: 2.83 | E7: 0.2934 | F7: 0.7066
A8: 1914 | B8: 2,348,441 | C8: 73.53 | D8: 2.32 | E8: 0.2879 | F8: 0.7121
A9: 1917 | B9: 2,470,465 | C9: 78.3 | D9: 2.64 | E9: 0.2434 | F9: 0.7566
A10: 1919 | B10: 2,762,633 | C10: 71.59 | D10: 3.47 | E10: 0.3188 | F10: 0.6812
A11: 1922 | B11: 2,775,650 | C11: 59.38 | D11: 4.51 | E11: 0.4513 | F11: 0.5487
A12: 1925 | B12: 3,270,498 | C12: 91.38 | D12: 2.36 | E12: 0.1098 | F12: 0.8902
A13: 1926
A14: 1927
A15: 1928 | B15: 2,916,251 | C15: 93.62 | D15: 4.9 | E15: 0.1128 | F15: 0.8872
A16: 1929 | B16: 3,118,030 | C16: 94.85 | D16: 2.65 | E16: 0.078 | F16: 0.922
A17: 1930
A18: 1931 | B18: 3,460,315 | C18: 95.02 | D18: 3.48 | E18: 0.0846 | F18: 0.9154
A19: 1932
A20: 1933
A21: 1934 | B21: 3,866,849 | C21: 95.16 | D21: 3.43 | E21: 0.0827 | F21: 0.9173
A22: 1935
A23: 1936
A24: 1937 | B24: 3,851,206 | C24: 96.12 | D24: 2.59 | E24: 0.0647 | F24: 0.9353
A25: 1938
A26: 1939
A27: 1940 | B27: 4,202,183 | C27: 94.79 | D27: 2.56 | E27: 0.0777 | F27: 0.9223
A28: 1941
A29: 1942
A30: 1943 | B30: 4,411,697 | C30: 96.29 | D30: 2.89 | E30: 0.066 | F30: 0.934
A31: 1944
A32: 1945
A33: 1946 | B33: 4,744,017 | C33: 93.95 | D33: 2.45 | E33: 0.085 | F33: 0.915
A34: 1947
A35: 1948
A36: 1949 | B36: 4,913,654 | C36: 95.94 | D36: 1.98 | E36: 0.0604 | F36: 0.9396
A37: 1950
A38: 1951 | B38: 4,867,713 | C38: 95.97 | D38: 1.9 | E38: 0.0593 | F38: 0.9407
A39: 1952
A40: 1953
A41: 1954 | B41: 4,829,546 | C41: 96.05 | D41: 1.35 | E41: 0.053 | F41: 0.947
A42: 1955 | B42: 4,779,974 | C42: 95 | D42: 2.87 | E42: 0.0787 | F42: 0.9213
A43: 1956
A44: 1957
A45: 1958 | B45: 5,412,865 | C45: 95.44 | D45: 2.87 | E45: 0.0743 | F45: 0.9257
A46: 1959
A47: 1960
A48: 1961 | B48: 5,692,364 | C48: 95.22 | D48: 2.56 | E48: 0.0734 | F48: 0.9266
A49: 1962
A50: 1963 | B50: 5,860,935 | C50: 95.71 | D50: 1.82 | E50: 0.0611 | F50: 0.9389
A51: 1964
A52: 1965
A53: 1966 | B53: 6,193,881 | C53: 95.13 | D53: 3.1 | E53: 0.0797 | F53: 0.9203
A54: 1967
A55: 1968
A56: 1969 | B56: 6,606,873 | C56: 94.96 | D56: 2.54 | E56: 0.0758 | F56: 0.9242
A57: 1970
A58: 1971
A59: 1972 | B59: 7,074,070 | C59: 95.38 | D59: 2.17 | E59: 0.0679 | F59: 0.9321
A60: 1973
A61: 1974 | B61: 7,898,922 | C61: 95.4 | D61: 1.92 | E61: 0.0652 | F61: 0.9348
A62: 1975 | B62: 8,262,413 | C62: 95.4 | D62: 1.89 | E62: 0.0649 | F62: 0.9351
A63: 1976
A64: 1977 | C64: 95.08 | E64: 0.0492 | F64: 0.9508
A65: 1978
A66: 1979
A67: 1980 | C67: 94.35 | E67: 0.0565 | F67: 0.9435
A68: 1981
A69: 1982
A70: 1983 | C70: 94.64 | D70: 2.1 | E70: 0.0746 | F70: 0.9254
A71: 1984 | C71: 94.17 | D71: 6.3 | E71: 0.1213 | F71: 0.8787
A72: 1985
A73: 1986
A74: 1987 | B74: 10,353,213 | C74: 94.33 | D74: 4.9 | E74: 0.1057 | F74: 0.8943
A75: 1988
A76: 1989
A77: 1990 | B77: 10,728,435 | C77: 93.84 | D77: 3.2 | E77: 0.0936 | F77: 0.9064
A78: 1991
A79: 1992
A80: 1993 | B80: 11,384,638 | C80: 95.75 | D80: 3 | E80: 0.0725 | F80: 0.9275
A81: 1994
A82: 1995
A83: 1996 | B83: 11,740,568 | C83: 95.77 | D83: 3.2 | E83: 0.0743 | F83: 0.9257
A84: 1997
A85: 1998 | B85: 12,154,050 | C85: 94.99 | D85: 3.8 | E85: 0.0881 | F85: 0.9119
A86: 1999
A87: 2000
A88: 2001 | B88: 12,708,837 | C88: 94.85 | D88: 4.81 | E88: 0.0996 | F88: 0.9004
A89: 2002
A90: 2003
A91: 2004 | B91: 13,035,523 | C91: 94.32 | D91: 5.18 | E91: 0.1086 | F91: 0.8914
A92: 2005
A93: 2006
A94: 2007 | B94: 13,646,539 | C94: 94.76 | D94: 3.95 | E94: 0.0919 | F94: 0.9081
A95: 2008
A96: 2009
A97: 2010

Sheet Parties data
A1: Political Parties
A2: Source: ALP data for 1948, 1953, 1958, 1963, 1968, 1973, 1978, 1983, 1988 from Andrew Scott, Fading Loyalties: Working Class Participation in, and Electoral Support for, the Australian Labor Party Since World War II, University of Melbourne Honours Thesis, 1990, Appendix 3
A3: All 1967 and 1972 figures from Ian Ward, "The Changing Organisational Nature of Australia's Political Parties", Journal of Comparative and Commonwealth Politics, 1991, 29(2), pp.153-74
A4: All 1980 and 1990 figures from Randal G. Stewart and Ian Ward, Politics One, Macmillan, Melbourne, 1992, p.98
A5: All 1996 figures from Clive Bean, "Parties and Elections" in B.Galligan, I.McAllister and J.Ravenhill (eds), 1997, New Developments in Australian Politics, MacMillan, Melbourne, p.110
A6: 2003 from Australian Survey of Social Attitudes, V68(b), and includes minor parties.
A7: Total is the sum of all party memberships, and assumes that no individual holds multiple party membership
A8: 2000 & 2004 Greens from Geoffrey Ash, private communication
A10: Year | B10: ALP # | C10: ALP % | D10: Liberal Party # | E10: Liberal Party % | F10: National Party | G10: National Party % | H10: Greens | I10: Total % | J10: Pop 15+ | K10: Total any party % (AES) | L10: Total major party % (AES) | M10: Sample size of AES
A11: 1945 | J11: 5594100
A12: 1946 | J12: 5638600
A13: 1947 | J13: 5675200
A14: 1948 | B14: 63,698 | C14: =B14/J14 -> 1.11% | J14: 5734100
A15: 1949 | J15: 5847000
A16: 1950 | J16: 6002800
A17: 1951 | J17: 6135600
A18: 1952 | J18: 6252700
A19: 1953 | B19: 74,921 | C19: =B19/J19 -> 1.18% | J19: 6336200
A20: 1954 | J20: 6417200
A21: 1955 | J21: 6528200
A22: 1956 | J22: 6655600
A23: 1957 | J23: 6782800
A24: 1958 | B24: 44,626 | C24: =B24/J24 -> 0.65% | J24: 6891000
A25: 1959 | J25: 7027200
A26: 1960 | J26: 7171400
A27: 1961 | J27: 7323200
A28: 1962 | J28: 7485100
A29: 1963 | B29: 44,100 | C29: =B29/J29 -> 0.58% | J29: 7643900
A30: 1964 | J30: 7805400
A31: 1965 | J31: 7980900
A32: 1966 | J32: 8179788
A33: 1967 | B33: 42,700 | C33: =B33/J33 -> 0.51% | D33: 127000 | E33: =D33/J33 -> 1.52% | F33: 81000 | G33: =F33/J33 -> 0.97% | I33: =C33+E33+G33 -> 3.00% | J33: 8343833 | K33: 5.83% | L33: 5.54% | M33: 2039 | N33: Have you paid a subscription to any political party in the last year? (Q49(a), v176 & v177)
A34: 1968 | B34: 43,266 | C34: =B34/J34 -> 0.51% | J34: 8522217
A35: 1969 | J35: 8716454 | M35: 421 | N35: Have you paid a subscription to any political party in the last year? (QN12(a), v809) [Note that the first 1353 cases are blank for organisational membership variables, so are recoded as missing. This leaves a figure of 4.04%, which has such a large error margin as to be unusable.]
A36: 1970 | J36: 8901723
A37: 1971 | J37: 9319988
A38: 1972 | B38: 56,500 | C38: =B38/J38 -> 0.59% | D38: 100200 | E38: =D38/J38 -> 1.05% | F38: 80000 | G38: =F38/J38 -> 0.84% | I38: =C38+E38+G38 -> 2.49% | J38: 9510934
A39: 1973 | B39: 45,881 | C39: =B39/J39 -> 0.47% | J39: 9691778
A40: 1974 | J40: 9898311
A41: 1975 | J41: 10073371
A42: 1976 | J42: 10245988
A43: 1977 | J43: 10428589
A44: 1978 | B44: 49,076 | C44: =B44/J44 -> 0.46% | J44: 10616188
A45: 1979 | J45: 10797294 | K45: 5.77% | L45: 5.53% | M45: 2007 | N45: Have you paid a subscription to any political party in the last year? (v137 partysub)
A46: 1980 | B46: 53480 | C46: =B46/J46 -> 0.49% | D46: 73500 | E46: =D46/J46 -> 0.67% | F46: 119100 | G46: =F46/J46 -> 1.08% | I46: =C46+E46+G46 -> 2.24% | J46: 10984362
A47: 1981 | J47: 11197720
A48: 1982 | J48: 11439261
A49: 1983 | B49: 51,331 | C49: =B49/J49 -> 0.44% | J49: 11642452
A50: 1984 | J50: 11843586
A51: 1985 | J51: 12062771
A52: 1986 | J52: 12318832
A53: 1987 | J53: 12576530
A54: 1988 | B54: 42,757 | C54: =B54/J54 -> 0.33% | J54: 12833133
A55: 1989 | J55: 13089498
A56: 1990 | B56: 51900 | C56: =B56/J56 -> 0.39% | D56: 73400 | E56: =D56/J56 -> 0.55% | F56: 118300 | G56: =F56/J56 -> 0.89% | I56: =C56+E56+G56 -> 1.83% | J56: 13310134
A57: 1991 | J57: 13498506
A58: 1992 | J58: 13678327
A59: 1993 | J59: 13829567
A60: 1994 | J60: 13994701
A61: 1995 | J61: 14183640
A62: 1996 | B62: 50000 | C62: =B62/J62 -> 0.35% | D62: 70000 | E62: =D62/J62 -> 0.49% | F62: 115000 | G62: =F62/J62 -> 0.80% | I62: =C62+E62+G62 -> 1.63% | J62: 14399399 | K62: 2.95% | L62: 2.48% | M62: 1641 | N62: Are you currently a member of a political party? (A8P1)
A63: 1997 | J63: 14604610
A64: 1998 | J64: 14810586
A65: 1999 | B65: 64812 | C65: =B65/J65 -> 0.43% | J65: 15016967
A66: 2000 | H66: 3000 | J66: 15234957
A67: 2001 | J67: 15426042
A68: 2002 | J68: 15656801
A69: 2003 | J69: 15891108 | K69: 3.70% | L69: =0.037*0.84 -> 3.11% | M69: 2033 | N69: We would like to ask you if you are a member of any of the groups and organisations listed below: b. A political party. Total is 3.7%. This is then multiplied by 84%, since in 1996, 84% of party members were members of a major party.
A70: 2004 | B70: 43,446 | C70: =B70/J70 -> 0.27% | D70: 80000 | E70: =D70/J70 -> 0.50% | H70: 9250 | J70: 16125415
A71: 2005

Sheet Cricket attendance
A1: Total entry rates are discounted as follows.
A2: ABS 4174.0 says that 57.0% of cricket attendees went 1-2 times, 23.0% went 3-5 times, and 20.0% went 6+ times. So a conservative discounting would multiply attendance figures by 0.68, which is (.57*1 + .23*1/3 + .20*1/6)
C4: Test matches | E4: World Series | G4: Sheffield Shield | I4: Domestic limited-overs | K4: Attendance/Population | L4: Attendance/Population (discounted) | M4: Total attendance assuming that:
B5: Total population | C5: Attendance | D5: Days | E5: Attendance | F5: Days | G5: Attendance | H5: Days | I5: Attendance | J5: Days | M5: Total test crowd=4*daily crowd | N5: Total test crowd=3*daily crowd | O5: Total test crowd=2*daily crowd | P5: Average attendance per game
A6: 1901 | B6: 3774072 | G6: 70,642 | H6: 30 | K6: =(C6+E6+G6+I6)/B6 -> 1.87% | L6: =K6*0.68 -> 1.27% | M6: =((C6+G6)*0.8+E6+I6)/B6 -> 1.50% | N6: =((C6+G6)*0.6+E6+I6)/B6 -> 1.12% | O6: =((C6+G6)*0.4+E6+I6)/B6 -> 0.75% | P6: =(C6+E6+G6+I6)/(D6+F6+H6+J6) -> 2354.733333
A7: 1902 | B7: 3842165.3 | G7: 65,407 | H7: 25 | K7: =(C7+E7+G7+I7)/B7 -> 1.70% | L7: =K7*0.68 -> 1.16% | M7: =((C7+G7)*0.8+E7+I7)/B7 -> 1.36% | N7: =((C7+G7)*0.6+E7+I7)/B7 -> 1.02% | O7: =((C7+G7)*0.4+E7+I7)/B7 -> 0.68% | P7: =(C7+E7+G7+I7)/(D7+F7+H7+J7) -> 2616.28
A8: 1903 | B8: 3910258.6 | G8: 99,164 | H8: 30 | K8: 2.54% | L8: 1.72% | M8: 2.03% | N8: 1.52% | O8: 1.01% | P8: 3305.466667
A9: 1904 | B9: 3978351.9 | G9: 81,901 | H9: 25 | K9: 2.06% | L9: 1.40% | M9: 1.65% | N9: 1.24% | O9: 0.82% | P9: 3276.04
A10: 1905 | B10: 4046445.2 | G10: 103,618 | H10: 30 | K10: 2.56% | L10: 1.74% | M10: 2.05% | N10: 1.54% | O10: 1.02% | P10: 3453.933333
A11: 1906 | B11: 4114538.5 | G11: 83,136 | H11: 30 | K11: 2.02% | L11: 1.37% | M11: 1.62% | N11: 1.21% | O11: 0.81% | P11: 2771.2
A12: 1907 | B12: 4182631.8 | G12: 65,994 | H12: 30 | K12: 1.58% | L12: 1.07% | M12: 1.26% | N12: 0.95% | O12: 0.63% | P12: 2199.8
A13: 1908 | B13: 4250725.1 | G13: 67,377 | H13: 20 | K13: 1.59% | L13: 1.08% | M13: 1.27% | N13: 0.95% | O13: 0.63% | P13: 3368.85
A14: 1909 | B14: 4318818.4 | G14: 96,129 | H14: 30 | K14: 2.23% | L14: 1.51% | M14: 1.78% | N14: 1.34% | O14: 0.89% | P14: 3204.3
A15: 1910 | B15: 4386911.7 | G15: 70,247 | H15: 30 | K15: 1.60% | L15: 1.09% | M15: 1.28% | N15: 0.96% | O15: 0.64% | P15: 2341.566667
A16: 1911 | B16: 4455005 | G16: 67,409 | H16: 25 | K16: 1.51% | L16: 1.03% | M16: 1.21% | N16: 0.91% | O16: 0.61% | P16: 2696.36
A17: 1912 | B17: 4555014.5 | G17: 77,972 | H17: 30 | K17: 1.71% | L17: 1.16% | M17: 1.37% | N17: 1.03% | O17: 0.68% | P17: 2599.066667
A18: 1913 | B18: 4655024 | G18: 90,774 | H18: 30 | K18: 1.95% | L18: 1.33% | M18: 1.56% | N18: 1.17% | O18: 0.78% | P18: 3025.8
A19: 1914 | B19: 4755033.5 | G19: 99,068 | H19: 30 | K19: 2.08% | L19: 1.42% | M19: 1.67% | N19: 1.25% | O19: 0.83% | P19: 3302.266667
A20: 1915 | B20: 4855043 | G20: 74,442 | H20: 30 | K20: 1.53% | L20: 1.04% | M20: 1.23% | N20: 0.92% | O20: 0.61% | P20: 2481.4
A21: 1916 | B21: 4955052.5 | K21: 0.00% | L21: 0.00% | M21: 0.00% | N21: 0.00% | O21: 0.00%
A22: 1917 | B22: 5055062 | K22: 0.00% | L22: 0.00% | M22: 0.00% | N22: 0.00% | O22: 0.00%
A23: 1918 | B23: 5155071.5 | K23: 0.00% | L23: 0.00% | M23: 0.00% | N23: 0.00% | O23: 0.00%
A24: 1919 | B24: 5255081 | K24: 0.00% | L24: 0.00% | M24: 0.00% | N24: 0.00% | O24: 0.00%
A25: 1920 | B25: 5355090.5 | G25: 417,583 | H25: 30 | K25: 7.80% | L25: 5.30% | M25: 6.24% | N25: 4.68% | O25: 3.12% | P25: 13919.43333
A26: 1921 | B26: 5455100 | C26: 478,020 | D26: 25 | G26: 141,702 | H26: 30 | K26: 11.36% | L26: 7.73% | M26: 9.09% | N26: 6.82% | O26: 4.54% | P26: 11267.67273
A27: 1922 | B27: 5569900 | G27: 185,690 | H27: 30 | K27: 3.33% | L27: 2.27% | M27: 2.67% | N27: 2.00% | O27: 1.33% | P27: 6189.666667
A28: 1923 | B28: 5693400 | G28: 168,639 | H28: 30 | K28: 2.96% | L28: 2.01% | M28: 2.37% | N28: 1.78% | O28: 1.18% | P28: 5621.3
A29: 1924 | B29: 5811200 | G29: 244,158 | H29: 30 | K29: 4.20% | L29: 2.86% | M29: 3.36% | N29: 2.52% | O29: 1.68% | P29: 8138.6
A30: 1925 | B30: 5939200 | C30: 692,242 | D30: 25 | G30: 134,817 | H30: 30 | K30: 13.93% | L30: 9.47% | M30: 11.14% | N30: 8.36% | O30: 5.57% | P30: 15037.43636
A31: 1926 | B31: 6056300 | G31: 267,777 | H31: 30 | K31: 4.42% | L31: 3.01% | M31: 3.54% | N31: 2.65% | O31: 1.77% | P31: 8925.9
A32: 1927 | B32: 6182500 | G32: 389,883 | H32: 55 | K32: 6.31% | L32: 4.29% | M32: 5.04% | N32: 3.78% | O32: 2.52% | P32: 7088.781818
A33: 1928 | B33: 6302200 | G33: 423,159 | H33: 60 | K33: 6.71% | L33: 4.57% | M33: 5.37% | N33: 4.03% | O33: 2.69% | P33: 7052.65
A34: 1929 | B34: 6393900 | C34: 857,600 | D34: 25 | G34: 237,779 | H34: 60 | K34: 17.13% | L34: 11.65% | M34: 13.71% | N34: 10.28% | O34: 6.85% | P34: 12886.81176
A35: 1930 | B35: 6462700 | G35: 280,689 | H35: 60 | K35: 4.34% | L35: 2.95% | M35: 3.47% | N35: 2.61% | O35: 1.74% | P35: 4678.15
A36: 1931 | B36: 6526500 | C36: 157,000 | D36: 25 | G36: 206,972 | H36: 60 | K36: 5.58% | L36: 3.79% | M36: 4.46% | N36: 3.35% | O36: 2.23% | P36: 4282.023529
A37: 1932 | B37: 6576800 | C37: 270,078 | D37: 25 | G37: 185,783 | H37: 60 | K37: 6.93% | L37: 4.71% | M37: 5.55% | N37: 4.16% | O37: 2.77% | P37: 5363.070588
A38: 1933 | B38: 6629800 | C38: 761,163 | D38: 25 | G38: 184,339 | H38: 60 | K38: 14.26% | L38: 9.70% | M38: 11.41% | N38: 8.56% | O38: 5.70% | P38: 11123.55294
A39: 1934 | B39: 6677400 | G39: 298,132 | H39: 60 | K39: 4.46% | L39: 3.04% | M39: 3.57% | N39: 2.68% | O39: 1.79% | P39: 4968.866667
A40: 1935 | B40: 6726200 | G40: 207,068 | H40: 60 | K40: 3.08% | L40: 2.09% | M40: 2.46% | N40: 1.85% | O40: 1.23% | P40: 3451.133333
A41: 1936 | B41: 6778400 | G41: 204,058 | H41: 60 | K41: 3.01% | L41: 2.05% | M41: 2.41% | N41: 1.81% | O41: 1.20% | P41: 3400.966667
A42: 1937 | B42: 6835600 | C42: 948,498 | D42: 25 | G42: 174,998 | H42: 60 | K42: 16.44% | L42: 11.18% | M42: 13.15% | N42: 9.86% | O42: 6.57% | P42: 13217.6
A43: 1938 | B43: 6898600 | G43: 244,197 | H43: 60 | K43: 3.54% | L43: 2.41% | M43: 2.83% | N43: 2.12% | O43: 1.42% | P43: 4069.95
A44: 1939 | B44: 6967800 | G44: 261,468 | H44: 60 | K44: 3.75% | L44: 2.55% | M44: 3.00% | N44: 2.25% | O44: 1.50% | P44: 4357.8
A45: 1940 | B45: 7039500 | G45: 342,356 | H45: 60 | K45: 4.86% | L45: 3.31% | M45: 3.89% | N45: 2.92% | O45: 1.95% | P45: 5705.933333
A46: 1941 | B46: 7109900 | K46: 0.00% | L46: 0.00% | M46: 0.00% | N46: 0.00% | O46: 0.00%
A47: 1942 | B47: 7180700 | K47: 0.00% | L47: 0.00% | M47: 0.00% | N47: 0.00% | O47: 0.00%
A48: 1943 | B48: 7234900 | K48: 0.00% | L48: 0.00% | M48: 0.00% | N48: 0.00% | O48: 0.00%
A49: 1944 | B49: 7309700 | K49: 0.00% | L49: 0.00% | M49: 0.00% | N49: 0.00% | O49: 0.00%
A50: 1945 | B50: 7391700 | K50: 0.00% | L50: 0.00% | M50: 0.00% | N50: 0.00% | O50: 0.00%
A51: 1946 | B51: 7465100 | K51: 0.00% | L51: 0.00% | M51: 0.00% | N51: 0.00% | O51: 0.00%
A52: 1947 | B52: 7579400 | C52: 846,942 | D52: 25 | G52: 155,081 | H52: 60 | K52: 13.22% | L52: 8.99% | M52: 10.58% | N52: 7.93% | O52: 5.29% | P52: 11788.50588
A53: 1948 | B53: 7708700 | C53: 388,480 | D53: 25 | G53: 253,961 | H53: 80 | K53: 8.33% | L53: 5.67% | M53: 6.67% | N53: 5.00% | O53: 3.33% | P53: 6118.485714
A54: 1949 | B54: 7908100 | G54: 291,836 | H54: 80 | K54: 3.69% | L54: 2.51% | M54: 2.95% | N54: 2.21% | O54: 1.48% | P54: 3647.95
A55: 1950 | B55: 8178700 | G55: 296,217 | H55: 80 | K55: 3.62% | L55: 2.46% | M55: 2.90% | N55: 2.17% | O55: 1.45% | P55: 3702.7125
A56: 1951 | B56: 8421700 | C56: 612,147 | D56: 25 | G56: 222,509 | H56: 80 | K56: 9.91% | L56: 6.74% | M56: 7.93% | N56: 5.95% | O56: 3.96% | P56: 7949.104762
A57: 1952 | B57: 8636500 | C57: 395,798 | D57: 25 | G57: 178,049 | H57: 80 | K57: 6.64% | L57: 4.52% | M57: 5.32% | N57: 3.99% | O57: 2.66% | P57: 5465.209524
A58: 1953 | B58: 8815300 | C58: 388,039 | D58: 25 | G58: 216,494 | H58: 80 | K58: 6.86% | L58: 4.66% | M58: 5.49% | N58: 4.11% | O58: 2.74% | P58: 5757.457143
A59: 1954 | B59: 8986500 | G59: 268,637 | H59: 80 | K59: 2.99% | L59: 2.03% | M59: 2.39% | N59: 1.79% | O59: 1.20% | P59: 3357.9625
A60: 1955 | B60: 9199700 | C60: 703,397 | D60: 25 | G60: 143,921 | H60: 45 | K60: 9.21% | L60: 6.26% | M60: 7.37% | N60: 5.53% | O60: 3.68% | P60: 12104.54286
A61: 1956 | B61: 9425500 | G61: 284,577 | H61: 80 | K61: 3.02% | L61: 2.05% | M61: 2.42% | N61: 1.81% | O61: 1.21% | P61: 3557.2125
A62: 1957 | B62: 9640200 | G62: 265,281 | H62: 100 | K62: 2.75% | L62: 1.87% | M62: 2.20% | N62: 1.65% | O62: 1.10% | P62: 2652.81
A63: 1958 | B63: 9842400 | G63: 265,544 | H63: 100 | K63: 2.70% | L63: 1.83% | M63: 2.16% | N63: 1.62% | O63: 1.08% | P63: 2655.44
A64: 1959 | B64: 10056400 | C64: 765,737 | D64: 25 | G64: 206,816 | H64: 100 | K64: 9.67% | L64: 6.58% | M64: 7.74% | N64: 5.80% | O64: 3.87% | P64: 7780.424
A65: 1960 | B65: 10275000 | G65: 241,784 | H65: 20 | K65: 2.35% | L65: 1.60% | M65: 1.88% | N65: 1.41% | O65: 0.94% | P65: 12089.2
A66: 1961 | B66: 10508200 | C66: 734,892 | D66: 25 | G66: 158,090 | H66: 100 | K66: 8.50% | L66: 5.78% | M66: 6.80% | N66: 5.10% | O66: 3.40% | P66: 7143.856
A67: 1962 | B67: 10700500 | G67: 363,060 | H67: 100 | K67: 3.39% | L67: 2.31% | M67: 2.71% | N67: 2.04% | O67: 1.36% | P67: 3630.6
A68: 1963 | B68: 10906900 | C68: 736,274 | D68: 25 | G68: 252,804 | H68: 100 | K68: 9.07% | L68: 6.17% | M68: 7.25% | N68: 5.44% | O68: 3.63% | P68: 7912.624
A69: 1964 | B69: 11121600 | C69: 353,413 | D69: 25 | G69: 211,748 | H69: 100 | K69: 5.08% | L69: 3.46% | M69: 4.07% | N69: 3.05% | O69: 2.03% | P69: 4521.288
A70: 1965 | B70: 11340900 | C70: 33,067 | D70: 5 | G70: 313,147 | H70: 100 | K70: 3.05% | L70: 2.08% | M70: 2.44% | N70: 1.83% | O70: 1.22% | P70: 3297.27619
A71: 1966 | B71: 11599498 | C71: 537,847 | D71: 25 | G71: 218,858 | H71: 100 | K71: =(C71+E71+G71+I71)/B71 -> 6.52% | L71: =K71*0.68 -> 4.44% | M71: =((C71+G71)*0.8+E71+I71)/B71 -> 5.22% | N71: =((C71+G71)*0.6+E71+I71)/B71 -> 3.91% | O71: =((C71+G71)*0.4+E71+I71)/B71 -> 2.61% | P71: =(C71+E71+G71+I71)/(D71+F71+H71+J71) -> 6053.64
A72: 1967 | B72: 11799078 | G72: 243,125 | H72: 100 | K72: 2.06% | L72: 1.40% | M72: 1.65% | N72: 1.24% | O72: 0.82% | P72: 2431.25
A73: 1968 | B73: 12008635 | C73: 121,735 | D73: 20 | G73: 216,887 | H73: 100 | K73: 2.82% | L73: 1.92% | M73: 2.26% | N73: 1.69% | O73: 1.13% | P73: 2821.85
A74: 1969 | B74: 12263014 | C74: 428,940 | D74: 25 | G74: 231,931 | H74: 100 | K74: 5.39% | L74: 3.66% | M74: 4.31% | N74: 3.23% | O74: 2.16% | P74: 5286.968
A75: 1970 | B75: 12507349 | G75: 265,978 | H75: 100 | I75: 37,691 | J75: 6 | K75: 2.43% | L75: 1.65% | M75: 2.00% | N75: 1.58% | O75: 1.15% | P75: 2864.801887
A76: 1971 | B76: 13067265 | C76: 616,196 | D76: 35 | G76: 219,733 | H76: 100 | I76: 35,011 | J76: 6 | K76: 6.67% | L76: 4.53% | M76: 5.39% | N76: 4.11% | O76: 2.83% | P76: 6176.879433
A77: 1972 | B77: 13303664 | G77: 232,319 | H77: 100 | I77: 25,556 | J77: 6 | K77: 1.94% | L77: 1.32% | M77: 1.59% | N77: 1.24% | O77: 0.89% | P77: 2432.783019
A78: 1973 | B78: 13504538 | C78: 218,097 | D78: 15 | G78: 319,522 | H78: 100 | I78: 37,289 | J78: 6 | K78: 4.26% | L78: 2.89% | M78: 3.46% | N78: 2.66% | O78: 1.87% | P78: 4751.305785
A79: 1974 | B79: 13722571 | C79: 120,729 | D79: 15 | G79: 348,684 | H79: 100 | I79: 31,569 | J79: 6 | K79: 3.65% | L79: 2.48% | M79: 2.97% | N79: 2.28% | O79: 1.60% | P79: 4140.347107
A80: 1975 | B80: 13892995 | C80: 777,333 | D80: 30 | G80: 262,627 | H80: 100 | I80: 26,060 | J80: 6 | K80: 7.67% | L80: 5.22% | M80: 6.18% | N80: 4.68% | O80: 3.18% | P80: 7838.382353
A81: 1976 | B81: 14033083 | C81: 741,311 | D81: 30 | G81: 192,852 | H81: 100 | I81: 31,068 | J81: 5 | K81: 6.88% | L81: 4.68% | M81: 5.55% | N81: 4.22% | O81: 2.88% | P81: 7149.859259
A82: 1977 | B82: 14192234 | C82: 572,917 | D82: 20 | G82: 257,606 | H82: 100 | I82: 53,628 | J82: 5 | K82: 6.23% | L82: 4.24% | M82: 5.06% | N82: 3.89% | O82: 2.72% | P82: 7073.208
A83: 1978 | B83: 14359255 | C83: 256,594 | D83: 30 | G83: 213,968 | H83: 125 | I83: 34,018 | J83: 5 | K83: 3.51% | L83: 2.39% | M83: 2.86% | N83: 2.20% | O83: 1.55% | P83: 3153.625
A84: 1979 | B84: 14515729 | C84: 429,846 | D84: 40 | G84: 134,153 | H84: 125 | I84: 20,332 | J84: 5 | K84: 4.03% | L84: 2.74% | M84: 3.25% | N84: 2.47% | O84: 1.69% | P84: 3437.241176
A85: 1980 | B85: 14695356 | C85: 438,391 | D85: 30 | E85: 256,278 | F85: 13 | G85: 168,068 | H85: 125 | I85: 70,901 | J85: 10 | K85: 6.35% | L85: 4.32% | M85: 5.53% | N85: 4.70% | O85: 3.88% | P85: 5245.157303
A86: 1981 | B86: 14923260 | C86: 285,462 | D86: 30 | E86: 365,368 | F86: 19 | G86: 182,721 | H86: 125 | I86: 62,023 | J86: 10 | K86: 6.00% | L86: 4.08% | M86: 5.37% | N86: 4.75% | O86: 4.12% | P86: 4867.25
A87: 1982 | B87: 15184247 | C87: 442,140 | D87: 30 | E87: 445,691 | F87: 19 | G87: 117,151 | H87: 125 | I87: 44,862 | J87: 10 | K87: 6.91% | L87: 4.70% | M87: 6.18% | N87: 5.44% | O87: 4.70% | P87: 5705.673913
A88: 1983 | B88: 15393472 | C88: 556,601 | D88: 25 | E88: 553,730 | F88: 17 | G88: 159,071 | H88: 155 | I88: 35,679 | J88: 8 | K88: 8.48% | L88: 5.77% | M88: 7.55% | N88: 6.62% | O88: 5.69% | P88: 6366.24878
A89: 1984 | B89: 15579391 | C89: 284,114 | D89: 25 | E89: 543,952 | F89: 18 | G89: 149,534 | H89: 155 | I89: 51,763 | J89: 10 | K89: 6.61% | L89: 4.49% | M89: 6.05% | N89: 5.49% | O89: 4.94% | P89: 4948.860577
A90: 1985 | B90: 15788312 | C90: 337,511 | D90: 25 | E90: 460,730 | F90: 18 | G90: 108,079 | H90: 155 | I90: 51,344 | J90: 9 | K90: 6.07% | L90: 4.12% | M90: 5.50% | N90: 4.94% | O90: 4.37% | P90: 4626.396135
A91: 1986 | B91: 16018350 | C91: 279,498 | D91: 30 | E91: 494,852 | F91: 17 | G91: 120,167 | H91: 155 | I91: 45,703 | J91: 10 | K91: 5.87% | L91: 3.99% | M91: 5.37% | N91: 4.87% | O91: 4.37% | P91: 4435
A92: 1987 | B92: 16263874 | C92: 333,467 | D92: 25 | E92: 435,606 | F92: 14 | G92: 115,386 | H92: 155 | I92: 49,761 | J92: 9 | K92: 5.74% | L92: 3.91% | M92: 5.19% | N92: 4.64% | O92: 4.09% | P92: 4602.068966
A93: 1988 | B93: 16532164 | C93: 299,858 | D93: 25 | E93: 329,471 | F93: 14 | G93: 249,769 | H93: 155 | I93: 47,586 | J93: 9 | K93: 5.61% | L93: 3.81% | M93: 4.94% | N93: 4.28% | O93: 3.61% | P93: 4564.945813
A94: 1989 | B94: 16814416 | C94: 323,759 | D94: 25 | E94: 479,594 | F94: 15 | G94: 205,869 | H94: 155 | I94: 58,722 | J94: 9 | K94: 6.35% | L94: 4.32% | M94: 5.72% | N94: 5.09% | O94: 4.46% | P94: 5235.019608
A95: 1990 | B95: 17065128 | C95: 204,756 | D95: 25 | E95: 350,268 | F95: 14 | G95: 205,869 | H95: 155 | I95: 46,618 | J95: 9 | K95: 4.73% | L95: 3.22% | M95: 4.25% | N95: 3.77% | O95: 3.29% | P95: 3977.8867
A96: 1991 | B96: 17284036 | C96: 391,294 | D96: 25 | E96: 343,088 | F96: 14 | G96: 194,059 | H96: 155 | I96: 48,389 | J96: 9 | K96: 5.65% | L96: 3.84% | M96: 4.97% | N96: 4.30% | O96: 3.62% | P96: 4811.970443
A97: 1992 | B97: 17494664 | C97: 254,566 | D97: 25 | E97: 364,402 | F97: 14 | G97: 189,441 | H97: 155 | I97: 43,401 | J97: 9 | K97: 4.87% | L97: 3.31% | M97: 4.36% | N97: 3.85% | O97: 3.35% | P97: 4196.108374
A98: 1993 | B98: 17667093 | C98: 356,112 | D98: 25 | E98: 421,966 | F98: 14 | G98: 153,027 | H98: 155 | I98: 74,621 | J98: 17 | K98: 5.69% | L98: 3.87% | M98: 5.12% | N98: 4.54% | O98: 3.96% | P98: 4766.473934
A99: 1994 | B99: 17854738 | C99: 299,826 | D99: 30 | E99: 458,050 | F99: 14 | G99: 178,028 | H99: 155 | I99: 86,542 | J99: 17 | K99: 5.73% | L99: 3.89% | M99: 5.19% | N99: 4.66% | O99: 4.12% | P99: 4733.546296
A100: 1995 | B100: 18071758 | C100: 478,126 | D100: 25 | E100: 363,129 | F100: 14 | G100: 221,259 | H100: 155 | I100: 76,586 | J100: 16 | K100: 6.30% | L100: 4.29% | M100: 5.53% | N100: 4.76% | O100: 3.98% | P100: 5424.285714 | Q100: =(C100+E100+G100+I100) -> 1,139,100
A101: 1996 | B101: 18310714 | C101: 301,191 | D101: 30 | E101: 429,592 | F101: 14 | G101: 207,508 | H101: 155 | I101: 100,867 | J101: 18 | K101: 5.68% | L101: 3.86% | M101: 5.12% | N101: 4.56% | O101: 4.01% | P101: 4788.746544 | Q101: =(C101+E101+G101+I101) -> 1,039,158
A102: 1997 | B102: 18524155 | C102: 358,072 | D102: 25 | E102: 358,444 | F102: 14 | G102: 183,178 | H102: 155 | I102: 95,355 | J102: 18 | K102: 5.37% | L102: 3.65% | M102: 4.79% | N102: 4.20% | O102: 3.62% | P102: 4693.627358 | Q102: =(C102+E102+G102+I102) -> 995,049
A103: 1998 | B103: 18730359 | C103: 407,593 | D103: 30 | E103: 394,131 | F103: 15 | G103: 140,153 | H103: 155 | I103: 133,188 | J103: 24 | K103: 5.74% | L103: 3.90% | M103: 5.15% | N103: 4.57% | O103: 3.99% | P103: 4799.397321 | Q103: =(C103+E103+G103+I103) -> 1,075,065
A104: 1999 | B104: 18937166 | C104: 471,475 | D104: 25 | E104: 443,678 | F104: 17 | G104: 127,862 | H104: 155 | I104: 95,755 | J104: 24 | K104: 6.01% | L104: 4.09% | M104: 5.38% | N104: 4.75% | O104: 4.11% | P104: 5152.80543 | Q104: =(C104+E104+G104+I104) -> 1,138,770
A105: 2000 | B105: 19153380 | C105: 411,335 | D105: 30 | E105: 456,254 | F105: 14 | G105: 100,638 | H105: 155 | I105: 98,879 | J105: 23 | K105: 5.57% | L105: 3.79% | M105: 5.04% | N105: 4.50% | O105: 3.97% | P105: 4806.783784
A106: 2001 | B106: 19413240 | C106: 414,144 | D106: 25 | E106: 370,217 | F106: 14 | G106: 95,113 | H106: 155 | I106: 113,639 | J106: 31 | K106: 5.12% | L106: 3.48% | M106: 4.59% | N106: 4.07% | O106: 3.54% | P106: 4413.835556
A107: 2002 | B107: 19651438 | C107: 445,937 | D107: 30 | E107: 417,711 | F107: 14 | G107: 85,791 | H107: 155 | I107: 134,286 | J107: 31 | K107: 5.51% | L107: 3.75% | M107: 4.97% | N107: 4.43% | O107: 3.89% | P107: 4711.847826
A108: 2003 | B108: 19895435
A109: 2004 | B109: 20127363
A110: 2005 | B110: 20394791
A111: 2006 | B111: 20697880
A112: 2007 | B112: 21072452
A113: 2008 | B113: 21431781
A114: 2009 | B114: 21874920
A115: 2010

Sheet AFL attendance
A1: Total entry rates are discounted as follows.
A2: ABS 4174.0 says that ABS 4174.0 says that 36.9% of AFL attendees went 1-2 times, 24.7% went 3-5 times, and 38.4% went 6+ times. So a conservative discounting would multiply attendance figures by 0.515, which is (.369*1 + .247*1/3 + .384*1/6)
A3: For 2003-09, see http://stats.afl.com.au/public/statistics/attendSBSsummary.shtml?AFLstatisticMenu=1
B4: AFL attendances | D4: Source: AFL Information Sheet 7 (from www.afl.com)
B5: Year | C5: Home & Away | D5: Finals | E5: Total
F6: Total population | G6: Attendance/Population | H6: Attendance/Population (discounted) | I6: Col H 1901-20 | J6: Col H 1921-2000
B7: 1897 | C7: - | D7: - | E7: 30800
B8: 1898 | C8: - | D8: - | E8: 29658
B9: 1899 | C9: - | D9: - | E9: 4823
B10: 1900 | C10: - | D10: - | E10: 36181
B11: 1901 | C11: - | D11: - | E11: 55031 | F11: 3774072 | G11: =E11/F11 -> 0.01458133284 | H11: =G11*0.515 -> 0.75% | I11: =H11 -> 0.75%
B12: 1902 | C12: - | D12: - | E12: 82202 | F12: 3842165.3 | G12: =E12/F12 -> 0.02139470678 | H12: =G12*0.515 -> 1.10% | I12: =H12 -> 1.10%
B13: 1903 | C13: - | D13: - | E13: 63863 | F13: 3910258.6 | G13: 0.0163321679 | H13: 0.84% | I13: 0.84%
B14: 1904 | C14: - | D14: - | E14: 73688 | F14: 3978351.9 | G14: 0.01852224284 | H14: 0.95% | I14: 0.95%
B15: 1905 | C15: - | D15: - | E15: 88000 | F15: 4046445.2 | G15: 0.02174748345 | H15: 1.12% | I15: 1.12%
B16: 1906 | C16: - | D16: - | E16: 67937 | F16: 4114538.5 | G16: 0.0165114508 | H16: 0.85% | I16: 0.85%
B17: 1907 | C17: - | D17: - | E17: 96277 | F17: 4182631.8 | G17: 0.02301828241 | H17: 1.19% | I17: 1.19%
B18: 1908 | C18: - | D18: - | E18: 104648 | F18: 4250725.1 | G18: 0.02461885856 | H18: 1.27% | I18: 1.27%
B19: 1909 | C19: - | D19: - | E19: 154875 | F19: 4318818.4 | G19: 0.03586050296 | H19: 1.85% | I19: 1.85%
B20: 1910 | C20: - | D20: - | E20: 152350 | F20: 4386911.7 | G20: 0.03472830328 | H20: 1.79% | I20: 1.79%
B21: 1911 | C21: - | D21: - | E21: 128149 | F21: 4455005 | G21: 0.02876517535 | H21: 1.48% | I21: 1.48%
B22: 1912 | C22: - | D22: - | E22: 176404 | F22: 4555014.5 | G22: 0.03872742886 | H22: 1.99% | I22: 1.99%
B23: 1913 | C23: - | D23: - | E23: 198163 | F23: 4655024 | G23: 0.04256970533 | H23: 2.19% | I23: 2.19%
B24: 1914 | C24: - | D24: - | E24: 103839 | F24: 4755033.5 | G24: 0.02183770104 | H24: 1.12% | I24: 1.12%
B25: 1915 | C25: - | D25: - | E25: 110567 | F25: 4855043 | G25: 0.0227736397 | H25: 1.17% | I25: 1.17%
B26: 1916 | C26: - | D26: - | E26: 58115 | F26: 4955052.5 | G26: 0.01172843275 | H26: 0.60% | I26: 0.60%
B27: 1917 | C27: - | D27: - | E27: 80498 | F27: 5055062 | G27: 0.01592423594 | H27: 0.82% | I27: =H27 -> 0.82%
B28: 1918 | C28: - | D28: - | E28: 103753 | F28: 5155071.5 | G28: 0.02012639398 | H28: 1.04% | I28: 1.04%
B29: 1919 | C29: - | D29: - | E29: 189864 | F29: 5255081 | G29: 0.03612960485 | H29: 1.86% | I29: 1.86%
B30: 1920 | C30: - | D30: - | E30: 214228 | F30: 5355090.5 | G30: 0.04000455268 | H30: 2.06% | I30: 2.06%
B31: 1921 | C31: 1175881 | D31: 165450 | E31: 1341331 | F31: 5455100 | G31: 0.245885685 | H31: 12.66% | J31: =H31 -> 12.66%
B32: 1922 | C32: 1324792 | D32: 207278 | E32: 1532070 | F32: 5569900 | G32: 0.2750623889 | H32: 14.17% | J32: =H32 -> 14.17%
B33: 1923 | C33: 1330661 | D33: 213462 | E33: 1544123 | F33: 5693400 | G33: 0.2712128078 | H33: 13.97% | J33: 13.97%
B34: 1924 | C34: 1475541 | D34: 170732 | E34: 1646273 | F34: 5811200 | G34: 0.2832931236 | H34: 14.59% | J34: 14.59%
B35: 1925 | C35: 1645984 | D35: 225432 | E35: 1871416 | F35: 5939200 | G35: 0.3150956358 | H35: 16.23% | J35: 16.23%
B36: 1926 | C36: 1762098 | D36: 204742 | E36: 1966840 | F36: 6056300 | G36: 0.3247593415 | H36: 16.73% | J36: 16.73%
B37: 1927 | C37: 1723302 | D37: 138766 | E37: 1862068 | F37: 6182500 | G37: 0.3011836636 | H37: 15.51% | J37: 15.51%
B38: 1928 | C38: 1853427 | D38: 200005 | E38: 2053432 | F38: 6302200 | G38: 0.3258278062 | H38: 16.78% | J38: 16.78%
B39: 1929 | C39: 1677987 | D39: 233539 | E39: 1911526 | F39: 6393900 | G39: 0.2989608846 | H39: 15.40% | J39: 15.40%
B40: 1930 | C40: 1701958 | D40: 174720 | E40: 1876678 | F40: 6462700 | G40: 0.2903860616 | H40: 14.95% | J40: 14.95%
B41: 1931 | C41: 1588247 | D41: 196858 | E41: 1785105 | F41: 6526500 | G41: 0.273516433 | H41: 14.09% | J41: 14.09%
B42: 1932 | C42: 1645000 | D42: 230706 | E42: 1875706 | F42: 6576800 | G42: 0.2852004014 | H42: 14.69% | J42: 14.69%
B43: 1933 | C43: 1728873 | D43: 213407 | E43: 1942280 | F43: 6629800 | G43: 0.2929620803 | H43: 15.09% | J43: 15.09%
B44: 1934 | C44: 1716000 | D44: 183691 | E44: 1899691 | F44: 6677400 | G44: 0.2844956121 | H44: 14.65% | J44: 14.65%
B45: 1935 | C45: 1701100 | D45: 203870 | E45: 1904970 | F45: 6726200 | G45: 0.2832163777 | H45: 14.59% | J45: 14.59%
B46: 1936 | C46: 1568550 | D46: 235496 | E46: 1804046 | F46: 6778400 | G46: 0.2661462882 | H46: 13.71% | J46: 13.71%
B47: 1937 | C47: 1550600 | D47: 233548 | E47: 1784148 | F47: 6835600 | G47: 0.2610082509 | H47: 13.44% | J47: 13.44%
B48: 1938 | C48: 1697500 | D48: 291330 | E48: 1988830 | F48: 6898600 | G48: 0.2882947265 | H48: 14.85% | J48: 14.85%
B49: 1939 | C49: 1645500 | D49: 251145 | E49: 1896645 | F49: 6967800 | G49: 0.2722014122 | H49: 14.02% | J49: 14.02%
B50: 1940 | C50: 1362000 | D50: 216628 | E50: 1578628 | F50: 7039500 | G50: 0.2242528589 | H50: 11.55% | J50: 11.55%
B51: 1941 | C51: 1157200 | D51: 261968 | E51: 1419168 | F51: 7109900 | G51: 0.1996044951 | H51: 10.28% | J51: 10.28%
B52: 1942 | C52: 659000 | D52: 132000 | E52: 791000 | F52: 7180700 | G52: 0.1101563914 | H52: 5.67% | J52: 5.67%
B53: 1943 | C53: 837750 | D53: 133409 | E53: 971159 | F53: 7234900 | G53: 0.1342325395 | H53: 6.91% | J53: 6.91%
B54: 1944 | C54: 1409950 | D54: 137542 | E54: 1547492 | F54: 7309700 | G54: 0.2117039003 | H54: 10.90% | J54: 10.90%
B55: 1945 | C55: 1719500 | D55: 205361 | E55: 1924861 | F55: 7391700 | G55: 0.2604084311 | H55: 13.41% | J55: 13.41%
B56: 1946 | C56: 2058000 | D56: 336737 | E56: 2394737 | F56: 7465100 | G56: 0.3207910142 | H56: 16.52% | J56: 16.52%
B57: 1947 | C57: 2047000 | D57: 299508 | E57: 2346508 | F57: 7579400 | G57: 0.309590205 | H57: 15.94% | J57: 15.94%
B58: 1948 | C58: 2060000 | D58: 345292 | E58: 2405292 | F58: 7708700 | G58: 0.3120230389 | H58: 16.07% | J58: 16.07%
B59: 1949 | C59: 1919950 | D59: 298292 | E59: 2218242 | F59: 7908100 | G59: 0.2805025227 | H59: 14.45% | J59: 14.45%
B60: 1950 | C60: 2102500 | D60: 291294 | E60: 2393794 | F60: 8178700 | G60: 0.2926863682 | H60: 15.07% | J60: 15.07%
B61: 1951 | C61: 2081200 | D61: 274743 | E61: 2355943 | F61: 8421700 | G61: 0.2797467257 | H61: 14.41% | J61: 14.41%
B62: 1952 | C62: 2248568 | D62: 272737 | E62: 2521305 | F62: 8636500 | G62: 0.2919359694 | H62: 15.03% | J62: 15.03%
B63: 1953 | C63: 2065027 | D63: 286500 | E63: 2351527 | F63: 8815300 | G63: 0.266755187 | H63: 13.74% | J63: 13.74%
B64: 1954 | C64: 2363716 | D64: 238539 | E64: 2602255 | F64: 8986500 | G64: 0.2895738052 | H64: 14.91% | J64: 14.91%
B65: 1955 | C65: 2341194 | D65: 285697 | E65: 2626891 | F65: 9199700 | G65: 0.2855409416 | H65: 14.71% | J65: 14.71%
B66: 1956 | C66: 2371555 | D66: 380788 | E66: 2752343 | F66: 9425500 | G66: 0.2920102912 | H66: 15.04% | J66: 15.04%
B67: 1957 | C67: 2540236 | D67: 314101 | E67: 2854337 | F67: 9640200 | G67: 0.2960869069 | H67: 15.25% | J67: 15.25%
B68: 1958 | C68: 2391700 | D68: 321175 | E68: 2712875 | F68: 9842400 | G68: 0.2756314517 | H68: 14.20% | J68: 14.20%
B69: 1959 | C69: 2351499 | D69: 328422 | E69: 2679921 | F69: 10056400 | G69: 0.2664891015 | H69: 13.72% | J69: 13.72%
B70: 1960 | C70: 2292556 | D70: 323763 | E70: 2616319 | F70: 10275000 | G70: 0.2546295864 | H70: 13.11% | J70: 13.11%
B71: 1961 | C71: 2634236 | D71: 368208 | E71: 3002444 | F71: 10508200 | G71: 0.2857239109 | H71: 14.71% | J71: 14.71%
B72: 1962 | C72: 2720209 | D72: 463478 | E72: 3183687 | F72: 10700500 | G72: 0.297526938 | H72: 15.32% | J72: 15.32%
B73: 1963 | C73: 2739372 | D73: 368627 | E73: 3107999 | F73: 10906900 | G73: 0.2849571372 | H73: 14.68% | J73: 14.68%
B74: 1964 | C74: 2536962 | D74: 374801 | E74: 2911763 | F74: 11121600 | G74: 0.2618115199 | H74: 13.48% | J74: 13.48%
B75: 1965 | C75: 2550567 | D75: 388460 | E75: 2939027 | F75: 11340900 | G75: 0.2591528891 | H75: 13.35% | J75: 13.35%
B76: 1966 | C76: 2567643 | D76: 384487 | E76: 2952130 | F76: 11599498 | G76: =E76/F76 -> 0.2545049794 | H76: =G76*0.515 -> 13.11% | J76: 13.11%
B77: 1967 | C77: 2428002 | D77: 395704 | E77: 2823706 | F77: 11799078 | G77: 0.2393158177 | H77: 12.32% | J77: 12.32%
B78: 1968 | C78: 2425905 | D78: 425727 | E78: 2851632 | F78: 12008635 | G78: 0.2374651241 | H78: 12.23% | J78: 12.23%
B79: 1969 | C79: 2486795 | D79: 437221 | E79: 2924016 | F79: 12263014 | G79: 0.2384418708 | H79: 12.28% | J79: 12.28%
B80: 1970 | C80: 2864937 | D80: 446988 | E80: 3311925 | F80: 12507349 | G80: 0.2647983198 | H80: 13.64% | J80: 13.64%
B81: 1971 | C81: 2906157 | D81: 420279 | E81: 3326436 | F81: 13067265 | G81: 0.254562527 | H81: 13.11% | J81: 13.11%
B82: 1972 | C82: 2934919 | D82: 587929 | E82: 3522848 | F82: 13303664 | G82: 0.2648028393 | H82: 13.64% | J82: 13.64%
B83: 1973 | C83: 2836694 | D83: 501954 | E83: 3338648 | F83: 13504538 | G83: 0.2472241553 | H83: 12.73% | J83: 12.73%
B84: 1974 | C84: 2763653 | D84: 481896 | E84: 3245549 | F84: 13722571 | G84: 0.2365117295 | H84: 12.18% | J84: 12.18%
B85: 1975 | C85: 2755765 | D85: 450251 | E85: 3206016 | F85: 13892995 | G85: 0.2307649287 | H85: 11.88% | J85: 11.88%
B86: 1976 | C86: 2863112 | D86: 425358 | E86: 3288470 | F86: 14033083 | G86: 0.2343369593 | H86: 12.07% | J86: 12.07%
B87: 1977 | C87: 2773007 | D87: 531073 | E87: 3304080 | F87: 14192234 | G87: 0.2328090137 | H87: 11.99% | J87: 11.99%
B88: 1978 | C88: 3024872 | D88: 453143 | E88: 3478015 | F88: 14359255 | G88: 0.2422141678 | H88: 12.47% | J88: 12.47%
B89: 1979 | C89: 3096945 | D89: 477336 | E89: 3574281 | F89: 14515729 | G89: 0.2462350324 | H89: 12.68% | J89: 12.68%
B90: 1980 | C90: 3280129 | D90: 490707 | E90: 3770836 | F90: 14695356 | G90: 0.2566005206 | H90: 13.21% | J90: 13.21%
B91: 1981 | C91: 3354023 | D91: 476211 | E91: 3830234 | F91: 14923260 | G91: 0.2566620162 | H91: 13.22% | J91: 13.22%
B92: 1982 | C92: 3264284 | D92: 417272 | E92: 3681556 | F92: 15184247 | G92: 0.2424589115 | H92: 12.49% | J92: 12.49%
B93: 1983 | C93: 3217578 | D93: 420439 | E93: 3638017 | F93: 15393472 | G93: 0.2363350516 | H93: 12.17% | J93: 12.17%
B94: 1984 | C94: 2951247 | D94: 443324 | E94: 3394571 | F94: 15579391 | G94: 0.2178885555 | H94: 11.22% | J94: 11.22%
B95: 1985 | C95: 2727217 | D95: 386038 | E95: 3113255 | F95: 15788312 | G95: 0.1971873244 | H95: 10.16% | J95: 10.16%
B96: 1986 | C96: 2899145 | D96: 424614 | E96: 3323759 | F96: 16018350 | G96: 0.2074969644 | H96: 10.69% | J96: =H96 -> 10.69%
B97: 1987 | C97: 2982789 | D97: 429057 | E97: 3411846 | F97: 16263874 | G97: 0.2097806464 | H97: 10.80% | J97: 10.80%
B98: 1988 | C98: 3092679 | D98: 436199 | E98: 3528878 | F98: 16532164 | G98: 0.2134552984 | H98: 10.99% | J98: 10.99%
B99: 1989 | C99: 3145126 | D99: 436696 | E99: 3581822 | F99: 16814416 | G99: 0.2130208983 | H99: 10.97% | J99: 10.97%
B100: 1990 | C100: 3587595 | D100: 475790 | E100: 4063385 | F100: 17065128 | G100: 0.238110432 | H100: 12.26% | J100: 12.26%
B101: 1991 | C101: 3797177 | D101: 381707 | E101: 4178884 | F101: 17284036 | G101: 0.2417770942 | H101: 12.45% | J101: 12.45%
B102: 1992 | C102: 4332917 | D102: 481346 | E102: 4814263 | F102: 17494664 | G102: 0.2751846506 | H102: 14.17% | J102: 14.17%
B103: 1993 | C103: 4185388 | D103: 472101 | E103: 4657489 | F103: 17667093 | G103: 0.263625091 | H103: 13.58% | J103: 13.58%
B104: 1994 | C104: 4723023 | D104: 514375 | E104: 5237398 | F104: 17854738 | G104: 0.2933337918 | H104: 15.11% | J104: 15.11%
B105: 1995 | C105: 5117774 | D105: 594919 | E105: 5712693 | F105: 18071758 | G105: 0.3161116367 | H105: 16.28% | J105: 16.28%
B106: 1996 | C106: 5216148 | D106: 478773 | E106: 5694921 | F106: 18310714 | G106: 0.3110157802 | H106: 16.02% | J106: 16.02%
B107: 1997 | C107: 5842591 | D107: 560406 | E107: 6402997 | F107: 18524155 | G107: 0.3456566305 | H107: 17.80% | J107: 17.80%
B108: 1998 | C108: 6119164 | D108: 572733 | E108: 6691897 | F108: 18730359 | G108: 0.3572754265 | H108: 18.40% | J108: 18.40%
B109: 1999 | C109: 5771579 | D109: 472007 | E109: 6243586 | F109: 18937166 | G109: 0.3297001251 | H109: 16.98% | J109: 16.98%
B110: 2000 | C110: 5740811 | D110: 566562 | E110: 6307373 | F110: 19157140 | G110: 0.329243979 | H110: 16.96% | J110: 16.96%
B111: 2001 | C111: 5921117 | D111: 526443 | E111: 6447560 | F111: 19413240 | G111: 0.332121789 | H111: 17.10%
B112: 2002 | C112: 5643542 | D112: 449445 | E112: 6092987 | F112: 19651438 | G112: 0.3100529844 | H112: 15.97%
B113: 2003 | C113: 5873320 | D113: 478335 | E113: 6351655 | F113: 19895435 | G113: 0.3192518786 | H113: 16.44%
B114: 2004 | C114: 5909836 | D114: 458461 | E114: 6368297 | F114: 20127363 | G114: 0.3163999675 | H114: 16.29%
B115: 2005 | C115: 6283788 | D115: 480064 | E115: 6763852 | F115: 20394791 | G115: 0.3316460561 | H115: 17.08%
B116: 2006 | C116: 6204056 | D116: 532178 | E116: 6736234 | F116: 20697880 | G116: 0.325455264 | H116: 16.76%
B117: 2007 | C117: 6475521 | D117: 574424 | E117: 7049945 | F117: 21072452 | G117: 0.3345574117 | H117: 17.23%
B118: 2008 | C118: 6510625 | D118: 571760 | E118: 7082385 | F118: 21431781 | G118: 0.3304618034 | H118: 17.02%
B119: 2009 | C119: 6370350 | D119: 615283 | E119: 6985633 | F119: 21874920 | G119: 0.3193443907 | H119: 16.45%
B120: 2010
D139: HOME&AWAY | H139: FINALS | L139: ALLMATCHES
C140: SEASON | D140: ATTENDANCE | E140: GAMES | F140: AVG | G140: %DIFF | H140: ATTENDANCE | I140: GAMES | J140: AVG | K140: %DIFF | L140: ATTENDANCE | M140: GAMES | N140: AVG | O140: %DIFF
C141: 1962 | D141: 2720119 | E141: 108 | F141: 25186 | G141: 103.54 | H141: 463478 | I141: 5 | J141: 92696 | K141: 100.7 | L141: 3183597 | M141: 113 | N141: 28173 | O141: 105.34
C142: 1963 | D142: 2739352 | E142: 108 | F142: 25364 | G142: 100.71 | H142: 368180 | I142: 4 | J142: 92045 | K142: 99.3 | L142: 3107532 | M142: 112 | N142: 27746 | O142: 98.48
C143: 1964 | D143: 2536962 | E143: 108 | F143: 23490 | G143: 92.61 | H143: 374801 | I143: 4 | J143: 93700 | K143: 101.8 | L143: 2911763 | M143: 112 | N143: 25998 | O143: 93.7
C144: 1965 | D144: 2548697 | E144: 108 | F144: 23599 | G144: 100.46 | H144: 388460 | I144: 4 | J144: 97115 | K144: 103.64 | L144: 2937157 | M144: 112 | N144: 26225 | O144: 100.87
C145: 1966 | D145: 2567643 | E145: 108 | F145: 23774 | G145: 100.74 | H145: 384487 | I145: 4 | J145: 96122 | K145: 98.98 | L145: 2952130 | M145: 112 | N145: 26358 | O145: 100.51
C146: 1967 | D146: 2428002 | E146: 108 | F146: 22482 | G146: 94.57 | H146: 395704 | I146: 4 | J146: 98926 | K146: 102.92 | L146: 2823706 | M146: 112 | N146: 25212 | O146: 95.65
C147: 1968 | D147: 2425905 | E147: 120 | F147: 20216 | G147: 89.92 | H147: 425727 | I147: 4 | J147: 106432 | K147: 107.59 | L147: 2851632 | M147: 124 | N147: 22997 | O147: 91.21
C148: 1969 | D148: 2486795 | E148: 120 | F148: 20723 | G148: 102.51 | H148: 437221 | I148: 4 | J148: 109305 | K148: 102.7 | L148: 2924016 | M148: 124 | N148: 23581 | O148: 102.54
C149: 1970 | D149: 2864937 | E149: 132 | F149: 21704 | G149: 104.73 | H149: 446988 | I149: 4 | J149: 111747 | K149: 102.23 | L149: 3311925 | M149: 136 | N149: 24352 | O149: 103.27
C150: 1971 | D150: 2906157 | E150: 132 | F150: 22016 | G150: 101.44 | H150: 420279 | I150: 4 | J150: 105070 | K150: 94.02 | L150: 3326436 | M150: 136 | N150: 24459 | O150: 100.44
C151: 1972 | D151: 2934919 | E151: 132 | F151: 22234 | G151: 100.99 | H151: 587929 | I151: 7 | J151: 83990 | K151: 79.94 | L151: 3522848 | M151: 139 | N151: 25344 | O151: 103.62
C152: 1973 | D152: 2836694 | E152: 132 | F152: 21490 | G152: 96.65 | H152: 501954 | I152: 6 | J152: 83659 | K152: 99.61 | L152: 3338648 | M152: 138 | N152: 24193 | O152: 95.46
C153: 1974 | D153: 2763653 | E153: 132 | F153: 20937 | G153: 97.43 | H153: 481896 | I153: 6 | J153: 80316 | K153: 96 | L153: 3245549 | M153: 138 | N153: 23518 | O153: 97.21
C154: 1975 | D154: 2755765 | E154: 132 | F154: 20877 | G154: 99.71 | H154: 450251 | I154: 6 | J154: 75042 | K154: 93.43 | L154: 3206016 | M154: 138 | N154: 23232 | O154: 98.78
C155: 1976 | D155: 2863112 | E155: 132 | F155: 21690 | G155: 103.89 | H155: 425358 | I155: 6 | J155: 70893 | K155: 94.47 | L155: 3288470 | M155: 138 | N155: 23829 | O155: 102.57
C156: 1977 | D156: 2773007 | E156: 132 | F156: 21008 | G156: 96.86 | H156: 531073 | I156: 7 | J156: 75868 | K156: 107.02 | L156: 3304080 | M156: 139 | N156: 23770 | O156: 99.75
C157: 1978 | D157: 3024872 | E157: 132 | F157: 22916 | G157: 109.08 | H157: 453143 | I157: 6 | J157: 75524 | K157: 99.55 | L157: 3478015 | M157: 138 | N157: 25203 | O157: 106.03
C158: 1979 | D158: 3096945 | E158: 132 | F158: 23462 | G158: 102.38 | H158: 477336 | I158: 6 | J158: 79556 | K158: 105.34 | L158: 3574281 | M158: 138 | N158: 25901 | O158: 102.77
C159: 1980 | D159: 3280129 | E159: 132 | F159: 24849 | G159: 105.91 | H159: 490707 | I159: 6 | J159: 81785 | K159: 102.8 | L159: 3770836 | M159: 138 | N159: 27325 | O159: 105.5
C160: 1981 | D160: 3354023 | E160: 132 | F160: 25409 | G160: 102.25 | H160: 476208 | I160: 6 | J160: 79368 | K160: 97.04 | L160: 3830231 | M160: 138 | N160: 27755 | O160: 101.57
C161: 1982 | D161: 3264284 | E161: 132 | F161: 24729 | G161: 97.32 | H161: 417272 | I161: 6 | J161: 69545 | K161: 87.62 | L161: 3681556 | M161: 138 | N161: 26678 | O161: 96.12
C162: 1983 | D162: 3217578 | E162: 132 | F162: 24376 | G162: 98.57 | H162: 420439 | I162: 6 | J162: 70073 | K162: 100.76 | L162: 3638017 | M162: 138 | N162: 26362 | O162: 98.82
C163: 1984 | D163: 2951247 | E163: 132 | F163: 22358 | G163: 91.72 | H163: 443324 | I163: 6 | J163: 73887 | K163: 105.44 | L163: 3394571 | M163: 138 | N163: 24598 | O163: 93.31
C164: 1985 | D164: 2727217 | E164: 132 | F164: 20661 | G164: 92.41 | H164: 386038 | I164: 6 | J164: 64340 | K164: 87.08 | L164: 3113255 | M164: 138 | N164: 22560 | O164: 91.71
C165: 1986 | D165: 2899145 | E165: 132 | F165: 21963 | G165: 106.3 | H165: 422714 | I165: 6 | J165: 70452 | K165: 109.5 | L165: 3321859 | M165: 138 | N165: 24071 | O165: 106.7
C166: 1987 | D166: 2899986 | E166: 150 | F166: 19333 | G166: 88.03 | H166: 429057 | I166: 6 | J166: 71510 | K166: 101.5 | L166: 3329043 | M166: 156 | N166: 21340 | O166: 88.65
C167: 1988 | D167: 3092679 | E167: 154 | F167: 20082 | G167: 103.87 | H167: 436199 | I167: 6 | J167: 72700 | K167: 101.66 | L167: 3528878 | M167: 160 | N167: 22055 | O167: 103.35
C168: 1989 | D168: 3145126 | E168: 154 | F168: 20423 | G168: 101.7 | H168: 436696 | I168: 6 | J168: 72783 | K168: 100.11 | L168: 3581822 | M168: 160 | N168: 22386 | O168: 101.5
C169: 1990 | D169: 3587595 | E169: 154 | F169: 23296 | G169: 114.07 | H169: 475790 | I169: 7 | J169: 67970 | K169: 93.39 | L169: 4063385 | M169: 161 | N169: 25238 | O169: 112.74
C170: 1991 | D170: 3797177 | E170: 165 | F170: 23013 | G170: 98.79 | H170: 381707 | I170: 7 | J170: 54530 | K170: 80.23 | L170: 4178884 | M170: 172 | N170: 24296 | O170: 96.27
C171: 1992 | D171: 4332917 | E171: 165 | F171: 26260 | G171: 114.11 | H171: 481348 | I171: 7 | J171: 68764 | K171: 126.1 | L171: 4814265 | M171: 172 | N171: 27990 | O171: 115.2
C172: 1993 | D172: 4185388 | E172: 150 | F172: 27903 | G172: 106.26 | H172: 472101 | I172: 7 | J172: 67443 | K172: 98.08 | L172: 4657489 | M172: 157 | N172: 29666 | O172: 105.99
C173: 1994 | D173: 4723023 | E173: 165 | F173: 28624 | G173: 102.58 | H173: 514375 | I173: 9 | J173: 57153 | K173: 84.74 | L173: 5237398 | M173: 174 | N173: 30100 | O173: 101.46
C174: 1995 | D174: 5117774 | E174: 176 | F174: 29078 | G174: 101.59 | H174: 594919 | I174: 9 | J174: 66102 | K174: 115.66 | L174: 5712693 | M174: 185 | N174: 30879 | O174: 102.59
C175: 1996 | D175: 5216148 | E175: 176 | F175: 29637 | G175: 101.92 | H175: 478773 | I175: 9 | J175: 53197 | K175: 80.48 | L175: 5694921 | M175: 185 | N175: 30783 | O175: 99.69
C176: 1997 | D176: 5842591 | E176: 176 | F176: 33197 | G176: 112.01 | H176: 560406 | I176: 9 | J176: 62267 | K176: 117.05 | L176: 6402997 | M176: 185 | N176: 34611 | O176: 112.44
C177: 1998 | D177: 6119164 | E177: 176 | F177: 34768 | G177: 104.73 | H177: 572733 | I177: 9 | J177: 63637 | K177: 102.2 | L177: 6691897 | M177: 185 | N177: 36172 | O177: 104.51
C178: 1999 | D178: 5771579 | E178: 176 | F178: 32793 | G178: 94.32 | H178: 472007 | I178: 9 | J178: 52445 | K178: 82.41 | L178: 6243586 | M178: 185 | N178: 33749 | O178: 93.3
C179: 2000 | D179: 5740811 | E179: 176 | F179: 32618 | G179: 99.47 | H179: 566562 | I179: 9 | J179: 62951 | K179: 120.03 | L179: 6307373 | M179: 185 | N179: 34094 | O179: 101.02
C180: 2001 | D180: 5921117 | E180: 176 | F180: 33643 | G180: 103.14 | H180: 526443 | I180: 9 | J180: 58494 | K180: 92.92 | L180: 6447560 | M180: 185 | N180: 34852 | O180: 102.22
C181: 2002 | D181: 5643542 | E181: 176 | F181: 32066 | G181: 95.31 | H181: 449445 | I181: 9 | J181: 49938 | K181: 85.37 | L181: 6092987 | M181: 185 | N181: 32935 | O181: 94.5
C182: 2003 | D182: 5873320 | E182: 176 | F182: 33371 | G182: 104.07 | H182: 478335 | I182: 9 | J182: 53148 | K182: 106.43 | L182: 6351655 | M182: 185 | N182: 34333 | O182: 104.24
C183: 2004 | D183: 5909836 | E183: 176 | F183: 33579 | G183: 100.62 | H183: 458461 | I183: 9 | J183: 50940 | K183: 95.85 | L183: 6368297 | M183: 185 | N183: 34423 | O183: 100.26
C184: 2005 | D184: 6283788 | E184: 176 | F184: 35703 | G184: 106.33 | H184: 480064 | I184: 9 | J184: 53340 | K184: 104.71 | L184: 6763852 | M184: 185 | N184: 36561 | O184: 106.21
C185: 2006 | D185: 6204056 | E185: 176 | F185: 35250 | G185: 98.73 | H185: 532178 | I185: 9 | J185: 59131 | K185: 110.86 | L185: 6736234 | M185: 185 | N185: 36412 | O185: 99.59
C186: 2007 | D186: 6475521 | E186: 176 | F186: 36793 | G186: 104.38 | H186: 574424 | I186: 9 | J186: 63825 | K186: 107.94 | L186: 7049945 | M186: 185 | N186: 38108 | O186: 104.66
C187: 2008 | D187: 6510625 | E187: 176 | F187: 36992 | G187: 100.54 | H187: 571760 | I187: 9 | J187: 63529 | K187: 99.54 | L187: 7082385 | M187: 185 | N187: 38283 | O187: 100.46
C188: 2009 | D188: 6370350 | E188: 176 | F188: 36195 | G188: 97.85 | H188: 615283 | I188: 9 | J188: 68365 | K188: 107.61 | L188: 6985633 | M188: 185 | N188: 37760 | O188: 98.63
C189: TOTALS | D189: 264439579 | E189: 13000 | F189: 20341 | G189: - | H189: 35034074 | I189: 573 | J189: 61141 | K189: - | L189: 299473653 | M189: 13573 | N189: 22063 | O189: -

Sheet AFL club memberships
A1: AFL club memberships
A2: Source: Spreadsheet supplied by Cameron Sinclair, AFL Statistics Department (original spreadsheet below). Calculations exclude clubs for which full 1984-2002 data is unavailable. AFL STATISTICS DEPARTMENT
B4: Share who are members of an AFL club | C4: Total | D4: Total (excl Adelaide, Brisbane, Fremantle, Port, W.Coast) | E4: Population 15+ | F4: ADELAIDE | G4: BRISBANE | H4: CARLTON | I4: COLLINGWOOD | J4: ESSENDON | K4: FITZROY | L4: FREMANTLE | M4: GEELONG | N4: HAWTHORN | O4: MELBOURNE | P4: NORTH MELB | Q4: PORT ADEL | R4: RICHMOND | S4: ST KILDA | T4: SYDNEY | U4: WEST COAST | V4: WSTRN BLDGS
A5: 1984 | B5: =C5/E5 -> 0.8% | C5: =SUM(F5:V5) -> 96,827 | D5: =SUM(H5:J5, M5:P5, R5:T5,V5) -> 88,742 | E5: 11843586 | H5: 12,774 | I5: 16,313 | J5: 10,231 | K5: 8,085 | M5: 7,709 | N5: 8,051 | O5: 6,297 | P5: 6,374 | R5: 6,822 | S5: 4,930 | T5: 2,750 | V5: 6,491
A6: 1985 | B6: =C6/E6 -> 0.8% | C6: =SUM(F6:V6) -> 99,863 | D6: =SUM(H6:J6, M6:P6, R6:T6,V6) -> 92,954 | E6: 12062771 | H6: 13,317 | I6: 16,857 | J6: 11,376 | K6: 6,909 | M6: 7,718 | N6: 7,713 | O6: 5,801 | P6: 6,520 | R6: 7,137 | S6: 5,708 | T6: 2,777 | V6: 8,030
A7: 1986 | B7: 0.8% | C7: 97,037 | D7: 89,085 | E7: 12318832 | H7: 14,905 | I7: 13,971 | J7: 12,607 | K7: 7,952 | M7: 6,985 | N7: 7,335 | O7: 4,511 | P7: 5,318 | R7: 5,772 | S7: 4,321 | T7: 4,927 | V7: 8,433
A8: 1987 | B8: 0.6% | C8: 71,452 | D8: 60,700 | E8: 12576530 | G8: 3,449 | H8: 9,227 | I8: 9,500 | J8: 8,129 | K8: 4,503 | M8: 6,981 | N8: 6,516 | O8: 3,122 | P8: 3,430 | R8: 2,825 | S8: 3,924 | T8: 3,594 | U8: 2,800 | V8: 3,452
A9: 1988 | B9: 0.8% | C9: 102,722 | D9: 80,432 | E9: 12833133 | G9: 7,607 | H9: 11,936 | I9: 11,985 | J9: 8,432 | K9: 6,203 | M9: 9,667 | N9: 7,099 | O9: 10,078 | P9: 4,415 | R9: 3,154 | S9: 5,799 | T9: 2,516 | U9: 8,480 | V9: 5,351
A10: 1989 | B10: 0.8% | C10: 99,648 | D10: 79,279 | E10: 13089498 | G10: 7,176 | H10: 10,060 | I10: 13,620 | J10: 7,958 | K10: 3,970 | M10: 7,760 | N10: 8,520 | O10: 8,184 | P10: 3,411 | R10: 3,607 | S10: 8,360 | T10: 2,631 | U10: 9,223 | V10: 5,168
A11: 1990 | B11: 1.0% | C11: 129,165 | D11: 107,057 | E11: 13310134 | G11: 5,630 | H11: 10,978 | I11: 14,808 | J11: 11,046 | K11: 6,028 | M11: 15,087 | N11: 9,882 | O11: 10,111 | P11: 5,201 | R11: 4,974 | S11: 11,363 | T11: 2,624 | U11: 10,450 | V11: 10,983
A12: 1991 | B12: 1.2% | C12: 165,938 | D12: 111,643 | E12: 13498506 | F12: 25,087 | G12: 5,696 | H12: 12,736 | I12: 18,469 | J12: 11,593 | K12: 5,876 | M12: 11,356 | N12: 10,006 | O12: 10,153 | P12: 6,683 | R12: 8,377 | S12: 9,765 | T12: 2,907 | U12: 17,636 | V12: 9,598
A13: 1992 | B13: 1.4% | C13: 187,238 | D13: 114,085 | E13: 13678327 | F13: 38,673 | G13: 5,401 | H13: 12,354 | I13: 18,921 | J13: 10,034 | K13: 5,177 | M13: 13,535 | N13: 12,338 | O13: 8,681 | P13: 6,083 | R13: 8,158 | S13: 11,650 | T13: 3,020 | U13: 23,902 | V13: 9,311
A14: 1993 | B14: 1.5% | C14: 207,640 | D14: 129,158 | E14: 13829567 | F14: 40,100 | G14: 5,750 | H14: 14,445 | I14: 21,882 | J14: 11,546 | K14: 6,853 | M14: 15,500 | N14: 11,388 | O14: 10,097 | P14: 6,851 | R14: 9,918 | S14: 12,956 | T14: 3,097 | U14: 25,779 | V14: 11,478
A15: 1994 | B15: 1.6% | C15: 217,474 | D15: 138,276 | E15: 13994701 | F15: 40,611 | G15: 6,158 | H15: 18,308 | I15: 20,843 | J15: 19,720 | K15: 8,164 | M15: 14,312 | N15: 11,245 | O15: 10,648 | P15: 10,296 | R15: 8,229 | S15: 12,009 | T15: 3,327 | U15: 24,265 | V15: 9,339
A16: 1995 | B16: 1.8% | C16: 261,076 | D16: 158,446 | E16: 14183640 | F16: 41,654 | G16: 6,893 | H16: 18,032 | I16: 22,543 | J16: 23,833 | K16: 8,806 | L16: 18,456 | M16: 15,922 | N16: 12,728 | O16: 9,544 | P16: 14,027 | R16: 14,647 | S16: 8,870 | T16: 6,088 | U16: 26,821 | V16: 12,212
A17: 1996 | B17: 2.0% | C17: 286,907 | D17: 180,444 | E17: 14399399 | F17: 42,283 | G17: 10,267 | H17: 23,278 | I17: 20,752 | J17: 24,324 | K17: 7,628 | L17: 19,622 | M17: 17,346 | N17: 12,484 | O17: 12,964 | P17: 14,438 | R17: 20,308 | S17: 14,375 | T17: 9,525 | U17: 26,663 | V17: 10,650
A18: 1997 | B18: 2.6% | C18: 382,345 | D18: 235,137 | E18: 14604610 | F18: 41,395 | G18: 16,769 | H18: 24,984 | I18: 22,761 | J18: 28,063 | L18: 19,949 | M18: 18,858 | N18: 27,005 | O18: 15,350 | P18: 19,368 | Q18: 35,809 | R18: 24,975 | S18: 16,610 | T18: 22,109 | U18: 33,286 | V18: 15,054
A19: 1998 | B19: 2.9% | C19: 422,815 | D19: 266,735 | E19: 14810586 | F19: 41,985 | G19: 16,108 | H19: 25,402 | I19: 27,099 | J19: 27,099 | L19: 22,186 | M19: 19,971 | N19: 27,649 | O19: 17,870 | P19: 20,196 | Q19: 38,305 | R19: 27,092 | S19: 23,204 | T19: 31,089 | U19: 37,496 | V19: 20,064
A20: 1999 | B20: 2.9% | C20: 441,711 | D20: 284,386 | E20: 15016967 | F20: 42,120 | G20: 16,931 | H20: 25,719 | I20: 32,358 | J20: 29,858 | L20: 24,896 | M20: 21,032 | N20: 32,120 | O20: 19,713 | P20: 22,080 | Q20: 37,166 | R20: 29,047 | S20: 20,793 | T20: 31,175 | U20: 36,212 | V20: 20,491
A21: 2000 | B21: 2.9% | C21: 438,504 | D21: 276,595 | E21: 15187313 | F21: 42,896 | G21: 20,295 | H21: 27,571 | I21: 28,932 | J21: 34,278 | L21: 24,925 | M21: 25,595 | N21: 26,879 | O21: 18,227 | P21: 22,156 | Q21: 34,925 | R21: 26,869 | S21: 17,855 | T21: 30,177 | U21: 38,868 | V21: 18,056
A22: 2001 | B22: 2.9% | C22: 447,359 | D22: 291,172 | E22: 15426042 | F22: 42,014 | G22: 18,330 | H22: 27,725 | I22: 31,455 | J22: 36,227 | L22: 23,898 | M22: 25,420 | N22: 30,140 | O22: 21,409 | P22: 22,940 | Q22: 33,296 | R22: 26,501 | S22: 22,248 | T22: 28,022 | U22: 38,649 | V22: 19,085
A23: 2002 | B23: 2.9% | C23: 449,543 | D23: 285,751 | E23: 15657662 | F23: 46,620 | G23: 22,288 | H23: 26,385 | I23: 32,549 | J23: 35,219 | L23: 23,775 | M23: 23,756 | N23: 33,319 | O23: 20,152 | P23: 20,831 | Q23: 36,229 | R23: 27,251 | S23: 17,696 | T23: 27,755 | U23: 34,880 | V23: 20,838
A24: 2003 | B24: 2.9% | C24: 463,171 | D24: 294,682 | E24: 15894458 | F24: 47,097 | G24: 24,365 | H24: 33,525 | I24: 40,455 | J24: 31,970 | L24: 25,368 | M24: 24,017 | N24: 31,500 | O24: 20,555 | P24: 21,403 | Q24: 35,425 | R24: 25,101 | S24: 23,626 | T24: 21,270 | U24: 36,234 | V24: 21,260
A25: 2004 | B25: 3.1% | C25: 494,782 | D25: 309,007 | E25: 16119222 | F25: 45,642 | G25: 30,221 | H25: 32,095 | I25: 41,128 | J25: 33,469 | L25: 32,780 | M25: 25,021 | N25: 31,255 | O25: 20,647 | P25: 23,420 | Q25: 36,340 | R25: 27,133 | S25: 30,534 | T25: 25,010 | U25: 40,792 | V25: 19,295
A26: 2005 | B26: 3.1% | C26: 506,509 | D26: 320,922 | E26: 16372680 | F26: 43,256 | G26: 28,913 | H26: 33,534 | I26: 38,612 | J26: 32,734 | L26: 34,178 | M26: 30,821 | N26: 29,261 | O26: 24,805 | P26: 24,154 | Q26: 36,834 | R26: 28,029 | S26: 32,043 | T26: 24,955 | U26: 42,406 | V26: 21,974
A27: 2006 | B27: 3.1% | C27: 519,126 | D27: 327,077 | E27: 16647435 | F27: 50,138 | G27: 26,459 | H27: 28,756 | I27: 38,038 | J27: 32,511 | L27: 35,666 | M27: 32,290 | N27: 28,003 | O27: 24,698 | P27: 24,624 | Q27: 35,648 | R27: 29,406 | S27: 32,327 | T27: 30,382 | U27: 44,138 | V27: 26,042
A28: 2007 | B28: 3.1% | C28: 532,697 | D28: 336,380 | E28: 16988864 | F28: 50,976 | G28: 21,976 | H28: 35,431 | I28: 38,587 | J28: 32,759 | L28: 43,343 | M28: 30,169 | N28: 31,064 | O28: 28,077 | P28: 22,366 | Q28: 34,073 | R28: 30,044 | S28: 30,394 | T28: 28,764 | U28: 45,949 | V28: 28,725
A29: 2008 | B29: 3.3% | C29: 574,091 | D29: 380,220 | E29: 17306005 | F29: 48,720 | G29: 22,737 | H29: 39,360 | I29: 42,498 | J29: 41,947 | L29: 43,366 | M29: 36,850 | N29: 41,436 | O29: 32,600 | P29: 29,619 | Q29: 34,185 | R29: 30,820 | S29: 30,063 | T29: 26,721 | U29: 44,863 | V29: 28,306
A30: 2009 | B30: 3.3% | C30: 586,748 | D30: 401,665 | E30: 17690281 | F30: 46,472 | G30: 24,873 | H30: 42,408 | I30: 45,972 | J30: 40,412 | L30: 39,206 | M30: 37,160 | N30: 52,496 | O30: 31,506 | P30: 28,340 | Q30: 30,605 | R30: 36,981 | S30: 31,906 | T30: 26,269 | U30: 43,927 | V30: 28,215
A31: 2010
A36: AFL CLUB MEMBERSHIP TOTALS
A37: 2002-06-26
A38: CLUB | E38: 1984 | F38: 1985 | G38: 1986 | H38: 1987 | I38: 1988 | J38: 1989 | K38: 1990 | L38: 1991 | M38: 1992 | N38: 1993 | O38: 1994 | P38: 1995 | Q38: 1996 | R38: 1997 | S38: 1998 | T38: 1999 | U38: 2000 | V38: 2001 | W38: 2002
A39: ADELAIDE | L39: 25,087 | M39: 38,673 | N39: 40,100 | O39: 40,611 | P39: 41,654 | Q39: 42,283 | R39: 41,395 | S39: 41,985 | T39: 42,120 | U39: 42,896 | V39: 42,014 | W39: 46,620
A40: BRISBANE | H40: 3,449 | I40: 7,607 | J40: 7,176 | K40: 5,630 | L40: 5,696 | M40: 5,401 | N40: 5,750 | O40: 6,158 | P40: 6,893 | Q40: 10,267 | R40: 16,769 | S40: 16,108 | T40: 16,931 | U40: 20,295 | V40: 18,330 | W40: 22,288
A41: CARLTON | E41: 12,774 | F41: 13,317 | G41: 14,905 | H41: 9,227 | I41: 11,936 | J41: 10,060 | K41: 10,978 | L41: 12,736 | M41: 12,354 | N41: 14,445 | O41: 18,308 | P41: 18,032 | Q41: 23,278 | R41: 24,984 | S41: 25,402 | T41: 25,719 | U41: 27,571 | V41: 27,725 | W41: 26,385
A42: COLLINGWOOD | E42: 16,313 | F42: 16,857 | G42: 13,971 | H42: 9,500 | I42: 11,985 | J42: 13,620 | K42: 14,808 | L42: 18,469 | M42: 18,921 | N42: 21,882 | O42: 20,843 | P42: 22,543 | Q42: 20,752 | R42: 22,761 | S42: 27,099 | T42: 32,358 | U42: 28,932 | V42: 31,455 | W42: 32,549
A43: ESSENDON | E43: 10,231 | F43: 11,376 | G43: 12,607 | H43: 8,129 | I43: 8,432 | J43: 7,958 | K43: 11,046 | L43: 11,593 | M43: 10,034 | N43: 11,546 | O43: 19,720 | P43: 23,833 | Q43: 24,324 | R43: 28,063 | S43: 27,099 | T43: 29,858 | U43: 34,278 | V43: 36,227 | W43: 35,219
A44: FITZROY | E44: 8,085 | F44: 6,909 | G44: 7,952 | H44: 4,503 | I44: 6,203 | J44: 3,970 | K44: 6,028 | L44: 5,876 | M44: 5,177 | N44: 6,853 | O44: 8,164 | P44: 8,806 | Q44: 7,628
A45: FOOTSCRAY | E45: 6,491 | F45: 8,030 | G45: 8,433 | H45: 3,452 | I45: 5,351 | J45: 5,168 | K45: 10,983 | L45: 9,598 | M45: 9,311 | N45: 11,478 | O45: 9,339 | P45: 12,212 | Q45: 10,650 | R45: 15,054 | S45: 20,064 | T45: 20,491 | U45: 18,056 | V45: 19,085 | W45: 20,838
A46: FREMANTLE | P46: 18,456 | Q46: 19,622 | R46: 19,949 | S46: 22,186 | T46: 24,896 | U46: 24,925 | V46: 23,898 | W46: 23,775
A47: GEELONG | E47: 7,709 | F47: 7,718 | G47: 6,985 | H47: 6,981 | I47: 9,667 | J47: 7,760 | K47: 15,087 | L47: 11,356 | M47: 13,535 | N47: 15,500 | O47: 14,312 | P47: 15,922 | Q47: 17,346 | R47: 18,858 | S47: 19,971 | T47: 21,032 | U47: 25,595 | V47: 25,420 | W47: 23,756
A48: HAWTHORN | E48: 8,051 | F48: 7,713 | G48: 7,335 | H48: 6,516 | I48: 7,099 | J48: 8,520 | K48: 9,882 | L48: 10,006 | M48: 12,338 | N48: 11,388 | O48: 11,245 | P48: 12,728 | Q48: 12,484 | R48: 27,005 | S48: 27,649 | T48: 32,120 | U48: 26,879 | V48: 30,140 | W48: 33,319
A49: MELBOURNE | E49: 6,297 | F49: 5,801 | G49: 4,511 | H49: 3,122 | I49: 10,078 | J49: 8,184 | K49: 10,111 | L49: 10,153 | M49: 8,681 | N49: 10,097 | O49: 10,648 | P49: 9,544 | Q49: 12,964 | R49: 15,336 | S49: 17,870 | T49: 19,713 | U49: 18,227 | V49: 22,940 | W49: 20,152
A50: NORTH MELB | E50: 6,374 | F50: 6,520 | G50: 5,318 | H50: 3,430 | I50: 4,415 | J50: 3,411 | K50: 5,201 | L50: 6,683 | M50: 6,083 | N50: 6,851 | O50: 10,296 | P50: 14,027 | Q50: 14,438 | R50: 19,368 | S50: 20,196 | T50: 22,080 | U50: 22,156 | V50: 21,409 | W50: 20,831
A51: PORT ADEL | R51: 35,809 | S51: 38,305 | T51: 37,166 | U51: 34,925 | V51: 33,296 | W51: 36,229
A52: RICHMOND | E52: 6,822 | F52: 7,137 | G52: 5,772 | H52: 2,825 | I52: 3,154 | J52: 3,607 | K52: 4,974 | L52: 8,377 | M52: 8,158 | N52: 9,918 | O52: 8,229 | P52: 14,647 | Q52: 20,308 | R52: 24,975 | S52: 27,092 | T52: 29,047 | U52: 26,869 | V52: 26,501 | W52: 27,251
A53: ST KILDA | E53: 4,930 | F53: 5,708 | G53: 4,321 | H53: 3,924 | I53: 5,799 | J53: 8,360 | K53: 11,363 | L53: 9,765 | M53: 11,650 | N53: 12,956 | O53: 12,009 | P53: 8,870 | Q53: 14,375 | R53: 16,610 | S53: 23,204 | T53: 20,793 | U53: 17,855 | V53: 22,248 | W53: 17,696
A54: SYDNEY | E54: 2,750 | F54: 2,777 | G54: 4,927 | H54: 3,594 | I54: 2,516 | J54: 2,631 | K54: 2,624 | L54: 2,907 | M54: 3,020 | N54: 3,097 | O54: 3,327 | P54: 6,088 | Q54: 9,525 | R54: 22,109 | S54: 31,089 | T54: 31,175 | U54: 30,177 | V54: 28,022 | W54: 27,755
A55: WEST COAST | H55: 2,800 | I55: 8,480 | J55: 9,223 | K55: 10,450 | L55: 17,636 | M55: 23,902 | N55: 25,779 | O55: 24,265 | P55: 26,821 | Q55: 26,663 | R55: 33,286 | S55: 37,496 | T55: 36,212 | U55: 38,868 | V55: 38,649 | W55: 34,880
A56: TOTALS: | E56: =SUM(E39:E55) -> 96,827 | F56: 99,863 | G56: 97,037 | H56: 71,452 | I56: 102,722 | J56: 99,648 | K56: 129,165 | L56: 165,938 | M56: 187,238 | N56: 207,640 | O56: 217,474 | P56: 261,076 | Q56: 286,907 | R56: 382,331 | S56: 422,815 | T56: 441,711 | U56: 438,504 | V56: 447,359 | W56: 449,543
A58: PERCENTAGE INCREASE | F58: 3.1% | G58: -2.8% | H58: -26.4% | I58: 43.8% | J58: -3.0% | K58: 29.6% | L58: 28.5% | M58: 12.8% | N58: 10.9% | O58: 4.7% | P58: 20.0% | Q58: 9.9% | R58: 33.3% | S58: 10.6% | T58: 4.5% | U58: -0.7% | V58: 2.0% | W58: 0.5%
A60: AFL MEMBERSHIP TOTALS
A61: 2000-06-16
A62: CATEGORY | E62: 1984 | F62: 1985 | G62: 1986 | H62: 1987 | I62: 1988 | J62: 1989 | K62: 1990 | L62: 1991 | M62: 1992 | N62: 1993 | O62: 1994 | P62: 1995 | Q62: 1996 | R62: 1997 | S62: 1998 | T62: 1999 | U62: 2000 | V62: 2001 | W62: 2001
A63: Full Members | P63: 25,389 | R63: 25,362 | S63: 25,615
A64: Restricted Members | P64: 2,576 | R64: 15,818 | S64: 16,373
A65: Full Absentees | P65: 2,511 | R65: 4,080 | S65: 4,466
A66: Restricted Absentees | P66: 354 | R66: 0 | S66: 0
A67: Waverley Park | P67: 1,628 | R67: 678 | S67: 1
A68: Country | P68: 4,483 | R68: 4,167 | S68: 4,148
A69: Country Club Support | R69: 378 | S69: 452
A70: Centenary Club | P70: 170 | R70: 142 | S70: 170
A71: TOTALS: | E71: =SUM(E63:E70) -> 0 | F71: 0 | G71: 0 | H71: 0 | I71: 0 | J71: 0 | K71: 0 | L71: 0 | M71: 0 | N71: 0 | O71: 0 | P71: 37,111 | Q71: 0 | R71: 50,625 | S71: 51,225 | T71: 0 | U71: 0 | V71: 0 | W71: 0
C78: CLUB | D78: 1984 | E78: 1985 | F78: 1986 | G78: 1987 | H78: 1988 | I78: 1989 | J78: 1990 | K78: 1991 | L78: 1992 | M78: 1993 | N78: 1994 | O78: 1995 | P78: 1996 | Q78: 1997 | R78: 1998 | S78: 1999 | T78: 2000 | U78: 2001 | V78: 2002 | W78: 2003 | X78: 2004 | Y78: 2005 | Z78: 2006 | AA78: 2007 | AB78: 2008 | AC78: 2009
C79: ADELAIDE | K79: 25,087 | L79: 38,673 | M79: 40,100 | N79: 40,611 | O79: 41,654 | P79: 42,283 | Q79: 41,395 | R79: 41,985 | S79: 42,120 | T79: 42,896 | U79: 42,014 | V79: 46,620 | W79: 47,097 | X79: 45,642 | Y79: 43,256 | Z79: 50,138 | AA79: 50,976 | AB79: 48,720 | AC79: 46,472
C80: BRISBANE | G80: 3,449 | H80: 7,607 | I80: 7,176 | J80: 5,630 | K80: 5,696 | L80: 5,401 | M80: 5,750 | N80: 6,158 | O80: 6,893 | P80: 10,267 | Q80: 16,769 | R80: 16,108 | S80: 16,931 | T80: 20,295 | U80: 18,330 | V80: 22,288 | W80: 24,365 | X80: 30,221 | Y80: 28,913 | Z80: 26,459 | AA80: 21,976 | AB80: 22,737 | AC80: 24,873
C81: CARLTON | D81: 12,774 | E81: 13,317 | F81: 14,905 | G81: 9,227 | H81: 11,936 | I81: 10,060 | J81: 10,978 | K81: 12,736 | L81: 12,354 | M81: 14,445 | N81: 18,308 | O81: 18,032 | P81: 23,278 | Q81: 24,984 | R81: 25,402 | S81: 25,719 | T81: 27,571 | U81: 27,725 | V81: 26,385 | W81: 33,525 | X81: 32,095 | Y81: 33,534 | Z81: 28,756 | AA81: 35,431 | AB81: 39,360 | AC81: 42,408
C82: COLLINGWOOD | D82: 16,313 | E82: 16,857 | F82: 13,971 | G82: 9,500 | H82: 11,985 | I82: 13,620 | J82: 14,808 | K82: 18,469 | L82: 18,921 | M82: 21,882 | N82: 20,843 | O82: 22,543 | P82: 20,752 | Q82: 22,761 | R82: 27,099 | S82: 32,358 | T82: 28,932 | U82: 31,455 | V82: 32,549 | W82: 40,455 | X82: 41,128 | Y82: 38,612 | Z82: 38,038 | AA82: 38,587 | AB82: 42,498 | AC82: 45,972
C83: ESSENDON | D83: 10,231 | E83: 11,376 | F83: 12,607 | G83: 8,129 | H83: 8,432 | I83: 7,958 | J83: 11,046 | K83: 11,593 | L83: 10,034 | M83: 11,546 | N83: 19,720 | O83: 23,833 | P83: 24,324 | Q83: 28,063 | R83: 27,099 | S83: 29,858 | T83: 34,278 | U83: 36,227 | V83: 35,219 | W83: 31,970 | X83: 33,469 | Y83: 32,734 | Z83: 32,511 | AA83: 32,759 | AB83: 41,947 | AC83: 40,412
C84: FITZROY | D84: 8,085 | E84: 6,909 | F84: 7,952 | G84: 4,503 | H84: 6,203 | I84: 3,970 | J84: 6,028 | K84: 5,876 | L84: 5,177 | M84: 6,853 | N84: 8,164 | O84: 8,806 | P84: 7,628
C85: FREMANTLE | O85: 18,456 | P85: 19,622 | Q85: 19,949 | R85: 22,186 | S85: 24,896 | T85: 24,925 | U85: 23,898 | V85: 23,775 | W85: 25,368 | X85: 32,780 | Y85: 34,178 | Z85: 35,666 | AA85: 43,343 | AB85: 43,366 | AC85: 39,206
C86: GEELONG | D86: 7,709 | E86: 7,718 | F86: 6,985 | G86: 6,981 | H86: 9,667 | I86: 7,760 | J86: 15,087 | K86: 11,356 | L86: 13,535 | M86: 15,500 | N86: 14,312 | O86: 15,922 | P86: 17,346 | Q86: 18,858 | R86: 19,971 | S86: 21,032 | T86: 25,595 | U86: 25,420 | V86: 23,756 | W86: 24,017 | X86: 25,021 | Y86: 30,821 | Z86: 32,290 | AA86: 30,169 | AB86: 36,850 | AC86: 37,160
C87: HAWTHORN | D87: 8,051 | E87: 7,713 | F87: 7,335 | G87: 6,516 | H87: 7,099 | I87: 8,520 | J87: 9,882 | K87: 10,006 | L87: 12,338 | M87: 11,388 | N87: 11,245 | O87: 12,728 | P87: 12,484 | Q87: 27,005 | R87: 27,649 | S87: 32,120 | T87: 26,879 | U87: 30,140 | V87: 33,319 | W87: 31,500 | X87: 31,255 | Y87: 29,261 | Z87: 28,003 | AA87: 31,064 | AB87: 41,436 | AC87: 52,496
C88: MELBOURNE | D88: 6,297 | E88: 5,801 | F88: 4,511 | G88: 3,122 | H88: 10,078 | I88: 8,184 | J88: 10,111 | K88: 10,153 | L88: 8,681 | M88: 10,097 | N88: 10,648 | O88: 9,544 | P88: 12,964 | Q88: 15,350 | R88: 17,870 | S88: 19,713 | T88: 18,227 | U88: 21,409 | V88: 20,152 | W88: 20,555 | X88: 20,647 | Y88: 24,805 | Z88: 24,698 | AA88: 28,077 | AB88: 32,600 | AC88: 31,506
C89: NORTH MELB | D89: 6,374 | E89: 6,520 | F89: 5,318 | G89: 3,430 | H89: 4,415 | I89: 3,411 | J89: 5,201 | K89: 6,683 | L89: 6,083 | M89: 6,851 | N89: 10,296 | O89: 14,027 | P89: 14,438 | Q89: 19,368 | R89: 20,196 | S89: 22,080 | T89: 22,156 | U89: 22,940 | V89: 20,831 | W89: 21,403 | X89: 23,420 | Y89: 24,154 | Z89: 24,624 | AA89: 22,366 | AB89: 29,619 | AC89: 28,340
C90: PORT ADEL | Q90: 35,809 | R90: 38,305 | S90: 37,166 | T90: 34,925 | U90: 33,296 | V90: 36,229 | W90: 35,425 | X90: 36,340 | Y90: 36,834 | Z90: 35,648 | AA90: 34,073 | AB90: 34,185 | AC90: 30,605
C91: RICHMOND | D91: 6,822 | E91: 7,137 | F91: 5,772 | G91: 2,825 | H91: 3,154 | I91: 3,607 | J91: 4,974 | K91: 8,377 | L91: 8,158 | M91: 9,918 | N91: 8,229 | O91: 14,647 | P91: 20,308 | Q91: 24,975 | R91: 27,092 | S91: 29,047 | T91: 26,869 | U91: 26,501 | V91: 27,251 | W91: 25,101 | X91: 27,133 | Y91: 28,029 | Z91: 29,406 | AA91: 30,044 | AB91: 30,820 | AC91: 36,981
C92: ST KILDA | D92: 4,930 | E92: 5,708 | F92: 4,321 | G92: 3,924 | H92: 5,799 | I92: 8,360 | J92: 11,363 | K92: 9,765 | L92: 11,650 | M92: 12,956 | N92: 12,009 | O92: 8,870 | P92: 14,375 | Q92: 16,610 | R92: 23,204 | S92: 20,793 | T92: 17,855 | U92: 22,248 | V92: 17,696 | W92: 23,626 | X92: 30,534 | Y92: 32,043 | Z92: 32,327 | AA92: 30,394 | AB92: 30,063 | AC92: 31,906
C93: SYDNEY | D93: 2,750 | E93: 2,777 | F93: 4,927 | G93: 3,594 | H93: 2,516 | I93: 2,631 | J93: 2,624 | K93: 2,907 | L93: 3,020 | M93: 3,097 | N93: 3,327 | O93: 6,088 | P93: 9,525 | Q93: 22,109 | R93: 31,089 | S93: 31,175 | T93: 30,177 | U93: 28,022 | V93: 27,755 | W93: 21,270 | X93: 25,010 | Y93: 24,955 | Z93: 30,382 | AA93: 28,764 | AB93: 26,721 | AC93: 26,269
C94: WEST COAST | G94: 2,800 | H94: 8,480 | I94: 9,223 | J94: 10,450 | K94: 17,636 | L94: 23,902 | M94: 25,779 | N94: 24,265 | O94: 26,821 | P94: 26,663 | Q94: 33,286 | R94: 37,496 | S94: 36,212 | T94: 38,868 | U94: 38,649 | V94: 34,880 | W94: 36,234 | X94: 40,792 | Y94: 42,406 | Z94: 44,138 | AA94: 45,949 | AB94: 44,863 | AC94: 43,927
C95: WSTRN BLDGS | D95: 6,491 | E95: 8,030 | F95: 8,433 | G95: 3,452 | H95: 5,351 | I95: 5,168 | J95: 10,983 | K95: 9,598 | L95: 9,311 | M95: 11,478 | N95: 9,339 | O95: 12,212 | P95: 10,650 | Q95: 15,054 | R95: 20,064 | S95: 20,491 | T95: 18,056 | U95: 19,085 | V95: 20,838 | W95: 21,260 | X95: 19,295 | Y95: 21,974 | Z95: 26,042 | AA95: 28,725 | AB95: 28,306 | AC95: 28,215

Sheet League attendance
A1: Total entry rates are discounted as follows.
A2: ABS 4174.0 says that 41.9% of League attendees went 1-2 times, 29.2% went 3-5 times, and 28.9% went 6+ times. So a conservative discounting would multiply attendance figures by 0.5645, which is (.419*1 + .292*1/3 + .289*1/6)
A4: Year | B4: Home & Away | E4: Play-Offs
B5: Games | C5: Total attendance | D5: Average attendance | E5: Games | F5: Total attendance | G5: Average attendance | H5: Total population | I5: Attendance/Population | J5: Attendance/Population (discounted)
A6: 1901 | H6: 3774072
A7: 1902 | H7: 3842165.3
A8: 1903 | H8: 3910258.6
A9: 1904 | H9: 3978351.9
A10: 1905 | H10: 4046445.2
A11: 1906 | H11: 4114538.5
A12: 1907 | H12: 4182631.8
A13: 1908 | H13: 4250725.1
A14: 1909 | H14: 4318818.4
A15: 1910 | H15: 4386911.7
A16: 1911 | H16: 4455005
A17: 1912 | H17: 4555014.5
A18: 1913 | H18: 4655024
A19: 1914 | H19: 4755033.5
A20: 1915 | H20: 4855043
A21: 1916 | H21: 4955052.5
A22: 1917 | H22: 5055062
A23: 1918 | H23: 5155071.5
A24: 1919 | H24: 5255081
A25: 1920 | H25: 5355090.5
A26: 1921 | H26: 5455100
A27: 1922 | H27: 5569900
A28: 1923 | H28: 5693400
A29: 1924 | H29: 5811200
A30: 1925 | H30: 5939200
A31: 1926 | H31: 6056300
A32: 1927 | H32: 6182500
A33: 1928 | H33: 6302200
A34: 1929 | H34: 6393900
A35: 1930 | H35: 6462700
A36: 1931 | H36: 6526500
A37: 1932 | H37: 6576800
A38: 1933 | H38: 6629800
A39: 1934 | H39: 6677400
A40: 1935 | H40: 6726200
A41: 1936 | H41: 6778400
A42: 1937 | H42: 6835600
A43: 1938 | H43: 6898600
A44: 1939 | H44: 6967800
A45: 1940 | H45: 7039500
A46: 1941 | H46: 7109900
A47: 1942 | H47: 7180700
A48: 1943 | H48: 7234900
A49: 1944 | H49: 7309700
A50: 1945 | H50: 7391700
A51: 1946 | H51: 7465100
A52: 1947 | H52: 7579400
A53: 1948 | H53: 7708700
A54: 1949 | H54: 7908100
A55: 1950 | H55: 8178700
A56: 1951 | H56: 8421700
A57: 1952 | H57: 8636500
A58: 1953 | H58: 8815300
A59: 1954 | H59: 8986500
A60: 1955 | H60: 9199700
A61: 1956 | H61: 9425500
A62: 1957 | B62: 90 | C62: 909007 | D62: 10,100 | E62: 4 | F62: 180,266 | G62: 45,067 | H62: 9640200 | I62: =(C62+F62)/H62 -> 0.1129927802 | J62: =I62*0.5645 -> 0.06378442444
A63: 1958 | B63: 90 | C63: 851585 | D63: 9,462 | E63: 5 | F63: 178,687 | G63: 35,737 | H63: 9842400 | I63: =(C63+F63)/H63 -> 0.1046769081 | J63: =I63*0.5645 -> 0.05909011461
A64: 1959 | B64: 90 | C64: 767755 | D64: 8,531 | E64: 4 | F64: 129,156 | G64: 32,289 | H64: 10056400 | I64: 0.08918807923 | J64: 0.05034667073
A65: 1960 | B65: 90 | C65: 833574 | D65: 9,262 | E65: 7+ | F65: 199,081 | G65: 28,440 | H65: 10275000 | I65: 0.1005017032 | J65: 0.05673321144
A66: 1961 | B66: 90 | C66: 864545 | D66: 9,606 | E66: 4 | F66: 170,728 | G66: 42,682 | H66: 10508200 | I66: 0.09852048876 | J66: 0.05561481591
A67: 1962 | B67: 90 | C67: 833356 | D67: 9,260 | E67: 4 | F67: 130,077 | G67: 32,519 | H67: 10700500 | I67: 0.09003625999 | J67: 0.05082546876
A68: 1963 | B68: 90 | C68: 810442 | D68: 9,005 | E68: 4 | F68: 209,306 | G68: 52,327 | H68: 10906900 | I68: 0.09349567705 | J68: 0.05277830969
A69: 1964 | B69: 90 | C69: 1032070 | D69: 11,467 | E69: 4 | F69: 165,499 | G69: 41,375 | H69: 11121600 | I69: 0.1076795605 | J69: 0.0607851119
A70: 1965 | B70: 90 | C70: 963180 | D70: 10,702 | E70: 4 | F70: 208,330 | G70: 52,083 | H70: 11340900 | I70: 0.1032995618 | J70: 0.05831260262
A71: 1966 | B71: 90 | C71: 1103613 | D71: 12,262 | E71: 5 | F71: 189,648 | G71: 37,930 | H71: 11599498 | I71: 0.1114928422 | J71: 0.06293770942
A72: 1967 | B72: 132 | C72: 1564481 | D72: 11,852 | E72: 4 | F72: 205,400 | G72: 51,350 | H72: 11799078 | I72: 0.1500016357 | J72: 0.08467592336
A73: 1968 | B73: 132 | C73: 1696694 | D73: 12,854 | E73: 4 | F73: 197,933 | G73: 49,483 | H73: 12008635 | I73: 0.1577720532 | J73: 0.08906232403
A74: 1969 | B74: 132 | C74: 1602741 | D74: 12,142 | E74: 4 | F74: 185,371 | G74: 46,343 | H74: 12263014 | I74: 0.1458134191 | J74: 0.08231167509
A75: 1970 | B75: 132 | C75: 1453948 | D75: 11,015 | E75: 4 | F75: 176,682 | G75: 44,171 | H75: 12507349 | I75: 0.1303737507 | J75: 0.07359598225
A76: 1971 | B76: 131+ | C76: 1365199 | D76: 10,421 | E76: 4 | F76: 197,139 | G76: 49,285 | H76: 13067265 | I76: 0.1195612089 | J76: 0.06749230241
A77: 1972 | B77: 132 | C77: 1282589 | D77: 9,717 | E77: 4 | F77: 187,310 | G77: 46,828 | H77: 13303664 | I77: 0.1104882835 | J77: 0.06237063605
A78: 1973 | B78: 132 | C78: 1158482 | D78: 8,776 | E78: 7 | F78: 232,328 | G78: 33,190 | H78: 13504538 | I78: 0.1029883436 | J78: 0.05813691997
A79: 1974 | B79: 132 | C79: 1057179 | D79: 8,009 | E79: 6 | F79: 221,644 | G79: 36,941 | H79: 13722571 | I79: 0.09319121031 | J79: 0.05260643822
A80: 1975 | B80: 132 | C80: 1307125 | D80: 9,902 | E80: 8 | F80: 222,290 | G80: 27,786 | H80: 13892995 | I80: 0.1100853344 | J80: 0.06214317125
A81: 1976 | B81: 132 | C81: 1391732 | D81: 10,543 | E81: 6 | F81: 202,451 | G81: 33,742 | H81: 14033083 | I81: 0.1136017652 | J81: 0.06412819646
A82: 1977 | B82: 129* | C82: 1185300 | D82: 9,188 | E82: 7 | F82: 255,465 | G82: 36,495 | H82: 14192234 | I82: 0.1015178442 | J82: 0.05730682305
A83: 1978 | B83: 128† | C83: 1331505 | D83: 10,402 | E83: 8 | F83: 251,409 | G83: 31,426 | H83: 14359255 | I83: 0.110236499 | J83: 0.06222850371
A84: 1979 | B84: 132 | C84: 1302985 | D84: 9,871 | E84: 6 | F84: 197,384 | G84: 32,897 | H84: 14515729 | I84: 0.1033616017 | J84: 0.05834762419
A85: 1980 | B85: 132 | C85: 1304323 | D85: 9,881 | E85: 6 | F85: 194,311 | G85: 32,385 | H85: 14695356 | I85: 0.1019801085 | J85: 0.05756777127
A86: 1981 | B86: 132 | C86: 1141461 | D86: 8,647 | E86: 6 | F86: 171,516 | G86: 28,586 | H86: 14923260 | I86: 0.08798191548 | J86: 0.04966579129
A87: 1982 | B87: 182 | C87: 1542640 | D87: 8,476 | E87: 6 | F87: 173,850 | G87: 28,975 | H87: 15184247 | I87: 0.1130441305 | J87: 0.06381341169
A88: 1983 | B88: 182 | C88: 1268401 | D88: 6,969 | E88: 7 | F88: 189,743 | G88: 27,106 | H88: 15393472 | I88: 0.09472482881 | J88: 0.05347216586
A89: 1984 | B89: 154† | C89: 1181792 | D89: 7,674 | E89: 7 | F89: 197,863 | G89: 28,266 | H89: 15579391 | I89: 0.08855641405 | J89: 0.04999009573
A90: 1985 | B90: 156 | C90: 1245681 | D90: 7,985 | E90: 7 | F90: 204,481 | G90: 29,212 | H90: 15788312 | I90: 0.09185035107 | J90: 0.05184952318
A91: 1986 | B91: 156 | C91: 1514480 | D91: 9,708 | E91: 7 | F91: 190,676 | G91: 27,239 | H91: 16018350 | I91: 0.106450165 | J91: 0.06009111812
A92: 1987 | B92: 156 | C92: 1482234 | D92: 9,502 | E92: 6 | F92: 176,120 | G92: 29,353 | H92: 16263874 | I92: 0.1019654973 | J92: 0.05755952321
A93: 1988 | B93: 176 | C93: 1772455 | D93: 10,071 | E93: 7 | F93: 194,203 | G93: 27,743 | H93: 16532164 | I93: 0.1189595022 | J93: 0.067152639
A94: 1989 | B94: 176 | C94: 1851351 | D94: 10,519 | E94: 7 | F94: 189,024 | G94: 27,003 | H94: 16814416 | I94: 0.1213467658 | J94: 0.06850024928
A95: 1990 | B95: 176 | C95: 1994956 | D95: 11,335 | E95: 7 | F95: 214,398 | G95: 30,628 | H95: 17065128 | I95: 0.1294660081 | J95: 0.07308356158
A96: 1991 | B96: 176 | C96: 2183804 | D96: 12,408 | E96: 7 | F96: 229,514 | G96: 32,788 | H96: 17284036 | I96: 0.1396269945 | J96: 0.07881943841
A97: 1992 | B97: 176 | C97: 2066983 | D97: 11,744 | E97: 6 | F97: 215,211 | G97: 35,869 | H97: 17494664 | I97: 0.130450862 | J97: 0.07363951162
A98: 1993 | B98: 176 | C98: 2403179 | D98: 13,654 | E98: 6 | F98: 222,288 | G98: 37,048 | H98: 17667093 | I98: 0.1486077534 | J98: 0.0838890768
A99: 1994 | B99: 176 | C99: 2501806 | D99: 14,215 | E99: 6 | F99: 230,583 | G99: 38,431 | H99: 17854738 | I99: 0.1530343934 | J99: 0.0863879151
A100: 1995 | B100: 220 | C100: 3061893 | D100: 13,918 | E100: 9 | F100: 291,034 | G100: 32,337 | H100: 18071758 | I100: 0.1855340803 | J100: 0.1047339883
A101: 1996 | B101: 214 | C101: 2450776 | D101: 11,452 | E101: 9 | F101: 292,740 | G101: 32,527 | H101: 18310714 | I101: 0.1498311863 | J101: 0.08457970465
A102: 1997 | B102: 132 | C102: =1308824+1111189 -> 2420013 | D102: 9,915 | E102: 9 | F102: =187216+140588 -> 327,804 | G102: 20,802 | H102: 18524155 | I102: 0.1483369687 | J102: 0.08373621882 | L102: 1997SL | M102: 90 | N102: 1111189 | O102: 12,347 | P102: 6 | Q102: 140,588 | R102: 23,431
A103: 1998 | B103: 240 | C103: 2624359 | D103: 10935 | E103: 13 | F103: 296905 | G103: 22839 | H103: 18730359 | I103: 0.1559641222 | J103: 0.08804174698
A104: 1999 | B104: 204 | C104: 2843065 | D104: 13937 | E104: 9 | F104: 313859 | G104: 34873 | H104: 18937166 | I104: 0.1667051976 | J104: 0.09410508404
A105: 2000 | B105: 182 | C105: 2614665 | D105: 14366 | E105: 9 | F105: 287562 | G105: 31951 | H105: 19153380 | I105: 0.1515255793 | J105: 0.08553618951
A106: 2001 | B106: 182 | C106: 2412528 | D106: 13256 | E106: 9 | F106: 269682 | G106: 29965 | H106: 19413240 | I106: 0.1381639541 | J106: 0.07799355208
A107: 2002 | B107: 180 | C107: 2355184 | D107: 13084 | E107: 9 | F107: 301014 | G107: 33446 | H107: 19651438 | I107: 0.1351655792 | J107: 0.07630096948
A108: 2003 | B108: 180 | C108: 2604501 | D108: 14469 | E108: 9 | F108: 291239 | G108: 32360 | H108: 19895435 | I108: 0.1455479611 | J108: 0.08216182406
A109: 2004 | B109: 180 | C109: 2640690 | D109: 14671 | E109: 9 | F109: 301541 | G109: 33505 | H109: 20127363 | I109: 0.1461806497 | J109: 0.08251897675
A110: 2005 | B110: 180 | C110: 2964288 | D110: 16468 | E110: 9 | F110: 312387 | G110: 34710 | H110: 20394791 | I110: 0.1606623476 | J110: 0.0906938952
A111: 2006 | B111: 180 | C111: 2808055 | D111: 15600 | E111: 9 | F111: 307466 | G111: 34163 | H111: 20697880 | I111: 0.1505236768 | J111: 0.08497061557
A112: 2007 | B112: 192 | C112: 3024040 | D112: 15750 | E112: 9 | F112: 307984 | G112: 34220 | H112: 21072452 | I112: 0.1581222726 | J112: 0.0892600229
A113: 2008 | B113: 192 | C113: 2993469 | D113: 15591 | E113: 9 | F113: 287119 | G113: 31902 | H113: 21431781 | I113: 0.1530711797 | J113: 0.08640868092
A114: 2009 | B114: 192 | C114: 3084481 | D114: 16065 | E114: 9 | F114: 351448 | G114: 39050 | H114: 21874920 | I114: 0.1570716144 | J114: 0.08866692635

Sheet Surf lifesaving
B1: Bronze medallions - total for Aust | C1: active members | D1: other' | E1: active reserve | F1: cadets | G1: junior | H1: award | I1: total | K1: Aust pop | L1: Active per 10,000 pop
A2: 1941 | B2: 1042 | C2: 4653 | D2: 3237 | K2: 7109900 | L2: =10000*C2/K2 -> 6.544395842
A3: 1942 | B3: 671 | C3: 3360 | D3: 2441 | K3: 7180700 | L3: =10000*C3/K3 -> 4.679209548
A4: 1943 | K4: 7234900 | L4: 0
A5: 1944 | B5: 1396 | C5: 4041 | D5: 3597 | K5: 7309700 | L5: 5.528270654
A6: 1945 | B6: 1614 | C6: 4875 | D6: 4726 | K6: 7391700 | L6: 6.595235196
A7: 1946 | B7: 1465 | C7: 6549 | D7: 4478 | K7: 7465100 | L7: 8.772822869
A8: 1947 | B8: 1242 | C8: 6329 | D8: 4768 | K8: 7579400 | L8: 8.350265192
A9: 1948 | B9: 1394 | C9: 6711 | D9: 5225 | K9: 7708700 | L9: 8.705748051
A10: 1949 | B10: 1380 | C10: 7195 | D10: 5291 | K10: 7908100 | L10: 9.098266335
A11: 1950 | B11: 1311 | C11: 6722 | D11: 5715 | K11: 8178700 | L11: 8.218910096
A12: 1951 | B12: 1343 | C12: 7127 | D12: 5772 | K12: 8421700 | L12: 8.462661933
A13: 1952 | B13: 1626 | C13: 7688 | D13: 6651 | K13: 8636500 | L13: 8.901754183
A14: 1953 | B14: 1753 | C14: 6323 | D14: 4469 | K14: 8815300 | L14: 7.172756458
A15: 1954 | B15: 1583 | C15: 8267 | D15: 6404 | K15: 8986500 | L15: 9.199354587
A16: 1955 | B16: 1663 | C16: 8699 | D16: 6748 | K16: 9199700 | L16: 9.455743122
A17: 1956 | B17: 1035 | C17: 8962 | D17: 5031 | K17: 9425500 | L17: 9.508248899
A18: 1957 | B18: 1836 | C18: 9024 | D18: 6734 | K18: 9640200 | L18: 9.360801643
A19: 1958 | B19: 1811 | C19: 9483 | D19: 7867 | K19: 9842400 | L19: 9.63484516
A20: 1959 | B20: 1790 | C20: 9943 | D20: 8871 | K20: 10056400 | L20: 9.887235989
A21: 1960 | B21: 1379 | C21: n/a | D21: n/a | K21: 10275000
A22: 1961 | B22: 2192 | C22: 10293 | D22: 9475 | K22: 10508200 | L22: 9.795207552
A23: 1962 | B23: 1145 | C23: 10928 | D23: 10507 | K23: 10700500 | L23: 10.21260689
A24: 1963 | B24: 2625 | C24: 10934 | D24: 10807 | K24: 10906900 | L24: 10.02484666
A25: 1964 | B25: 2525 | C25: 11302 | D25: 10497 | K25: 11121600 | L25: 10.16220688
A26: 1965 | B26: 2444 | C26: 11863 | D26: 10810 | K26: 11340900 | L26: 10.46036911
A27: 1966 | B27: 2603 | C27: 12341 | D27: 11876 | K27: 11599498 | L27: 10.63925353
A28: 1967 | B28: 2392 | C28: 12154 | D28: n/a | K28: 11799078 | L28: 10.30080486
A29: 1968 | B29: 1591 | C29: 12556 | D29: 12599 | K29: 12008635 | L29: 10.45580951
A30: 1969 | B30: 1163 | C30: 12076 | D30: 13474 | K30: 12263014 | L30: 9.847497524
A31: 1970 | B31: 2179 | C31: 11946 | D31: 15129 | K31: 12507349 | L31: 9.551184668
A32: 1971 | B32: 2266 | C32: 11822 | D32: 14798 | K32: 13067265 | L32: 9.047034708
A33: 1972 | B33: 2846 | C33: 12202 | D33: 16303 | K33: 13303664 | L33: 9.171909333
A34: 1973 | B34: 2748 | C34: 12591 | D34: 16455 | K34: 13504538 | L34: 9.323532578
A35: 1974 | B35: 2414 | C35: 13533 | D35: 15845 | K35: 13722571 | L35: 9.861854604
A36: 1975 | B36: 2319 | C36: 14207 | D36: 16371 | K36: 13892995 | L36: 10.22601678
A37: 1976 | B37: 2708 | C37: 14477 | D37: 17654 | K37: 14033083 | L37: 10.31633605
A38: 1977 | B38: 2956 | C38: 14345 | D38: 17927 | K38: 14192234 | L38: 10.10764056
A39: 1978 | B39: 3088 | C39: 15145 | D39: 18364 | K39: 14359255 | L39: 10.54720457
A40: 1979 | B40: 2837 | C40: 15355 | D40: 17669 | K40: 14515729 | L40: 10.5781804
A41: 1980 | B41: 2854 | C41: 12148 | D41: 14757 | E41: 3754 | F41: 2277 | G41: 15983 | I41: =SUM(C41:G41) -> 48919 | K41: 14695356 | L41: 8.266557135
A42: 1981 | B42: 4220 | C42: 13925 | D42: 15662 | E42: 3770 | F42: 2631 | G42: 16596 | I42: 52584 | K42: 14923260 | L42: 9.331071093
A43: 1982 | B43: 3597 | C43: 13729 | D43: 16649 | E43: 4552 | F43: 2835 | G43: 15945 | I43: 53710 | K43: 15184247 | L43: 9.041607397
A44: 1983 | B44: 4277 | C44: 14836 | D44: 17535 | E44: 2627 | F44: 2806 | G44: 17966 | I44: 55770 | K44: 15393472 | L44: 9.637851682
A45: 1984 | B45: 4081 | C45: 15258 | D45: 17617 | E45: 2385 | F45: 2906 | G45: 18028 | I45: 56194 | K45: 15579391 | L45: 9.793707597
A46: 1985 | B46: 4455 | C46: 15874 | D46: 19589 | E46: 2278 | F46: 3511 | G46: 18366 | I46: 59618 | K46: 15788312 | L46: 10.05427306
A47: 1986 | B47: 4764 | C47: 15719 | D47: 20486 | E47: 2244 | F47: 3560 | G47: 17320 | I47: 59329 | K47: 16018350 | L47: 9.813120577
A48: 1987 | B48: 5074 | C48: 16417 | D48: 21858 | E48: 2467 | F48: 3494 | G48: 18509 | I48: 62745 | K48: 16263874 | L48: 10.094151
A49: 1988 | B49: 4995 | C49: 16852 | D49: 23114 | E49: 2226 | F49: 2915 | G49: 17486 | I49: 62593 | K49: 16532164 | L49: 10.19346288
A50: 1989 | B50: 4258 | C50: 16453 | D50: 24337 | E50: 2131 | F50: 2786 | G50: 17409 | I50: 63116 | K50: 16814416 | L50: 9.785055871
A51: 1990 | B51: 4837 | C51: 17182 | D51: 26822 | E51: 1814 | F51: 2940 | G51: 17363 | I51: 66121 | K51: 17065128 | L51: 10.06848586
A52: 1991 | B52: 5651 | C52: 17316 | D52: 25983 | E52: 1858 | F52: 3013 | G52: 18568 | I52: 66738 | K52: 17284036 | L52: 10.01849337
A53: 1992 | B53: 6054 | C53: 18907 | D53: 23468 | E53: 1953 | F53: 3279 | G53: 21755 | I53: 69362 | K53: 17494664 | L53: 10.8072953
A54: 1993 | B54: 5545 | C54: 19898 | D54: 21939 | E54: 1908 | F54: 3303 | G54: 23424 | I54: 70472 | K54: 17667093 | L54: 11.26274707
A55: 1994 | B55: 5706 | C55: 19608 | D55: 23473 | E55: 1775 | F55: 3748 | G55: 23210 | I55: 71814 | K55: 17854738 | L55: 10.98195896
A56: 1995 | B56: 5313 | C56: 19013 | D56: 24001 | E56: 1942 | F56: 3737 | G56: 25980 | I56: 74673 | K56: 18071758 | L56: 10.52083588
A57: 1996 | B57: 5534 | C57: 20347 | D57: 25328 | E57: 2064 | F57: 3861 | G57: 26370 | I57: 77970 | K57: 18310714 | L57: 11.11207351
A58: 1997 | B58: 5541 | C58: 21110 | D58: 25568 | E58: 2110 | F58: 4016 | G58: 27688 | I58: 80492 | K58: 18524155 | L58: 11.39593142
A59: 1998 | B59: 6188 | C59: 21125 | D59: 26536 | E59: 1854 | F59: 4032 | G59: 27214 | I59: 80761 | K59: 18730359 | L59: 11.2784811
A60: 1999 | B60: 6097 | C60: 18831 | D60: 18183 | E60: 2023 | F60: 4163 | G60: 30901 | H60: 13849 | I60: =SUM(C60:H60) -> 87950 | J60: massive jump in number of ppl in 'award' category, so maybe changed criteria? | K60: 18937166 | L60: 9.943937757
A61: 2000 | B61: 6236 | C61: 17813 | D61: 33800 | E61: 2198 | F61: 4148 | G61: 38165 | H61: 1803 | I61: 97927 | K61: 19157140 | L61: 9.29836082
A62: 2001 | B62: 6724 | C62: 23214 | D62: 33227 | E62: 2243 | F62: 3888 | G62: 36818 | H62: 1984 | I62: 101374 | K62: 19413240 | L62: 11.95781848
A63: 2002 | B63: 6220 | C63: 24042 | D63: 34821 | E63: 2756 | F63: 4638 | G63: 38656 | H63: 1720 | I63: 106633 | K63: 19651438 | L63: 12.2342192
A64: 2003 | B64: 6700 | C64: 24828 | D64: 34844 | E64: 1790 | F64: 4553 | G64: 39617 | H64: 1338 | I64: 106970 | K64: 19895435 | L64: 12.47924461
A65: 2004 | B65: 6237 | C65: 24968 | D65: 38233 | E65: 1633 | F65: 4889 | G65: 38568 | H65: 2093 | I65: 110384 | K65: 20127363 | L65: 12.40500308
A66: 2005 | B66: 7236 | C66: 23227 | D66: 55023 | E66: 1854 | F66: 1622 | G66: 41661 | H66: 1622 | J66: total listed: 113,336. Again, many more groups included in 'other' | K66: 20394791 | L66: 11.38869234
A67: 2006 | K67: 20697880
A68: 2007 | K68: 21072452
A69: 2008 | K69: 21431781
A70: 2009 | K70: 21874920
A71: 2010

Sheet CorruptData
A1: Source: Internet Center for Corruption Research (http://www.icgg.org/corruption.cpi_olderindices_overview.html)
B2: Actual year | C2: Year for chart | D2: CPI | E2: 10-CPI
C3: 1980
C4: 1981
C5: 1982
B6: 1980-1985 | C6: 1983 | D6: 8.41 | E6: =10-D6 -> 1.59
C7: 1984
C8: 1985
C9: 1986
C10: 1987
C11: 1988
C12: 1989
B13: 1988-1992 | C13: 1990 | D13: 8.2 | E13: =10-D13 -> 1.8
C14: 1991
C15: 1992
C16: 1993
C17: 1994
C18: 1995
B19: 1996 | C19: 1996 | D19: 8.6 | E19: 1.4
B20: 1997 | C20: 1997 | D20: 8.86 | E20: 1.14
B21: 1998 | C21: 1998 | D21: 8.7 | E21: 1.3
B22: 1999 | C22: 1999 | D22: 8.7 | E22: 1.3
B23: 2000 | C23: 2000 | D23: 8.3 | E23: 1.7
B24: 2001 | C24: 2001 | D24: 8.5 | E24: 1.5
B25: 2002 | C25: 2002 | D25: 8.6 | E25: 1.4
B26: 2003 | C26: 2003 | D26: 8.8 | E26: 1.2
B27: 2004 | C27: 2004 | D27: 8.8 | E27: 1.2
B28: 2005 | C28: 2005 | D28: 8.8 | E28: 1.2
B29: 2006 | C29: 2006 | D29: 8.7 | E29: 1.3

Sheet Eth Honest data
A1: Ratings of Professionals for Ethics and Honesty
A2: Data from Roy Morgan, Finding No. 3701 - January 08, 2004. and Finding No. 3778 - 16 Sept 2004. Interviewees were asked how they would rate or score various professions for honesty and ethical standards – very high, high, average, low or very low. The percentage shown above is the proportion who gave each profession a ‘high’ or ‘very high’ rating.
A3: Source: http://www.roymorgan.com/news/polls/2004/3701/
A5: Occupation | B5: Average across 15 professions | C5: Average across 12 professions (excl politicians) | D5: Nurses | E5: Pharmacists | F5: Doctors | G5: School Teachers | H5: State Supreme Court Judges | I5: High Court Judges | J5: Dentists | K5: Engineers | L5: Police | M5: University Lecturers | N5: Accountants | O5: Ministers of Religion | P5: Public Opinion Pollsters | Q5: Bank Managers | R5: Lawyers | S5: Talk-back Radio Announcers | T5: Business Executives | U5: Stock Brokers | V5: State MPs | W5: Federal MPs | X5: Directors of Public Companies | Y5: TV Reporters | Z5: Union Leaders | AA5: Insurance Brokers | AB5: Advertising People | AC5: Newspaper Journalists | AD5: Estate Agents | AE5: Car Salesmen
A6: 1975
A7: 1976 | B7: =AVERAGE(F7,G7,J7,L7,M7, Q7,R7,T7,U7,V7,W7,Z7,AB7,AC7,AE7) -> 35% | C7: =AVERAGE(F7,G7,J7,L7,M7, Q7,R7,T7,Z7,AB7,AC7,AE7) -> 37% | F7: 62% | G7: 56% | J7: 62% | L7: 52% | M7: 47% | Q7: 66% | R7: 43% | T7: 22% | V7: 21% | W7: 19% | Z7: 9% | AB7: 9% | AC7: 12% | AE7: 4%
A8: 1977
A9: 1978
A10: 1979 | B10: =AVERAGE(F10,G10,J10,L10,M10, Q10,R10,T10,U10,V10,W10,Z10,AB10,AC10,AE10) -> 34% | C10: =AVERAGE(F10,G10,J10,L10,M10, Q10,R10,T10,Z10,AB10,AC10,AE10) -> 37% | F10: 62% | G10: 54% | J10: 61% | K10: 53% | L10: 48% | M10: 51% | Q10: 66% | R10: 41% | T10: 22% | V10: 20% | W10: 16% | Z10: 8% | AB10: 11% | AC10: 14% | AE10: 3%
A11: 1980
A12: 1981 | B12: =AVERAGE(F12,G12,J12,L12,M12, Q12,R12,T12,U12,V12,W12,Z12,AB12,AC12,AE12) -> 34% | C12: =AVERAGE(F12,G12,J12,L12,M12, Q12,R12,T12,Z12,AB12,AC12,AE12) -> 37% | F12: 63% | G12: 55% | J12: 62% | K12: 56% | L12: 56% | M12: 51% | N12: 51% | Q12: 61% | R12: 38% | T12: 22% | V12: 16% | W12: 15% | Z12: 8% | AB12: 9% | AC12: 13% | AE12: 3%
A13: 1982
A14: 1983 | B14: =AVERAGE(F14,G14,J14,L14,M14, Q14,R14,T14,U14,V14,W14,Z14,AB14,AC14,AE14) -> 34% | C14: =AVERAGE(F14,G14,J14,L14,M14, Q14,R14,T14,Z14,AB14,AC14,AE14) -> 36% | F14: 64% | G14: 55% | J14: 61% | K14: 53% | L14: 53% | M14: 52% | N14: 47% | Q14: 62% | R14: 41% | T14: 18% | V14: 20% | W14: 19% | Z14: 8% | AB14: 9% | AC14: 11% | AD14: 11% | AE14: 3%
A15: 1984 | B15: =AVERAGE(F15,G15,J15,L15,M15, Q15,R15,T15,U15,V15,W15,Z15,AB15,AC15,AE15) -> 34% | C15: =AVERAGE(F15,G15,J15,L15,M15, Q15,R15,T15,Z15,AB15,AC15,AE15) -> 37% | F15: 64% | G15: 55% | J15: 62% | K15: 53% | L15: 53% | M15: 51% | N15: 48% | Q15: 61% | R15: 44% | T15: 22% | V15: 17% | W15: 19% | Z15: 6% | AB15: 9% | AC15: 11% | AD15: 9% | AE15: 3%
A16: 1985 | B16: 33% | C16: 36% | F16: 64% | G16: 54% | J16: 65% | K16: 53% | L16: 53% | M16: 51% | N16: 47% | Q16: 58% | R16: 41% | T16: 19% | V16: 14% | W16: 13% | Z16: 6% | AB16: 8% | AC16: 11% | AD16: 10% | AE16: 3%
A17: 1986 | B17: 33% | C17: 37% | F17: 63% | G17: 57% | J17: 63% | K17: 56% | L17: 56% | M17: 51% | N17: 50% | Q17: 60% | R17: 39% | T17: 23% | U17: 19% | V17: 17% | W17: 16% | Z17: 5% | AA17: 13% | AB17: 11% | AC17: 12% | AD17: 10% | AE17: 3%
A18: 1987 | B18: 33% | C18: 37% | F18: 65% | G18: 56% | J18: 65% | K18: 56% | L18: 56% | M18: 51% | N18: 50% | Q18: 58% | R18: 41% | T18: 24% | U18: 20% | V18: 12% | W18: 13% | Z18: 7% | AA18: 15% | AB18: 11% | AC18: 11% | AD18: 11% | AE18: 3%
A19: 1988 | B19: 33% | C19: 37% | E19: 76% | F19: 67% | G19: 55% | J19: 68% | K19: 56% | L19: 53% | M19: 53% | N19: 47% | Q19: 54% | R19: 41% | T19: 21% | U19: 18% | V19: 14% | W19: 14% | Z19: 7% | AA19: 13% | AB19: 8% | AC19: 11% | AD19: 11% | AE19: 4%
A20: 1989 | B20: 32% | C20: 36% | E20: 76% | F20: 62% | G20: 57% | J20: 65% | K20: 56% | L20: 53% | M20: 52% | N20: 46% | Q20: 50% | R20: 41% | T20: 20% | U20: 18% | V20: 15% | W20: 15% | Y20: 16% | Z20: 9% | AA20: 13% | AB20: 9% | AC20: 9% | AD20: 11% | AE20: 4%
A21: 1990 | B21: 32% | C21: 36% | E21: 72% | F21: 70% | G21: 61% | J21: 62% | K21: 55% | L21: 54% | M21: 53% | N21: 47% | Q21: 49% | R21: 37% | T21: 19% | U21: 15% | V21: 11% | W21: 13% | Y21: 17% | Z21: 8% | AA21: 12% | AB21: 7% | AC21: 10% | AD21: 11% | AE21: 4%
A22: 1991 | B22: 30% | C22: 35% | E22: 76% | F22: 69% | G22: 59% | J22: 64% | K22: 57% | L22: 54% | M22: 56% | N22: 46% | Q22: 40% | R22: 38% | T22: 15% | U22: 14% | V22: 10% | W22: 10% | Y22: 15% | Z22: 7% | AA22: 10% | AB22: 8% | AC22: 8% | AD22: 9% | AE22: 3%
A23: 1992 | B23: 31% | C23: 36% | E23: 79% | F23: 69% | G23: 62% | J23: 66% | K23: 58% | L23: 53% | M23: 55% | N23: 47% | Q23: 44% | R23: 34% | T23: 17% | U23: 15% | V23: 10% | W23: 10% | X23: 20% | Y23: 14% | Z23: 8% | AA23: 12% | AB23: 9% | AC23: 7% | AD23: 9% | AE23: 3%
A24: 1993 | B24: 30% | C24: 34% | E24: 78% | F24: 65% | G24: 61% | J24: 62% | K24: 56% | L24: 54% | M24: 53% | N24: 46% | Q24: 41% | R24: 32% | T24: 16% | U24: 15% | V24: 11% | W24: 11% | X24: 18% | Y24: 15% | Z24: 9% | AA24: 10% | AB24: 9% | AC24: 8% | AD24: 10% | AE24: 2%
A25: 1994 | B25: 30% | C25: 34% | D25: 86% | E25: 78% | F25: 66% | G25: 65% | J25: 60% | K25: 57% | L25: 56% | M25: 54% | N25: 42% | Q25: 37% | R25: 30% | T25: 17% | U25: 15% | V25: 10% | W25: 10% | X25: 20% | Y25: 16% | Z25: 9% | AA25: 11% | AB25: 8% | AC25: 8% | AD25: 9% | AE25: 3%
A26: 1995 | B26: 31% | C26: 36% | D26: 86% | E26: 79% | F26: 69% | G26: 69% | J26: 65% | K26: 59% | L26: 59% | M26: 52% | N26: 45% | P26: 34% | Q26: 39% | R26: 32% | T26: 17% | U26: 13% | V26: 12% | W26: 9% | X26: 20% | Y26: 13% | Z26: 10% | AA26: 10% | AB26: 10% | AC26: 8% | AD26: 11% | AE26: 3%
A27: 1996 | B27: 31% | C27: 35% | D27: 87% | E27: 80% | F27: 72% | G27: 68% | J27: 65% | K27: 56% | L27: 55% | M27: 50% | N27: 46% | O27: 59% | P27: 33% | Q27: 37% | R27: 29% | T27: 17% | U27: 16% | V27: 12% | W27: 13% | X27: 17% | Y27: 12% | Z27: 9% | AA27: 9% | AB27: 7% | AC27: 7% | AD27: 10% | AE27: 3%
A28: 1997 | B28: 29% | C28: 34% | D28: 86% | E28: 80% | F28: 66% | G28: 64% | J28: 60% | K28: 54% | L28: 55% | M28: 52% | N28: 43% | O28: 55% | P28: 29% | Q28: 32% | R28: 29% | T28: 16% | U28: 15% | V28: 9% | W28: 9% | X28: 18% | Y28: 11% | Z28: 12% | AA28: 12% | AB28: 8% | AC28: 7% | AD28: 10% | AE28: 3%
A29: 1998 | B29: 31% | C29: 36% | D29: 88% | E29: 80% | F29: 69% | G29: 71% | J29: 61% | K29: 57% | L29: 60% | M29: 57% | N29: 43% | O29: 56% | P29: 30% | Q29: 36% | R29: 26% | T29: 18% | U29: 15% | V29: 7% | W29: 7% | X29: 17% | Y29: 12% | Z29: 13% | AA29: 11% | AB29: 7% | AC29: 9% | AD29: 8% | AE29: 2%
A30: 1999 | B30: 33% | C30: 37% | D30: 89% | E30: 86% | F30: 74% | G30: 71% | H30: 61% | I30: 61% | J30: 65% | K30: 57% | L30: 62% | M30: 56% | N30: 49% | O30: 58% | P30: 35% | Q30: 33% | R30: 34% | S30: 18% | T30: 22% | U30: 19% | V30: 13% | W30: 13% | X30: 20% | Y30: 14% | Z30: 11% | AA30: 14% | AB30: 9% | AC30: 9% | AD30: 11% | AE30: 3%
A31: 2000 | B31: 31% | C31: 35% | D31: 88% | E31: 83% | F31: 71% | G31: 70% | H31: 61% | I31: 60% | J31: 64% | K31: 59% | L31: 62% | M31: 54% | N31: 45% | O31: 56% | P31: 35% | Q31: 26% | R31: 29% | S31: 14% | T31: 17% | U31: 16% | V31: 12% | W31: 11% | X31: 18% | Y31: 12% | Z31: 12% | AA31: 11% | AB31: 10% | AC31: 7% | AD31: 10% | AE31: 3%
A32: 2001 | B32: 33% | C32: 38% | D32: 90% | E32: 83% | F32: 75% | G32: 74% | H32: 64% | I32: 63% | J32: 65% | K32: 64% | L32: 58% | M32: 64% | N32: 51% | O32: 54% | P32: 27% | Q32: 30% | R32: 32% | S32: 17% | T32: 19% | U32: 18% | V32: 14% | W32: 16% | X32: 17% | Y32: 18% | Z32: 14% | AA32: 14% | AB32: 8% | AC32: 13% | AD32: 8% | AE32: 2%
A33: 2002 | B33: 34% | C33: 39% | D33: 90% | E33: 89% | F33: 80% | G33: 79% | H33: 66% | I33: 65% | J33: 67% | K33: 67% | L33: 65% | M33: 66% | N33: 45% | O33: 48% | P33: 29% | Q33: 29% | R33: 30% | S33: 17% | T33: 17% | U33: 14% | V33: 17% | W33: 16% | X33: 16% | Y33: 18% | Z33: 11% | AA33: 10% | AB33: 10% | AC33: 9% | AD33: 8% | AE33: 3%
A34: 2003 | B34: 36% | C34: 41% | D34: 94% | E34: 87% | F34: 80% | G34: 79% | H34: 72% | I34: 71% | J34: 71% | K34: 69% | L34: 64% | M34: 64% | N34: 50% | O34: 48% | P34: 38% | Q34: 35% | R34: 31% | S34: 21% | T34: 19% | U34: 17% | V34: 17% | W34: 17% | X34: 17% | Y34: 17% | Z34: 15% | AA34: 15% | AB34: 13% | AC34: 12% | AD34: 11% | AE34: 5%
A35: 2004 | B35: =AVERAGE(F35,G35,J35,L35,M35, Q35,R35,T35,U35,V35,W35,Z35,AB35,AC35,AE35) -> 37% | C35: =AVERAGE(F35,G35,J35,L35,M35, Q35,R35,T35,Z35,AB35,AC35,AE35) -> 41% | D35: 90% | E35: 86% | F35: 80% | G35: 77% | H35: 65% | I35: 63% | J35: 71% | K35: 69% | L35: 64% | M35: 66% | N35: 51% | O35: 53% | P35: 31% | Q35: 35% | R35: 33% | S35: 17% | T35: 23% | U35: 19% | V35: 19% | W35: 20% | X35: 23% | Y35: 19% | Z35: 17% | AA35: 15% | AB35: 12% | AC35: 12% | AD35: 10% | AE35: 4%
A36: 2005 | B36: 34% | C36: 40% | D36: 89% | E36: 84% | F36: 79% | G36: 74% | H36: 65% | I36: 64% | J36: 67% | K36: 68% | L36: 65% | M36: 64% | N36: 50% | O36: 52% | P36: 31% | Q36: 35% | R36: 32% | S36: 19% | T36: 15% | U36: 14% | V36: 13% | W36: 15% | X36: 18% | Y36: 17% | Z36: 19% | AA36: 13% | AB36: 10% | AC36: 11% | AD36: 10% | AE36: 3%
A37: 2006
A38: 2007 | B38: 36% | C38: 41% | D38: 91% | E38: 85% | F38: 81% | G38: 78% | H38: 68% | I38: 67% | J38: 69% | K38: 71% | L38: 65% | M38: 67% | N38: 48% | O38: 51% | P38: 27% | Q38: 33% | R38: 36% | S38: 17% | T38: 18% | U38: 17% | V38: 16% | W38: 16% | X38: 21% | Y38: 13% | Z38: 16% | AA38: 11% | AB38: 9% | AC38: 12% | AD38: 9% | AE38: 4%
A39: 2008 | B39: 37% | C39: 41% | D39: 89% | E39: 86% | F39: 79% | G39: 78% | H39: 67% | I39: 66% | J39: 70% | K39: 72% | L39: 66% | M39: 67% | N39: 54% | O39: 50% | P39: 29% | Q39: 33% | R39: 35% | S39: 18% | T39: 21% | U39: 18% | V39: 20% | W39: 23% | X39: 22% | Y39: 16% | Z39: 17% | AA39: 15% | AB39: 9% | AC39: 14% | AD39: 10% | AE39: 4%
A40: 2009 | B40: 34% | C40: 39% | D40: 89% | E40: 84% | F40: 82% | G40: 76% | H40: 68% | I40: 67% | J40: 69% | K40: 69% | L40: 65% | M40: 61% | N40: 51% | O40: 45% | P40: 23% | Q40: 33% | R40: 30% | S40: 15% | T40: 16% | U40: 15% | V40: 18% | W40: 19% | X40: 17% | Y40: 14% | Z40: 14% | AA40: 11% | AB40: 6% | AC40: 9% | AD40: 10% | AE40: 3%
A41: 2010

Sheet Trust & pol interest data
A1: Trust
A2: Ethical and honest data from Roy Morgan, Finding No. 3701 - January 08, 2004. Interviewees were asked how they would rate or score various professions for honesty and ethical standards – very high, high, average, low or very low. The percentage shown above is the proportion who gave politicians a ‘high’ or ‘very high’ rating.
A3: Question for interpersonal trust is "Generally speaking, would you say that most people can be trusted, or that you can't be too careful in dealing with people?"
A4: Sources:
A5: 1983 and 1995 interpersonal trust from Ronald Inglehart et al. World Values Surveys and European Values Surveys, 1981–1984, 1990–1993, and 1995–1997, ICPSR 2790 (v27) [weighted by original weight, v236]
A6: 2001 interpersonal trust from Australian Election Survey
A7: 2003 interpersonal trust from The Australian Survey of Social Attitudes, 2003 [v54]
A8: 1998 from International Social Survey Program: Religion II, 1998 (ICPSR 3065) [v19, weighted by v316]
A9: ISSP question is: "Generally speaking, would you say that people can be trusted or that you can’t be too careful in dealing with people?"
A10: Since the 1998 ISSP question omits the word most, responses tend to be higher. Leigh (2004) finds that across developed countries, this question yields results that are 8.2% higher. So the raw 1998 figure of 54.36% could be scaled down by 8.2%, giving 46.16%.
A11: People in government can be trusted questions are from Murray Goot, "Distrustful, Disenchanted and Disengaged?" in David Burchell and Andrew Leigh (eds), The Prince's New Clothes: Why do Australians Dislike Their Politicians? UNSW Press, Sydney, 2002. The 1979 and 1988 surveys allowed a middling response ("some do, some don't"), so these years are omitted. Percentages are a fraction of valid responses.
A12: Interest in politics and election campaigns questions are from Murray Goot, "Distrustful, Disenchanted and Disengaged?" in David Burchell and Andrew Leigh (eds), The Prince's New Clothes: Why do Australians Dislike Their Politicians? UNSW Press, Sydney, 2002. The 1979 and 1988 surveys allowed a middling response ("some do, some don't"), so these years are omitted. Percentages are a fraction of valid responses.
A15: year | B15: Federal politicians ethical and honest | C15: State politicians ethical and honest | D15: People in government can be trusted | E15: Took a good deal of interest in the election campaign | F15: Takes a good deal of interest in politics | G15: Most people can be trusted | H15: Increase in trust associated with going up one income decile | I15: Standard error on increase estimate
A16: 1967
A17: 1968
A18: 1969 | D18: 49.40% | E18: 33.0%
A19: 1970
A20: 1971
A21: 1972
A22: 1973
A23: 1974
A24: 1975
A25: 1976 | B25: 19% | C25: 21%
A26: 1977
A27: 1978
A28: 1979 | B28: 16% | C28: 20%
A29: 1980
A30: 1981 | B30: 15% | C30: 16%
A31: 1982
A32: 1983 | B32: 19% | C32: 20% | G32: 47.81% | H32: 0.0207525 | I32: 0.0066581
A33: 1984 | B33: 19% | C33: 17% | D33: 40.65% | F33: 32.0%
A34: 1985 | B34: 13% | C34: 14%
A35: 1986 | B35: 16% | C35: 17%
A36: 1987 | B36: 13% | C36: 12% | F36: 35.0%
A37: 1988 | B37: 14% | C37: 14% | F37: 42.0%
A38: 1989 | B38: 15% | C38: 15%
A39: 1990 | B39: 13% | C39: 11% | F39: 36.0%
A40: 1991 | B40: 10% | C40: 10%
A41: 1992 | B41: 10% | C41: 10%
A42: 1993 | B42: 11% | C42: 11% | D42: 34.34% | E42: 49.4% | F42: 38.0%
A43: 1994 | B43: 10% | C43: 10%
A44: 1995 | B44: 9% | C44: 12% | G44: 39.89% | H44: 0.019328 | I44: 0.0042138
A45: 1996 | B45: 13% | C45: 12% | D45: 47.60% | E45: 34.3% | F45: 32.0%
A46: 1997 | B46: 9% | C46: 9%
A47: 1998 | B47: 7% | C47: 7% | D47: 33.33% | E47: 36.3% | F47: 36.0% | H47: 0.0152414 | I47: 0.0054833
A48: 1999 | B48: 13% | C48: 13% | D48: 37.37% | E48: 37.3% | F48: 35.0%
A49: 2000 | B49: 11% | C49: 12% | F49: 32.4%
A50: 2001 | B50: 16% | C50: 14% | D50: 31.70% | E50: 30.7% | F50: 32.4% | G50: 45.60% | H50: 0.025 | I50: 0.0040153
A51: 2002 | B51: 16% | C51: 17%
A52: 2003 | B52: 17% | C52: 17% | G52: 41.58%
A53: 2004 | B53: 20% | C53: 19% | D53: 39.50% | E53: 29.7% | F53: 33.0% | G53: 47.10% | H53: 0.025 | I53: 0.00438
A54: 2005 | B54: 15% | C54: 13%
A55: 2006
A56: 2007 | B56: 16% | C56: 16% | G56: 56.73%
A57: 2008 | B57: 23% | C57: 20%
A58: 2009 | B58: 19% | C58: 18%
A59: 2010

Sheet Movie data
A1: Year | B1: Admissions (m) | C1: Population (m) | D1: Admissions per capita | F1: Note: Figures from 1919-53 are based on entertainment tax returns, and may understate true admissions, since the application of the tax varied considerably over this period. See "Entertainment Taxes as a Source of Admissions Data" at http://www.afc.gov.au/gtp/wchistsource.html.
A2: 1901 | B2: 0.3 | C2: 3.8 | D2: 0.1
A3: 1902
A4: 1903
A5: 1904
A6: 1905 | B6: 1.3 | C6: 4.0 | D6: 0.3
A7: 1906
A8: 1907
A9: 1908
A10: 1909
A11: 1910
A12: 1911
A13: 1912
A14: 1913 | B14: 15.6 | C14: 4.8 | D14: 3.3
A15: 1914
A16: 1915
A17: 1916
A18: 1917
A19: 1918
A20: 1919
A21: 1920 | B21: 67.5 | C21: 5.4 | D21: 12.6
A22: 1921 | B22: 68.0 | C22: 5.5 | D22: 12.5
A23: 1922
A24: 1923
A25: 1924
A26: 1925
A27: 1926
A28: 1927 | B28: 110.0 | C28: 6.2 | D28: 17.8
A29: 1928 | B29: 187.0 | C29: 6.3 | D29: 29.7
A30: 1929
A31: 1930 | B31: 131.0 | C31: 6.5 | D31: 20.2
A32: 1931
A33: 1932 | B33: 65.5 | C33: 6.6 | D33: 10.0
A34: 1933
A35: 1934
A36: 1935
A37: 1936
A38: 1937
A39: 1938
A40: 1939
A41: 1940
A42: 1941
A43: 1942
A44: 1943 | B44: 102.0 | C44: 7.2 | D44: 14.1
A45: 1944 | B45: 147.8 | C45: 7.3 | D45: 20.2
A46: 1945 | B46: 151.0 | C46: 7.4 | D46: 20.4
A47: 1946 | B47: 143.0 | C47: 7.5 | D47: 19.1
A48: 1947 | B48: 136.9 | C48: 7.6 | D48: 18.0
A49: 1948 | B49: 133.2 | C49: 7.7 | D49: 17.3
A50: 1949 | B50: 129.9 | C50: 7.9 | D50: 16.4
A51: 1950 | B51: 129.0 | C51: 8.2 | D51: 15.7
A52: 1951 | B52: 134.0 | C52: 8.4 | D52: 15.9
A53: 1952 | B53: 140.1 | C53: 8.6 | D53: 16.3
A54: 1953 | B54: 137.9 | C54: 8.8 | D54: 15.7
A55: 1954
A56: 1955
A57: 1956
A58: 1957 | B58: 124.0 | C58: 9.6 | D58: 12.9
A59: 1958
A60: 1959
A61: 1960
A62: 1961
A63: 1962 | B63: 66.0 | C63: 10.7 | D63: 6.1
A64: 1963
A65: 1964
A66: 1965
A67: 1966
A68: 1967
A69: 1968
A70: 1969 | B70: 47.0 | C70: 12.3 | D70: 3.8
A71: 1970
A72: 1971
A73: 1972 | B73: 53.0 | C73: 13.3 | D73: 4.0
A74: 1973
A75: 1974 | B75: 68.0 | C75: 13.7 | D75: 5.0
A76: 1975
A77: 1976 | B77: 28.9 | C77: 14.0 | D77: 2.1 | F77: Source: http://www.screenaustralia.gov.au/gtp/wchist1975.html
A78: 1977 | B78: 24.1 | C78: 14.2 | D78: 1.7
A79: 1978 | B79: 34.1 | C79: 14.4 | D79: 2.4
A80: 1979 | B80: 33.6 | C80: 14.5 | D80: 2.3
A81: 1980 | B81: 38.6 | C81: 14.7 | D81: 2.6
A82: 1981 | B82: 38.7 | C82: 14.9 | D82: 2.6
A83: 1982 | B83: 42.0 | C83: 15.2 | D83: 2.8
A84: 1983 | B84: 37.1 | C84: 15.4 | D84: 2.4
A85: 1984 | B85: 28.9 | C85: 15.6 | D85: 1.9
A86: 1985 | B86: 29.7 | C86: 15.8 | D86: 1.9
A87: 1986 | B87: 35.5 | C87: 16.0 | D87: 2.2
A88: 1987 | B88: 30.8 | C88: 16.3 | D88: 1.9
A89: 1988 | B89: 37.4 | C89: 16.5 | D89: 2.3
A90: 1989 | B90: 39.0 | C90: 16.8 | D90: 2.3
A91: 1990 | B91: 43.0 | C91: 17.1 | D91: 2.5
A92: 1991 | B92: 46.9 | C92: 17.3 | D92: 2.7
A93: 1992 | B93: 47.2 | C93: 17.5 | D93: 2.7
A94: 1993 | B94: 55.6 | C94: 17.7 | D94: 3.1
A95: 1994 | B95: 68.1 | C95: 17.8 | D95: 3.8
A96: 1995 | B96: 69.9 | C96: 18.0 | D96: 3.9
A97: 1996 | B97: 74.0 | C97: 18.3 | D97: 4.1
A98: 1997 | B98: 76.0 | C98: 18.5 | D98: 4.1
A99: 1998 | B99: 80.0 | C99: 18.7 | D99: 4.3
A100: 1999 | B100: 88.0 | C100: 18.9 | D100: 4.6
A101: 2000 | B101: 82.0 | C101: 19.2 | D101: 4.3
A102: 2001 | B102: 92.5 | C102: 19.5 | D102: 4.7
A103: 2002 | B103: 92.5 | C103: 19.8 | D103: 4.7
A104: 2003 | B104: 90.0 | C104: 20.1 | D104: 4.5
A105: 2004 | B105: 91.5 | C105: 20.2 | D105: 4.5
A106: 2005 | B106: 82.2 | C106: 20.5 | D106: 4
A107: 2006 | B107: 83.6 | C107: 20.8 | D107: 4
A108: 2007 | B108: 84.7 | C108: 21.2 | D108: 4
A109: 2008 | B109: 84.6 | C109: 21.4 | D109: 4
A110: 2009
A111: 2010

Sheet Neighbours
B1: Do you know your neighbours (% saying very well or fairly well) | C1: Do you mix socially with your neighbours (% saying very often or quite often) | E1: Sources: Age Poll 1979 (ASSDA D0144) & Hawker-Britton Survey 2004
A2: 1979 | B2: 63.6 | C2: 19.4
A3: 1980
A4: 1981
A5: 1982
A6: 1983
A7: 1984
A8: 1985
A9: 1986
A10: 1987
A11: 1988
A12: 1989
A13: 1990
A14: 1991
A15: 1992
A16: 1993
A17: 1994
A18: 1995
A19: 1996
A20: 1997
A21: 1998
A22: 1999
A23: 2000
A24: 2001
A25: 2002
A26: 2003
A27: 2004 | B27: 61 | C27: 32

Sheet SuicideData
B1: Suicide - Male rate | C1: Suicide - Female rate | D1: Suicide - Persons rate | F1: Note: These are age-adjusted suicide rates per 100,000 population.
A2: 1921 | B2: 22.6 | C2: 4.8 | D2: 14.0 | F2: Sources:
A3: 1922 | B3: 19.8 | C3: 3.8 | D3: 12.0 | F3: 1921-1998 from ABS, Suicides 1921-1998. Cat No 3309.0, Table 1
A4: 1923 | B4: 21.0 | C4: 4.3 | D4: 12.9 | F4: 1999-2003 from ABS, Suicides: Recent Trends, Australia 1993-2003. Cat No 3309.0.55.001, Table 2
A5: 1924 | B5: 22.2 | C5: 4.7 | D5: 13.7
A6: 1925 | B6: 23.3 | C6: 5.1 | D6: 14.4
A7: 1926 | B7: 22.8 | C7: 5.1 | D7: 14.2
A8: 1927 | B8: 22.7 | C8: 5.3 | D8: 14.2
A9: 1928 | B9: 23.6 | C9: 5.2 | D9: 14.6
A10: 1929 | B10: 22.9 | C10: 5.0 | D10: 14.1
A11: 1930 | B11: 28.1 | C11: 5.2 | D11: 16.8
A12: 1931 | B12: 24.5 | C12: 4.7 | D12: 14.7
A13: 1932 | B13: 20.9 | C13: 5.2 | D13: 13.1
A14: 1933 | B14: 21.4 | C14: 5.1 | D14: 13.3
A15: 1934 | B15: 21.8 | C15: 5.9 | D15: 13.9
A16: 1935 | B16: 20.1 | C16: 5.8 | D16: 13.0
A17: 1936 | B17: 20.1 | C17: 5.5 | D17: 12.8
A18: 1937 | B18: 18.6 | C18: 4.6 | D18: 11.6
A19: 1938 | B19: 18.2 | C19: 5.3 | D19: 11.7
A20: 1939 | B20: 18.9 | C20: 5.4 | D20: 12.1
A21: 1940 | B21: 17.2 | C21: 5.3 | D21: 11.2
A22: 1941 | B22: 14.4 | C22: 4.6 | D22: 9.4
A23: 1942 | B23: 12.8 | C23: 4.6 | D23: 8.7
A24: 1943 | B24: 11.6 | C24: 4.0 | D24: 7.7
A25: 1944 | B25: 11.0 | C25: 5.0 | D25: 7.9
A26: 1945 | B26: 11.8 | C26: 4.7 | D26: 8.2
A27: 1946 | B27: 15.0 | C27: 6.1 | D27: 10.4
A28: 1947 | B28: 15.8 | C28: 5.4 | D28: 10.5
A29: 1948 | B29: 16.4 | C29: 4.2 | D29: 10.2
A30: 1949 | B30: 16.7 | C30: 4.6 | D30: 10.5
A31: 1950 | B31: 15.4 | C31: 4.9 | D31: 10.0
A32: 1951 | B32: 15.6 | C32: 4.9 | D32: 10.2
A33: 1952 | B33: 17.6 | C33: 5.5 | D33: 11.5
A34: 1953 | B34: 17.4 | C34: 6.2 | D34: 11.7
A35: 1954 | B35: 18.0 | C35: 5.8 | D35: 11.7
A36: 1955 | B36: 17.2 | C36: 5.6 | D36: 11.2
A37: 1956 | B37: 17.7 | C37: 6.2 | D37: 11.8
A38: 1957 | B38: 19.4 | C38: 7.2 | D38: 13.2
A39: 1958 | B39: 20.7 | C39: 6.5 | D39: 13.4
A40: 1959 | B40: 18.4 | C40: 6.1 | D40: 12.1
A41: 1960 | B41: 17.1 | C41: 6.6 | D41: 11.7
A42: 1961 | B42: 19.0 | C42: 7.3 | D42: 13.0
A43: 1962 | B43: 21.2 | C43: 9.3 | D43: 15.2
A44: 1963 | B44: 23.7 | C44: 11.6 | D44: 17.5
A45: 1964 | B45: 21.9 | C45: 10.8 | D45: 16.2
A46: 1965 | B46: 21.4 | C46: 11.9 | D46: 16.5
A47: 1966 | B47: 20.0 | C47: 11.6 | D47: 15.6
A48: 1967 | B48: 21.9 | C48: 12.2 | D48: 16.9
A49: 1968 | B49: 19.3 | C49: 9.3 | D49: 14.1
A50: 1969 | B50: 19.2 | C50: 8.6 | D50: 13.7
A51: 1970 | B51: 19.4 | C51: 8.3 | D51: 13.7
A52: 1971 | B52: 19.8 | C52: 9.9 | D52: 14.7
A53: 1972 | B53: 18.4 | C53: 8.9 | D53: 13.5
A54: 1973 | B54: 17.2 | C54: 7.9 | D54: 12.4
A55: 1974 | B55: 17.5 | C55: 7.8 | D55: 12.5
A56: 1975 | B56: 16.9 | C56: 7.5 | D56: 12.0
A57: 1976 | B57: 17.3 | C57: 6.2 | D57: 11.6
A58: 1977 | B58: 17.4 | C58: 6.6 | D58: 11.9
A59: 1978 | B59: 17.0 | C59: 7.0 | D59: 11.8
A60: 1979 | B60: 17.6 | C60: 6.9 | D60: 12.2
A61: 1980 | B61: 17.6 | C61: 5.9 | D61: 11.6
A62: 1981 | B62: 18.1 | C62: 5.8 | D62: 11.8
A63: 1982 | B63: 18.5 | C63: 6.3 | D63: 12.2
A64: 1983 | B64: 18.0 | C64: 5.6 | D64: 11.6
A65: 1984 | B65: 17.6 | C65: 5.3 | D65: 11.3
A66: 1985 | B66: 18.7 | C66: 5.1 | D66: 11.8
A67: 1986 | B67: 19.8 | C67: 5.7 | D67: 12.6
A68: 1987 | B68: 22.5 | C68: 5.7 | D68: 13.9
A69: 1988 | B69: 21.5 | C69: 5.6 | D69: 13.4
A70: 1989 | B70: 20.1 | C70: 5.2 | D70: 12.5
A71: 1990 | B71: 20.7 | C71: 4.9 | D71: 12.7
A72: 1991 | B72: 21.7 | C72: 5.9 | D72: 13.7
A73: 1992 | B73: 21.1 | C73: 5.3 | D73: 13.1
A74: 1993 | B74: 19.3 | C74: 4.3 | D74: 11.7
A75: 1994 | B75: 20.7 | C75: 4.7 | D75: 12.6
A76: 1995 | B76: 20.9 | C76: 5.4 | D76: 13.0
A77: 1996 | B77: 21.3 | C77: 4.9 | D77: 13.0
A78: 1997 | B78: 23.4 | C78: 6.1 | D78: 14.6
A79: 1998 | B79: 23.2 | C79: 5.6 | D79: 14.3
A80: 1999 | B80: 21.6 | C80: 5.1 | D80: 13.2
A81: 2000 | B81: 19.8 | C81: 5.2 | D81: 12.3
A82: 2001 | B82: 20.3 | C82: 5.3 | D82: 12.6
A83: 2002 | B83: 18.8 | C83: 5.0 | D83: 11.8
A84: 2003 | B84: 17.7 | C84: 4.7 | D84: 11.1

Sheet HomicideData
A1: Homicide
A2: Year | B2: Rate
A3: 1915 | B3: 1.8
A4: 1916 | B4: 1.8
A5: 1917 | B5: 1.5
A6: 1918 | B6: 1.8
A7: 1919 | B7: 2.1
A8: 1920 | B8: 2.1
A9: 1921 | B9: 1.4
A10: 1922 | B10: 1.4
A11: 1923 | B11: 1.7
A12: 1924 | B12: 1.9
A13: 1925 | B13: 1.4
A14: 1926 | B14: 1.6
A15: 1927 | B15: 1.8
A16: 1928 | B16: 1.8
A17: 1929 | B17: 1.8
A18: 1930 | B18: 1.6
A19: 1931 | B19: 2.0
A20: 1932 | B20: 1.4
A21: 1933 | B21: 1.5
A22: 1934 | B22: 1.6
A23: 1935 | B23: 1.6
A24: 1936 | B24: 1.4
A25: 1937 | B25: 1.6
A26: 1938 | B26: 1.2
A27: 1939 | B27: 1.1
A28: 1940 | B28: 1.4
A29: 1941 | B29: 0.8
A30: 1942 | B30: 1.3
A31: 1943 | B31: 1.0
A32: 1944 | B32: 1.5
A33: 1945 | B33: 1.0
A34: 1946 | B34: 1.2
A35: 1947 | B35: 1.2
A36: 1948 | B36: 1.1
A37: 1949 | B37: 0.9
A38: 1950 | B38: 1.0
A39: 1951 | B39: 1.4
A40: 1952 | B40: 1.5
A41: 1953 | B41: 1.3
A42: 1954 | B42: 1.3
A43: 1955 | B43: 1.4
A44: 1956 | B44: 1.3
A45: 1957 | B45: 1.3
A46: 1958 | B46: 1.5
A47: 1959 | B47: 1.5
A48: 1960 | B48: 1.5
A49: 1961 | B49: 1.4
A50: 1962 | B50: 1.5
A51: 1963 | B51: 1.4
A52: 1964 | B52: 1.5
A53: 1965 | B53: 1.4
A54: 1966 | B54: 1.3
A55: 1967 | B55: 1.4
A56: 1968 | B56: 1.6
A57: 1969 | B57: 1.2
A58: 1970 | B58: 1.5
A59: 1971 | B59: 1.8
A60: 1972 | B60: 1.7
A61: 1973 | B61: 1.9
A62: 1974 | B62: 1.8
A63: 1975 | B63: 1.6
A64: 1976 | B64: 2.0
A65: 1977 | B65: 1.9
A66: 1978 | B66: 1.8
A67: 1979 | B67: 1.8
A68: 1980 | B68: 1.9
A69: 1981 | B69: 1.9
A70: 1982 | B70: 1.9
A71: 1983 | B71: 1.9
A72: 1984 | B72: 1.9
A73: 1985 | B73: 2.0
A74: 1986 | B74: 2.0
A75: 1987 | B75: 2.0
A76: 1988 | B76: 2.4
A77: 1989 | B77: 1.9
A78: 1990 | B78: 2.3
A79: 1991 | B79: 2.0
A80: 1992 | B80: 1.8
A81: 1993 | B81: 1.8
A82: 1994 | B82: 1.9
A83: 1995 | B83: 1.8
A84: 1996 | B84: 1.8
A85: 1997 | B85: 1.8
A86: 1998 | B86: 1.6
A87: 1999 | B87: 1.6
A88: 2000 | B88: 1.7
A89: 2001 | B89: 1.6 | C89: Victims | D89: Pop
A90: 2002 | B90: 1.5 | C90: 354 | D90: 19651438 | E90: =C90/D90 -> 1.80139489e-05
A91: 2003 | B91: =C91/(D91/100000) -> 1.5 | C91: 302 | D91: 19895435 | E91: =C91/D91 -> 1.51793615e-05
A92: 2004 | B92: =C92/(D92/100000) -> 1.4 | C92: 288 | D92: 20127363 | E92: 1.430887891e-05
A93: 2005 | B93: 1.2 | C93: 251 | D93: 20394791 | E93: 1.230706409e-05
A94: 2006 | B94: 1.4 | C94: 283 | D94: 20697880 | E94: 1.36728979e-05
A95: 2007 | B95: 1.2 | C95: 258 | D95: 21015042 | E95: 1.22769205e-05
A96: 2008
A97: 2009
A98: 2010
A106: Source: Australian Institute of Criminology, Adapted from Australian Bureau of Statistics, Causes of Death Australia, Catelogue No. 3303.0
A107: Data for 2002-07 are 'incidents' from Australian Institute of Criminology National Homicide Monitoring Program [computer file], 1989-2007. These are better than ABS COD data, which are always under-reported in recent years.

Sheet Domestic work by gender
A1: 41530DO001 How Australians Use Their Time, 2006
A2: Released at 11:30 am (Canberra time) Thurs 21 Feb 2008
A3: Table 1 ALL PERSONS, PRIMARY ACTIVITIES—by sex—1992, 1997, 2006 | M3: core housework minutes/day
B4: 1992 | E4: 1997 | H4: 2006 | M4: year | N4: male | O4: female | P4: diff
B5: Males | C5: Females | D5: Persons | E5: Males | F5: Females | G5: Persons | H5: Males | I5: Females | J5: Persons | K5: Diff | M5: 1992 | N5: 37 | O5: 147 | P5: =O5-N5 -> 110
A6: Concordance of activities | B6: Hours and minutes per day | C6: Hours and minutes per day | D6: Hours and minutes per day | E6: Hours and minutes per day | F6: Hours and minutes per day | G6: Hours and minutes per day | H6: Hours and minutes per day | I6: Hours and minutes per day | J6: Hours and minutes per day | M6: 1997 | N6: 40 | O6: 139 | P6: =O6-N6 -> 99
A7: Employment related | B7: 4:28 | C7: 2:06 | D7: 3:16 | E7: 4:21 | F7: 2:12 | G7: 3:16 | H7: 4:33 | I7: 2:21 | J7: 3:27 | M7: 2006 | N7: 43 | O7: 87 | P7: =O7-N7 -> 44
A8: Main job | B8: 3:45 | C8: 1:46 | D8: 2:45 | E8: 3:46 | F8: 1:53 | G8: 2:49 | H8: 3:59 | I8: 2:02 | J8: 2:59
A9: Other job | B9: 0:03 | C9: 0:01 | D9: 0:02 | E9: 0:02 | F9: 0:01 | G9: 0:01 | H9: 0:02 | I9: 0:01 | J9: 0:01 | M9: total domestic minutes/day
A10: Unpaid work in family business or farm | B10: 0:01 | C10: 0:01 | D10: 0:01 | E10: 0:01 | F10: 0:01 | G10: 0:01 | H10: 0:01 | I10: 0:01 | J10: 0:01 | M10: year | N10: male | O10: female
A11: Work breaks | B11: 0:11 | C11: 0:05 | D11: 0:08 | E11: 0:00 | F11: 0:00 | G11: 0:00 | H11: 0:01 | I11: 0:01 | J11: 0:01 | M11: 1992 | N11: 97 | O11: 182 | P11: =O11-N11 -> 85
A12: Job Search | B12: 0:02 | C12: 0:01 | D12: 0:01 | E12: 0:02 | F12: 0:01 | G12: 0:01 | H12: 0:01 | I12: 0:01 | J12: 0:01 | M12: 1997 | N12: 97 | O12: 180 | P12: =O12-N12 -> 83
A13: Associated travel | B13: 0:24 | C13: 0:11 | D13: 0:18 | E13: 0:26 | F13: 0:14 | G13: 0:20 | H13: 0:27 | I13: 0:14 | J13: 0:21 | M13: 2006 | N13: 97 | O13: 172 | P13: =O13-N13 -> 75
A14: Other | B14: 0:02 | C14: 0:01 | D14: 0:01 | E14: 0:04 | F14: 0:02 | G14: 0:03 | H14: 0:02 | I14: 0:02 | J14: 0:02 | M14: childcare minutes/day
A15: Domestic activities | B15: 1:37 | C15: 3:02 | D15: 2:20 | E15: 1:37 | F15: 3:00 | G15: 2:19 | H15: 1:37 | I15: 2:52 | J15: 2:15 | K15: =I15-H15 -> 01:15:00 | M15: year | N15: male | O15: female
A16: Total housework | B16: 0:37 | C16: 2:27 | D16: 1:33 | E16: 0:40 | F16: 2:19 | G16: 1:30 | H16: 0:43 | I16: 2:11 | J16: 1:27 | K16: =I16-H16 -> 01:28:00 | M16: 1992 | N16: 14 | O16: 49 | P16: =O16-N16 -> 35
A17: Food and drink preparation/cleanup | B17: 0:24 | C17: 1:11 | D17: 0:48 | E17: 0:26 | F17: 1:09 | G17: 0:48 | H17: 0:29 | I17: 1:09 | J17: 0:49 | K17: 00:40:00 | M17: 1997 | N17: 16 | O17: 45 | P17: =O17-N17 -> 29
A18: Laundry and clothes care | B18: 0:04 | C18: 0:34 | D18: 0:19 | E18: 0:05 | F18: 0:33 | G18: 0:19 | H18: 0:05 | I18: 0:29 | J18: 0:17 | K18: 00:24:00 | M18: 2006 | N18: 22 | O18: 59 | P18: =O18-N18 -> 37
A19: Other housework | B19: 0:09 | C19: 0:42 | D19: 0:26 | E19: 0:09 | F19: 0:37 | G19: 0:23 | H19: 0:10 | I19: 0:33 | J19: 0:22 | K19: 00:23:00
A20: Total other household work | B20: 0:54 | C20: 0:31 | D20: 0:42 | E20: 0:50 | F20: 0:36 | G20: 0:43 | H20: 0:45 | I20: 0:35 | J20: 0:40 | K20: -0.006944444444
A21: Grounds and animal care | B21: 0:30 | C21: 0:22 | D21: 0:26 | E21: 0:27 | F21: 0:23 | G21: 0:25 | H21: 0:23 | I21: 0:21 | J21: 0:22 | K21: -0.001388888889
A22: Home maintenance | B22: 0:20 | C22: 0:04 | D22: 0:12 | E22: 0:17 | F22: 0:04 | G22: 0:10 | H22: 0:14 | I22: 0:03 | J22: 0:09 | K22: -0.007638888889
A23: Household management | B23: 0:03 | C23: 0:04 | D23: 0:04 | E23: 0:07 | F23: 0:09 | G23: 0:08 | H23: 0:07 | I23: 0:10 | J23: 0:09 | K23: 00:03:00
A24: Associated travel | B24: 0:04 | C24: 0:02 | D24: 0:03 | E24: 0:03 | F24: 0:02 | G24: 0:03 | H24: 0:04 | I24: 0:03 | J24: 0:04 | K24: -0.0006944444444
A25: Other | B25: 0:03 | C25: 0:02 | D25: 0:02 | E25: 0:04 | F25: 0:03 | G25: 0:03 | H25: 0:05 | I25: 0:03 | J25: 0:04 | K25: -0.001388888889
A26: Child care | B26: 0:14 | C26: 0:49 | D26: 0:32 | E26: 0:16 | F26: 0:45 | G26: 0:31 | H26: 0:22 | I26: 0:59 | J26: 0:41 | K26: 00:37:00
A27: Care of children | B27: 0:06 | C27: 0:30 | D27: 0:18 | E27: 0:04 | F27: 0:21 | G27: 0:13 | H27: 0:06 | I27: 0:24 | J27: 0:15 | K27: 00:18:00
A28: Teaching, helping, reprimanding children | B28: 0:01 | C28: 0:02 | D28: 0:01 | E28: 0:01 | F28: 0:01 | G28: 0:01 | H28: 0:00 | I28: 0:01 | J28: 0:01 | K28: 00:01:00
A29: Playing, reading, talking with child | B29: 0:04 | C29: 0:07 | D29: 0:06 | E29: 0:05 | F29: 0:06 | G29: 0:05 | H29: 0:09 | I29: 0:16 | J29: 0:12 | K29: 00:07:00
A30: Minding child | B30: 0:01 | C30: 0:03 | D30: 0:02 | E30: 0:03 | F30: 0:05 | G30: 0:04 | H30: 0:02 | I30: 0:04 | J30: 0:03 | K30: 00:02:00
A31: Visiting child care establishment/school | B31: 0:00 | C31: 0:00 | D31: 0:00 | E31: 0:00 | F31: 0:01 | G31: 0:01 | H31: 0:00 | I31: 0:01 | J31: 0:00 | K31: 00:01:00
A32: Associated travel | B32: 0:02 | C32: 0:06 | D32: 0:04 | E32: 0:02 | F32: 0:07 | G32: 0:05 | H32: 0:03 | I32: 0:09 | J32: 0:06 | K32: 00:06:00
A33: Other | B33: 0:00 | C33: 0:01 | D33: 0:00 | E33: 0:02 | F33: 0:04 | G33: 0:03 | H33: 0:02 | I33: 0:05 | J33: 0:03 | K33: 00:03:00

Sheet Immig data
A1: Immigration
A2: Sources:
A3: Annual data from Australian Bureau of Statistics, Cat. No. 3105.0.65.001 Australian Historical Population Statistics, TABLE 56. Overseas arrivals and departures, sex and category of movement, year ending 31 December, 1925 onwards (adding male and female totals for "Permanent Movement - Arrivals")
A4: Breakdown by country of origin calculated from Department of Immigration and Multicultural Affairs, Permanent & Long Term Arrivals By Region/Country of Last Residence until 1958, and of birth from 1959 onwards (electronic file)
B6: Total population | C6: Total settler migration (ABS) | D6: Total settler migration (DIMA) | E6: Total settler migration from English-speaking countries (DIMA) | F6: Total settler migration from non-English speaking countries (DIMA) | G6: Immigration rate (ABS data) | H6: Immigration rate (DIMA data) | I6: Non-English speaking immigration rate (DIMA data)
A7: 1925 | B7: 5939200 | C7: 56477 | G7: =C7/B7 -> 0.95%
A8: 1926 | B8: 6056300 | C8: 59464 | G8: =C8/B8 -> 0.98%
A9: 1927 | B9: 6182500 | C9: 67078 | G9: 1.08%
A10: 1928 | B10: 6302200 | C10: 48233 | G10: 0.77%
A11: 1929 | B11: 6393900 | C11: 31698 | G11: 0.50%
A12: 1930 | B12: 6462700 | C12: 17537 | G12: 0.27%
A13: 1931 | B13: 6526500 | C13: 9441 | G13: 0.14%
A14: 1932 | B14: 6576800 | C14: 9868 | G14: 0.15%
A15: 1933 | B15: 6629800 | C15: 10749 | G15: 0.16%
A16: 1934 | B16: 6677400 | C16: 11778 | G16: 0.18%
A17: 1935 | B17: 6726200 | C17: 12608 | G17: 0.19%
A18: 1936 | B18: 6778400 | C18: 12653 | G18: 0.19%
A19: 1937 | B19: 6835600 | C19: 16291 | G19: 0.24%
A20: 1938 | B20: 6898600 | C20: 19548 | G20: 0.28%
A21: 1939 | B21: 6967800 | C21: 24068 | G21: 0.35%
A22: 1940 | B22: 7039500 | C22: 16152 | G22: 0.23%
A23: 1941 | B23: 7109900 | C23: 8940 | G23: 0.13%
A24: 1942 | B24: 7180700 | C24: 10145 | G24: 0.14%
A25: 1943 | B25: 7234900 | C25: 3516 | G25: 0.05%
A26: 1944 | B26: 7309700 | C26: 2511 | G26: 0.03%
A27: 1945 | B27: 7391700 | C27: 7512 | G27: 0.10%
A28: 1946 | B28: 7465100 | C28: 18217 | D28: 34284 | E28: 22820 | F28: 11464 | G28: 0.24% | H28: =D28/B28 -> 0.46% | I28: =F28/B28 -> 0.15%
A29: 1947 | B29: 7579400 | C29: 31765 | D29: 46569 | E29: 26985 | F29: 19584 | G29: =C29/B29 -> 0.42% | H29: =D29/B29 -> 0.61% | I29: =F29/B29 -> 0.26%
A30: 1948 | B30: 7708700 | C30: 65739 | D30: 114818 | E30: 55174 | F30: 59644 | G30: 0.85% | H30: 1.49% | I30: 0.77%
A31: 1949 | B31: 7908100 | C31: 167727 | D31: 184889 | E31: 58104 | F31: 126785 | G31: 2.12% | H31: 2.34% | I31: 1.60%
A32: 1950 | B32: 8178700 | C32: 174540 | D32: 153290 | E32: 59522 | F32: 93768 | G32: 2.13% | H32: 1.87% | I32: 1.15%
A33: 1951 | B33: 8421700 | C33: 132542 | D33: 130462 | E33: 64069 | F33: 66393 | G33: 1.57% | H33: 1.55% | I33: 0.79%
A34: 1952 | B34: 8636500 | C34: 127824 | D34: 95890 | E34: 40447 | F34: 55443 | G34: 1.48% | H34: 1.11% | I34: 0.64%
A35: 1953 | B35: 8815300 | C35: 74915 | D35: 86468 | E35: 30651 | F35: 55817 | G35: 0.85% | H35: 0.98% | I35: 0.63%
A36: 1954 | B36: 8986500 | C36: 104014 | D36: 124180 | E36: 42102 | F36: 82078 | G36: 1.16% | H36: 1.38% | I36: 0.91%
A37: 1955 | B37: 9199700 | C37: 130795 | D37: 132628 | E37: 43481 | F37: 89147 | G37: 1.42% | H37: 1.44% | I37: 0.97%
A38: 1956 | B38: 9425500 | C38: 123822 | D38: 120601 | E38: 42020 | F38: 78581 | G38: 1.31% | H38: 1.28% | I38: 0.83%
A39: 1957 | B39: 9640200 | C39: 118695 | D39: 107978 | E39: 47290 | F39: 60688 | G39: 1.23% | H39: 1.12% | I39: 0.63%
A40: 1958 | B40: 9842400 | C40: 109857 | D40: 116697 | E40: 51090 | F40: 65607 | G40: 1.12% | H40: 1.19% | I40: 0.67%
A41: 1959 | B41: 10056400 | C41: 97777 | D41: 105887 | E41: 41430 | F41: 64457 | G41: 0.97% | H41: 1.05% | I41: 0.64%
A42: 1960 | B42: 10275000 | C42: 110079 | D42: 108291 | E42: 43067 | F42: 65224 | G42: 1.07% | H42: 1.05% | I42: 0.63%
A43: 1961 | B43: 10508200 | C43: 95407 | D43: 85808 | E43: 34593 | F43: 51215 | G43: 0.91% | H43: 0.82% | I43: 0.49%
A44: 1962 | B44: 10700500 | C44: 90464 | D44: 101888 | E44: 49518 | F44: 52370 | G44: 0.85% | H44: 0.95% | I44: 0.49%
A45: 1963 | B45: 10906900 | C45: 108150 | D45: 122318 | E45: 64718 | F45: 57600 | G45: 0.99% | H45: 1.12% | I45: 0.53%
A46: 1964 | B46: 11121600 | C46: 134464 | D46: 140152 | E46: 80968 | F46: 59184 | G46: 1.21% | H46: 1.26% | I46: 0.53%
A47: 1965 | B47: 11340900 | C47: 147507 | D47: 144055 | E47: 81372 | F47: 62683 | G47: 1.30% | H47: 1.27% | I47: 0.55%
A48: 1966 | B48: 11599498 | C48: 141033 | D48: 138676 | E48: 82415 | F48: 56261 | G48: 1.22% | H48: 1.20% | I48: 0.49%
A49: 1967 | B49: 11799078 | C49: 135019 | D49: 137525 | E49: 72272 | F49: 65253 | G49: 1.14% | H49: 1.17% | I49: 0.55%
A50: 1968 | B50: 12008635 | C50: 159270 | D50: 175657 | E50: 92212 | F50: 83445 | G50: 1.33% | H50: 1.46% | I50: 0.69%
A51: 1969 | B51: 12263014 | C51: 183416 | D51: 185099 | E51: 88278 | F51: 96821 | G51: 1.50% | H51: 1.51% | I51: 0.79%
A52: 1970 | B52: 12507349 | C52: 185325 | D52: 170011 | E52: 79303 | F52: 90708 | G52: 1.48% | H52: 1.36% | I52: 0.73%
A53: 1971 | B53: 13067265 | C53: 155525 | D53: 132719 | E53: 69708 | F53: 63011 | G53: 1.19% | H53: 1.02% | I53: 0.48%
A54: 1972 | B54: 13303664 | C54: 112468 | D54: 107401 | E54: 59190 | F54: 48211 | G54: 0.85% | H54: 0.81% | I54: 0.36%
A55: 1973 | B55: 13504538 | C55: 105003 | D55: 112712 | E55: 57400 | F55: 55312 | G55: 0.78% | H55: 0.83% | I55: 0.41%
A56: 1974 | B56: 13722571 | C56: 121324 | D56: 89147 | E56: 47003 | F56: 42144 | G56: 0.88% | H56: 0.65% | I56: 0.31%
A57: 1975 | B57: 13892995 | C57: 54119 | D57: 52752 | E57: 23810 | F57: 28942 | G57: 0.39% | H57: 0.38% | I57: 0.21%
A58: 1976 | B58: 14033083 | C58: 58287 | D58: 70916 | E58: 27933 | F58: 42983 | G58: 0.42% | H58: 0.51% | I58: 0.31%
A59: 1977 | B59: 14192234 | C59: 75640 | D59: 73171 | E59: 34707 | F59: 38464 | G59: 0.53% | H59: 0.52% | I59: 0.27%
A60: 1978 | B60: 14359255 | C60: 68419 | D60: 67192 | E60: 29421 | F60: 37771 | G60: 0.48% | H60: 0.47% | I60: 0.26%
A61: 1979 | B61: 14515729 | C61: 72236 | D61: 80748 | E61: 35952 | F61: 44796 | G61: 0.50% | H61: 0.56% | I61: 0.31%
A62: 1980 | B62: 14695356 | C62: 94503 | D62: 110689 | E62: 56482 | F62: 54207 | G62: 0.64% | H62: 0.75% | I62: 0.37%
A63: 1981 | B63: 14923260 | C63: 118735 | D63: 118031 | E63: 56836 | F63: 61195 | G63: 0.80% | H63: 0.79% | I63: 0.41%
A64: 1982 | B64: 15184247 | C64: 107171 | D64: 93011 | E64: 40395 | F64: 52616 | G64: 0.71% | H64: 0.61% | I64: 0.35%
A65: 1983 | B65: 15393472 | C65: 78392 | D65: 68813 | E65: 23598 | F65: 45215 | G65: 0.51% | H65: 0.45% | I65: 0.29%
A66: 1984 | B66: 15579391 | C66: 73108 | D66: 77508 | E66: 25479 | F66: 52029 | G66: 0.47% | H66: 0.50% | I66: 0.33%
A67: 1985 | B67: 15788312 | C67: 82000 | D67: 92590 | E67: 35484 | F67: 57106 | G67: 0.52% | H67: 0.59% | I67: 0.36%
A68: 1986 | B68: 16018350 | C68: 103326 | D68: 113541 | E68: 44038 | F68: 69503 | G68: 0.65% | H68: 0.71% | I68: 0.43%
A69: 1987 | B69: 16263874 | C69: 128288 | D69: 143406 | E69: 55408 | F69: 87998 | G69: 0.79% | H69: 0.88% | I69: 0.54%
A70: 1988 | B70: 16532164 | C70: 151549 | D70: 145254 | E70: 58121 | F70: 87133 | G70: 0.92% | H70: 0.88% | I70: 0.53%
A71: 1989 | B71: 16814416 | C71: 131064 | D71: 121178 | E71: 42547 | F71: 78631 | G71: 0.78% | H71: 0.72% | I71: 0.47%
A72: 1990 | B72: 17065128 | C72: 121563 | D72: 121688 | E72: 34595 | F72: 87093 | G72: 0.71% | H72: 0.71% | I72: 0.51%
A73: 1991 | B73: 17284036 | C73: 116647 | D73: 107391 | E73: 26609 | F73: 80782 | G73: 0.67% | H73: 0.62% | I73: 0.47%
A74: 1992 | B74: 17494664 | C74: 94246 | D74: 76330 | E74: 20155 | F74: 56175 | G74: 0.54% | H74: 0.44% | I74: 0.32%
A75: 1993 | B75: 17667093 | C75: 65675 | D75: 69768 | E75: 21320 | F75: 48448 | G75: 0.37% | H75: 0.39% | I75: 0.27%
A76: 1994 | B76: 17854738 | C76: 77937 | D76: 87428 | E76: 27945 | F76: 59483 | G76: 0.44% | H76: 0.49% | I76: 0.33%
A77: 1995 | B77: 18071758 | C77: 96969 | D77: 99139 | E77: 30568 | F77: 68571 | G77: 0.54% | H77: 0.55% | I77: 0.38%
A78: 1996 | B78: 18310714 | C78: 92503 | D78: 85752 | E78: 29540 | F78: 56212 | G78: 0.51% | H78: 0.47% | I78: 0.31%
A79: 1997 | B79: 18524155 | C79: 78229 | D79: 77327 | E79: 31281 | F79: 46046 | G79: 0.42% | H79: 0.42% | I79: 0.25%
A80: 1998 | B80: 18730359 | C80: 81065 | D80: 84143 | E80: 35041 | F80: 49102 | G80: 0.43% | H80: 0.45% | I80: 0.26%
A81: 1999 | B81: 18937166 | C81: 88010 | D81: 92272 | E81: 39620 | F81: 52652 | G81: 0.46% | H81: 0.49% | I81: 0.28%
A82: 2000 | B82: 19157140 | D82: 107186 | E82: 43156 | F82: 64030 | G82: 0.00% | H82: 0.56% | I82: 0.33%
A83: 2001 | B83: 19386663 | D83: 88864 | E83: 32786 | F83: 56078 | G83: 0.00% | H83: 0.46% | I83: 0.29%
A84: 2002
A85: 2003

Sheet OS born data
A1: Overseas-Born Population
A2: Sources:
A3: 1901-1996 data from Statistics Section, Department of Immigration and Multicultural Affairs, 2001, Immigration: Federation to Century's End, 1901-2000, DIMA, Canberra, pp.18-19.
A4: 2001 data from Year Book Australia, 2004, "Population: Country of Birth" (http://www.abs.gov.au/Ausstats/abs@.nsf/0/72d73be7e25d813fca256dea00053a71?OpenDocument)
B6: Total population | C6: Overseas born population | D6: Population born in the UK & Ireland | E6: Population born in New Zealand | F6: Population born in the US | G6: Overseas born population, excl UK, Ireland, NZ, US | H6: Fraction overseas-born | I6: Fraction born in non-English speaking countries | J6: Fraction of OS born who were born in non-English speaking countries
A7: 1901 | B7: 3,773,801 | C7: 857,576 | D7: 679,600 | E7: 25,800 | F7: 7,448 | G7: =C7-(D7+E7+F7) -> 144,728 | H7: =C7/B7 -> 22.72% | I7: =G7/B7 -> 3.84% | J7: =I7/H7 -> 16.9%
A8: 1902
A9: 1903
A10: 1904
A11: 1905
A12: 1906
A13: 1907
A14: 1908
A15: 1909
A16: 1910
A17: 1911 | B17: 4,455,005 | C17: 756,865 | D17: 590,722 | E17: 31,868 | F17: 6,642 | G17: =C17-(D17+E17+F17) -> 127,633 | H17: =C17/B17 -> 16.99% | I17: =G17/B17 -> 2.86% | J17: =I17/H17 -> 16.9%
A18: 1912
A19: 1913
A20: 1914
A21: 1915
A22: 1916
A23: 1917
A24: 1918
A25: 1919
A26: 1920
A27: 1921 | B27: 5,435,734 | C27: 839,579 | D27: 673,403 | E27: 38,611 | F27: 6,604 | G27: =C27-(D27+E27+F27) -> 120,961 | H27: =C27/B27 -> 15.45% | I27: =G27/B27 -> 2.23% | J27: =I27/H27 -> 14.4%
A28: 1922
A29: 1923
A30: 1924
A31: 1925
A32: 1926
A33: 1927
A34: 1928
A35: 1929
A36: 1930
A37: 1931
A38: 1932
A39: 1933 | B39: 6,629,839 | C39: 903,273 | D39: 712,458 | E39: 45,963 | F39: 6,066 | G39: =C39-(D39+E39+F39) -> 138,786 | H39: =C39/B39 -> 13.62% | I39: =G39/B39 -> 2.09% | J39: =I39/H39 -> 15.4%
A40: 1934
A41: 1935
A42: 1936
A43: 1937
A44: 1938
A45: 1939
A46: 1940
A47: 1941
A48: 1942
A49: 1943
A50: 1944
A51: 1945
A52: 1946
A53: 1947 | B53: 7,579,358 | C53: 744,187 | D53: 546,200 | E53: 43,600 | F53: 6,200 | G53: =C53-(D53+E53+F53) -> 148,187 | H53: =C53/B53 -> 9.82% | I53: =G53/B53 -> 1.96% | J53: =I53/H53 -> 19.9%
A54: 1948
A55: 1949
A56: 1950
A57: 1951
A58: 1952
A59: 1953
A60: 1954 | B60: 8,986,530 | C60: 1,286,466 | D60: 664,200 | E60: 43,400 | F60: 8,300 | G60: =C60-(D60+E60+F60) -> 570,566 | H60: =C60/B60 -> 14.32% | I60: =G60/B60 -> 6.35% | J60: =I60/H60 -> 44.4%
A61: 1955
A62: 1956
A63: 1957
A64: 1958
A65: 1959
A66: 1960
A67: 1961 | B67: 10,508,186 | C67: 1,778,780 | D67: 755,400 | E67: 47,000 | F67: 10,800 | G67: =C67-(D67+E67+F67) -> 965,580 | H67: =C67/B67 -> 16.93% | I67: =G67/B67 -> 9.19% | J67: =I67/H67 -> 54.3%
A68: 1962
A69: 1963
A70: 1964
A71: 1965
A72: 1966
A73: 1967
A74: 1968
A75: 1969
A76: 1970
A77: 1971 | B77: 12,755,638 | C77: 2,579,318 | D77: 1,081,300 | E77: 74,100 | F77: 26,800 | G77: =C77-(D77+E77+F77) -> 1,397,118 | H77: =C77/B77 -> 20.22% | I77: =G77/B77 -> 10.95% | J77: =I77/H77 -> 54.2%
A78: 1972
A79: 1973
A80: 1974
A81: 1975
A82: 1976
A83: 1977
A84: 1978
A85: 1979
A86: 1980
A87: 1981 | B87: 14,576,330 | C87: 3,003,834 | D87: 1,120,900 | E87: 160,700 | F87: 28,900 | G87: =C87-(D87+E87+F87) -> 1,693,334 | H87: =C87/B87 -> 20.61% | I87: =G87/B87 -> 11.62% | J87: =I87/H87 -> 56.4%
A88: 1982
A89: 1983
A90: 1984
A91: 1985
A92: 1986
A93: 1987
A94: 1988
A95: 1989
A96: 1990
A97: 1991 | B97: 16,770,635 | C97: 3,689,128 | D97: 1,244,300 | E97: 286,400 | F97: 49,500 | G97: =C97-(D97+E97+F97) -> 2,108,928 | H97: =C97/B97 -> 22.00% | I97: =G97/B97 -> 12.58% | J97: =I97/H97 -> 57.2%
A98: 1992
A99: 1993
A100: 1994
A101: 1995
A102: 1996 | B102: 17,752,882 | C102: 3,908,267 | D102: 1,123,976 | E102: 291,381 | F102: 49,526 | G102: =C102-(D102+E102+F102) -> 2,443,384 | H102: =C102/B102 -> 22.01% | I102: =G102/B102 -> 13.76% | J102: =I102/H102 -> 62.5%
A103: 1997
A104: 1998
A105: 1999
A106: 2000
A107: 2001 | B107: 19,413,200.00 | C107: 4,482,100 | D107: 1,182,800 | E107: 394,100 | F107: 64,000 | G107: =C107-(D107+E107+F107) -> 2,841,200 | H107: =C107/B107 -> 23.09% | I107: =G107/B107 -> 14.64% | J107: =I107/H107 -> 63.4%
A108: 2002
A109: 2003

Sheet Female employment 1978-2010
A1: year | B1: Full time | C1: Part time | D1: Total
A2: 1975
A3: 1976
A4: 1977
A5: 1978 | B5: 0.2655354 | C5: 0.1370658 | D5: 0.4026012
A6: 1979 | B6: 0.2624117 | C6: 0.1377041 | D6: 0.4001158
A7: 1980 | B7: 0.2697755 | C7: 0.1426577 | D7: 0.4124332
A8: 1981 | B8: 0.2690479 | C8: 0.1451437 | D8: 0.4141916
A9: 1982 | B9: 0.264154 | C9: 0.1442067 | D9: 0.4083607
A10: 1983 | B10: 0.2565705 | C10: 0.143703 | D10: 0.4002735
A11: 1984 | B11: 0.2603496 | C11: 0.1496788 | D11: 0.4100285
A12: 1985 | B12: 0.2669321 | C12: 0.1552549 | D12: 0.4221871
A13: 1986 | B13: 0.2751365 | C13: 0.1667428 | D13: 0.4418793
A14: 1987 | B14: 0.2746912 | C14: 0.1738644 | D14: 0.4485556
A15: 1988 | B15: 0.2815712 | C15: 0.1791434 | D15: 0.4607146
A16: 1989 | B16: 0.2898943 | C16: 0.188823 | D16: 0.4787173
A17: 1990 | B17: 0.292568 | C17: 0.1939992 | D17: 0.4865671
A18: 1991 | B18: 0.2809823 | C18: 0.1935861 | D18: 0.4745684
A19: 1992 | B19: 0.2718105 | C19: 0.1978144 | D19: 0.4696249
A20: 1993 | B20: 0.2726496 | C20: 0.1949812 | D20: 0.4676308
A21: 1994 | B21: 0.276152 | C21: 0.2025217 | D21: 0.4786737
A22: 1995 | B22: 0.2840245 | C22: 0.2116399 | D22: 0.4956644
A23: 1996 | B23: 0.2838912 | C23: 0.2114182 | D23: 0.4953094
A24: 1997 | B24: 0.2795053 | C24: 0.2147773 | D24: 0.4942825
A25: 1998 | B25: 0.2818189 | C25: 0.2172185 | D25: 0.4990373
A26: 1999 | B26: 0.2822933 | C26: 0.2200732 | D26: 0.5023665
A27: 2000 | B27: 0.2897175 | C27: 0.2237609 | D27: 0.5134784
A28: 2001 | B28: 0.2869713 | C28: 0.2282658 | D28: 0.5152371
A29: 2002 | B29: 0.2826541 | C29: 0.235745 | D29: 0.5183991
A30: 2003 | B30: 0.2851559 | C30: 0.2404575 | D30: 0.5256134
A31: 2004 | B31: 0.2884332 | C31: 0.2376618 | D31: 0.526095
A32: 2005 | B32: 0.294783 | C32: 0.2453666 | D32: 0.5401496
A33: 2006 | B33: 0.3011788 | C33: 0.2463109 | D33: 0.5474896
A34: 2007 | B34: 0.3069474 | C34: 0.2463503 | D34: 0.5532978
A35: 2008 | B35: 0.3091094 | C35: 0.249099 | D35: 0.5582083
A36: 2009 | B36: 0.3060435 | C36: 0.248894 | D36: 0.5549376
A37: 2010

Sheet Female employment (earlier yrs)
A1: Source: Reserve Bank of Australia, Electronic Files, 4.10b Employment by Industry: Females (a)
A2: http://www.rba.gov.au/Statistics/OP8ExcelFiles/4-10b.xls
B5: Total employment, females ('000s) | C5: Females 15+ | D5: Share of women in the paid labour force
A6: 1966 | B6: 1 458 | C6: 5757910 | D6: =B6*1000/C6 -> 25.3%
A7: 1967 | B7: 1 523 | C7: 5859757 | D7: =B7*1000/C7 -> 26.0%
A8: 1968 | B8: 1 578 | C8: 5965400 | D8: 26.4% | F8: TABLE 4 LABOUR FORCE PARTICIPATION RATES OF MARRIED WOMEN, BY AGE GROUP 1933-91
A9: 1969 | B9: 1 636 | C9: 6092823 | D9: 26.9% | F9: Age group (years) | G9: 1933 | H9: 1947 | I9: 1961 | J9: 1971 | K9: 1981 | L9: 1991
A10: 1970 | B10: 1 748 | C10: 6215372 | D10: 28.1%
A11: 1971 | B11: 1 803 | C11: 6499329 | D11: 27.7%
A12: 1972 | B12: 1 852 | C12: 6618511 | D12: 28.0% | F12: 15-19 | G12: 3.2 | H12: 11.4 | I12: 19.9 | J12: 36.4 | K12: 45.7 | L12: 53.8
A13: 1973 | B13: 1 943 | C13: 6721690 | D13: 28.9% | F13: 20-24 | G13: 4.4 | H13: 11.6 | I13: 24.5 | J13: 44.1 | K13: 57.4 | L13: 64.1
A14: 1974 | B14: 2 008 | C14: 6832903 | D14: 29.4% | F14: 25-34 | G14: 4.7 | H14: 8 | I14: 17.3 | J14: 33 | K14: 49 | L14: 61.3
A15: 1975 | B15: 2 021 | C15: 6923814 | D15: 29.2% | F15: 35-44 | G15: 5.3 | H15: 8.8 | I15: 21.3 | J15: 41.3 | K15: 58.4 | L15: 71.3
A16: 1976 | B16: 2 062 | C16: 7001049 | D16: 29.4% | F16: 45-54 | G16: 6 | H16: 8.6 | I16: 19.9 | J16: 36.1 | K16: 50.5 | L16: 63.3
A17: 1977 | B17: 2 129 | C17: 7087532 | D17: 30.0% | F17: 55-59 | G17: 5.7 | H17: 6.6 | I17: 12.6 | J17: 23.2 | K17: 31.3 | L17: 34.1
A18: 1978 | B18: 2 154 | C18: 7177962 | D18: 30.0% | F18: 60-64 | G18: 3.7 | H18: 4.1 | I18: 6.5 | J18: 12 | K18: 15 | L18: 16.3
A19: 1979 | B19: 2 157 | C19: 7261967 | D19: 29.7%
A20: 1980 | B20: 2 299 | C20: 7357296 | D20: 31.2%
A21: 1981 | B21: 2 336 | C21: 7474993 | D21: 31.2% | F21: Source: ABS, Australian Censuses, 1933-81: ABS, The Labour Force, June 1991 (6203.0)
A22: 1982 | B22: 2 355 | C22: 7603333 | D22: 31.0% | F22: From Year Book Australia. 1994 Special Article - Household and Family Trends in Australia (written by Peter McDonald)
A23: 1983 | B23: 2 337 | C23: 7707126 | D23: 30.3% | F23: http://www.abs.gov.au/ausstats/abs@.nsf/Lookup/72DC873D21F1E2ECCA2569DE00221C82
A24: 1984 | B24: 2 448 | C24: 7801179 | D24: 31.4%
A25: 1985 | B25: 2 565 | C25: 7905584 | D25: 32.4%
A26: 1986 | B26: 2 716 | C26: 8018163 | D26: 33.9%
A27: 1987 | B27: 2 816 | C27: 8145619 | D27: 34.6%
A28: 1988 | B28: 2 971 | C28: 8283219 | D28: 35.9%
A29: 1989 | B29: 3 159 | C29: 8426827 | D29: 37.5%
A30: 1990 | B30: 3 246 | C30: 8553859 | D30: 37.9%
A31: 1991 | B31: 3 225 | C31: 8668627 | D31: 37.2%
A32: 1992 | B32: 3 232 | C32: 8778517 | D32: 36.8%
A33: 1993 | B33: 3 238 | C33: 8869178 | D33: 36.5%
A34: 1994 | B34: 3 350 | C34: 8966672 | D34: 37.4%
A35: 1995 | B35: 3 545 | C35: 9078154 | D35: 39.1%
A36: 1996 | B36: 3 589 | C36: 9202659 | D36: 39.0%
A37: 1997 | C37: 9309945
A38: 1998 | C38: 9410462
A39: 1999 | C39: 9511856
A40: 2000 | C40: 9619303
A41: 2001 | C41: 9731241

Sheet Long hours
A1: Year | B1: Average hours per week (men) | C1: Average hours per week (women) | D1: Average hours per week (total) | E1: >45 hours per week (men) | F1: >45 hours per week (women) | G1: >45 hours per week (total)
A2: 1975
A3: 1976
A4: 1977
A5: 1978 | B5: 39.29091 | C5: 29.57273 | D5: 35.81818 | E5: 27% | F5: 8% | G5: 20%
A6: 1979 | B6: 39.15833 | C6: 29.35 | D6: 35.65833 | E6: 27% | F6: 8% | G6: 21%
A7: 1980 | B7: 38.75 | C7: 28.94167 | D7: 35.175 | E7: 27% | F7: 8% | G7: 20%
A8: 1981 | B8: 38.95833 | C8: 29.10833 | D8: 35.35833 | E8: 28% | F8: 8% | G8: 21%
A9: 1982 | B9: 37.90833 | C9: 28.4 | D9: 34.41667 | E9: 26% | F9: 8% | G9: 19%
A10: 1983 | B10: 37.70833 | C10: 28.36667 | D10: 34.21667 | E10: 26% | F10: 8% | G10: 19%
A11: 1984 | B11: 38.4 | C11: 28.49167 | D11: 34.65 | E11: 28% | F11: 9% | G11: 21%
A12: 1985 | B12: 38.375 | C12: 28.31667 | D12: 34.50833 | E12: 28% | F12: 9% | G12: 21%
A13: 1986 | B13: 38.73333 | C13: 28.3 | D13: 34.625 | E13: 30% | F13: 10% | G13: 22%
A14: 1987 | B14: 39.2 | C14: 28.5 | D14: 34.95833 | E14: 31% | F14: 10% | G14: 23%
A15: 1988 | B15: 39.11666 | C15: 28.28333 | D15: 34.75834 | E15: 32% | F15: 10% | G15: 23%
A16: 1989 | B16: 39.15 | C16: 28.30833 | D16: 34.71667 | E16: 33% | F16: 11% | G16: 24%
A17: 1990 | B17: 38.81667 | C17: 28.125 | D17: 34.36667 | E17: 32% | F17: 11% | G17: 23%
A18: 1991 | B18: 38.9 | C18: 28.225 | D18: 34.425 | E18: 32% | F18: 11% | G18: 23%
A19: 1992 | B19: 39.34167 | C19: 28.375 | D19: 34.68333 | E19: 34% | F19: 12% | G19: 24%
A20: 1993 | B20: 39.125 | C20: 28.09167 | D20: 34.45833 | E20: 34% | F20: 12% | G20: 25%
A21: 1994 | B21: 39.44167 | C21: 28.19167 | D21: 34.65833 | E21: 36% | F21: 12% | G21: 26%
A22: 1995 | B22: 39.425 | C22: 28.28333 | D22: 34.61667 | E22: 36% | F22: 13% | G22: 26%
A23: 1996 | B23: 38.74166 | C23: 27.86667 | D23: 34.03333 | E23: 35% | F23: 12% | G23: 25%
A24: 1997 | B24: 39.38333 | C24: 28.21667 | D24: 34.53333 | E24: 36% | F24: 13% | G24: 26%
A25: 1998 | B25: 39.33333 | C25: 28.34167 | D25: 34.55 | E25: 36% | F25: 13% | G25: 26%
A26: 1999 | B26: 39.35 | C26: 28.14167 | D26: 34.45833 | E26: 37% | F26: 13% | G26: 27%
A27: 2000 | B27: 39.26667 | C27: 28.45 | D27: 34.5 | E27: 36% | F27: 14% | G27: 26%
A28: 2001 | B28: 38.13334 | C28: 27.825 | D28: 33.54167 | E28: 34% | F28: 13% | G28: 25%
A29: 2002 | B29: 38.35 | C29: 27.79167 | D29: 33.66667 | E29: 35% | F29: 13% | G29: 25%
A30: 2003 | B30: 38.5 | C30: 28.025 | D30: 33.80833 | E30: 35% | F30: 13% | G30: 25%
A31: 2004 | B31: 37.95833 | C31: 27.84167 | D31: 33.45 | E31: 34% | F31: 12% | G31: 24%
A32: 2005 | B32: 38.15833 | C32: 28.08333 | D32: 33.63333 | E32: 34% | F32: 13% | G32: 25%
A33: 2006 | B33: 37.46667 | C33: 27.85 | D33: 33.11666 | E33: 32% | F33: 12% | G33: 23%
A34: 2007 | B34: 36.83333 | C34: 27.41667 | D34: 32.59167 | E34: 31% | F34: 12% | G34: 22%
A35: 2008 | B35: 37.94167 | C35: 28.25833 | D35: 33.55833 | E35: 33% | F35: 13% | G35: 24%
A36: 2009 | B36: 36.28 | C36: 27.46 | D36: 32.24 | E36: 30% | F36: 12% | G36: 21%
A37: 2010

Sheet OECD trends in hours
A1: OECD Factbook 2009: Economic, Environmental and Social Statistics - ISBN 92-64-05604-1 - © OECD 2009
A2: Labour - Labour compensation and hours worked - Hours worked
A3: Average hours actually worked
A4: Hours per year per person in employment
B5: 1970 | C5: 1971 | D5: 1972 | E5: 1973 | F5: 1974 | G5: 1975 | H5: 1976 | I5: 1977 | J5: 1978 | K5: 1979 | L5: 1980 | M5: 1981 | N5: 1982 | O5: 1983 | P5: 1984 | Q5: 1985 | R5: 1986 | S5: 1987 | T5: 1988 | U5: 1989 | V5: 1990 | W5: 1991 | X5: 1992 | Y5: 1993 | Z5: 1994 | AA5: 1995 | AB5: 1996 | AC5: 1997 | AD5: 1998 | AE5: 1999 | AF5: 2000 | AG5: 2001 | AH5: 2002 | AI5: 2003 | AJ5: 2004 | AK5: 2005 | AL5: 2006 | AM5: 2007 | AN5: Diff from Aust | AO5: Change since 1980
A6: Australia | B6: 1830 | C6: 1827 | D6: 1823 | E6: 1819 | F6: 1816 | G6: 1812 | H6: 1808 | I6: 1805 | J6: 1802 | K6: 1823 | L6: 1798 | M6: 1798 | N6: 1788 | O6: 1774 | P6: 1790 | Q6: 1786 | R6: 1793 | S6: 1802 | T6: 1811 | U6: 1805 | V6: 1795 | W6: 1775 | X6: 1786 | Y6: 1799 | Z6: 1807 | AA6: 1803 | AB6: 1799 | AC6: 1795 | AD6: 1789 | AE6: 1787 | AF6: 1785 | AG6: 1755 | AH6: 1740 | AI6: 1737 | AJ6: 1747 | AK6: 1732 | AL6: 1723 | AM6: 1722 | AN6: =AM6-1722 -> 0 | AO6: =(AM6-L6)/L6 -> -4.2%
A7: Austria | B7: .. | C7: .. | D7: .. | E7: .. | F7: .. | G7: .. | H7: .. | I7: .. | J7: .. | K7: .. | L7: .. | M7: .. | N7: .. | O7: .. | P7: .. | Q7: .. | R7: .. | S7: .. | T7: .. | U7: .. | V7: .. | W7: .. | X7: .. | Y7: .. | Z7: .. | AA7: 1654 | AB7: 1659 | AC7: 1666 | AD7: 1668 | AE7: 1656 | AF7: 1658 | AG7: 1657 | AH7: 1652 | AI7: 1658 | AJ7: 1663 | AK7: 1652 | AL7: 1644 | AM7: 1630 | AN7: =AM7-1722 -> -92 | AO7: =(AM7-L7)/L7 -> 
A8: Belgium | B8: 1876 | C8: 1866 | D8: 1841 | E8: 1813 | F8: 1785 | G8: 1776 | H8: 1779 | I8: 1753 | J8: 1737 | K8: 1720 | L8: 1700 | M8: 1677 | N8: 1663 | O8: 1669 | P8: 1693 | Q8: 1698 | R8: 1679 | S8: 1664 | T8: 1652 | U8: 1644 | V8: 1656 | W8: 1619 | X8: 1598 | Y8: 1554 | Z8: 1554 | AA8: 1580 | AB8: 1554 | AC8: 1567 | AD8: 1578 | AE8: 1581 | AF8: 1554 | AG8: 1577 | AH8: 1579 | AI8: 1575 | AJ8: 1549 | AK8: 1565 | AL8: 1571 | AM8: 1566 | AN8: -156 | AO8: -7.9%
A9: Canada | B9: 1915 | C9: 1903 | D9: 1895 | E9: 1889 | F9: 1882 | G9: 1863 | H9: 1852 | I9: 1823 | J9: 1826 | K9: 1825 | L9: 1812 | M9: 1798 | N9: 1777 | O9: 1768 | P9: 1774 | Q9: 1782 | R9: 1780 | S9: 1791 | T9: 1793 | U9: 1787 | V9: 1776 | W9: 1756 | X9: 1755 | Y9: 1755 | Z9: 1762 | AA9: 1761 | AB9: 1774 | AC9: 1767 | AD9: 1767 | AE9: 1769 | AF9: 1768 | AG9: 1762 | AH9: 1744 | AI9: 1734 | AJ9: 1753 | AK9: 1738 | AL9: 1738 | AM9: 1736 | AN9: 14 | AO9: -4.2%
A10: Czech Republic | B10: .. | C10: .. | D10: .. | E10: .. | F10: .. | G10: .. | H10: .. | I10: .. | J10: .. | K10: .. | L10: .. | M10: .. | N10: .. | O10: .. | P10: .. | Q10: .. | R10: .. | S10: .. | T10: .. | U10: .. | V10: .. | W10: .. | X10: .. | Y10: 2064 | Z10: 2043 | AA10: 2064 | AB10: 2066 | AC10: 2067 | AD10: 2075 | AE10: 2088 | AF10: 2092 | AG10: 2000 | AH10: 1980 | AI10: 1972 | AJ10: 1986 | AK10: 2002 | AL10: 1997 | AM10: 1985 | AN10: 263
A11: Denmark | B11: 1879 | C11: 1849 | D11: 1791 | E11: 1747 | F11: 1735 | G11: 1666 | H11: 1675 | I11: 1651 | J11: 1632 | K11: 1624 | L11: 1646 | M11: 1617 | N11: 1626 | O11: 1621 | P11: 1615 | Q11: 1601 | R11: 1603 | S11: 1568 | T11: 1549 | U11: 1532 | V11: 1518 | W11: 1513 | X11: 1532 | Y11: 1531 | Z11: 1494 | AA11: 1499 | AB11: 1494 | AC11: 1512 | AD11: 1528 | AE11: 1539 | AF11: 1554 | AG11: 1562 | AH11: 1556 | AI11: 1552 | AJ11: 1556 | AK11: 1556 | AL11: 1562 | AM11: 1577 | AN11: -145 | AO11: -4.2%
A12: Finland | B12: 1982 | C12: 1947 | D12: 1931 | E12: 1915 | F12: 1909 | G12: 1899 | H12: 1896 | I12: 1888 | J12: 1893 | K12: 1869 | L12: 1849 | M12: 1855 | N12: 1840 | O12: 1823 | P12: 1814 | Q12: 1813 | R12: 1793 | S12: 1798 | T12: 1806 | U12: 1802 | V12: 1769 | W12: 1747 | X12: 1753 | Y12: 1755 | Z12: 1775 | AA12: 1776 | AB12: 1775 | AC12: 1771 | AD12: 1761 | AE12: 1765 | AF12: 1750 | AG12: 1734 | AH12: 1728 | AI12: 1720 | AJ12: 1724 | AK12: 1718 | AL12: 1714 | AM12: 1710 | AN12: -12 | AO12: -7.5%
A13: France | B13: 2011 | C13: 1999 | D13: 1980 | E13: 1952 | F13: 1935 | G13: 1911 | H13: 1911 | I13: 1891 | J13: 1870 | K13: 1855 | L13: 1842 | M13: 1808 | N13: 1765 | O13: 1758 | P13: 1746 | Q13: 1731 | R13: 1720 | S13: 1716 | T13: 1718 | U13: 1699 | V13: 1702 | W13: 1694 | X13: 1695 | Y13: 1682 | Z13: 1675 | AA13: 1651 | AB13: 1655 | AC13: 1649 | AD13: 1637 | AE13: 1630 | AF13: 1591 | AG13: 1579 | AH13: 1537 | AI13: 1533 | AJ13: 1561 | AK13: 1559 | AL13: 1541 | AM13: 1533 | AN13: -189 | AO13: -16.8%
A14: Germany | B14: 1969 | C14: 1937 | D14: 1914 | E14: 1885 | F14: 1846 | G14: 1809 | H14: 1821 | I14: 1804 | J14: 1785 | K14: 1773 | L14: 1753 | M14: 1732 | N14: 1721 | O14: 1708 | P14: 1696 | Q14: 1673 | R14: 1654 | S14: 1632 | T14: 1626 | U14: 1603 | V14: 1580 | W14: 1548 | X14: 1566 | Y14: 1550 | Z14: 1547 | AA14: 1534 | AB14: 1518 | AC14: 1509 | AD14: 1503 | AE14: 1492 | AF14: 1473 | AG14: 1458 | AH14: 1445 | AI14: 1439 | AJ14: 1442 | AK14: 1435 | AL14: 1433 | AM14: 1433 | AN14: -289 | AO14: -18.3%
A15: Greece | B15: .. | C15: .. | D15: .. | E15: .. | F15: .. | G15: .. | H15: .. | I15: .. | J15: .. | K15: .. | L15: .. | M15: .. | N15: .. | O15: 2194 | P15: 2127 | Q15: 2155 | R15: 2133 | S15: 2095 | T15: 2088 | U15: 2116 | V15: 2116 | W15: 2117 | X15: 2146 | Y15: 2167 | Z15: 2133 | AA15: 2123 | AB15: 2098 | AC15: 2065 | AD15: 2063 | AE15: 2107 | AF15: 2121 | AG15: 2123 | AH15: 2106 | AI15: 2116 | AJ15: 2064 | AK15: 2081 | AL15: 2150 | AM15: 2150 | AN15: 428
A16: Hungary | B16: .. | C16: .. | D16: .. | E16: .. | F16: .. | G16: .. | H16: .. | I16: .. | J16: .. | K16: .. | L16: 2228 | M16: 2227 | N16: 2133 | O16: 2112 | P16: 2039 | Q16: 2012 | R16: 2003 | S16: 2047 | T16: 2041 | U16: 2016 | V16: 1975 | W16: 1943 | X16: 1899 | Y16: 1899 | Z16: 2032 | AA16: 2039 | AB16: 2034 | AC16: 2060 | AD16: 2052 | AE16: 2067 | AF16: 2061 | AG16: 2019 | AH16: 2026 | AI16: 1997 | AJ16: 1996 | AK16: 1994 | AL16: 1989 | AM16: 1986 | AN16: 264 | AO16: -10.9%
A17: Iceland | B17: 2158 | C17: 2116 | D17: 2080 | E17: 2061 | F17: 2034 | G17: 2007 | H17: 1977 | I17: 1931 | J17: 1889 | K17: 1875 | L17: 1864 | M17: 1857 | N17: 1860 | O17: 1860 | P17: 1858 | Q17: 1857 | R17: 1849 | S17: 1847 | T17: 1855 | U17: 1850 | V17: 1839 | W17: 1843 | X17: 1859 | Y17: 1828 | Z17: 1813 | AA17: 1832 | AB17: 1860 | AC17: 1839 | AD17: 1817 | AE17: 1873 | AF17: 1885 | AG17: 1847 | AH17: 1812 | AI17: 1807 | AJ17: 1810 | AK17: 1794 | AL17: 1795 | AM17: 1807 | AN17: 85 | AO17: -3.1%
A18: Ireland | B18: 2230 | C18: 2214 | D18: 2195 | E18: 2182 | F18: 2148 | G18: 2138 | H18: 2133 | I18: 2105 | J18: 2086 | K18: 2065 | L18: 2028 | M18: 1998 | N18: 1991 | O18: 1981 | P18: 1964 | Q18: 1971 | R18: 2004 | S18: 1984 | T18: 1992 | U18: 1999 | V18: 1988 | W18: 1954 | X18: 1908 | Y18: 1883 | Z18: 1883 | AA18: 1875 | AB18: 1882 | AC18: 1832 | AD18: 1753 | AE18: 1725 | AF18: 1719 | AG18: 1709 | AH18: 1695 | AI18: 1671 | AJ18: 1668 | AK18: 1654 | AL18: 1640 | AM18: 1630 | AN18: -92 | AO18: -19.6%
A19: Italy | B19: .. | C19: .. | D19: .. | E19: .. | F19: .. | G19: .. | H19: .. | I19: .. | J19: .. | K19: .. | L19: 1859 | M19: 1865 | N19: 1877 | O19: 1876 | P19: 1865 | Q19: 1862 | R19: 1870 | S19: 1890 | T19: 1893 | U19: 1877 | V19: 1867 | W19: 1860 | X19: 1863 | Y19: 1863 | Z19: 1857 | AA19: 1859 | AB19: 1873 | AC19: 1863 | AD19: 1880 | AE19: 1876 | AF19: 1861 | AG19: 1843 | AH19: 1831 | AI19: 1826 | AJ19: 1826 | AK19: 1819 | AL19: 1814 | AM19: 1824 | AN19: 102 | AO19: -1.9%
A20: Japan | B20: 2243 | C20: 2239 | D20: 2228 | E20: 2201 | F20: 2137 | G20: 2112 | H20: 2128 | I20: 2129 | J20: 2123 | K20: 2126 | L20: 2121 | M20: 2106 | N20: 2104 | O20: 2095 | P20: 2108 | Q20: 2093 | R20: 2097 | S20: 2096 | T20: 2092 | U20: 2070 | V20: 2031 | W20: 1998 | X20: 1965 | Y20: 1905 | Z20: 1898 | AA20: 1884 | AB20: 1892 | AC20: 1865 | AD20: 1842 | AE20: 1810 | AF20: 1821 | AG20: 1809 | AH20: 1798 | AI20: 1799 | AJ20: 1787 | AK20: 1775 | AL20: 1784 | AM20: 1785 | AN20: 63 | AO20: -15.8%
A21: Korea | B21: .. | C21: .. | D21: .. | E21: .. | F21: .. | G21: .. | H21: .. | I21: .. | J21: .. | K21: .. | L21: 2876 | M21: 2892 | N21: 2905 | O21: 2923 | P21: 2919 | Q21: 2894 | R21: 2923 | S21: 2892 | T21: 2846 | U21: 2742 | V21: 2688 | W21: 2672 | X21: 2650 | Y21: 2667 | Z21: 2651 | AA21: 2658 | AB21: 2648 | AC21: 2592 | AD21: 2496 | AE21: 2502 | AF21: 2520 | AG21: 2506 | AH21: 2465 | AI21: 2434 | AJ21: 2404 | AK21: 2364 | AL21: 2357 | AM21: 2316 | AN21: 594 | AO21: -19.5%
A22: Luxembourg | B22: .. | C22: .. | D22: .. | E22: .. | F22: .. | G22: .. | H22: .. | I22: .. | J22: .. | K22: .. | L22: .. | M22: .. | N22: .. | O22: 1779 | P22: 1764 | Q22: 1768 | R22: 1759 | S22: 1757 | T22: 1779 | U22: 1767 | V22: 1766 | W22: 1747 | X22: 1724 | Y22: 1732 | Z22: 1709 | AA22: 1719 | AB22: 1691 | AC22: 1678 | AD22: 1672 | AE22: 1669 | AF22: 1662 | AG22: 1646 | AH22: 1634 | AI22: 1630 | AJ22: 1586 | AK22: 1570 | AL22: 1604 | AM22: 1542 | AN22: -180
A23: Mexico | B23: .. | C23: .. | D23: .. | E23: .. | F23: .. | G23: .. | H23: .. | I23: .. | J23: .. | K23: .. | L23: .. | M23: .. | N23: .. | O23: .. | P23: .. | Q23: .. | R23: .. | S23: .. | T23: .. | U23: .. | V23: .. | W23: 1822 | X23: .. | Y23: 1821 | Z23: .. | AA23: 1857 | AB23: 1902 | AC23: 1927 | AD23: 1878 | AE23: 1922 | AF23: 1888 | AG23: 1864 | AH23: 1888 | AI23: 1857 | AJ23: 1849 | AK23: 1909 | AL23: 1883 | AM23: 1871 | AN23: 149
A24: Netherlands | B24: .. | C24: .. | D24: .. | E24: .. | F24: .. | G24: .. | H24: .. | I24: .. | J24: .. | K24: .. | L24: .. | M24: .. | N24: .. | O24: .. | P24: .. | Q24: .. | R24: .. | S24: 1540 | T24: 1509 | U24: 1497 | V24: 1504 | W24: 1471 | X24: 1447 | Y24: 1419 | Z24: 1411 | AA24: 1391 | AB24: 1421 | AC24: 1414 | AD24: 1400 | AE24: 1381 | AF24: 1372 | AG24: 1372 | AH24: 1348 | AI24: 1363 | AJ24: 1362 | AK24: 1375 | AL24: 1391 | AM24: 1392 | AN24: -330
A25: New Zealand | B25: .. | C25: .. | D25: .. | E25: .. | F25: .. | G25: .. | H25: .. | I25: .. | J25: .. | K25: .. | L25: .. | M25: .. | N25: .. | O25: .. | P25: .. | Q25: .. | R25: 1834 | S25: 1839 | T25: 1831 | U25: 1821 | V25: 1810 | W25: 1793 | X25: 1800 | Y25: 1854 | Z25: 1849 | AA25: 1842 | AB25: 1833 | AC25: 1821 | AD25: 1824 | AE25: 1838 | AF25: 1830 | AG25: 1817 | AH25: 1817 | AI25: 1813 | AJ25: 1827 | AK25: 1810 | AL25: 1787 | AM25: 1771 | AN25: 49
